Workbook

Sheet Database
B1: Table 1 - Precast Product Data
B3: Description | C3: Cell | D3: Unit | E3: Hand Set | F3: Flat Wall | G3: Manhole | H3: Manhole | I3: Manhole | J3: Manhole | K3: Manhole | L3: Manhole | M3: Manhole | N3: Manhole | O3: Manhole | P3: Manhole | Q3: Riser Section | R3: Riser Section | S3: Riser Section | T3: Riser Section | U3: Riser Section | V3: Riser Section | W3: Riser Section | X3: Riser Section | Y3: Riser Section | Z3: 8" Flat Wall | AA3: 8" Flat Wall | AB3: 8" Flat Wall | AC3: 8" Flat Wall | AD3: 8" Flat Wall | AE3: 8" Flat Wall | AF3: 8" Flat Wall | AG3: 8" Flat Wall | AH3: 8" Flat Wall | AI3: 8" Flat Wall | AJ3: 8" Flat Wall | AK3: 8" Flat Wall | AL3: 8" Flat Wall | AM3: 8" Flat Wall | AN3: 8" Flat Wall | AO3: 8" Flat Wall | AP3: 8" Flat Wall | AQ3: 8" Flat Wall | AR3: 8" Flat Wall | AS3: 8" Flat Wall | AT3: 8" Flat Wall | AU3: 8" Flat Wall | AV3: 8" Flat Wall | AW3: 8" Flat Wall | AX3: 8" Flat Wall | AY3: 8" Flat Wall | AZ3: 8" Flat Wall | BA3: 8" Flat Wall | BB3: 10" Flat Wall | BC3: 8" Flat Wall | BD3: 8" Flat Wall | BE3: 8" Flat Wall | BF3: 8" Flat Wall | BG3: 8" Flat Wall | BH3: 8" Flat Wall | BI3: 6" Flat Wall | BJ3: 6" Flat Wall | BK3: 6" Flat Wall | BL3: 6" Flat Wall | BM3: 6" Panel Form | BN3: 6" Flat Wall | BO3: 6" Panel Form | BP3: 6" Flat Wall | BQ3: 6" Panel Form | BR3: 6" Panel Form | BS3: 6" Panel Form | BT3: 6" Panel Form | BU3: 6" Flat Wall | BV3: 6" Flat Wall | BW3: 6" Flat Wall | BX3: 6" Flat Wall | BY3: 6" Flat Wall | BZ3: 6" Flat Wall | CA3: 6" Flat Wall | CB3: 6" Flat Wall | CC3: 6" Flat Wall | CD3: 6" Flat Wall | CE3: 6" Flat Wall | CF3: 6" Flat Wall | CG3: 6" Flat Wall | CH3: 6" Flat Wall | CI3: 6" Flat Wall | CJ3: 6" Flat Wall | CK3: 6" Flat Wall | CL3: KO Manhole | CM3: KO Manhole | CN3: KO Manhole | CO3: KO Manhole | CP3: KO Manhole | CQ3: KO Manhole | CR3: KO 8"-10" Wall Taper | CS3: KO 8" Wall | CT3: KO 8" Wall | CU3: KO 8" Wall | CV3: KO 8" Wall | CW3: KO 8" Wall | CX3: KO 6" Wall | CY3: KO 6" Wall | CZ3: KO 6" Wall | DA3: KO 6" Wall
B4: Structure Size | C4: Reference | E4: Panel Form Structure | F4: Standard GT or Tank | G4: 36" Dia. | H4: 48" Dia. | I4: 60" Dia. | J4: 66" Dia. | K4: 72" Dia. | L4: 84" Dia. | M4: 96" Dia. | N4: 108" Dia. | O4: 120" Dia. | P4: 144" Dia. | Q4: 36" Dia. (Component Only) | R4: 48" Dia. (Component Only) | S4: 60" Dia. (Component Only) | T4: 66" Dia. (Component Only) | U4: 72" Dia. (Component Only) | V4: 96" Dia. (Component Only) | W4: 108" Dia. (Component Only) | X4: 120" Dia. (Component Only) | Y4: 144" Dia. (Component Only) | Z4: 24"x24" (8"W) | AA4: 24"x30" (8"W) | AB4: 24"x36" (8"W) | AC4: 32"x32" (8"W) | AD4: 36"x36" (8"W) | AE4: 24"x40" (8"W Panel Form) | AF4: 36"x48" (8"W) | AG4: 48"x48" (8"W) | AH4: 36"x54" (8"W Panel Form) | AI4: 24"x60" (8"W Panel Form) | AJ4: 30"x60" (8"W Panel Form) | AK4: 36"x60" (8"W Panel Form) | AL4: 48"x60" (8"W Panel Form) | AM4: 60"x60" (8"W Panel Form) | AN4: 62"x62" (8"W TDOT Panel Form) | AO4: 48"x72" (8"W Panel Form) | AP4: 60"x72" (8"W Panel Form) | AQ4: 72"x72" (8"W Panel Form) | AR4: 36"x84" (8"W Panel Form) | AS4: 84"x84" (8"W Panel Form) | AT4: 30"x96" (8"W Panel Form) | AU4: 36"x96" (8"W Panel Form) | AV4: 48"x96" (8"W Panel Form) | AW4: 72"x96" (8"W Panel Form) | AX4: 96"x96" (8"W Panel Form) | AY4: 24"x120" (8"W Panel Form) | AZ4: 36"x120" (8"W Panel Form) | BA4: 48"x120" (8"W Panel Form) | BB4: 108"x108" (10"W Panel Form) | BC4: 48"x48" (8"W/12"F KY TY C MH) | BD4: 48"x60" (8"W/12"F KY TY C MH) | BE4: 48"x72" (8"W/12"F KY TY C MH) | BF4: 72"x72" (8"W/12"F KY TY C MH) | BG4: 48"x90" (8"W/12"F KY TY C MH) | BH4: 48"x96" (8"W/12"F KY TY C MH) | BI4: 18"x18" (6"W) | BJ4: 24"x24" (6"W) | BK4: 28"x28" (6"W) | BL4: 30"x30" (6"W) | BM4: 30"x30" (6"W/8"F Panel Form) | BN4: 24"x36" (6"W) | BO4: 24"x36" (6"W/8"F Panel Form) | BP4: 36"x36" (6"W Panel Form) | BQ4: 24"x46" (6"W/8"F Panel Form) | BR4: 30"x46" (6"W/8"F Panel Form) | BS4: 24"x48" (6"W Panel Form) | BT4: 30"x48" (6"W/8"F Panel Form) | BU4: 36"x48" (6"W Panel Form) | BV4: 48"x48" (6"W Panel Form) | BW4: 30"x60" (6"W Panel Form) | BX4: 36"x60" (6"W Panel Form) | BY4: 48"x60" (6"W Panel Form) | BZ4: 60"x60" (6"W Panel Form) | CA4: 28"x64" (6"W) | CB4: 24"x72" (6"W Panel Form) | CC4: 36"x72" (6"W Panel Form) | CD4: 48"x72" (6"W Panel Form) | CE4: 60"x72" (6"W Panel Form) | CF4: 72"x72" (6"W Panel Form) | CG4: 28"x97" (6"W) | CH4: 28"x98" (6"W) | CI4: 72"x96" (6"W) | CJ4: 60"x120" (6"W) | CK4: 72"x144" (6"W) | CL4: KO 48" Dia. x 2' (3-Way) | CM4: KO 48" Dia. x 2' (4-Way) | CN4: KO 48" Dia. x 3' (3-Way) | CO4: KO 48" Dia. x 3' (4-Way) | CP4: KO 60" Dia. x 4.5' (3-Way) | CQ4: KO 72" Dia. x 5' (3-Way) | CR4: KO 24"x24" x 3' (9"W Taper) | CS4: KO 24"x24" x 2.5' (8"W) | CT4: KO 24"x30" x 3' (8"W) | CU4: KO 24"x36" x 3' (8"W) | CV4: KO 36"x36" x 3.5' (8"W) | CW4: KO 48"x48" x 4.5' (8"W) | CX4: KO 18"x18" x 2' (6"W) | CY4: KO 24"x24" x 2.5' (6"W) | CZ4: KO 24"x36" x 3.5' (6"W) | DA4: KO 30"x30" x 3.5' (6"W)
B5: Structure Diamater | C5: Dia (inches) | D5: Inch | G5: 36 | H5: 48 | I5: 60 | J5: 66 | K5: 72 | L5: 84 | M5: 96 | N5: 108 | O5: 120 | P5: 144 | Q5: 36 | R5: 48 | S5: 60 | T5: 66 | U5: 72 | V5: 96 | W5: 108 | X5: 120 | Y5: 144 | CL5: 48 | CM5: 48 | CN5: 48 | CO5: 48 | CP5: 60 | CQ5: 72
B6: Structure Width | C6: Width (inches) | D6: Inch | Z6: 24 | AA6: 24 | AB6: 24 | AC6: 32 | AD6: 36 | AE6: 24 | AF6: 36 | AG6: 48 | AH6: 36 | AI6: 24 | AJ6: 30 | AK6: 36 | AL6: 48 | AM6: 60 | AN6: 62 | AO6: 48 | AP6: 60 | AQ6: 72 | AR6: 36 | AS6: 84 | AT6: 30 | AU6: 36 | AV6: 48 | AW6: 72 | AX6: 96 | AY6: 24 | AZ6: 36 | BA6: 48 | BB6: 108 | BC6: 48 | BD6: 48 | BE6: 48 | BF6: 72 | BG6: 48 | BH6: 48 | BI6: 18 | BJ6: 24 | BK6: 28 | BL6: 30 | BM6: 30 | BN6: 24 | BO6: 24 | BP6: 36 | BQ6: 24 | BR6: 30 | BS6: 24 | BT6: 30 | BU6: 36 | BV6: 48 | BW6: 30 | BX6: 36 | BY6: 48 | BZ6: 60 | CA6: 28 | CB6: 24 | CC6: 36 | CD6: 48 | CE6: 48 | CF6: 72 | CG6: 28 | CH6: 28 | CI6: 72 | CJ6: 60 | CK6: 72 | CR6: 24 | CS6: 24 | CT6: 24 | CU6: 24 | CV6: 36 | CW6: 48 | CX6: 18 | CY6: 24 | CZ6: 24 | DA6: 30
B7: Structure Length | C7: Length (inches) | D7: Inch | Z7: 24 | AA7: 30 | AB7: 36 | AC7: 32 | AD7: 36 | AE7: 40 | AF7: 48 | AG7: 48 | AH7: 54 | AI7: 60 | AJ7: 60 | AK7: 60 | AL7: 60 | AM7: 60 | AN7: 62 | AO7: 72 | AP7: 72 | AQ7: 72 | AR7: 84 | AS7: 84 | AT7: 96 | AU7: 96 | AV7: 96 | AW7: 96 | AX7: 96 | AY7: 120 | AZ7: 120 | BA7: 120 | BB7: 108 | BC7: 48 | BD7: 60 | BE7: 72 | BF7: 72 | BG7: 90 | BH7: 96 | BI7: 18 | BJ7: 24 | BK7: 28 | BL7: 30 | BM7: 30 | BN7: 36 | BO7: 36 | BP7: 36 | BQ7: 46 | BR7: 46 | BS7: 48 | BT7: 48 | BU7: 48 | BV7: 48 | BW7: 60 | BX7: 60 | BY7: 60 | BZ7: 60 | CA7: 64 | CB7: 72 | CC7: 72 | CD7: 72 | CE7: 72 | CF7: 72 | CG7: 97 | CH7: 98 | CI7: 96 | CJ7: 120 | CK7: 144 | CR7: 24 | CS7: 24 | CT7: 30 | CU7: 36 | CV7: 36 | CW7: 48 | CX7: 18 | CY7: 24 | CZ7: 36 | DA7: 30
B8: Standard Base Thickness | C8: Base | D8: Inch | G8: 6 | H8: 6 | I8: 8 | J8: 8 | K8: 8 | L8: 8 | M8: 18 | N8: 12 | O8: 18 | P8: 14 | Z8: 8 | AA8: 8 | AB8: 8 | AC8: 8 | AD8: 8 | AE8: 8 | AF8: 8 | AG8: 8 | AH8: 8 | AI8: 8 | AJ8: 8 | AK8: 8 | AL8: 8 | AM8: 8 | AN8: 8 | AO8: 8 | AP8: 8 | AQ8: 8 | AR8: 8 | AS8: 8 | AT8: 8 | AU8: 8 | AV8: 8 | AW8: 8 | AX8: 8 | AY8: 8 | AZ8: 8 | BA8: 8 | BB8: 10 | BC8: 12 | BD8: 12 | BE8: 12 | BF8: 12 | BG8: 12 | BH8: 12 | BI8: 6 | BJ8: 6 | BK8: 6 | BL8: 6 | BM8: 8 | BN8: 6 | BO8: 8 | BP8: 6 | BQ8: 8 | BR8: 8 | BS8: 6 | BT8: 8 | BU8: 6 | BV8: 6 | BW8: 6 | BX8: 6 | BY8: 6 | BZ8: 6 | CA8: 6 | CB8: 6 | CC8: 6 | CD8: 6 | CE8: 6 | CF8: 6 | CG8: 6 | CH8: 6 | CI8: 6 | CJ8: 6 | CK8: 6
B9: Standard Top Thickness | C9: Lid | D9: Inch | G9: 8 | H9: 8 | I9: 8 | J9: 8 | K9: 10 | L9: 12 | M9: 12 | N9: 12 | O9: 12 | P9: 12 | Z9: 8 | AA9: 8 | AB9: 8 | AC9: 8 | AD9: 8 | AE9: 8 | AF9: 8 | AG9: 8 | AH9: 8 | AI9: 8 | AJ9: 8 | AK9: 8 | AL9: 8 | AM9: 8 | AN9: 11 | AO9: 8 | AP9: 8 | AQ9: 8 | AR9: 8 | AS9: 8 | AT9: 8 | AU9: 8 | AV9: 8 | AW9: 8 | AX9: 8 | AY9: 8 | AZ9: 8 | BA9: 8 | BB9: 10 | BC9: 8 | BD9: 8 | BE9: 8 | BF9: 8 | BG9: 8 | BH9: 8 | BI9: 6 | BJ9: 6 | BK9: 6 | BL9: 6 | BM9: 6 | BN9: 6 | BO9: 6 | BP9: 6 | BQ9: 6 | BR9: 6 | BS9: 6 | BT9: 6 | BU9: 6 | BV9: 6 | BW9: 6 | BX9: 6 | BY9: 6 | BZ9: 6 | CA9: 6 | CB9: 6 | CC9: 6 | CD9: 6 | CE9: 6 | CF9: 6 | CG9: 6 | CH9: 6 | CI9: 6 | CJ9: 6 | CK9: 6
B10: Standard Wall Thickness | C10: Walls | D10: Inch | G10: 4 | H10: 5 | I10: 6 | J10: 6.5 | K10: 7 | L10: 8 | M10: 9 | N10: 10 | O10: 11 | P10: 12 | Z10: 8 | AA10: 8 | AB10: 8 | AC10: 8 | AD10: 8 | AE10: 8 | AF10: 8 | AG10: 8 | AH10: 8 | AI10: 8 | AJ10: 8 | AK10: 8 | AL10: 8 | AM10: 8 | AN10: 8 | AO10: 8 | AP10: 8 | AQ10: 8 | AR10: 8 | AS10: 8 | AT10: 8 | AU10: 8 | AV10: 8 | AW10: 8 | AX10: 8 | AY10: 8 | AZ10: 8 | BA10: 8 | BB10: 10 | BC10: 8 | BD10: 8 | BE10: 8 | BF10: 8 | BG10: 8 | BH10: 8 | BI10: 6 | BJ10: 6 | BK10: 6 | BL10: 6 | BM10: 6 | BN10: 6 | BO10: 6 | BP10: 6 | BQ10: 6 | BR10: 6 | BS10: 6 | BT10: 6 | BU10: 6 | BV10: 6 | BW10: 6 | BX10: 6 | BY10: 6 | BZ10: 6 | CA10: 6 | CB10: 6 | CC10: 6 | CD10: 6 | CE10: 6 | CF10: 6 | CG10: 6 | CH10: 6 | CI10: 6 | CJ10: 6 | CK10: 6
B11: Outside Perimter | C11: Perimeter (Feet) | D11: Feet | G11: 11.51 | H11: 15.19 | I11: 18.86 | J11: 20.67 | K11: 22.52 | L11: 26.17 | M11: 29.86 | N11: 33.49 | O11: 37.19 | P11: 44 | Q11: 11.51 | R11: 15.19 | S11: 18.86 | T11: 20.67 | U11: 22.52 | V11: 29.86 | W11: 33.49 | X11: 37.19 | Y11: 44 | CL11: 15.19 | CM11: 15.19 | CN11: 15.19 | CO11: 15.19 | CP11: 18.86 | CQ11: 22.52 | CR11: 13.33 | CS11: 13.33 | CT11: 14.33 | CU11: 15.33 | CV11: 17.33 | CW11: 21.33 | CX11: 10 | CY11: 12 | CZ11: 14 | DA11: 14
B12: Stack-It Structure Size Translation | C12: Stack-It Structure Size Translation | D12: Size | G12: 36" 4W 6F | H12: 48" 5W 6F | I12: 60" 6W 8F | J12: 66" 6.5W 8F | K12: 72" 7W 8F | L12: 84" 8W 8F | M12: 96" 9W 8F | N12: 108" 10W 12F | O12: 120" 11W 12F | P12: 144" 13W 12F | Z12: 24" x 24" 8W 8F | AA12: 24" x 30" 8W 8F | AB12: 24" x 36" 8W 8F | AC12: 32" x 32" 8W 8F | AD12: 36" x 36" 8W 8F | AE12: 24" x 40" 8W 8F | AF12: 36" x 48" 8W 8F | AG12: 48" x 48" 8W 8F | AH12: 36" x 54" 8W 8F | AI12: 24" x 60" 8W 8F | AJ12: 30" x 60" 8W 8F | AK12: 36" x 60" 8W 8F | AL12: 48" x 60" 8W 8F | AM12: 60" x 60" 8W 8F | AN12: 62" x 62" 8W 8F | AO12: 48" x 72" 8W 8F | AP12: 60" x 72" 8W 8F | AQ12: 72" x 72" 8W 8F | AR12: 36" x 84" 8W 8F | AS12: 84" x 84" 8W 8F | AT12: 30" x 96" 8W 8F | AU12: 36" x 96" 8W 8F | AV12: 48" x 96" 8W 8F | AW12: 72" x 96" 8W 8F | AX12: 96" x 96" 8W 8F | AY12: 24" x 120" 8W 8F | AZ12: 36" x 120" 8W 8F | BA12: 48" x 120" 8W 8F | BB12: 108" x 108" 10W 10F | BC12: 48" x 48" 8W 12F | BD12: 48" x 60" 8W 12F | BE12: 48" x 72" 8W 12F | BF12: 72" x 72" 8W 12F | BG12: 48" x 90" 8W 12F | BH12: 48" x 96" 8W 12F | BI12: 18" x 18" 6W 6F | BJ12: 24" x 24" 6W 6F | BK12: 28" x 28" 6W 6F | BL12: 30" x 30" 6W 6F | BM12: 30" x 30" 6W 8F | BN12: 24" x 36" 6W 6F | BO12: 24" x 36" 6W 8F | BP12: 36" x 36" 6W 6F | BQ12: 24" x 46" 6W 8F | BR12: 30" x 46" 6W 8F | BS12: 24" x 48" 6W 6F | BT12: 30" x 48" 6W 8F | BU12: 36" x 48" 6W 6F | BV12: 48" x 48" 6W 6F | BW12: 30" x 60" 6W 6F | BX12: 36" x 60" 6W 6F | BY12: 48" x 60" 6W 6F | BZ12: 60" x 60" 6W 6F | CA12: 28" x 64" 6W 6F | CB12: 24" x 72" 6W 6F | CC12: 36" x 72" 6W 6F | CD12: 48" x 72" 6W 6F | CE12: 60" x 72" 6W 6F | CF12: 72" x 72" 6W 6F | CG12: 28" x 97" 6W 6F | CH12: 28" x 98" 6W 6F | CI12: 72" x 96" 6W 6F | CJ12: 60" x 120" 6W 6F | CK12: 72" x 144" 6W 6F
B13: Structure Type | C13: Structure Type | E13: Flat Wall | F13: Flat Wall | G13: Round | H13: Round | I13: Round | J13: Round | K13: Round | L13: Round | M13: Round | N13: Round | O13: Round | P13: Round | Q13: Round | R13: Round | S13: Round | T13: Round | U13: Round | V13: Round | W13: Round | X13: Round | Y13: Round | Z13: Flat Wall | AA13: Flat Wall | AB13: Flat Wall | AC13: Flat Wall | AD13: Flat Wall | AE13: Flat Wall | AF13: Flat Wall | AG13: Flat Wall | AH13: Flat Wall | AI13: Flat Wall | AJ13: Flat Wall | AK13: Flat Wall | AL13: Flat Wall | AM13: Flat Wall | AN13: Flat Wall | AO13: Flat Wall | AP13: Flat Wall | AQ13: Flat Wall | AR13: Flat Wall | AS13: Flat Wall | AT13: Flat Wall | AU13: Flat Wall | AV13: Flat Wall | AW13: Flat Wall | AX13: Flat Wall | AY13: Flat Wall | AZ13: Flat Wall | BA13: Flat Wall | BB13: Flat Wall | BC13: Flat Wall | BD13: Flat Wall | BE13: Flat Wall | BF13: Flat Wall | BG13: Flat Wall | BH13: Flat Wall | BI13: Flat Wall | BJ13: Flat Wall | BK13: Flat Wall | BL13: Flat Wall | BM13: Flat Wall | BN13: Flat Wall | BO13: Flat Wall | BP13: Flat Wall | BQ13: Flat Wall | BR13: Flat Wall | BS13: Flat Wall | BT13: Flat Wall | BU13: Flat Wall | BV13: Flat Wall | BW13: Flat Wall | BX13: Flat Wall | BY13: Flat Wall | BZ13: Flat Wall | CA13: Flat Wall | CB13: Flat Wall | CC13: Flat Wall | CD13: Flat Wall | CE13: Flat Wall | CF13: Flat Wall | CG13: Flat Wall | CH13: Flat Wall | CI13: Flat Wall | CJ13: Flat Wall | CK13: Flat Wall | CL13: Round Knockout | CM13: Round Knockout | CN13: Round Knockout | CO13: Round Knockout | CP13: Round Knockout | CQ13: Round Knockout | CR13: FW Knockout | CS13: FW Knockout | CT13: FW Knockout | CU13: FW Knockout | CV13: FW Knockout | CW13: FW Knockout | CX13: FW Knockout | CY13: FW Knockout | CZ13: FW Knockout | DA13: FW Knockout
B14: Top Slab Default | C14: Top/Trans Slab Required | D14: Yes/No | E14: Yes Top | F14: Yes Top | G14: Yes Top | H14: Yes Top | I14: Yes Top | J14: Yes Top | K14: Yes Top | L14: Yes Top | M14: Yes Top | N14: Yes Top | O14: Yes Top | P14: Yes Top | Q14: No Top | R14: No Top | S14: No Top | T14: No Top | U14: No Top | V14: No Top | W14: No Top | X14: No Top | Y14: No Top | Z14: No Top | AA14: No Top | AB14: No Top | AC14: No Top | AD14: No Top | AE14: No Top | AF14: Yes Top | AG14: Yes Top | AH14: Yes Top | AI14: Yes Top | AJ14: Yes Top | AK14: Yes Top | AL14: Yes Top | AM14: Yes Top | AN14: Yes Top | AO14: Yes Top | AP14: Yes Top | AQ14: Yes Top | AR14: Yes Top | AS14: Yes Top | AT14: Yes Top | AU14: Yes Top | AV14: Yes Top | AW14: Yes Top | AX14: Yes Top | AY14: Yes Top | AZ14: Yes Top | BA14: Yes Top | BB14: Yes Top | BC14: Yes Top | BD14: Yes Top | BE14: Yes Top | BF14: Yes Top | BG14: Yes Top | BH14: Yes Top | BI14: No Top | BJ14: No Top | BK14: No Top | BL14: No Top | BM14: No Top | BN14: No Top | BO14: No Top | BP14: No Top | BQ14: No Top | BR14: No Top | BS14: No Top | BT14: No Top | BU14: No Top | BV14: No Top | BW14: No Top | BX14: No Top | BY14: No Top | BZ14: No Top | CA14: No Top | CB14: No Top | CC14: No Top | CD14: No Top | CE14: No Top | CF14: No Top | CG14: No Top | CH14: No Top | CI14: Yes Top | CJ14: Yes Top | CK14: Yes Top | CL14: Yes Top | CM14: Yes Top | CN14: Yes Top | CO14: Yes Top | CP14: Yes Top | CQ14: Yes Top | CR14: No Top | CS14: No Top | CT14: No Top | CU14: No Top | CV14: No Top | CW14: Yes Top | CX14: No Top | CY14: No Top | CZ14: No Top | DA14: No Top
B15: Base Price Inside Height | C15: Base Price Depth | D15: Feet | Z15: 3 | AA15: 3 | AB15: 3 | AC15: 3 | AD15: 3 | AE15: 3 | AF15: 3 | AG15: 3 | AH15: 3 | AI15: 3 | AJ15: 3 | AK15: 4 | AL15: 4 | AM15: 4 | AN15: 4 | AO15: 4 | AP15: 4 | AQ15: 4 | AR15: 4 | AS15: 4 | AT15: 4 | AU15: 4 | AV15: 4 | AW15: 4 | AX15: 4 | AY15: 4 | AZ15: 4 | BA15: 4 | BB15: 4 | BC15: 4 | BD15: 5 | BE15: 6 | BF15: 6 | BG15: 7.5 | BH15: 7.5 | BI15: 2 | BJ15: 2.5 | BK15: 4 | BL15: 4 | BM15: 4 | BN15: 4 | BO15: 4 | BP15: 3 | BQ15: 3 | BR15: 3 | BS15: 3 | BT15: 3 | BU15: 3 | BV15: 3 | BW15: 4 | BX15: 4 | BY15: 4 | BZ15: 4 | CA15: 4 | CB15: 4 | CC15: 4 | CD15: 4 | CE15: 4 | CF15: 4 | CG15: 4 | CH15: 4 | CI15: 4 | CJ15: 4 | CK15: 4
B16: Flat Wall Base Price | C16: Flat Wall Base | D16: Dollar | Z16: 661 | AA16: 733 | AB16: 804 | AC16: 921 | AD16: 921 | AE16: 1108 | AF16: 1072 | AG16: 1182 | AH16: 1566 | AI16: 1422 | AJ16: 1546 | AK16: 2044 | AL16: 2329 | AM16: 2616 | AN16: 2712 | AO16: 2596 | AP16: 2902 | AQ16: 3208 | AR16: 2536 | AS16: 3842 | AT16: 2609 | AU16: 2782 | AV16: 3129 | AW16: 3823 | AX16: 4516 | AY16: 2889 | AZ16: 3276 | BA16: 3662 | BB16: 6778 | BC16: 2347 | BD16: 3081 | BE16: 3894 | BF16: 4813 | BG16: 5264 | BH16: 5493 | BI16: 445 | BJ16: 510 | BK16: 790 | BL16: 813 | BM16: 849 | BN16: 690 | BO16: 725 | BP16: 921 | BQ16: 905 | BR16: 998 | BS16: 875 | BT16: 1005 | BU16: 1072 | BV16: 1182 | BW16: 1335 | BX16: 1440 | BY16: 1650 | BZ16: 1860 | CA16: 1266 | CB16: 1396 | CC16: 1620 | CD16: 1845 | CE16: 2070 | CF16: 2295 | CG16: 1824 | CH16: 1824 | CI16: 3321 | CJ16: 3510 | CK16: 4509
B17: Flat Wall Concrete Lid Adder | C17: Flat Wall Lid Adder | D17: Dollar | Z17: 170 | AA17: 196 | AB17: 221 | AC17: 275 | AD17: 275 | AE17: 312 | AF17: 339 | AG17: 398 | AH17: 506 | AI17: 423 | AJ17: 486 | AK17: 548 | AL17: 677 | AM17: 802 | AN17: 1162 | AO17: 783 | AP17: 931 | AQ17: 948 | AR17: 723 | AS17: 1391 | AT17: 717 | AU17: 811 | AV17: 997 | AW17: 1371 | AX17: 1744 | AY17: 757 | AZ17: 984 | BA17: 1211 | BB17: 2684 | BC17: 398 | BD17: 676 | BE17: 783 | BF17: 1078 | BG17: 943 | BH17: 1080 | BI17: 142 | BJ17: 153 | BK17: 176 | BL17: 187 | BM17: 187 | BN17: 156 | BO17: 156 | BP17: 275 | BQ17: 218 | BR17: 254 | BS17: 212 | BT17: 259 | BU17: 339 | BV17: 398 | BW17: 358 | BX17: 406 | BY17: 501 | BZ17: 596 | CA17: 335 | CB17: 316 | CC17: 420 | CD17: 525 | CE17: 630 | CF17: 735 | CG17: 455 | CH17: 455 | CI17: 0 | CJ17: 0 | CK17: 0
B18: Plain Concrete VF Adder Rate | C18: VF Adder Rate | D18: Dollar | G18: 74 | H18: 102 | I18: 167 | J18: 239 | K18: 255 | L18: 404 | M18: 472 | N18: 699 | O18: 776 | P18: 1079 | Z18: 164 | AA18: 179 | AB18: 194 | AC18: 215 | AD18: 215 | AE18: 268 | AF18: 244 | AG18: 261 | AH18: 354 | AI18: 354 | AJ18: 364 | AK18: 372 | AL18: 393 | AM18: 454 | AN18: 468 | AO18: 454 | AP18: 493 | AQ18: 532 | AR18: 454 | AS18: 613 | AT18: 473 | AU18: 493 | AV18: 533 | AW18: 614 | AX18: 694 | AY18: 508 | AZ18: 574 | BA18: 613 | BB18: 984 | BC18: 261 | BD18: 414 | BE18: 454 | BF18: 533 | BG18: 514 | BH18: 534 | BI18: 120 | BJ18: 125 | BK18: 159 | BL18: 162 | BM18: 162 | BN18: 138 | BO18: 138 | BP18: 215 | BQ18: 205 | BR18: 220 | BS18: 200 | BT18: 225 | BU18: 244 | BV18: 261 | BW18: 255 | BX18: 270 | BY18: 300 | BZ18: 330 | CA18: 243 | CB18: 272 | CC18: 281 | CD18: 330 | CE18: 360 | CF18: 390 | CG18: 343 | CH18: 343 | CI18: 405 | CJ18: 432 | CK18: 513
B19: Flat Wall Base Slab Deduct | C19: Base Slab Deduct | D19: Dollar | Z19: 128 | AA19: 147 | AB19: 166 | AC19: 207 | AD19: 207 | AE19: 312 | AF19: 254 | AG19: 299 | AH19: 506 | AI19: 423 | AJ19: 486 | AK19: 548 | AL19: 677 | AM19: 802 | AN19: 844 | AO19: 783 | AP19: 931 | AQ19: 948 | AR19: 723 | AS19: 1391 | AT19: 717 | AU19: 811 | AV19: 997 | AW19: 1371 | AX19: 1744 | AY19: 757 | AZ19: 984 | BA19: 1211 | BB19: 2684 | BC19: 853 | BD19: 1013 | BE19: 1174 | BF19: 1613 | BG19: 1414 | BH19: 1613 | BI19: 106 | BJ19: 115 | BK19: 132 | BL19: 141 | BM19: 141 | BN19: 117 | BO19: 117 | BP19: 207 | BQ19: 218 | BR19: 339 | BS19: 212 | BT19: 345 | BU19: 254 | BV19: 299 | BW19: 358 | BX19: 406 | BY19: 501 | BZ19: 596 | CA19: 251 | CB19: 316 | CC19: 420 | CD19: 525 | CE19: 630 | CF19: 735 | CG19: 455 | CH19: 455 | CI19: 638 | CJ19: 668 | CK19: 921
B20: KO Base Price | C20: KO Base Price | D20: Dollar | CL20: 480 | CM20: 480 | CN20: 550 | CO20: 550 | CP20: 1155 | CQ20: 1870 | CR20: 597 | CS20: 597 | CT20: 733 | CU20: 804 | CV20: 1171 | CW20: 1574 | CX20: 445 | CY20: 573 | CZ20: 690 | DA20: 813
B21: KO Base Weight | C21: KO Base Weight | D21: LBS | CL21: 2600 | CM21: 2425 | CN21: 3095 | CO21: 2925 | CP21: 6300 | CQ21: 9350 | CR21: 3200 | CS21: 2588 | CT21: 3025 | CU21: 3342 | CV21: 4357 | CW21: 6500 | CX21: 1170 | CY21: 1735 | CZ21: 2550 | DA21: 2565
B22: KO Base Inside Height | C22: KO Base Height Inches | D22: Inches | CL22: 24 | CM22: 24 | CN22: 36 | CO22: 36 | CP22: 54 | CQ22: 60 | CR22: 36 | CS22: 30 | CT22: 36 | CU22: 36 | CV22: 42 | CW22: 54 | CX22: 24 | CY22: 30 | CZ22: 42 | DA22: 42
B23: KO Base Product ID | C23: KO Base Product ID | D23: Product ID | CL23: Input Here | CM23: Input Here | CN23: Input Here | CO23: Input Here | CP23: Input Here | CQ23: Input Here | CR23: Input Here | CS23: Input Here | CT23: Input Here | CU23: Input Here | CV23: Input Here | CW23: Input Here | CX23: Input Here | CY23: Input Here | CZ23: Input Here | DA23: Input Here
B24: KO Concrete Lid Adder | C24: KO Lid Price | D24: Dollar | CL24: 257 | CM24: 257 | CN24: 257 | CO24: 257 | CP24: 396 | CQ24: 706 | CR24: 170 | CS24: 170 | CT24: 196 | CU24: 221 | CV24: 275 | CW24: 398 | CX24: 142 | CY24: 153 | CZ24: 156 | DA24: 187
B25: KO Lid Weight | C25: KO Lid Weight | D25: LBS | CL25: 1545 | CM25: 1545 | CN25: 1545 | CO25: 1545 | CP25: 2710 | CQ25: 4935 | CR25: 1112 | CS25: 1112 | CT25: 1279 | CU25: 1446 | CV25: 1880 | CW25: 2847 | CX25: 804 | CY25: 1112 | CZ25: 1446 | DA25: 1471
B26: KO Lid Height | C26: KO Lid Height Inches | D26: Inch | CL26: 12 | CM26: 12 | CN26: 12 | CO26: 12 | CP26: 13 | CQ26: 15 | CR26: 8 | CS26: 8 | CT26: 8 | CU26: 8 | CV26: 8 | CW26: 8 | CX26: 6 | CY26: 6 | CZ26: 6 | DA26: 6
B27: Lid for KO Structure (18"x18" Opening) | C27: 18x18 | D27: Product ID | CL27: Input Here | CM27: Input Here | CN27: Input Here | CO27: Input Here | CP27: Input Here | CQ27: Input Here | CR27: Input Here | CS27: Input Here | CX27: Not Available
B28: Lid for KO Structure (18"x36" Opening) | C28: 18x36 | D28: Product ID | CL28: Input Here | CM28: Input Here | CN28: Input Here | CO28: Input Here | CP28: Input Here | CQ28: Input Here | CR28: Not Available | CS28: Not Available | CT28: Not Available | CX28: Not Available | CY28: Not Available | DA28: Not Available
B29: Lid for KO Structure (24"x24" Opening) | C29: 24x24 | D29: Product ID | CL29: Input Here | CM29: Input Here | CN29: Input Here | CO29: Input Here | CP29: Input Here | CQ29: Input Here | CR29: Not Available | CS29: Not Available | CX29: Not Available | CY29: Not Available
B30: Lid for KO Structure (24"x30" Opening) | C30: 24x30 | D30: Product ID | CL30: Input Here | CM30: Input Here | CN30: Input Here | CO30: Input Here | CP30: Input Here | CQ30: Input Here | CR30: Not Available | CS30: Not Available | CT30: Not Available | CX30: Not Available | CY30: Not Available
B31: Lid for KO Structure (24"x36" Opening) | C31: 24x36 | D31: Product ID | CL31: Input Here | CM31: Input Here | CN31: Input Here | CO31: Input Here | CP31: Input Here | CQ31: Input Here | CR31: Not Available | CS31: Not Available | CT31: Not Available | CU31: Not Available | CX31: Not Available | CY31: Not Available | CZ31: Not Available | DA31: Not Available
B32: Lid for KO Structure (30"x30" Opening) | C32: 30x30 | D32: Product ID | CL32: Input Here | CM32: Input Here | CN32: Input Here | CO32: Input Here | CP32: Input Here | CQ32: Input Here | CR32: Not Available | CS32: Not Available | CT32: Not Available | CU32: Not Available | CX32: Not Available | CY32: Not Available | CZ32: Not Available | DA32: Not Available
B33: Lid for KO Structure (33"x33" Opening) | C33: 33x33 | D33: Product ID | CL33: Input Here | CM33: Input Here | CN33: Input Here | CO33: Input Here | CP33: Not Available | CQ33: Not Available | CR33: Not Available | CS33: Not Available | CT33: Not Available | CU33: Not Available | CV33: Not Available | CW33: Not Available | CX33: Not Available | CY33: Not Available | CZ33: Not Available | DA33: Not Available
B34: Lid for KO Structure (36"x36" Opening) | C34: 36x36 | D34: Product ID | CL34: Not Available | CM34: Not Available | CN34: Not Available | CO34: Not Available | CP34: Input Here | CQ34: Input Here | CR34: Not Available | CS34: Not Available | CT34: Not Available | CU34: Not Available | CV34: Not Available | CX34: Not Available | CY34: Not Available | CZ34: Not Available | DA34: Not Available
B35: Lid for KO Structure (48"x48" Opening) | C35: 48x48 | D35: Product ID | CL35: Not Available | CM35: Not Available | CN35: Not Available | CO35: Not Available | CP35: Not Available | CQ35: Input Here | CR35: Not Available | CS35: Not Available | CT35: Not Available | CU35: Not Available | CV35: Not Available | CW35: Not Available | CX35: Not Available | CY35: Not Available | CZ35: Not Available | DA35: Not Available
B36: Lid for KO Structure (24" Dia. Opening) | C36: 24 Dia | D36: Product ID | CL36: Input Here | CM36: Input Here | CN36: Input Here | CO36: Input Here | CP36: Input Here | CQ36: Input Here | CR36: Input Here | CS36: Input Here | CX36: Not Available
B37: Lid for KO Structure (30" Dia. Opening) | C37: 30 Dia | D37: Product ID | CL37: Input Here | CM37: Input Here | CN37: Input Here | CO37: Input Here | CP37: Input Here | CQ37: Input Here | CR37: Not Available | CS37: Not Available | CT37: Not Available | CU37: Not Available | CX37: Not Available | CY37: Not Available | CZ37: Not Available
B38: Lid for KO Structure (36" Dia. Opening) | C38: 36 Dia | D38: Product ID | CL38: Input Here | CM38: Input Here | CN38: Input Here | CO38: Input Here | CP38: Input Here | CQ38: Input Here | CR38: Not Available | CS38: Not Available | CT38: Not Available | CU38: Not Available | CX38: Not Available | CY38: Not Available | CZ38: Not Available | DA38: Not Available
B39: Lid for KO Structure (48" Dia. Opening) | C39: 48 Dia | D39: Product ID | CL39: Not Available | CM39: Not Available | CN39: Not Available | CO39: Not Available | CP39: Input Here | CQ39: Input Here | CR39: Not Available | CS39: Not Available | CT39: Not Available | CU39: Not Available | CV39: Not Available | CX39: Not Available | CY39: Not Available | CZ39: Not Available
B40: 12" Plain Riser Price | C40: KO Riser Price | D40: Dollar | CL40: 102 | CM40: 102 | CN40: 102 | CO40: 102 | CP40: 167 | CQ40: 255 | CR40: 164 | CS40: 164 | CT40: 179 | CU40: 194 | CV40: 215 | CW40: 261 | CX40: 120 | CY40: 125 | CZ40: 138 | DA40: 162
B41: 12" Plain Riser Weight | C41: KO Riser Weight | D41: LBS | CL41: 867 | CM41: 867 | CN41: 867 | CO41: 867 | CP41: 1300 | CQ41: 1810 | CR41: 1068 | CS41: 1068 | CT41: 1170 | CU41: 1268 | CV41: 1475 | CW41: 1877 | CX41: 600 | CY41: 750 | CZ41: 900 | DA41: 900
B42: 12" Plain Riser Product ID | C42: Riser Product ID | D42: Product ID | CL42: Input Riser Here | CM42: Input Riser Here | CN42: Input Riser Here | CO42: Input Riser Here | CP42: Input Riser Here | CQ42: Input Riser Here | CR42: Input Riser Here | CS42: Input Riser Here | CT42: Input Riser Here | CU42: Input Riser Here | CV42: Input Riser Here | CW42: Input Riser Here | CX42: Input Riser Here | CY42: Input Riser Here | CZ42: Input Riser Here | DA42: Input Riser Here
B43: 24" Plain Riser Price | C43: KO Riser Price | D43: Dollar | CL43: 204 | CM43: 204 | CN43: 204 | CO43: 204 | CP43: 334 | CQ43: 510 | CR43: 328 | CS43: 328 | CT43: 358 | CU43: 388 | CV43: 430 | CW43: 522 | CX43: 240 | CY43: 250 | CZ43: 276 | DA43: 324
B44: 24" Plain Riser Weight | C44: KO Riser Weight | D44: LBS | CL44: 1734 | CM44: 1734 | CN44: 1734 | CO44: 1734 | CP44: 2600 | CQ44: 3620 | CR44: 2135 | CS44: 2135 | CT44: 2340 | CU44: 2535 | CV44: 2950 | CW44: 3754 | CX44: 1200 | CY44: 1500 | CZ44: 1800 | DA44: 1800
B45: 24" Plain Riser Product ID | C45: Riser Product ID | D45: Product ID | CL45: Input Riser Here | CM45: Input Riser Here | CN45: Input Riser Here | CO45: Input Riser Here | CP45: Input Riser Here | CQ45: Input Riser Here | CR45: Input Riser Here | CS45: Input Riser Here | CT45: Input Riser Here | CU45: Input Riser Here | CV45: Input Riser Here | CW45: Input Riser Here | CX45: Input Riser Here | CY45: Input Riser Here | CZ45: Input Riser Here | DA45: Input Riser Here
B46: 36" Plain Riser Price | C46: KO Riser Price | D46: Dollar | CL46: 306 | CM46: 306 | CN46: 306 | CO46: 306 | CP46: 501 | CQ46: 765
B47: 36" Plain Riser Weight | C47: KO Riser Weight | D47: LBS | CL47: 2601 | CM47: 2601 | CN47: 2601 | CO47: 2601 | CP47: 3900 | CQ47: 5430
B48: 36" Plain Riser Product ID | C48: Riser Product ID | D48: Product ID | CL48: Input Riser Here | CM48: Input Riser Here | CN48: Input Riser Here | CO48: Input Riser Here | CP48: Input Riser Here | CQ48: Input Riser Here
B49: 48" Plain Riser Price | C49: KO Riser Price | D49: Dollar | CL49: 408 | CM49: 408 | CN49: 408 | CO49: 408 | CP49: 668 | CQ49: 1020
B50: 48" Plain Riser Weight | C50: KO Riser Weight | D50: LBS | CL50: 3468 | CM50: 3468 | CN50: 3468 | CO50: 3468 | CP50: 5200 | CQ50: 7194
B51: 48" Plain Riser Product ID | C51: Riser Product ID | D51: Product ID | CL51: Input Riser Here | CM51: Input Riser Here | CN51: Input Riser Here | CO51: Input Riser Here | CP51: Input Riser Here | CQ51: Input Riser Here
B52: 60" Plain Riser Price | C52: KO Riser Price | D52: Dollar | CL52: 510 | CM52: 510 | CN52: 510 | CO52: 510 | CP52: 853 | CQ52: 1275
B53: 60" Plain Riser Weight | C53: KO Riser Weight | D53: LBS | CL53: 4335 | CM53: 4335 | CN53: 4335 | CO53: 4335 | CP53: 6500 | CQ53: 8992
B54: 60" Plain Riser Product ID | C54: Riser Product ID | D54: Product ID | CL54: Input Riser Here | CM54: Input Riser Here | CN54: Input Riser Here | CO54: Input Riser Here | CP54: Input Riser Here | CQ54: Input Riser Here
B55: 72" Plain Riser Price | C55: KO Riser Price | D55: Dollar | CP55: 1002 | CQ55: 1530
B56: 72" Plain Riser Weight | C56: KO Riser Weight | D56: LBS | CP56: 7800 | CQ56: 10791
B57: 72" Plain Riser Product ID | C57: Riser Product ID | D57: Product ID | CP57: Input Riser Here | CQ57: Input Riser Here
B58: Standard Base Slab Extension | C58: Base Ext | D58: Inch | G58: 7 | H58: 8 | I58: 7 | J58: 10.5 | K58: 8 | L58: 14 | M58: 14 | N58: 8 | O58: 14 | P58: 8 | BC58: 8 | BD58: 8 | BE58: 8 | BF58: 8 | BG58: 8 | BH58: 8
B59: 2' Plain Base & Top | C59: 2 | D59: Dollar | G59: 438.9 | H59: 626 | I59: 1163 | J59: 1680.6 | K59: 1923 | L59: 3546.2 | M59: 4866 | N59: 7262 | O59: 8115 | P59: 12067
B60: 3' Plain Base & Top | C60: 3 | D60: Dollar | G60: 518.1 | H60: 735 | I60: 1340 | J60: 1932.7 | K60: 2190 | L60: 3961 | M60: 5333 | N60: 7951.3 | O60: 8879 | P60: 13116
B61: 4' Plain Base & Top | C61: 4 | D61: Dollar | G61: 600.1 | H61: 848 | I61: 1525 | J61: 2195.1 | K61: 2469 | L61: 4401.5 | M61: 5838 | N61: 8696.8 | O61: 9706 | P61: 14259
B62: 5' Plain Base & Top | C62: 5 | D62: Dollar | G62: 651.6 | H62: 918 | I62: 1634 | J62: 2350 | K62: 2628 | L62: 4630 | M62: 6067 | N62: 9032.5 | O62: 10076 | P62: 14735
B63: 6' Plain Base & Top | C63: 6 | D63: Dollar | G63: 718.6 | H63: 1010 | I63: 1782 | J63: 2561.3 | K63: 2851 | L63: 4974.1 | M63: 6453 | N63: 9602.7 | O63: 10708 | P63: 15600
B64: 7' Plain Base & Top | C64: 7 | D64: Dollar | G64: 773.5 | H64: 1085 | I64: 1901 | J64: 2729.8 | K64: 3027 | L64: 5238.4 | M64: 6739 | N64: 10023.9 | O64: 11174 | P64: 16225
B65: 8' Plain Base & Top | C65: 8 | D65: Dollar | G65: 831.8 | H65: 1165 | I65: 2030 | J65: 2914 | K65: 3221 | L65: 5538.3 | M65: 7074 | N65: 10517.6 | O65: 11721 | P65: 16971
B66: 9' Plain Base & Top | C66: 9 | D66: Dollar | G66: 876.5 | H66: 1226 | I66: 2126 | J66: 3050.8 | K66: 3363 | L66: 5747.5 | M66: 7296 | N66: 10845.1 | O66: 12083 | P66: 17452
B67: 10' Plain Base & Top | C67: 10 | D67: Dollar | G67: 927.6 | H67: 1296 | I67: 2238 | J67: 3209.7 | K67: 3530 | L67: 6002.6 | M67: 7579 | N67: 11262.2 | O67: 12545 | P67: 18079
B68: Plain VF of Riser | C68: VF Adder Rate | D68: Dollar | G68: 74 | H68: 102 | I68: 167 | J68: 239.1 | K68: 255 | L68: 404.2 | M68: 472 | N68: 699 | O68: 776 | P68: 1079
B69: Plain Base Slab Deduct | C69: Round Base Slab Deduct | D69: Dollar | G69: 139.5 | H69: 202 | I69: 414 | J69: 548.6 | K69: 591 | L69: 1072.7 | M69: 1901 | N69: 2563.9 | O69: 2950 | P69: 4308
B70: Plain Lid Slab | C70: Round Lid Slab Deduct | D70: Dollar | G70: 196.2 | H70: 257 | I70: 396 | J70: 646.7 | K70: 706 | L70: 1319.6 | M70: 1559 | N70: 2101.6 | O70: 2418 | P70: 3539
B71: Standard Plain Base Extension | C71: Base Ext Adder | D71: Dollar | G71: 90.2 | H71: 111 | I71: 202 | J71: 460.7 | K71: 286 | L71: 617.9 | M71: 681 | N71: 750 | O71: 866 | P71: 1025 | BC71: 480 | BD71: 520 | BE71: 560 | BF71: 640 | BG71: 621 | BH71: 640
B72: 8" Plain Invert | C72: 8 | D72: Dollar | G72: 81 | H72: 120 | I72: 196 | J72: 272.7 | K72: 295
B73: 10" Plain Invert | C73: 10 | D73: Dollar | G73: 96.7 | H73: 143 | I73: 235 | J73: 331.8 | K73: 359
B74: 12" Plain Invert | C74: 12 | D74: Dollar | G74: 109.4 | H74: 162 | I74: 271 | J74: 388.3 | K74: 420
B75: 15" Plain Invert | C75: 15 | D75: Dollar | G75: 125.6 | H75: 186 | I75: 317 | J75: 466 | K75: 504
B76: 18" Plain Invert | C76: 18 | D76: Dollar | G76: 137.1 | H76: 203 | I76: 355 | J76: 535.2 | K76: 579
B77: 24" Plain Invert | C77: 24 | D77: Dollar | G77: n/a | H77: 217 | I77: 406 | J77: 650.8 | K77: 704
B78: 30" Plain Invert | C78: 30 | D78: Dollar | G78: n/a | H78: 203 | I78: 423 | J78: 735.8 | K78: 796
B79: 36" Plain Invert | C79: 36 | D79: Dollar | G79: n/a | H79: n/a | I79: 406 | J79: 788.5 | K79: 853
B80: 42" Plain Invert | C80: 42 | D80: Dollar | G80: n/a | H80: n/a | I80: 355 | J80: 810.7 | K80: 877
B81: 48" Plain Invert | C81: 48 | D81: Dollar | G81: n/a | H81: n/a | I81: n/a | J81: n/a | K81: 867
B82: 2' Xypex Base & Top | C82: 2 | D82: Dollar | G82: 540.5 | H82: 771 | I82: 1409 | J82: 2006.6 | K82: 2296 | L82: 4181 | M82: 5737 | N82: 8467.5 | O82: 9462 | P82: 13938
B83: 3' Xypex Base & Top | C83: 3 | D83: Dollar | G83: 640.8 | H83: 909 | I83: 1572 | J83: 2238.1 | K83: 2536 | L83: 4539.6 | M83: 6112 | N83: 9029.5 | O83: 10083 | P83: 14776
B84: 4' Xypex Base & Top | C84: 4 | D84: Dollar | G84: 743.8 | H84: 1051 | I84: 1857 | J84: 2393.4 | K84: 2692 | L84: 5212.8 | M84: 6914 | N84: 10186 | O84: 11368 | P84: 16538
B85: 5' Xypex Base & Top | C85: 5 | D85: Dollar | G85: 817 | H85: 1151 | I85: 2009 | J85: 2845.4 | K85: 3182 | L85: 5529.7 | M85: 7246 | N85: 10663.1 | O85: 11895 | P85: 17219
B86: 6' Xypex Base & Top | C86: 6 | D86: Dollar | G86: 904.3 | H86: 1271 | I86: 2201 | J86: 3112.9 | K86: 3465 | L86: 5963 | M86: 7736 | N86: 11374.8 | O86: 12684 | P86: 18287
B87: 7' Xypex Base & Top | C87: 7 | D87: Dollar | G87: 980.2 | H87: 1375 | I87: 2362 | J87: 3337.6 | K87: 3701 | L87: 6315.8 | M87: 8125 | N87: 11937.4 | O87: 13307 | P87: 19117
B88: 8' Xypex Base & Top | C88: 8 | D88: Dollar | G88: 1059.6 | H88: 1484 | I88: 2535 | J88: 3579 | K88: 3956 | L88: 6703.3 | M88: 8562 | N88: 12572.5 | O88: 14011 | P88: 20067
B89: 9' Xypex Base & Top | C89: 9 | D89: Dollar | G89: 1125.3 | H89: 1574 | I89: 2674 | J89: 3771.9 | K89: 4158 | L89: 7001.6 | M89: 8888 | N89: 13041.4 | O89: 14530 | P89: 20751
B90: 10' Xypex Base & Top | C90: 10 | D90: Dollar | G90: 1196.6 | H90: 1672 | I90: 2829 | J90: 3987.1 | K90: 4385 | L90: 7345 | M90: 9274 | N90: 13600.8 | O90: 15150 | P90: 21583
B91: Xypex VF of Riser | C91: VF Adder Rate | D91: Dollar | G91: 95.1 | H91: 131 | I91: 211 | J91: 295.4 | K91: 315 | L91: 492.4 | M91: 575 | N91: 840.4 | O91: 933 | P91: 1284
B92: Xypex Base Slab Deduct | C92: Round Base Slab Deduct | D92: Dollar | G92: 171.2 | H92: 248 | I92: 509 | J92: 676.7 | K92: 729 | L92: 1305.8 | M92: 2314 | N92: 3121 | O92: 3591 | P92: 5206
B93: Xypex Lid Slab | C93: Round Lid Slab Deduct | D93: Dollar | G93: 233.6 | H93: 306 | I93: 471 | J93: 769.4 | K93: 840 | L93: 1559.1 | M93: 1842 | N93: 2484 | O93: 2858 | P93: 4154
B94: Xypex Plain Base Extension | C94: Base Ext Adder | D94: Dollar | G94: 113.8 | H94: 140 | I94: 242 | J94: 547.7 | K94: 340 | L94: 735.8 | M94: 811 | N94: 915 | O94: 1025 | P94: 1175
B95: 8" Xypex Invert | C95: 8 | D95: Dollar | G95: 96.6 | H95: 143 | I95: 233 | J95: 324.4 | K95: 351
B96: 10" Xypex Invert | C96: 10 | D96: Dollar | G96: 114.9 | H96: 170 | I96: 280 | J96: 395.6 | K96: 428
B97: 12" Xypex Invert | C97: 12 | D97: Dollar | G97: 130.3 | H97: 193 | I97: 322 | J97: 462.3 | K97: 500
B98: 15" Xypex Invert | C98: 15 | D98: Dollar | G98: 149.9 | H98: 222 | I98: 378 | J98: 553.8 | K98: 599
B99: 18" Xypex Invert | C99: 18 | D99: Dollar | G99: 163.4 | H99: 242 | I99: 423 | J99: 636.9 | K99: 689
B100: 24" Xypex Invert | C100: 24 | D100: Dollar | G100: n/a | H100: 258 | I100: 484 | J100: 774.7 | K100: 838
B101: 30" Xypex Invert | C101: 30 | D101: Dollar | G101: n/a | H101: 242 | I101: 504 | J101: 875.3 | K101: 947
B102: 36" Xypex Invert | C102: 36 | D102: Dollar | G102: n/a | H102: n/a | I102: 484 | J102: 939.2 | K102: 1016
B103: 42" Xypex Invert | C103: 42 | D103: Dollar | G103: n/a | H103: n/a | I103: 423 | J103: 965 | K103: 1044
B104: 48" Xypex Invert | C104: 48 | D104: Dollar | G104: n/a | H104: n/a | I104: n/a | J104: n/a | K104: 1032
B105: 2' Con-Block MIC Base & Top | C105: 2 | D105: Dollar | G105: 632.3 | H105: 902 | I105: 1631 | J105: 2299.4 | K105: 2631 | L105: 4751.6 | M105: 6520 | N105: 9553.8 | O105: 10676 | P105: 15622
B106: 3' Con-Block MIC Base & Top | C106: 3 | D106: Dollar | G106: 751.4 | H106: 1066 | I106: 1890 | J106: 2658.2 | K106: 3012 | L106: 5335.1 | M106: 7183 | N106: 10512.5 | O106: 11739 | P106: 17059
B107: 4' Con-Block MIC Base & Top | C107: 4 | D107: Dollar | G107: 873.3 | H107: 1234 | I107: 2156 | J107: 3028.1 | K107: 3406 | L107: 5943.4 | M107: 7883 | N107: 11526.4 | O107: 12864 | P107: 18590
B108: 5' Con-Block MIC Base & Top | C108: 5 | D108: Dollar | G108: 965.3 | H108: 1360 | I108: 2347 | J108: 3290.7 | K108: 3680 | L108: 6340.2 | M108: 8308 | N108: 12130.6 | O108: 13532 | P108: 19454
B109: 6' Con-Block MIC Base & Top | C109: 6 | D109: Dollar | G109: 1071.5 | H109: 1506 | I109: 2578 | J109: 3608.8 | K109: 4017 | L109: 6852.6 | M109: 8890 | N109: 12970.1 | O109: 14463 | P109: 20706
B110: 7' Con-Block MIC Base & Top | C110: 7 | D110: Dollar | G110: 1166.3 | H110: 1636 | I110: 2778 | J110: 3885 | K110: 4308 | L110: 7285.1 | M110: 9372 | N110: 13659.8 | O110: 15227 | P110: 21719
B111: 8' Con-Block MIC Base & Top | C111: 8 | D111: Dollar | G111: 1264.5 | H111: 1771 | I111: 2990 | J111: 4177 | K111: 4617 | L111: 7752.4 | M111: 9902 | N111: 14422.8 | O111: 16073 | P111: 22853
B112: 9' Con-Block MIC Base & Top | C112: 9 | D112: Dollar | G112: 1349 | H112: 1887 | I112: 3168 | J112: 4420.5 | K112: 4873 | L112: 8130.4 | M112: 10321 | N112: 15018.7 | O112: 16733 | P112: 23721
B113: 10' Con-Block MIC Base & Top | C113: 10 | D113: Dollar | G113: 1439.3 | H113: 2011 | I113: 3361 | J113: 4686.3 | K113: 5154 | L113: 8552.8 | M113: 10799 | N113: 15705.1 | O113: 17494 | P113: 24736
B114: Con-Block MIC VF of Riser | C114: VF Adder Rate | D114: Dollar | G114: 113.9 | H114: 157 | I114: 249 | J114: 347 | K114: 370 | L114: 572 | M114: 668 | N114: 967.4 | O114: 1074 | P114: 1467
B115: Con-Block MIC Base Slab Deduct | C115: Round Base Slab Deduct | D115: Dollar | G115: 199.5 | H115: 289 | I115: 593 | J115: 786.2 | K115: 847 | L115: 1515.7 | M115: 2686 | N115: 3622.5 | O115: 4168 | P115: 6013
B116: Con-Block MIC Lid Slab | C116: Round Lid Slab Deduct | D116: Dollar | G116: 275.6 | H116: 361 | I116: 556 | J116: 907.7 | K116: 991 | L116: 1829.2 | M116: 2161 | N116: 2914.2 | O116: 3353 | P116: 4847
B117: Con-Block MIC Plain Base Extension | C117: Base Ext Adder | D117: Dollar | G117: 134.9 | H117: 166 | I117: 279 | J117: 626.6 | K117: 389 | L117: 841.9 | M117: 928 | N117: 1050 | O117: 1168 | P117: 1311
B118: 8" Con-Block MIC Invert | C118: 8 | D118: Dollar | G118: 114.1 | H118: 169 | I118: 275 | J118: 382.7 | K118: 414
B119: 10" Con-Block MIC Invert | C119: 10 | D119: Dollar | G119: 135.9 | H119: 201 | I119: 330 | J119: 466.8 | K119: 505
B120: 12" Con-Block MIC Invert | C120: 12 | D120: Dollar | G120: 153.9 | H120: 228 | I120: 380 | J120: 545.4 | K120: 590
B121: 15" Con-Block MIC Invert | C121: 15 | D121: Dollar | G121: 176.9 | H121: 262 | I121: 446 | J121: 653.6 | K121: 707
B122: 18" Con-Block MIC Invert | C122: 18 | D122: Dollar | G122: 192.4 | H122: 285 | I122: 499 | J122: 751.5 | K122: 813
B123: 24" Con-Block MIC Invert | C123: 24 | D123: Dollar | G123: n/a | H123: 304 | I123: 571 | J123: 914.3 | K123: 989
B124: 30" Con-Block MIC Invert | C124: 30 | D124: Dollar | G124: n/a | H124: 285 | I124: 594 | J124: 1033.4 | K124: 1118
B125: 36" Con-Block MIC Invert | C125: 36 | D125: Dollar | G125: n/a | H125: n/a | I125: 571 | J125: 1107.4 | K125: 1198
B126: 42" Con-Block MIC Invert | C126: 42 | D126: Dollar | G126: n/a | H126: n/a | I126: 499 | J126: 1138.8 | K126: 1232
B127: 48" Con-Block MIC Invert | C127: 48 | D127: Dollar | G127: n/a | H127: n/a | I127: n/a | J127: n/a | K127: 1217
B128: 2' Con-Block MIC + Xypex Base & Top | C128: 2 | D128: Dollar | G128: 734.7 | H128: 1048 | I128: 1877 | J128: 2625.3 | K128: 3004 | L128: 5386.3 | M128: 7391 | N128: 10760.2 | O128: 12024 | P128: 17493
B129: 3' Con-Block MIC + Xypex Base & Top | C129: 3 | D129: Dollar | G129: 874.8 | H129: 1241 | I129: 2121 | J129: 2964.4 | K129: 3359 | L129: 5913.7 | M129: 7962 | N129: 11590.7 | O129: 12943 | P129: 18719
B130: 4' Con-Block MIC + Xypex Base & Top | C130: 4 | D130: Dollar | G130: 1016.9 | H130: 1437 | I130: 2488 | J130: 3467.3 | K130: 3900 | L130: 6755.3 | M130: 8960 | N130: 13015.6 | O130: 14526 | P130: 20869
B131: 5' Con-Block MIC + Xypex Base & Top | C131: 5 | D131: Dollar | G131: 1130 | H131: 1592 | I131: 2723 | J131: 3786.1 | K131: 4234 | L131: 7239.9 | M131: 9487 | N131: 13762.1 | O131: 15352 | P131: 21937
B132: 6' Con-Block MIC + Xypex Base & Top | C132: 6 | D132: Dollar | G132: 1257.2 | H132: 1767 | I132: 2996 | J132: 4160.4 | K132: 4631 | L132: 7841.5 | M132: 10173 | N132: 14742.2 | O132: 16439 | P132: 23393
B133: 7' Con-Block MIC + Xypex Base & Top | C133: 7 | D133: Dollar | G133: 1373 | H133: 1926 | I133: 3240 | J133: 4492.8 | K133: 4982 | L133: 8362.4 | M133: 10758 | N133: 15574.1 | O133: 17361 | P133: 24610
B134: 8' Con-Block MIC + Xypex Base & Top | C134: 8 | D134: Dollar | G134: 1492.2 | H134: 2090 | I134: 3495 | J134: 4841 | K134: 5351 | L134: 8918.1 | M134: 11391 | N134: 16478.5 | O134: 18364 | P134: 25948
B135: 9' Con-Block MIC + Xypex Base & Top | C135: 9 | D135: Dollar | G135: 1597.8 | H135: 2235 | I135: 3716 | J135: 5141.7 | K135: 5668 | L135: 9383.7 | M135: 11912 | N135: 17215.9 | O135: 19181 | P135: 27021
B136: 10' Con-Block MIC + Xypex Base & Top | C136: 10 | D136: Dollar | G136: 1709.1 | H136: 2388 | I136: 3953 | J136: 5463.7 | K136: 6009 | L136: 9895.3 | M136: 12494 | N136: 18043.7 | O136: 20099 | P136: 28240
B137: Con-Block MIC + Xypex VF of Riser | C137: VF Adder Rate | D137: Dollar | G137: 134.9 | H137: 186 | I137: 293 | J137: 403.2 | K137: 430 | L137: 660.2 | M137: 771 | N137: 1108.8 | O137: 1231 | P137: 1671
B138: Con-Block MIC + Xypex Base Slab Deduct | C138: Round Base Slab Deduct | D138: Dollar | G138: 231.3 | H138: 335 | I138: 668 | J138: 910.6 | K138: 981 | L138: 1749.3 | M138: 3100 | N138: 4179.6 | O138: 4809 | P138: 6911
B139: Con-Block MIC + Xypex Lid Slab | C139: Round Lid Slab Deduct | D139: Dollar | G139: 313 | H139: 410 | I139: 631 | J139: 1031.3 | K139: 1126 | L139: 2068.7 | M139: 2444 | N139: 3295.7 | O139: 3792 | P139: 5462
B140: Con-Block MIC + Xypex Plain Base Ext. | C140: Base Ext Adder | D140: Dollar | G140: 158.5 | H140: 195 | I140: 319 | J140: 715.2 | K140: 444 | L140: 959.9 | M140: 1058 | N140: 1200 | O140: 1327 | P140: 1461
B141: 8" Con-Block MIC + Xypex Invert | C141: 8 | D141: Dollar | G141: 129.6 | H141: 192 | I141: 312 | J141: 434.4 | K141: 470
B142: 10" Con-Block MIC + Xypex Invert | C142: 10 | D142: Dollar | G142: 154.1 | H142: 228 | I142: 375 | J142: 529.6 | K142: 573
B143: 12" Con-Block MIC + Xypex Invert | C143: 12 | D143: Dollar | G143: 174.8 | H143: 259 | I143: 432 | J143: 619.4 | K143: 670
B144: 15" Con-Block MIC + Xypex Invert | C144: 15 | D144: Dollar | G144: 200.5 | H144: 297 | I144: 506 | J144: 742.4 | K144: 803
B145: 18" Con-Block MIC + Xypex Invert | C145: 18 | D145: Dollar | G145: 218.7 | H145: 324 | I145: 567 | J145: 853.2 | K145: 923
B146: 24" Con-Block MIC + Xypex Invert | C146: 24 | D146: Dollar | G146: n/a | H146: 346 | I146: 648 | J146: 1038.2 | K146: 1123
B147: 30" Con-Block MIC + Xypex Invert | C147: 30 | D147: Dollar | G147: n/a | H147: 324 | I147: 675 | J147: 1172.9 | K147: 1269
B148: 36" Con-Block MIC + Xypex Invert | C148: 36 | D148: Dollar | G148: n/a | H148: n/a | I148: 648 | J148: 1258 | K148: 1361
B149: 42" Con-Block MIC + Xypex Invert | C149: 42 | D149: Dollar | G149: n/a | H149: n/a | I149: 567 | J149: 1293.1 | K149: 1399
B150: 48" Con-Block MIC + Xypex Invert | C150: 48 | D150: Dollar | G150: n/a | H150: n/a | I150: n/a | J150: n/a | K150: 1382
B154: Table 2 - Transition Structures
B156: Description | C156: Cell | D156: Unit
B157: Structure Size | C157: Reference | E157: Yes Top | F157: No Top | G157: Trans 48"R W/Top | H157: Trans 60"R W/Top | I157: Trans 24"x24" Riser | J157: Trans 24"x24" W/Top | K157: Trans 24"x30" Riser | L157: Trans 24"x30" W/Top | M157: Trans 24"x36" Riser | N157: Trans 24"x36" W/Top | O157: Trans 36"x36" Riser | P157: Trans 36"x36" W/Top
B158: Structure Diamater | C158: Dia (inches) | D158: Inch | G158: 48 | H158: 60
B159: Structure Width | C159: Width (inches) | D159: Inch | I159: 24 | J159: 24 | K159: 24 | L159: 24 | M159: 24 | N159: 24 | O159: 36 | P159: 36
B160: Structure Length | C160: Length (inches) | D160: Inch | I160: 24 | J160: 24 | K160: 30 | L160: 30 | M160: 36 | N160: 36 | O160: 36 | P160: 36
B161: Standard Top Thickness | C161: Lid | D161: Inch | G161: 8 | H161: 8 | J161: 8 | L161: 8 | N161: 8 | P161: 8
B162: Standard Wall Thickness | C162: Walls | D162: Inch | G162: 5 | H162: 6 | I162: 8 | J162: 8 | K162: 8 | L162: 8 | M162: 8 | N162: 8 | O162: 8 | P162: 8
B163: Standard Top Avg. Weight | C163: Top Weight | D163: LBS | G163: 1660 | H163: 2527 | J163: 1120 | L163: 1279 | N163: 1448 | P163: 1866
B164: Standard Riser Avg. VF Weight | C164: Riser VF Weight | D164: LBS | G164: 860 | H164: 1300 | I164: 1070 | J164: 1070 | K164: 1168 | L164: 1168 | M164: 1266 | N164: 1266 | O164: 1458 | P164: 1458
B165: Structure Type | C165: Structure Type | G165: Round | H165: Round | I165: Flat Wall | J165: Flat Wall | K165: Flat Wall | L165: Flat Wall | M165: Flat Wall | N165: Flat Wall | O165: Flat Wall | P165: Flat Wall
B166: Transition Status | C166: Transition Status | E166: Top Slab | F166: No Top | G166: Transition | H166: Transition | I166: Transition | J166: Transition | K166: Transition | L166: Transition | M166: Transition | N166: Transition | O166: Transition | P166: Transition
B167: Pipe Chamber Top or Transition Used? | C167: Pipe Chamber Top Status | E167: Top Slab | F167: No Top | G167: Yes Top | H167: Yes Top | I167: Yes Top | J167: Yes Top | K167: Yes Top | L167: Yes Top | M167: Yes Top | N167: Yes Top | O167: Yes Top | P167: Yes Top
B168: Top Slab Over Transition Riser | C168: Trans. Top | D168: Dollar | G168: 257 | H168: 396 | J168: 170 | L168: 196 | N168: 221 | P168: 275
B169: Plain Concrete VF Adder Rate | C169: Trans. Riser | D169: Dollar | G169: 102 | H169: 167 | I169: 164 | J169: 164 | K169: 179 | L169: 179 | M169: 194 | N169: 194 | O169: 215 | P169: 215
B170: Xypex Top Slab Over Transition Riser | C170: Trans. Top | D170: Dollar | G170: 306 | H170: 471
B171: Xypex Concrete VF Adder Rate | C171: Trans. Riser | D171: Dollar | G171: 131 | H171: 211
B172: MIC Top Slab Over Transition Riser | C172: Trans. Top | D172: Dollar | G172: 361 | H172: 556
B173: MIC Concrete VF Adder Rate | C173: Trans. Riser | D173: Dollar | G173: 157 | H173: 249
B174: MIC+Xypex Top Slab Over Transition Riser | C174: Trans. Top | D174: Dollar | G174: 410 | H174: 631
B175: MIC+Xypex Concrete VF Adder Rate | C175: Trans. Riser | D175: Dollar | G175: 186 | H175: 293
B179: Table 3 - Casting Product Data
C180: Cell
B181: Casting Make & Model | C181: Reference | D181: Unit | E181: No Casting | F181: Halliday Hatch Model | G181: Hatch Model | H181: EJ 1578 F/C Plain | I181: EJ 1578 F/C "Cleanout" | J181: HOE MC-82 F/C Plain | K181: HOE MC-162 F/C Plain | L181: HOE MC-260 F/C Plain | M181: HOE MC-260 F/C "Storm" | N181: HOE MC-260 F/C "Sanitary" | O181: HOE MC-260 F/C "Grease" | P181: HOE MC-260 F/C "Water" | Q181: HOE MC-260 F/Vented Cover | R181: HOE MC-350 F/C Plain | S181: HOE MC-350 F/C "Storm" | T181: HOE MC-350 F/C "Sanitary" | U181: HOE MC-350 F/C "Grease" | V181: HOE MC-350 F/C "Water" | W181: HOE MC-350 F/Vented Cover | X181: HOE MC-350 F/C "LFUCG SAN" | Y181: HOE MC-350 F/C "FSD" | Z181: HOE MC-350-Self Seal F/C | AA181: HOE WT-350-SAN F/C | AB181: HOE WT-350-SAN F/C "LFUCG" | AC181: HOE MC-295 F/C Plain | AD181: HOE MC-295 F/C "Storm" | AE181: HOE MC-295 F/C "Sanitary" | AF181: HOE MC-295 F/C "Grease" | AG181: HOE MC-295 F/C "Water" | AH181: HOE MC-295 F/C Vented | AI181: HOE MC-315 F/C Plain | AJ181: HOE MC-315 F/C "Storm" | AK181: HOE MC-315 F/C "Sanitary" | AL181: HOE MC-315 F/C "Grease" | AM181: HOE MC-315 F/C "Water" | AN181: HOE MC-315 F/C "Oil/Water" | AO181: HOE MC-315 F/Vented Cover | AP181: HOE MC-315 F/C "iCast Storm" | AQ181: HOE MC-315 F/C "iCast Sanitary" | AR181: HOE MC-315 F/C "iCast Grease" | AS181: HOE MC-315 F/C "iCast Oil/Water" | AT181: HOE MC-315 F/C "Henderson Storm" | AU181: HOE MC-315 F/C "Henderson WW" | AV181: HOE MC-315 F/C "RWRA Sanitary" | AW181: HOE MC-315-Self Seal SAN F/C | AX181: HOE WT-315-SAN F/C | AY181: HOE MC-420 F/C Plain | AZ181: HOE MC-420 F/C "Storm" | BA181: HOE MC-420 F/C LOU-MSD "Storm" | BB181: HOE MC-420 F/C "Sanitary" | BC181: HOE MC-420 F/C LOU-MSD "Sanitary" | BD181: HOE MC-420 F/C "Lagrange" | BE181: HOE WT-420 F/C "Sanitary" | BF181: HOE MC-285 F/C Plain | BG181: HOE MC-285 F/C "Storm" | BH181: HOE MC-285 F/C "Sanitary" | BI181: HOE MC-285 F/C "Water" | BJ181: HOE MC-285 F/Vented Cover | BK181: HOE MC-375 F/C Plain | BL181: HOE MC-375 F/C "Storm" | BM181: HOE MC-375 F/C "Sanitary" | BN181: HOE MC-375 F/C "Water" | BO181: HOE MC-375 F/Vented Cover | BP181: HOE MC-375 F/C "BGMU Sanitary" | BQ181: HOE MC-375 F/C "Grease" | BR181: HOE MC-375 F/C "Oil/Water" | BS181: HOE MC-375 F/C "Bio Clean" | BT181: HOE MC-375 F/C "iCast Storm" | BU181: HOE MC-375 F/C "iCast Sanitary" | BV181: HOE MC-375 F/C "iCast Grease" | BW181: HOE MC-375 F/C "iCast Oil/Water" | BX181: HOE MC-375-Self Seal SAN F/C | BY181: HOE WT-375-SAN F/C | BZ181: HOE MC-680 F/C Plain | CA181: HOE MC-680 F/C "Electric" | CB181: HOE MC-680 F/C "Communication" | CC181: HOE MC-780 F/C Plain | CD181: HOE MC-780 F/C "Electric" | CE181: HOE MC-780 F/C "Communication" | CF181: HOE MC-455 F/C Plain | CG181: HOE MC-747 F/C Plain | CH181: HOE MC-900 F/C Plain | CI181: HOE MCS-295 F/C Plain | CJ181: HOE MCS-295 F/C "Storm" | CK181: HOE MCS-295 F/C "Sanitary" | CL181: HOE MCS-295 F/C "Vented" | CM181: HOE MCS-288 F/C Plain | CN181: HOE MCS-288 F/C "Storm" | CO181: HOE MCS-288 F/C "Sanitary" | CP181: HOE MCS-288 F/C Vented | CQ181: HOE MCS-288-BH F/6" Beehive Grt. | CR181: HOE MCS-288-BH F/9" Beehive Grt. | CS181: HOE MCS-290 F/C Plain | CT181: HOE MCS-290 F/C "Storm" | CU181: HOE MCS-290 F/C "Sanitary" | CV181: HOE MCS-290 F/C Vented | CW181: HOE MCB-82 F/G | CX181: HOE MCB-162 F/G | CY181: HOE MCB-260-B F/Bar Grt. | CZ181: HOE MCB-260-R F/Radial Grt. | DA181: HOE MCB-260-BH F/7" Beehive Grt. | DB181: HOE MCB-315-B F/Bar Grt. | DC181: HOE MCB-315-R F/Radial Grt. | DD181: HOE MCB-315-BH F/7" Beehive Grt. | DE181: HOE MCB-350-B F/Bar Grt. | DF181: HOE MCB-350-R F/Radial Grt. | DG181: HOE MCB-350-BH F/7" Beehive Grate | DH181: HOE MCB-420 F/G | DI181: HOE MCB-285-B F/Bar Grt. | DJ181: HOE MCB-285-BH F/6" Beehive Grt. | DK181: HOE MCB-375-B F/Bar Grt. | DL181: HOE MCB-375-BH F/6" Beehive Grt. | DM181: HOE MCB-3759-BH F/9" Beehive Grt. | DN181: HOE MCB-747 F/G | DO181: HOE MCB-900 F/G | DP181: HOE 165-A F/G | DQ181: HOE 280T F/G | DR181: HOE 280-BH F/G | DS181: HOE 280-Solid F/C | DT181: HOE 280T ADA F/G | DU181: HOE 320 F/G | DV181: HOE 342 F/G | DW181: HOE 275-A F/G | DX181: HOE 275 DBL F/G | DY181: HOE-460 F/G | DZ181: HOE 326-BH F/6.25" Beehive Grt. | EA181: HOE 580-A F/G | EB181: HOE 580-LV F/G | EC181: HOE 518 F/G | ED181: HOE 518-DBL F/G | EE181: HOE 468 F/G | EF181: HOE MCS-468 Reversible F/G | EG181: HOE 918 F/G | EH181: HOE 595 F/G | EI181: HOE-165 Angle F/G | EJ181: HOE-315 Angle F/G | EK181: HOE-555 Angle F/G | EL181: HOE-700 Angle F/G | EM181: HOE 465 Set | EN181: HOE 360 Flat Set | EO181: HOE 360 L Vane Set | EP181: HOE 399 Set | EQ181: HOE 470 Flat Set | ER181: HOE 470 L Vane Set | ES181: HOE 525 Flat Set | ET181: HOE 525 L Vane Set | EU181: HOE 525 Vane Set | EV181: HOE 525-DBL Flat Set | EW181: HOE 525-DBL L Vane Set | EX181: HOE 525-Triple Flat Set | EY181: HOE 525-Triple L Vane Set | EZ181: HOE-410 Roll Curb F/G | FA181: HOE-698 F/G | FB181: EJ 4510 Roll Curb F/G | FC181: HOE KY-206 F/C (KY TY1) | FD181: HOE KY-510 F/C (KY TY2) | FE181: HOE KY-316 Set (DBI 1) | FF181: HOE KY-398 Set (DBI 2) | FG181: HOE KY-328 Set (DBI 3) | FH181: HOE KY-410 Set (DBI 4) | FI181: HOE KY-460 Set (DBI 5A) | FJ181: HOE KY-460 Set (DBI 5B) | FK181: HOE KY-460 Set (DBI 5C) | FL181: HOE KY-460 Set (DBI 5D) | FM181: HOE KY-460 Set (DBI 5E) | FN181: HOE KY-460 Set (DBI 5F) | FO181: HOE KY-426 Set (DBI 6A) | FP181: HOE KY-426 Set (DBI 6B) | FQ181: HOE KY-426 Set (DBI 6C) | FR181: HOE KY-426 Set (DBI 6D) | FS181: HOE KY-426 Set (DBI 6E) | FT181: HOE KY-426 Set (DBI 6F) | FU181: HOE KY-328 Set (DBI 7) | FV181: HOE KY-550 F/G (DBI 10) | FW181: HOE KY-460-11 F/G | FX181: HOE DBI 12 F/G (Per LF) | FY181: HOE DBI 12A F/G (Per LF) | FZ181: HOE KY-230-G F/G (GRADE) | GA181: HOE KY-230-S F/G (SAG) | GB181: HOE KY-210 F/Radial Grt. (DBI 14) | GC181: HOE KY-215 F/Beehive Grt. (DBI 15) | GD181: HOE KY Single Safety Inlet (2 Grates) | GE181: HOE KY Double Safety Inlet (4 Grates) | GF181: HOE-169G (Bolt-On Plain Grate) | GG181: HOE-169G (Bolt-On Galvanized Grate) | GH181: HOE-269G (Bolt-On Plain Grate) | GI181: HOE-269G (Bolt-On Galvanized Grate) | GJ181: HOE-729G (Bolt-On Plain Grate) | GK181: HOE-729G (Bolt-On Galvanized Grate) | GL181: HOE-1249G (Bolt-On Plain Grate) | GM181: HOE-1249G (Bolt-On Galvanized Grate) | GN181: HOE-1799G (Bolt-On Plain Grate) | GO181: HOE-1799G (Bolt-On Galvanized Grate) | GP181: HOE KY-161 (12"-18" SBO1) | GQ181: HOE KY-300 (24" SBO1) | GR181: HOE KY-272 (12"-18" SFBIO) | GS181: HOE KY-454 (24" SFBIO) | GT181: HOE KY-796 (30" SFBIO) | GU181: HOE KY-1218 (36" SFBIO) | GV181: HOE KY-298 (SBIO TY1) | GW181: HOE KY-206-SB (SBIO TY2) | GX181: HOE KY-345 Set (MBBI) | GY181: HOE KY-206 F/C (CBI A) | GZ181: HOE KY-345 Set (CBI B) | HA181: HOE KY-465 Set (CBI TY F) | HB181: JRH 1-1/2" X 8" TD Angle F/G (Per LF) | HC181: JRH 1-1/2" X 10" TD Angle F/G (Per LF) | HD181: JRH 1-1/2" X 12" TD Angle F/G (Per LF) | HE181: JRH 1-1/2" X 14" TD Angle F/G (Per LF) | HF181: JRH 1-1/2" X 17" TD Angle F/G (Per LF) | HG181: JRH 1-1/2" X 20" TD Angle F/G | HH181: JRH 1-1/2" X 26" TD Angle F/G (Per LF) | HI181: JRH 1-1/2" X 8" TD Iron F/G (Per LF) | HJ181: JRH 1-1/2" X 10" TD Iron F/G (Per LF) | HK181: JRH 1-1/2" X 12" TD Iron F/G (Per LF) | HL181: JRH 1-1/2" X 14" TD Iron F/G (Per LF) | HM181: JRH 1-1/2" X 17" TD Iron F/G (Per LF) | HN181: JRH 1-1/2" X 20" TD Iron F/G (Per LF) | HO181: JRH 1-1/2" X 26" TD Iron F/G (Per LF) | HP181: INDOT Type 2 F/G Set | HQ181: INDOT Type 3 F/C Set | HR181: INDOT Type 4 F/C Set | HS181: INDOT Type 5 F/G Set | HT181: INDOT Type 5 F/G Dbl Set | HU181: INDOT Type 7 BH Grate | HV181: INDOT Type 8 Casting Set | HW181: INDOT Type 10 Casting Set | HX181: INDOT Type 12A (Single) Casting | HY181: INDOT Type 12 (Double) Casting | HZ181: INDOT Type 13 F/G Set | IA181: INDOT Type 14 F/G Set | IB181: INDOT Type 15 Casting Set | IC181: EJ 6500 Grate | ID181: JBS 1020 F/C "Drain" | IE181: JBS 1020 F/C "Sewer" | IF181: JBS 1072 F/C Plain | IG181: JBS 1072 F/C "Storm" | IH181: JBS 1072 F/C "Sanitary" | II181: JBS 1072 F/C "Grease" | IJ181: JBS 1077 F/C "KY Storm" | IK181: JBS 1090 BDWT F/C "MSD Lou" | IL181: JBS 1090 BDWT F/C "Sanitary" | IM181: JBS 1095 F/C "Lagrange Storm" | IN181: JBS 1095 F/C "Lagrange Sewer" | IO181: JBS 1095 F/C "MSD Lou Storm" | IP181: JBS 1095 F/C "MSD Lou Sewer" | IQ181: JBS 1110 F/C "Storm" | IR181: JBS 1110 F/C "Sanitary" | IS181: JBS 1123 WT F/C "Sanitary" | IT181: JBS 1123 Mod. BDWT F/C "KY Storm" | IU181: JBS 1123 Mod. Non WT F/C "KY Storm" | IV181: JBS 1123 Mod. BDWT F/C "KY SAN" | IW181: JBS 1123 Mod. Non WT F/C "KY SAN" | IX181: JBS 1132 F/C "Electric" | IY181: JBS 1132 F/C "Communication" | IZ181: JBS 1140M F/C "Storm" | JA181: JBS 1140M F/C "Sanitary" | JB181: JBS 1140M F/C "Lex. Sanitary" | JC181: JBS 1140M F/C "RWRA SAN" | JD181: JBS 1140M BDWT F/C "Sanitary" | JE181: JBS 1140M BDWT F/C "Lex. Sanitary" | JF181: JBS 1144 F/C "Storm" | JG181: JBS 1144 F/C "Sanitary" | JH181: JBS 1150 F/C Plain | JI181: JBS 1150 F/C "Storm" | JJ181: JBS 1150 F/C "Sanitary" | JK181: JBS 1150 BDWT F/C "Sanitary" | JL181: JBS 1152M F/C "BGMU" | JM181: JBS 1154 F/C "Storm" | JN181: JBS 1154 F/C "Sanitary" | JO181: JBS 1155 F/C Plain | JP181: JBS 1155 F/C "Storm" | JQ181: JBS 1155 F/C "Sanitary" | JR181: JBS 1155 BDWT F/C "Sanitary" | JS181: JBS 1220 F/C Plain | JT181: JBS 1247DM F/C "Storm" | JU181: JBS 1247DM F/C "Sanitary" | JV181: JBS 1247DM Self-Seal F/C "Sanitary" | JW181: JBS 1247DM Self-Seal F/C "Gtown" | JX181: JBS 1247DM BDWT F/C "Sanitary" | JY181: JBS 2072 F/G | JZ181: JBS 2110 F/G | KA181: JBS 2140 F/G | KB181: JBS 2150 F/G | KC181: JBS 2214 F/G | KD181: JBS 2215 F/G | KE181: JBS 2220 F/G | KF181: JBS 2230 F/G | KG181: JBS 2272 Beehive F/G | KH181: JBS 3070 F/G | KI181: JBS 3080 Set | KJ181: JBS 3080 Vane Set | KK181: JBS 3080 Double Set | KL181: JBS 3080 Double Vane Set | KM181: JBS 3080 Triple Set | KN181: JBS 3080 Triple Vane Set | KO181: JBS 3085 Set | KP181: JBS 3101 Single Set | KQ181: JBS 3101 Vane Single Set | KR181: JBS 3101 Double Set | KS181: JBS 3101-V Vane Double Set | KT181: JBS 3101 Triple Set | KU181: JBS 3101-V Vane Triple Set | KV181: JBS 3103 Single Set | KW181: JBS 3103-V Vane Single Set | KX181: JBS 3103 Double Set | KY181: JBS 3103-V Vane Double Set | KZ181: JBS 3103 Triple Set | LA181: JBS 3103-V Vane Triple Set | LB181: JBS 3104 Single Set | LC181: JBS 3104-V Vane Single Set | LD181: JBS 3104 Double Set | LE181: JBS 3104-V Vane Double Set | LF181: JBS 3104 Triple Set | LG181: JBS 3104-V Vane Triple Set | LH181: JBS 3105 Set | LI181: JBS 3106 Set Reg. Grate | LJ181: JBS 3106-V Set | LK181: JBS 3123 Single Set | LL181: JBS 3123 Mod. Single Set | LM181: JBS 3123 Mod. Double Set | LN181: JBS 3123-13 Single Set | LO181: JBS 3123-32 Single Set | LP181: JBS 3123-32 Double Set | LQ181: JBS 3123-41 Single Set | LR181: JBS 3123-41 Double Set | LS181: JBS 3123-41 Quad Set | LT181: JBS 3157 Set | LU181: JBS 3158 Set | LV181: JBS 3223-V (TDOT #10LPC) | LW181: JBS 3300 Single Set | LX181: JBS 3300-V Vane Single Set | LY181: JBS 3300 Double Set | LZ181: JBS 3300-V Vane Double Set | MA181: JBS 3300 Triple Set | MB181: JBS 3300-V Vane Triple Set | MC181: JBS 3305MOD Set | MD181: JBS 3411 F/G | ME181: JBS 3413 F/G | MF181: JBS 3450 F/G | MG181: JBS 3700 F/G | MH181: JBS 4012 F/G | MI181: JBS 4073 F/G | MJ181: JBS 4075 F/G | MK181: JBS 4076X F/G | ML181: JBS 4200 Single Grate | MM181: JBS 4200 Double Grate Set | MN181: JBS 4200 Quad Grate Set | MO181: JBS 4220 F/G | MP181: JBS 4254 F/G | MQ181: JBS 4260 F/G | MR181: JBS 4275-Regular F/G | MS181: JBS 4275-Vane F/G | MT181: JBS 4300 F/G | MU181: JBS 4310 F/G | MV181: JBS 4310 Double F/G Set | MW181: JBS 4315 F/G | MX181: JBS 4475D Grate Only | MY181: JBS 4480 Beehive F/G | MZ181: JBS 5830 F/G (Per LF) | NA181: JBS 5830 Bolted F/G (Per LF) | NB181: JBS TDOT Type 38 Grate | NC181: JBS TDOT Type 39 Grate | ND181: JBS TDOT Type 40 Grate | NE181: LSQ-24-P Plain Trash Rack | NF181: LSQ-24-G Galvanized Trash Rack | NG181: LSQ-24-AL Aluminum Trash Rack | NH181: LSQ-36-P Plain Trash Rack | NI181: LSQ-36-G Galvanized Trash Rack | NJ181: LSQ-36-AL Aluminum Trash Rack | NK181: LSQ-3648-P Plain Trash Rack | NL181: LSQ-3648-G Galvanized Trash Rack | NM181: LSQ-3648-AL Aluminum Trash Rack | NN181: LSQ-48-P Plain Trash Rack | NO181: LSQ-48-G Galvanized Trash Rack | NP181: LSQ-48-AL Aluminum Trash Rack | NQ181: LSQ-60-P Plain Trash Rack | NR181: LSQ-60-G Galvanized Trash Rack | NS181: LSQ-60-AL Aluminum Trash Rack | NT181: LSQ-72-P Plain Trash Rack | NU181: LSQ-72-G Galvanized Trash Rack | NV181: LSQ-72-AL Aluminum Trash Rack | NW181: LDR-36-P Plain Trash Rack | NX181: LDR-36-G Galvanized Trash Rack | NY181: LDR-36-AL Aluminum Trash Rack | NZ181: LDR-48-P Plain Trash Rack | OA181: LDR-48-G Galvanized Trash Rack | OB181: LDR-48-AL Aluminum Trash Rack | OC181: LDR-60-P Plain Trash Rack | OD181: LDR-60-G Galvanized Trash Rack | OE181: LDR-60-AL Aluminum Trash Rack | OF181: LDR-72-P Plain Trash Rack | OG181: LDR-72-G Galvanized Trash Rack | OH181: LDR-72-AL Aluminum Trash Rack | OI181: LFG-36-P Plain Flat Grate | OJ181: LFG-36-G Galvanized Flat Grate | OK181: LFG-36-AL Aluminum Flat Grate | OL181: LFG-3648-P Plain Flat Grate | OM181: LFG-3648-G Galvanized Flat Grate | ON181: LFG-3648-AL Aluminum Flat Grate | OO181: LFG-48-P Plain Flat Grate | OP181: LFG-48-G Galvanized Flat Grate | OQ181: LFG-48-AL Aluminum Flat Grate | OR181: LFG-60-P Plain Flat Grate | OS181: LFG-60-G Galvanized Flat Grate | OT181: LFG-60-AL Aluminum Flat Grate | OU181: LFG-72-P Plain Flat Grate | OV181: LFG-72-G Galvanized Flat Grate | OW181: LFG-72-AL Aluminum Flat Grate | OX181: LFS-36-P Plain Flush Grate | OY181: LFS-36-G Galvanized Flush Grate | OZ181: LFS-36-AL Aluminum Flush Grate | PA181: LFS-48-P Plain Flush Grate | PB181: LFS-48-G Galvanized Flush Grate | PC181: LFS-48-AL Aluminum Flush Grate | PD181: LFS-60-P Plain Flush Grate | PE181: LFS-60-G Galvanized Flush Grate | PF181: LFS-60-AL Aluminum Flush Grate | PG181: LFS-72-P Plain Flush Grate | PH181: LFS-72-G Galvanized Flush Grate | PI181: LFS-72-AL Aluminum Flush Grate | PJ181: LFR-36-P Plain Flush Grate | PK181: LFR-36-G Galvanized Flush Grate | PL181: LFR-36-AL Aluminum Flush Grate | PM181: LFR-48-P Plain Flush Grate | PN181: LFR-48-G Galvanized Flush Grate | PO181: LFR-48-AL Aluminum Flush Grate | PP181: LFR-60-P Plain Flush Grate | PQ181: LFR-60-G Galvanized Flush Grate | PR181: LFR-60-AL Aluminum Flush Grate | PS181: LFR-72-P Plain Flush Grate | PT181: LFR-72-G Galvanized Flush Grate | PU181: LFR-72-AL Aluminum Flush Grate | PV181: Halla 12" FES Trash Guard | PW181: Halla 15" FES Trash Guard | PX181: Halla 18" FES Trash Guard | PY181: Halla 24" FES Trash Guard | PZ181: Halla 30" FES Trash Guard | QA181: Blank Slot 1 | QB181: Blank Slot 2 | QC181: Blank Slot 3 | QD181: Blank Slot 4 | QE181: Blank Slot 5 | QF181: Blank Slot 6 | QG181: Blank Slot 7 | QH181: Blank Slot 8 | QI181: Blank Slot 9 | QJ181: Blank Slot 10
B182: Casting Frame Height Above Str. | C182: Casting Height | D182: Inch | E182: 0 | H182: 8 | I182: 8 | J182: 4 | K182: 4 | L182: 4 | M182: 4 | N182: 4 | O182: 4 | P182: 4 | Q182: 4 | R182: 7 | S182: 7 | T182: 7 | U182: 7 | V182: 7 | W182: 7 | X182: 7 | Y182: 7 | Z182: 7 | AA182: 7 | AB182: 7 | AC182: 4 | AD182: 4 | AE182: 4 | AF182: 4 | AG182: 4 | AH182: 4 | AI182: 7 | AJ182: 7 | AK182: 7 | AL182: 7 | AM182: 7 | AN182: 7 | AO182: 7 | AP182: 7 | AQ182: 7 | AR182: 7 | AS182: 7 | AT182: 7 | AU182: 7 | AV182: 7 | AW182: 7 | AX182: 7 | AY182: 7 | AZ182: 7 | BA182: 7 | BB182: 7 | BC182: 7 | BD182: 7 | BE182: 7 | BF182: 4 | BG182: 4 | BH182: 4 | BI182: 4 | BJ182: 4 | BK182: 7 | BL182: 7 | BM182: 7 | BN182: 7 | BO182: 7 | BP182: 7 | BQ182: 7 | BR182: 7 | BS182: 7 | BT182: 7 | BU182: 7 | BV182: 7 | BW182: 7 | BX182: 7 | BY182: 7 | BZ182: 5.625 | CA182: 5.625 | CB182: 5.625 | CC182: 10 | CD182: 10 | CE182: 10 | CF182: 4 | CG182: 6 | CH182: 6 | CI182: 0 | CJ182: 0 | CK182: 0 | CL182: 0 | CM182: 0 | CN182: 0 | CO182: 0 | CP182: 0 | CQ182: 0 | CR182: 0 | CS182: 0 | CT182: 0 | CU182: 0 | CV182: 0 | CW182: 4 | CX182: 4 | CY182: 4 | CZ182: 4 | DA182: 7 | DB182: 7 | DC182: 7 | DD182: 7 | DE182: 7 | DF182: 7 | DG182: 7 | DH182: 7 | DI182: 4 | DJ182: 4 | DK182: 7 | DL182: 7 | DM182: 7 | DN182: 4 | DO182: 6 | DP182: 4 | DQ182: 4 | DR182: 4 | DS182: 4 | DT182: 4 | DU182: 4 | DV182: 6 | DW182: 3.5 | DX182: 3.5 | DY182: 4 | DZ182: 4 | EA182: 5.5 | EB182: 5.5 | EC182: 4 | ED182: 4 | EE182: 4 | EF182: 4 | EG182: 4 | EH182: 3 | EI182: 0 | EJ182: 0 | EK182: 0 | EL182: 0 | EM182: 5 | EN182: 6 | EO182: 6 | EP182: 8 | EQ182: 6 | ER182: 6 | ES182: 6 | ET182: 6 | EU182: 6 | EV182: 6 | EW182: 6 | EX182: 6 | EY182: 6 | EZ182: 3.5 | FA182: 3.5 | FB182: 6.25 | FC182: 4 | FD182: 8 | FE182: 0 | FF182: 0 | FG182: 0 | FH182: 0 | FI182: 0 | FJ182: 0 | FK182: 0 | FL182: 0 | FM182: 0 | FN182: 0 | FO182: 0 | FP182: 0 | FQ182: 0 | FR182: 0 | FS182: 0 | FT182: 0 | FU182: 0 | FV182: 5 | FW182: 3.75 | FX182: 0 | FY182: 0 | FZ182: 0 | GA182: 0 | GB182: 0 | GC182: 0 | GP182: 0 | GQ182: 0 | GR182: 0 | GS182: 0 | GT182: 0 | GU182: 0 | GV182: 0 | GW182: 0 | GX182: 0 | GY182: 0 | GZ182: 0 | HA182: 5 | HP182: 8 | HR182: 7 | HS182: 8 | HT182: 8 | HU182: 0 | HV182: 8 | HW182: 8 | HZ182: 8 | IA182: 7 | IB182: 8 | IC182: 0 | ID182: 6.75 | IE182: 6.75 | IF182: 4 | IG182: 4 | IH182: 4 | II182: 4 | IJ182: 4 | IK182: 7.5 | IL182: 7.5 | IM182: 7 | IN182: 7 | IO182: 7 | IP182: 7 | IQ182: 7.25 | IR182: 7.25 | IS182: 7.5 | IT182: 8 | IU182: 8 | IV182: 8 | IW182: 8 | IX182: 10 | IY182: 10 | IZ182: 7 | JA182: 7 | JB182: 7 | JC182: 7 | JD182: 7 | JE182: 7 | JF182: 4 | JG182: 4 | JH182: 7.25 | JI182: 7.25 | JJ182: 7.25 | JK182: 7.25 | JL182: 8 | JM182: 4 | JN182: 4 | JO182: 6 | JP182: 6 | JQ182: 6 | JR182: 6 | JS182: 4 | JT182: 7 | JU182: 7 | JV182: 7 | JW182: 7 | JX182: 7 | JY182: 4 | JZ182: 7.25 | KA182: 7 | KB182: 7.25 | KC182: 0 | KD182: 0 | KE182: 4 | KF182: 4.25 | KG182: 4 | KH182: 6.25 | KI182: 6.5 | KJ182: 6.5 | KK182: 6.5 | KL182: 6.5 | KM182: 6.5 | KN182: 6.5 | KO182: 5 | KP182: 6 | KQ182: 6 | KR182: 6 | KS182: 6 | KT182: 6 | KU182: 6 | KV182: 6 | KW182: 6 | KX182: 6 | KY182: 6 | KZ182: 6 | LA182: 6 | LB182: 5 | LC182: 5 | LD182: 5 | LE182: 5 | LF182: 5 | LG182: 5 | LH182: 7 | LI182: 5.5 | LJ182: 5.5 | LK182: 5 | LL182: 5 | LM182: 5 | LN182: 5 | LO182: 5 | LP182: 5 | LQ182: 5 | LR182: 5 | LS182: 5 | LT182: 7 | LU182: 5.5 | LV182: 5 | LW182: 7.5 | LX182: 7.5 | LY182: 7.5 | LZ182: 7.5 | MA182: 7.5 | MB182: 7.5 | MC182: 7.25 | MD182: 3.75 | ME182: 0 | MF182: 0 | MG182: 0 | MH182: 7 | MI182: 4 | MJ182: 3.37 | MK182: 3 | ML182: 0 | MM182: 0 | MN182: 0 | MO182: 6 | MP182: 4 | MQ182: 4 | MR182: 5.5 | MS182: 5.5 | MT182: 6 | MU182: 6 | MV182: 6 | MW182: 4 | MX182: 0 | MY182: 0 | MZ182: 0 | NA182: 0 | NB182: 0 | NC182: 0 | ND182: 0
B183: Casting Set Cost (Not Selling Price =>) | C183: Casting Price | D183: Dollar | H183: =H184+H185 -> 168.17 | I183: =I184+I185 -> 168.17 | J183: =J184+J185 -> 211.42 | K183: =K184+K185 -> 211.42 | L183: =L184+L185 -> 279.88 | M183: 279.88 | N183: 279.88 | O183: 279.88 | P183: 279.88 | Q183: 380.78 | R183: 311.12 | S183: =S184+S185 -> 311.12 | T183: =T184+T185 -> 311.12 | U183: =U184+U185 -> 311.12 | V183: 311.12 | W183: =W184+W185 -> 412.02 | X183: =X184+X185 -> 311.12 | Y183: =Y184+Y185 -> 311.12 | Z183: =Z184+Z185 -> 342.35 | AA183: 395.2 | AB183: 395.2 | AC183: =AC184+AC185 -> 315.04 | AD183: 315.04 | AE183: 315.04 | AF183: 315.04 | AG183: 315.04 | AH183: 315.04 | AI183: =AI184+AI185 -> 290.69 | AJ183: =AJ184+AJ185 -> 290.69 | AK183: =AK184+AK185 -> 290.69 | AL183: =AL184+AL185 -> 290.69 | AM183: 290.69 | AN183: 290.69 | AO183: 391.59 | AP183: =AP184+AP185 -> 314.78 | AQ183: =AQ184+AQ185 -> 314.78 | AR183: =AR184+AR185 -> 314.78 | AS183: =AS184+AS185 -> 314.78 | AT183: 297.89 | AU183: 300.24 | AV183: 290.69 | AW183: 354.36 | AX183: 395.2 | AY183: =AY184+AY185 -> 350.75 | AZ183: 350.75 | BA183: 350.75 | BB183: 350.75 | BC183: 350.75 | BD183: 350.75 | BE183: 440.85 | BF183: =BF184+BF185 -> 336.35 | BG183: 336.35 | BH183: 336.35 | BI183: 336.35 | BJ183: 437.25 | BK183: 336.35 | BL183: 336.35 | BM183: 336.35 | BN183: 336.35 | BO183: 437.25 | BP183: 336.35 | BQ183: 341.78 | BR183: 341.78 | BS183: 393.22 | BT183: =BT184+BT185 -> 341.78 | BU183: =BU184+BU185 -> 341.78 | BV183: =BV184+BV185 -> 341.78 | BW183: =BW184+BW185 -> 341.78 | BX183: 405.45 | BY183: 480.48 | BZ183: =BZ184+BZ185 -> 759.2 | CA183: 759.2 | CB183: 759.2 | CC183: 759.2 | CD183: 759.2 | CE183: 759.2 | CF183: 522.53 | CG183: 1042.62 | CH183: 1907.58 | CI183: 315.04 | CJ183: 315.04 | CK183: 315.04 | CL183: 415.94 | CM183: 339.95 | CN183: 339.95 | CO183: 339.95 | CP183: 440.85 | CQ183: 354.36 | CR183: 539.27 | CS183: 279.88 | CT183: 279.88 | CU183: 279.88 | CV183: 380.78 | CW183: =CW184+CW185 -> 272.03 | CX183: =CX184+CX185 -> 343.54 | CY183: 349.55 | CZ183: 367.57 | DA183: 408.41 | DB183: 357.96 | DC183: =DC184+DC185 -> 406.01 | DD183: 416.82 | DE183: 380.79 | DF183: 398.81 | DG183: 439.65 | DH183: 446.84 | DI183: 342.33 | DJ183: 350.76 | DK183: 342.33 | DL183: =DL184+DL185 -> 350.76 | DM183: =DM184+DM185 -> 535.67 | DN183: 1042.62 | DO183: 1907.58 | DP183: 234.24 | DQ183: 276.27 | DS183: 315.92 | DT183: =DT184+DT185 -> 315.92 | DU183: 390.39 | DV183: 524.93 | DW183: 516.53 | DX183: 1314.12 | DY183: 534.01 | DZ183: 480.48 | EA183: 541.76 | EB183: 541.76 | EC183: 446.85 | ED183: 973.7 | EE183: 598 | EF183: 735.3 | EG183: 1910.23 | EH183: 719.63 | EI183: 239.05 | EJ183: 452.88 | EK183: 827.63 | EL183: 768.76 | EM183: =EM184+EM185+EM186 -> 558.57 | EN183: =EN184+EN185+EN186 -> 500.91 | EO183: =EO184+EO185+EO186 -> 500.91 | EQ183: =EQ184+EQ185+EQ186 -> 719.52 | ER183: 719.52 | ES183: 594.6 | ET183: 594.6 | EU183: 594.6 | EV183: 1280.5 | EW183: 1280.5 | EX183: 1920.75 | EY183: 1920.75 | EZ183: =EZ184+EZ185 -> 552.57 | FA183: 1004.22 | FB183: 838.16 | FC183: 270.28 | FD183: 678.68 | FE183: 418.52 | FF183: 510.24 | FG183: 567.56 | FH183: 745.29 | FI183: 613.5 | FJ183: =FJ184+FJ185 -> 613.5 | FK183: 613.5 | FL183: 613.5 | FM183: 613.5 | FN183: 613.5 | FO183: 832.3 | FP183: 832.3 | FQ183: 832.3 | FR183: 832.3 | FS183: 832.3 | FT183: =FT184+FT185 -> 832.3 | FU183: 567.56 | FV183: 966.97 | FW183: 534.54 | FX183: 122.53 | FY183: 144.15 | FZ183: 336.34 | GA183: 672.68 | GB183: 408.4 | GC183: 414.41 | GD183: 535.15 | GE183: 1070.3 | GF183: 316.47 | GG183: 438.01 | GH183: 503.36 | GI183: 713.52 | GJ183: 1277.32 | GK183: 1677.48 | GL183: 2200.33 | GM183: 2910.08 | GN183: 3205.9 | GO183: 4054.38 | GP183: 206.39 | GQ183: 447.16 | GR183: 355.45 | GS183: 596.24 | GT183: 1073.4 | GU183: 1633.92 | GV183: 452.91 | GW183: 338.25 | GX183: =GX184+GX185 -> 509.32 | GY183: =GY184+GY185 -> 270.28 | GZ183: =GZ184+GZ185 -> 509.32 | HA183: =HA184+HA185+HA186 -> 558.57 | HB183: 70.88 | HC183: 80.49 | HD183: 84.08 | HE183: 90.1 | HF183: 118.92 | HG183: 138.14 | HH183: 175.38 | HI183: 103.3 | HJ183: 110.31 | HK183: 115.32 | HL183: 121.33 | HM183: 150.16 | HN183: 169.37 | HO183: 206.61 | HP183: =HP184+HP185 -> 718.95 | HQ183: =HQ184+HQ185 -> 627.6 | HR183: =HR184+HR185 -> 353.11 | HS183: 1079.17 | HT183: 2158.34 | HU183: 284.68 | HV183: =HV184+HV185+HV186 -> 600.28 | HW183: =HW184+HW185+HW186 -> 710.97 | HX183: 864.83 | HY183: 1966.62 | HZ183: =HZ184+HZ185 -> 593.39 | IA183: =IA184+IA185 -> 1073.18 | IB183: 993.2 | IC183: 514.91 | ID183: 526 | IE183: 526 | IF183: 272 | IG183: 272 | IH183: 272 | II183: 281 | IJ183: 266 | IK183: 411 | IL183: 435 | IM183: 338 | IN183: 338 | IO183: 318 | IP183: 318 | IQ183: 288 | IR183: 288 | IS183: 753 | IT183: 697 | IU183: 603 | IV183: 697 | IW183: 603 | IX183: 802 | IY183: 802 | IZ183: 297 | JA183: 297 | JB183: 297 | JC183: 297 | JD183: 379 | JE183: 379 | JF183: 332 | JG183: 332 | JH183: 333 | JI183: 333 | JJ183: 326 | JK183: 419 | JL183: 306 | JM183: 345 | JN183: 345 | JO183: 292 | JP183: 292 | JQ183: 284 | JR183: 390 | JS183: 457 | JT183: 308 | JU183: 308 | JV183: 332 | JW183: 332 | JX183: 428 | JY183: 322 | JZ183: 297 | KA183: 340 | KB183: 334 | KC183: 276 | KD183: 291 | KE183: 503 | KF183: 394 | KG183: 306 | KH183: 827 | KI183: 540 | KJ183: 540 | KK183: 1080 | KL183: 1080 | KM183: 1620 | KN183: 1620 | KO183: 557 | KP183: 727 | KQ183: 727 | KR183: 1544 | KS183: 1544 | KT183: 2362 | KU183: 2362 | KV183: 716 | KW183: 716 | KX183: 1524 | KY183: 1524 | KZ183: 2330 | LA183: 2330 | LB183: 669 | LC183: 669 | LD183: 1423 | LE183: 1423 | LF183: 2182 | LG183: 2182 | LH183: 420 | LI183: 677 | LJ183: 637 | LK183: 798 | LL183: 798 | LM183: 1596 | LN183: 860 | LO183: 820 | LP183: 1640 | LQ183: 811 | LR183: 1622 | LS183: 3244 | LT183: 420 | LU183: 639 | LV183: 541 | LW183: 648 | LX183: 648 | LY183: 1387 | LZ183: 1387 | MA183: 2127 | MB183: 2127 | MC183: 685 | MD183: 532 | ME183: 334 | MF183: 430 | MG183: 731 | MH183: 950 | MI183: 798 | MJ183: 273 | MK183: 175 | ML183: 553 | MM183: 1106 | MN183: 2212 | MO183: 675 | MP183: 416 | MQ183: 798 | MR183: 516 | MS183: 480 | MT183: 659 | MU183: 659 | MV183: 659 | MW183: 546 | MX183: 321 | MY183: 557 | MZ183: 112 | NA183: 144 | NB183: 650 | NC183: 850 | NE183: 462.46 | NF183: 542.65 | NG183: 682.4 | NH183: 805.68 | NI183: 916.43 | NJ183: 1119.59 | NK183: 933.82 | NL183: 1061.46 | NM183: 1295.5 | NN183: 1061.46 | NO183: 1061.46 | NP183: 1295.5 | NQ183: 2349.94 | NR183: 2642.14 | NS183: 3241.97 | NT183: 3533.55 | NU183: 3853.76 | NV183: 5456.67 | NW183: 1003.39 | NX183: 1091.52 | NY183: 1258.22 | NZ183: 1060.68 | OA183: 1154.69 | OB183: 1332.51 | OC183: 1696.72 | OD183: 1881.79 | OE183: 2231.87 | OF183: 2647.53 | OG183: 2882.76 | OH183: 4168.52 | OI183: 636.12 | OJ183: 713.7 | OK183: 855.39 | OL183: 836.58 | OM183: 946.8 | ON183: 1083.41 | OO183: 966.24 | OP183: 1106.4 | OQ183: 1303.98 | OR183: 2176.68 | OS183: 2531.3 | OT183: 3171.01 | OU183: 3217.35 | OV183: 3546.06 | OW183: 5148.97 | OX183: 672.12 | OY183: 727.2 | OZ183: 831.39 | PA183: 984.24 | PB183: 1094.4 | PC183: 1302.78 | PD183: 2227.68 | PE183: 2539.8 | PF183: 3130.21 | PG183: 2819.55 | PH183: 3097.26 | PI183: 4615.17 | PJ183: 672.12 | PK183: 727.2 | PL183: 831.39 | PM183: 1140.3 | PN183: 1278 | PO183: 1538.48 | PP183: 2227.68 | PQ183: 2539.8 | PR183: 3130.21 | PS183: 2819.55 | PT183: 3097.26 | PU183: 4615.17 | PV183: 255 | PW183: 295 | PX183: 323 | PY183: 505 | PZ183: 684
B184: Frame Cost | C184: Frame Cost | D184: Dollar | H184: 99.7 | I184: 99.7 | J184: 105.71 | K184: 105.71 | L184: 169.37 | M184: 169.37 | N184: 169.37 | O184: 169.37 | P184: 169.37 | Q184: 169.37 | R184: 200.61 | S184: 200.61 | T184: 200.61 | U184: 200.61 | V184: 200.61 | W184: 200.61 | X184: 200.61 | Y184: 200.61 | Z184: 200.61 | AC184: 112.91 | AD184: 112.91 | AE184: 112.91 | AF184: 112.91 | AG184: 112.91 | AH184: 112.91 | AI184: 177.78 | AJ184: 177.78 | AK184: 177.78 | AL184: 177.78 | AM184: 177.78 | AO184: 177.78 | AP184: 177.78 | AQ184: 177.78 | AR184: 177.78 | AS184: 177.78 | AT184: 177.78 | AU184: 177.78 | AV184: 177.78 | AY184: 182.58 | AZ184: 182.58 | BA184: 182.58 | BB184: 182.58 | BC184: 182.58 | BD184: 182.58 | BF184: 171.78 | BG184: 171.78 | BH184: 171.78 | BI184: 171.78 | BJ184: 171.78 | BK184: 171.78 | BL184: 171.78 | BM184: 171.78 | BN184: 171.78 | BO184: 171.78 | BP184: 171.78 | BQ184: 171.78 | BT184: 171.78 | BU184: 171.78 | BV184: 171.78 | BW184: 171.78 | BZ184: 388 | CA184: 388 | CB184: 388 | CC184: 388 | CD184: 388 | CE184: 388 | CF184: 241.45 | CG184: 469.11 | CH184: 928.34 | CI184: 202.13 | CJ184: 202.13 | CK184: 202.13 | CL184: 202.13 | CM184: 175.38 | CN184: 175.38 | CO184: 175.38 | CP184: 175.38 | CQ184: 175.38 | CR184: 175.38 | CS184: 169.37 | CT184: 169.37 | CU184: 169.37 | CV184: 169.37 | CW184: 105.71 | CX184: 170.57 | CY184: 169.37 | CZ184: 169.37 | DA184: 169.37 | DB184: 177.78 | DC184: 177.78 | DD184: 177.78 | DE184: 200.61 | DF184: 200.61 | DG184: 200.61 | DH184: 182.58 | DI184: 171.78 | DJ184: 171.78 | DK184: 171.78 | DL184: 171.78 | DM184: 171.78 | DN184: 469.11 | DO184: 928.34 | DP184: 78.08 | DQ184: 124.92 | DR184: 124.92 | DS184: 124.92 | DT184: 124.92 | DU184: 169.37 | DV184: 314.71 | DW184: 344.75 | DX184: 559.76 | DY184: 225.3 | DZ184: 168.17 | EA184: 318.32 | EB184: 318.32 | EC184: 228.23 | ED184: 536.46 | EE184: 239.2 | EF184: 307.62 | EG184: 654.79 | EH184: 213.81 | EI184: 82.89 | EJ184: 181.39 | EK184: 247.45 | EL184: 302.7 | EM184: 166.97 | EN184: 217.42 | EO184: 217.42 | EQ184: 278.68 | ER184: 278.68 | ES184: 221.02 | ET184: 221.02 | EU184: 221.02 | EV184: 533.34 | EW184: 533.34 | EX184: 800.01 | EY184: 800.01 | EZ184: 270.28 | FA184: 439.64 | FB184: 455.56 | FC184: 140.55 | FE184: 90.58 | FF184: 113.52 | FG184: 90.58 | FH184: 119.25 | FI184: 118.1 | FJ184: 118.1 | FK184: 118.1 | FL184: 118.1 | FM184: 118.1 | FN184: 118.1 | FO184: 119.1 | FP184: 119.1 | FQ184: 119.1 | FR184: 119.1 | FS184: 119.1 | FT184: 119.1 | FU184: 90.58 | FV184: 482.88 | FW184: 225.83 | FX184: 39.64 | FZ184: 168.17 | GA184: 336.34 | GB184: 194.59 | GC184: 194.59 | GX184: 209.02 | GY184: 140.55 | GZ184: 209.02 | HA184: 166.97 | HP184: 456.8 | HQ184: 468.19 | HR184: 194.21 | HV184: 270.73 | HW184: 305.27 | HZ184: 398.76 | IA184: 648.04
B185: Cover/Grate Cost | C185: Cover/Grate Cost | D185: Dollar | H185: 68.47 | I185: 68.47 | J185: 105.71 | K185: 105.71 | L185: 110.51 | M185: 110.51 | N185: 110.51 | O185: 110.51 | P185: 110.51 | Q185: 211.41 | R185: 110.51 | S185: 110.51 | T185: 110.51 | U185: 110.51 | V185: 110.51 | W185: 211.41 | X185: 110.51 | Y185: 110.51 | Z185: 141.74 | AC185: 202.13 | AD185: 202.13 | AE185: 202.13 | AF185: 202.13 | AG185: 202.13 | AH185: 202.13 | AI185: 112.91 | AJ185: 112.91 | AK185: 112.91 | AL185: 112.91 | AM185: 112.91 | AO185: 213.81 | AP185: 137 | AQ185: 137 | AR185: 137 | AS185: 137 | AT185: 120.11 | AU185: 122.46 | AV185: 112.91 | AY185: 168.17 | AZ185: 168.17 | BA185: 168.17 | BB185: 168.17 | BC185: 168.17 | BD185: 168.17 | BF185: 164.57 | BG185: 164.57 | BH185: 164.57 | BI185: 164.57 | BJ185: 265.47 | BK185: 164.57 | BL185: 164.57 | BM185: 164.57 | BN185: 164.57 | BO185: 265.47 | BP185: 164.57 | BQ185: 170 | BT185: 170 | BU185: 170 | BV185: 170 | BW185: 170 | BZ185: 371.2 | CA185: 371.2 | CB185: 371.2 | CC185: 371.2 | CD185: 371.2 | CE185: 371.2 | CF185: 281.08 | CG185: 573.51 | CH185: 979.24 | CI185: 112.91 | CJ185: 112.91 | CK185: 112.91 | CL185: 213.81 | CM185: 164.57 | CN185: 164.57 | CO185: 164.57 | CP185: 265.47 | CQ185: 178.98 | CR185: 363.89 | CS185: 110.51 | CT185: 110.51 | CU185: 110.51 | CV185: 211.41 | CW185: 166.32 | CX185: 172.97 | CY185: 180.18 | CZ185: 198.2 | DA185: 239.04 | DB185: 180.18 | DC185: 228.23 | DD185: 239.04 | DE185: 180.18 | DF185: 198.2 | DG185: 239.04 | DH185: 264.26 | DI185: 170.55 | DJ185: 178.98 | DK185: 170.55 | DL185: 178.98 | DM185: 363.89 | DN185: 573.51 | DO185: 979.24 | DP185: 156.16 | DQ185: 151.35 | DS185: 191 | DT185: 191 | DU185: 221.02 | DV185: 210.22 | DW185: 171.78 | DX185: 754.36 | DY185: 308.71 | DZ185: 312.31 | EA185: 223.44 | EB185: 223.44 | EC185: 218.62 | ED185: 437.24 | EE185: 358.8 | EF185: 427.68 | EG185: 1255.44 | EH185: 505.82 | EI185: 156.16 | EJ185: 271.49 | EK185: 580.18 | EL185: 466.06 | EM185: 236.64 | EN185: 154.96 | EO185: 154.96 | EQ185: 201.8 | ER185: 201.8 | ES185: 217.42 | ET185: 217.42 | EU185: 217.42 | EV185: 434.84 | EW185: 434.84 | EX185: 652.26 | EY185: 652.26 | EZ185: 282.29 | FA185: 564.58 | FB185: 382.6 | FC185: 129.73 | FE185: 327.94 | FF185: 396.72 | FG185: 476.98 | FH185: 626.04 | FI185: 495.4 | FJ185: 495.4 | FK185: 495.4 | FL185: 495.4 | FM185: 495.4 | FN185: 495.4 | FO185: 713.2 | FP185: 713.2 | FQ185: 713.2 | FR185: 713.2 | FS185: 713.2 | FT185: 713.2 | FU185: 476.98 | FV185: 484.09 | FW185: 308.71 | FX185: 82.89 | FZ185: 168.17 | GA185: 336.34 | GB185: 213.81 | GC185: 219.82 | GX185: 300.3 | GY185: 129.73 | GZ185: 300.3 | HA185: 236.64 | HP185: 262.15 | HQ185: 159.41 | HR185: 158.9 | HV185: 120.07 | HW185: 196.22 | HZ185: 194.63 | IA185: 425.14
B186: Curb Box Cost | C186: Curb Box Cost | D186: Dollar | EM186: 154.96 | EN186: 128.53 | EO186: 128.53 | EQ186: 239.04 | ER186: 239.04 | ES186: 156.16 | ET186: 156.16 | EU186: 156.16 | EV186: 312.32 | EW186: 312.32 | EX186: 468.48 | EY186: 468.48 | HA186: 154.96 | HV186: 209.48 | HW186: 209.48
B187: Casting Clear Opening | C187: Clear Opening | D187: Inch | H187: 9.75 | I187: 9.75 | J187: 11 | K187: 20.25 | L187: 21 | M187: 21 | N187: 21 | O187: 21 | P187: 21 | Q187: 21 | R187: 21 | S187: 21 | T187: 21 | U187: 21 | V187: 21 | W187: 21 | X187: 21 | Y187: 21 | Z187: 21 | AA187: 21 | AB187: 21 | AC187: 21 | AD187: 21 | AE187: 21 | AF187: 21 | AG187: 21 | AH187: 21 | AI187: 21 | AJ187: 21 | AK187: 21 | AL187: 21 | AM187: 21 | AN187: 21 | AO187: 21 | AP187: 21 | AQ187: 21 | AR187: 21 | AS187: 21 | AT187: 21 | AU187: 21 | AV187: 21 | AW187: 21 | AX187: 21 | AY187: 22 | AZ187: 22 | BA187: 22 | BB187: 22 | BC187: 22 | BD187: 22 | BE187: 22 | BF187: 24 | BG187: 24 | BH187: 24 | BI187: 24 | BJ187: 24 | BK187: 24 | BL187: 24 | BM187: 24 | BN187: 24 | BO187: 24 | BP187: 24 | BQ187: 24 | BR187: 24 | BS187: 24 | BT187: 24 | BU187: 24 | BV187: 24 | BW187: 24 | BX187: 24 | BY187: 24 | BZ187: 30 | CA187: 30 | CB187: 30 | CC187: 30 | CD187: 30 | CE187: 30 | CF187: 32 | CG187: 36 | CH187: 48 | CI187: 21 | CJ187: 21 | CK187: 21 | CL187: 21 | CM187: 24 | CN187: 24 | CO187: 24 | CP187: 24 | CQ187: 24 | CR187: 24 | CS187: 21 | CT187: 21 | CU187: 21 | CV187: 21 | CW187: 11 | CX187: 20.25 | CY187: 21 | CZ187: 21 | DA187: 21 | DB187: 21 | DC187: 21 | DD187: 21 | DE187: 21 | DF187: 21 | DG187: 21 | DH187: 22 | DI187: 24 | DJ187: 24 | DK187: 24 | DL187: 24 | DM187: 24 | DN187: 36 | DO187: 48 | DP187: 18 X 18 | DQ187: 22 X 22 | DR187: 22 X 22 | DS187: 22 X 22 | DT187: 22 X 22 | DU187: 24 X 24 | DV187: 22 X 22 | DW187: 20 X 26 | DX187: 26 X 46 | DY187: 21.375 X 27.875 | DZ187: 24 X 24 | EA187: 15.25 X 35.75 | EB187: 15.25 X 35.75 | EC187: 22 X 34 | ED187: 34 X 48 | EE187: 30 X 30 | EF187: 30 X 30 | EG187: 48.625x48.625 | EH187: 33.25 X 33.25 | EI187: 18 x 18 | EJ187: 25.5 x 25.5 | EK187: 36 x 36 | EL187: 24 X 35 | EM187: 22 X 22 | EN187: 17.5 X 20.25 | EO187: 17.5 X 20.25 | EP187: 20.88 X 22 | EQ187: 14.75 X 36 | ER187: 14.75 X 36 | ES187: 24.25 X 33.25 | ET187: 24.25 X 33.25 | EU187: 24.25 X 33.25 | EV187: (2) 24.25 X 33.25 | EW187: (2) 24.25 X 33.25 | EX187: (3) 24.25 X 33.25 | EY187: (3) 24.25 X 33.25 | EZ187: 23.375 X 20 | FA187: 23.378 X 44 | FB187: 21.25 X 34.31 | FC187: 23.5 | FD187: 26 | FE187: 36 X 36 | FF187: 36 X 48 | FG187: 36 X 36 | FH187: 36 X 48 | FI187: 36 X 48 | FJ187: 36 X 48 | FK187: 36 X 48 | FL187: 36 X 48 | FM187: 36 X 48 | FN187: 36 X 48 | FO187: 36 X 48 | FP187: 36 X 48 | FQ187: 36 X 48 | FR187: 36 X 48 | FS187: 36 X 48 | FT187: 36 X 48 | FU187: 36 X 36 | FV187: 16 X 28 | FW187: 21 X 28 | FX187: 12 X 12 | FY187: 12 X 12 | FZ187: 15.75 X 27.75 | GA187: (2) 15.75 X 27.75 | GB187: 20 | GC187: 20 | HA187: 24 X 24 | ID187: 22 | IE187: 22 | IF187: 24.25 | IG187: 24.25 | IH187: 24.25 | II187: 24.25 | IJ187: 23.5 | IK187: 21.75 | IL187: 21.75 | IM187: 22 | IN187: 22 | IO187: 22 | IP187: 22 | IQ187: 21.5 | IR187: 21.5 | IS187: 24 | IT187: 26 | IU187: 26 | IV187: 26 | IW187: 26 | IX187: 30 | IY187: 30 | IZ187: 21 | JA187: 21 | JB187: 21 | JC187: 21 | JD187: 21 | JE187: 21 | JF187: 20.62 | JG187: 20.62 | JH187: 24.12 | JI187: 24.12 | JJ187: 24.12 | JK187: 24 | JL187: 24 | JM187: 24.12 | JN187: 24.12 | JO187: 24.12 | JP187: 24.12 | JQ187: 24.12 | JR187: 24.12 | JS187: 30 | JT187: 24 | JU187: 24 | JV187: 24 | JW187: 24 | JX187: 24 | JY187: 24.25 | JZ187: 21.5 | KA187: 21 | KB187: 24.12 | KC187: 20 | KD187: 20 | KE187: 30 | KF187: 24 X 24 | KG187: 24.25 | KH187: 21.25 X 34.31 | KI187: 24.75 X33.75 | KJ187: 24.75 X33.75 | KK187: 24.75 X33.75 | KL187: 24.75 X33.75 | KM187: 24.75 X33.75 | KN187: 24.75 X33.75 | KO187: 24 X 24 | KP187: 30X30 | KQ187: 30X30 | KR187: (2) 30X30 | KS187: (2) 30X30 | KT187: (3) 30X30 | KU187: (3) 30X30 | KV187: 30X30 | KW187: 30X30 | KX187: (2) 30X30 | KY187: (2) 30X30 | KZ187: (3) 30X30 | LA187: (3) 30X30 | LB187: 20.18 X 29.75 | LC187: 20.18 X 29.75 | LD187: (2) 20.18 X 29.75 | LE187: (2) 20.18 X 29.75 | LF187: (3) 20.18 X 29.75 | LG187: (3) 20.18 X 29.75 | LH187: 20.5 X 29 | LI187: 24 X 35.62 | LJ187: 24 X 35.62 | LV187: 21.75 x 36.25 | LW187: 29.56 X 30 | LX187: 29.56 X 30 | LY187: (2) 29.56 X 30 | LZ187: (2) 29.56 X 30 | MA187: (3) 29.56 X 30 | MB187: (3) 29.56 X 30 | MC187: 23.25 X 24.25 | MD187: 21 X 28 | ME187: 15.75 X 27.75 | MG187: 24 X 36 | MH187: 22 X 22 | MI187: 36 X 36 | MJ187: 22.75 X 22.75 | MK187: 17 X 17 | MO187: 26 x 26 | MP187: 22 X 34 | MQ187: 34 X 34 | MR187: 15 X 35.62 | MS187: 15 X 35.62 | MT187: 30 X 30 | MU187: 30 X 30 | MV187: 30 X 62 | MW187: 30 X 30 | MZ187: 12 X 12 | NA187: 12 X 12
B188: Precast Opening Size | C188: Precast Opening Size | D188: Inch | H188: 10 Dia | I188: 10 Dia | J188: 12 Dia | K188: 21 Dia | L188: 24 Dia | M188: 24 Dia | N188: 24 Dia | O188: 24 Dia | P188: 24 Dia | Q188: 24 Dia | R188: 24 Dia | S188: 24 Dia | T188: 24 Dia | U188: 24 Dia | V188: 24 Dia | W188: 24 Dia | X188: 24 Dia | Y188: 24 Dia | Z188: 24 Dia | AA188: 24 Dia | AB188: 24 Dia | AC188: 24 Dia | AD188: 24 Dia | AE188: 24 Dia | AF188: 24 Dia | AG188: 24 Dia | AH188: 24 Dia | AI188: 24 Dia | AJ188: 24 Dia | AK188: 24 Dia | AL188: 24 Dia | AM188: 24 Dia | AN188: 24 Dia | AO188: 24 Dia | AP188: 24 Dia | AQ188: 24 Dia | AR188: 24 Dia | AS188: 24 Dia | AT188: 24 Dia | AU188: 24 Dia | AV188: 24 Dia | AW188: 24 Dia | AX188: 24 Dia | AY188: 24 Dia | AZ188: 24 Dia | BA188: 24 Dia | BB188: 24 Dia | BC188: 24 Dia | BD188: 24 Dia | BE188: 24 Dia | BF188: 24 Dia | BG188: 24 Dia | BH188: 24 Dia | BI188: 24 Dia | BJ188: 24 Dia | BK188: 24 Dia | BL188: 24 Dia | BM188: 24 Dia | BN188: 24 Dia | BO188: 24 Dia | BP188: 24 Dia | BQ188: 24 Dia | BR188: 24 Dia | BS188: 24 Dia | BT188: 24 Dia | BU188: 24 Dia | BV188: 24 Dia | BW188: 24 Dia | BX188: 24 Dia | BY188: 24 Dia | BZ188: 30 Dia | CA188: 30 Dia | CB188: 30 Dia | CC188: 30 Dia | CD188: 30 Dia | CE188: 30 Dia | CF188: 30 Dia | CG188: 36 Dia | CH188: 48 Dia | CI188: 21 Dia | CJ188: 21 Dia | CK188: 21 Dia | CL188: 21 Dia | CM188: 24 Dia | CN188: 24 Dia | CO188: 24 Dia | CP188: 24 Dia | CQ188: 24 Dia | CR188: 24 Dia | CS188: 21 Dia | CT188: 21 Dia | CU188: 21 Dia | CV188: 21 Dia | CW188: 12 Dia | CX188: 21 Dia | CY188: 24 Dia | CZ188: 24 Dia | DA188: 24 Dia | DB188: 24 Dia | DC188: 24 Dia | DD188: 24 Dia | DE188: 24 Dia | DF188: 24 Dia | DG188: 24 Dia | DH188: 24 Dia | DI188: 24 Dia | DJ188: 24 Dia | DK188: 24 Dia | DL188: 24 Dia | DM188: 24 Dia | DN188: 36 Dia | DO188: 48 Dia | DP188: 18x18 | DQ188: 24x24 | DR188: 24x24 | DS188: 24x24 | DT188: 24x24 | DU188: 24x24 | DV188: 24x24 | DW188: 24x30 | DX188: 30x48 | DY188: 24x30 | DZ188: 24x24 | EA188: 18x36 | EB188: 18x36 | EC188: 24x36 | ED188: 36x48 | EE188: 30x30 | EF188: 30x30 | EG188: 48x48 | EH188: 36x36 | EI188: 18x18 | EJ188: 26x26 | EK188: 36x36 | EL188: 24x36 | EM188: 24x24 | EN188: 24x30 | EO188: 24x30 | EP188: 24x24 | EQ188: 24x36 | ER188: 24x36 | ES188: 24x36 | ET188: 24x36 | EU188: 24x36 | EV188: 24x72 | EW188: 24x72 | EX188: 24x112 | EY188: 24x112 | EZ188: 24x24 | FA188: 24x48 | FB188: 24x36 | FC188: 24 Dia | FD188: 30 Dia | FE188: 36x36 | FF188: 36x48 | FG188: 36x36 | FH188: 36x48 | FI188: 36x48 | FJ188: 36x48 | FK188: 36x48 | FL188: 36x48 | FM188: 36x48 | FN188: 36x48 | FO188: 36x48 | FP188: 36x48 | FQ188: 36x48 | FR188: 36x48 | FS188: 36x48 | FT188: 36x48 | FU188: 36x36 | FV188: 16 X 28 | FW188: 24x30 | FX188: 12x12 | FY188: 12x12 | FZ188: 16x28 | GA188: 16x60 | GB188: 20 Dia | GC188: 20 Dia
B189: Grade Ring Compatibility | C189: Grade Ring Compatible | D189: Yes/No | H189: No | I189: No | J189: No | K189: No | L189: Yes | M189: Yes | N189: Yes | O189: Yes | P189: Yes | Q189: Yes | R189: Yes | S189: Yes | T189: Yes | U189: Yes | V189: Yes | W189: Yes | X189: Yes | Y189: Yes | Z189: Yes | AA189: Yes | AB189: Yes | AC189: Yes | AD189: Yes | AE189: Yes | AF189: Yes | AG189: Yes | AH189: Yes | AI189: Yes | AJ189: Yes | AK189: Yes | AL189: Yes | AM189: Yes | AN189: Yes | AO189: Yes | AP189: Yes | AQ189: Yes | AR189: Yes | AS189: Yes | AT189: Yes | AU189: Yes | AV189: Yes | AW189: Yes | AX189: Yes | AY189: Yes | AZ189: Yes | BA189: Yes | BB189: Yes | BC189: Yes | BD189: Yes | BE189: Yes | BF189: Yes | BG189: Yes | BH189: Yes | BI189: Yes | BJ189: Yes | BK189: Yes | BL189: Yes | BM189: Yes | BN189: Yes | BO189: Yes | BP189: Yes | BQ189: Yes | BR189: Yes | BS189: Yes | BT189: Yes | BU189: Yes | BV189: Yes | BW189: Yes | BX189: Yes | BY189: Yes | BZ189: Yes | CA189: Yes | CB189: Yes | CC189: Yes | CD189: Yes | CE189: Yes | CF189: Yes | CG189: Yes | CH189: No | CI189: No | CJ189: No | CK189: No | CL189: No | CM189: Yes | CN189: Yes | CO189: Yes | CP189: Yes | CQ189: Yes | CR189: Yes | CS189: No | CT189: No | CU189: No | CV189: No | CW189: No | CX189: No | CY189: Yes | CZ189: Yes | DA189: Yes | DB189: Yes | DC189: Yes | DD189: Yes | DE189: Yes | DF189: Yes | DG189: Yes | DH189: Yes | DI189: Yes | DJ189: Yes | DK189: Yes | DL189: Yes | DM189: Yes | DN189: Yes | DO189: Yes | DP189: Yes | DQ189: Yes | DR189: Yes | DS189: Yes | DT189: Yes | DU189: Yes | DV189: Yes | DW189: Yes | DX189: No | DY189: Yes | DZ189: Yes | EA189: Yes | EB189: Yes | EC189: Yes | ED189: No | EE189: Yes | EF189: Yes | EG189: No | EH189: Yes | EI189: Yes | EJ189: No | EK189: Yes | EL189: Yes | EM189: Yes | EN189: Yes | EO189: Yes | EP189: No | EQ189: Yes | ER189: Yes | ES189: Yes | ET189: Yes | EU189: Yes | EV189: No | EW189: No | EX189: No | EY189: No | EZ189: Yes | FA189: No | FB189: Yes | FC189: Yes | FD189: Yes | FE189: No | FF189: No | FG189: No | FH189: No | FI189: No | FJ189: No | FK189: No | FL189: No | FM189: No | FN189: No | FO189: No | FP189: No | FQ189: No | FR189: No | FS189: No | FT189: No | FU189: No | FV189: No | FW189: Yes | FX189: No | FY189: No | FZ189: No | GA189: No | GB189: No | GC189: No
B190: Top Slab or Cone Required | C190: Top Slab or Cone Required | D190: Yes/No | H190: Yes | I190: Yes | J190: Yes | K190: Yes | L190: Yes | M190: Yes | N190: Yes | O190: Yes | P190: Yes | Q190: Yes | R190: Yes | S190: Yes | T190: Yes | U190: Yes | V190: Yes | W190: Yes | X190: Yes | Y190: Yes | Z190: Yes | AA190: Yes | AB190: Yes | AC190: Yes | AD190: Yes | AE190: Yes | AF190: Yes | AG190: Yes | AH190: Yes | AI190: Yes | AJ190: Yes | AK190: Yes | AL190: Yes | AM190: Yes | AN190: Yes | AO190: Yes | AP190: Yes | AQ190: Yes | AR190: Yes | AS190: Yes | AT190: Yes | AU190: Yes | AV190: Yes | AW190: Yes | AX190: Yes | AY190: Yes | AZ190: Yes | BA190: Yes | BB190: Yes | BC190: Yes | BD190: Yes | BE190: Yes | BF190: Yes | BG190: Yes | BH190: Yes | BI190: Yes | BJ190: Yes | BK190: Yes | BL190: Yes | BM190: Yes | BN190: Yes | BO190: Yes | BP190: Yes | BQ190: Yes | BR190: Yes | BS190: Yes | BT190: Yes | BU190: Yes | BV190: Yes | BW190: Yes | BX190: Yes | BY190: Yes | BZ190: Yes | CA190: Yes | CB190: Yes | CC190: Yes | CD190: Yes | CE190: Yes | CF190: Yes | CG190: Yes | CH190: No | CI190: Yes | CJ190: Yes | CK190: Yes | CL190: Yes | CM190: Yes | CN190: Yes | CO190: Yes | CP190: Yes | CQ190: Yes | CR190: Yes | CS190: Yes | CT190: Yes | CU190: Yes | CV190: Yes | CW190: Yes | CX190: Yes | CY190: Yes | CZ190: Yes | DA190: Yes | DB190: Yes | DC190: Yes | DD190: Yes | DE190: Yes | DF190: Yes | DG190: Yes | DH190: Yes | DI190: Yes | DJ190: Yes | DK190: Yes | DL190: Yes | DM190: Yes | DN190: Yes | DO190: No | DP190: No | DQ190: No | DR190: No | DS190: No | DT190: No | DU190: No | DV190: No | DW190: No | DX190: No | DY190: No | DZ190: No | EA190: No | EB190: No | EC190: No | ED190: No | EE190: No | EF190: No | EG190: No | EH190: No | EI190: No | EJ190: Yes | EK190: No | EL190: No | EM190: No | EN190: No | EO190: No | EP190: No | EQ190: No | ER190: No | ES190: No | ET190: No | EU190: No | EV190: No | EW190: No | EX190: No | EY190: No | EZ190: No | FA190: No | FB190: No | FC190: Yes | FD190: Yes | FE190: No | FF190: No | FG190: No | FH190: No | FI190: No | FJ190: No | FK190: No | FL190: No | FM190: No | FN190: No | FO190: No | FP190: No | FQ190: No | FR190: No | FS190: No | FT190: No | FU190: No | FV190: Yes | FW190: No | FX190: No | FY190: No | FZ190: Yes | GA190: Yes | GB190: Yes | GC190: Yes
B191: Casting/Hatch Designation | C191: Designation: | D191: Designation | F191: Hatch | G191: Hatch | H191: Casting | I191: Casting | J191: Casting | K191: Casting | L191: Casting | M191: Casting | N191: Casting | O191: Casting | P191: Casting | Q191: Casting | R191: Casting | S191: Casting | T191: Casting | U191: Casting | V191: Casting | W191: Casting | X191: Casting | Y191: Casting | Z191: Casting | AA191: Casting | AB191: Casting | AC191: Casting | AD191: Casting | AE191: Casting | AF191: Casting | AG191: Casting | AH191: Casting | AI191: Casting | AJ191: Casting | AK191: Casting | AL191: Casting | AM191: Casting | AN191: Casting | AO191: Casting | AP191: Casting | AQ191: Casting | AR191: Casting | AS191: Casting | AT191: Casting | AU191: Casting | AV191: Casting | AW191: Casting | AX191: Casting | AY191: Casting | AZ191: Casting | BA191: Casting | BB191: Casting | BC191: Casting | BD191: Casting | BE191: Casting | BF191: Casting | BG191: Casting | BH191: Casting | BI191: Casting | BJ191: Casting | BK191: Casting | BL191: Casting | BM191: Casting | BN191: Casting | BO191: Casting | BP191: Casting | BQ191: Casting | BR191: Casting | BS191: Casting | BT191: Casting | BU191: Casting | BV191: Casting | BW191: Casting | BX191: Casting | BY191: Casting | BZ191: Casting | CA191: Casting | CB191: Casting | CC191: Casting | CD191: Casting | CE191: Casting | CF191: Casting | CG191: Casting | CH191: Casting | CI191: Casting | CJ191: Casting | CK191: Casting | CL191: Casting | CM191: Casting | CN191: Casting | CO191: Casting | CP191: Casting | CQ191: Casting | CR191: Casting | CS191: Casting | CT191: Casting | CU191: Casting | CV191: Casting | CW191: Casting | CX191: Casting | CY191: Casting | CZ191: Casting | DA191: Casting | DB191: Casting | DC191: Casting | DD191: Casting | DE191: Casting | DF191: Casting | DG191: Casting | DH191: Casting | DI191: Casting | DJ191: Casting | DK191: Casting | DL191: Casting | DM191: Casting | DN191: Casting | DO191: Casting | DP191: Casting | DQ191: Casting | DR191: Casting | DS191: Casting | DT191: Casting | DU191: Casting | DV191: Casting | DW191: Casting | DX191: Casting | DY191: Casting | DZ191: Casting | EA191: Casting | EB191: Casting | EC191: Casting | ED191: Casting | EE191: Casting | EF191: Casting | EG191: Casting | EH191: Casting | EI191: Casting | EJ191: Casting | EK191: Casting | EL191: Casting | EM191: Casting | EN191: Casting | EO191: Casting | EP191: Casting | EQ191: Casting | ER191: Casting | ES191: Casting | ET191: Casting | EU191: Casting | EV191: Casting | EW191: Casting | EX191: Casting | EY191: Casting | EZ191: Casting | FA191: Casting | FB191: Casting | FC191: Casting | FD191: Casting | FE191: Casting | FF191: Casting | FG191: Casting | FH191: Casting | FI191: Casting | FJ191: Casting | FK191: Casting | FL191: Casting | FM191: Casting | FN191: Casting | FO191: Casting | FP191: Casting | FQ191: Casting | FR191: Casting | FS191: Casting | FT191: Casting | FU191: Casting | FV191: Casting | FW191: Casting | FX191: Casting | FY191: Casting | FZ191: Casting | GA191: Casting | GB191: Casting | GC191: Casting | GD191: Casting | GE191: Casting | GF191: Casting | GG191: Casting | GH191: Casting | GI191: Casting | GJ191: Casting | GK191: Casting | GL191: Casting | GM191: Casting | GN191: Casting | GO191: Casting | GP191: Casting | GQ191: Casting | GR191: Casting | GS191: Casting | GT191: Casting | GU191: Casting | GV191: Casting | GW191: Casting | GX191: Casting | GY191: Casting | GZ191: Casting | HA191: Casting | HB191: Casting | HC191: Casting | HD191: Casting | HE191: Casting | HF191: Casting | HG191: Casting | HH191: Casting | HI191: Casting | HJ191: Casting | HK191: Casting | HL191: Casting | HM191: Casting | HN191: Casting | HO191: Casting | HP191: Casting | HQ191: Casting | HR191: Casting | HS191: Casting | HT191: Casting | HU191: Casting | HV191: Casting | HW191: Casting | HX191: Casting | HY191: Casting | HZ191: Casting | IA191: Casting | IB191: Casting | IC191: Casting | ID191: Casting | IE191: Casting | IF191: Casting | IG191: Casting | IH191: Casting | II191: Casting | IJ191: Casting | IK191: Casting | IL191: Casting | IM191: Casting | IN191: Casting | IO191: Casting | IP191: Casting | IQ191: Casting | IR191: Casting | IS191: Casting | IT191: Casting | IU191: Casting | IV191: Casting | IW191: Casting | IX191: Casting | IY191: Casting | IZ191: Casting | JA191: Casting | JB191: Casting | JC191: Casting | JD191: Casting | JE191: Casting | JF191: Casting | JG191: Casting | JH191: Casting | JI191: Casting | JJ191: Casting | JK191: Casting | JL191: Casting | JM191: Casting | JN191: Casting | JO191: Casting | JP191: Casting | JQ191: Casting | JR191: Casting | JS191: Casting | JT191: Casting | JU191: Casting | JV191: Casting | JW191: Casting | JX191: Casting | JY191: Casting | JZ191: Casting | KA191: Casting | KB191: Casting | KC191: Casting | KD191: Casting | KE191: Casting | KF191: Casting | KG191: Casting | KH191: Casting | KI191: Casting | KJ191: Casting | KK191: Casting | KL191: Casting | KM191: Casting | KN191: Casting | KO191: Casting | KP191: Casting | KQ191: Casting | KR191: Casting | KS191: Casting | KT191: Casting | KU191: Casting | KV191: Casting | KW191: Casting | KX191: Casting | KY191: Casting | KZ191: Casting | LA191: Casting | LB191: Casting | LC191: Casting | LD191: Casting | LE191: Casting | LF191: Casting | LG191: Casting | LH191: Casting | LI191: Casting | LJ191: Casting | LK191: Casting | LL191: Casting | LM191: Casting | LN191: Casting | LO191: Casting | LP191: Casting | LQ191: Casting | LR191: Casting | LS191: Casting | LT191: Casting | LU191: Casting | LV191: Casting | LW191: Casting | LX191: Casting | LY191: Casting | LZ191: Casting | MA191: Casting | MB191: Casting | MC191: Casting | MD191: Casting | ME191: Casting | MF191: Casting | MG191: Casting | MH191: Casting | MI191: Casting | MJ191: Casting | MK191: Casting | ML191: Casting | MM191: Casting | MN191: Casting | MO191: Casting | MP191: Casting | MQ191: Casting | MR191: Casting | MS191: Casting | MT191: Casting | MU191: Casting | MV191: Casting | MW191: Casting | MX191: Casting | MY191: Casting | MZ191: Casting | NA191: Casting | NB191: Casting | NC191: Casting | ND191: Casting | NE191: Casting | NF191: Casting | NG191: Casting | NH191: Casting | NI191: Casting | NJ191: Casting | NK191: Casting | NL191: Casting | NM191: Casting | NN191: Casting | NO191: Casting | NP191: Casting | NQ191: Casting | NR191: Casting | NS191: Casting | NT191: Casting | NU191: Casting | NV191: Casting | NW191: Casting | NX191: Casting | NY191: Casting | NZ191: Casting | OA191: Casting | OB191: Casting | OC191: Casting | OD191: Casting | OE191: Casting | OF191: Casting | OG191: Casting | OH191: Casting | OI191: Casting | OJ191: Casting | OK191: Casting | OL191: Casting | OM191: Casting | ON191: Casting | OO191: Casting | OP191: Casting | OQ191: Casting | OR191: Casting | OS191: Casting | OT191: Casting | OU191: Casting | OV191: Casting | OW191: Casting | OX191: Casting | OY191: Casting | OZ191: Casting | PA191: Casting | PB191: Casting | PC191: Casting | PD191: Casting | PE191: Casting | PF191: Casting | PG191: Casting | PH191: Casting | PI191: Casting | PJ191: Casting | PK191: Casting | PL191: Casting | PM191: Casting | PN191: Casting | PO191: Casting | PP191: Casting | PQ191: Casting | PR191: Casting | PS191: Casting | PT191: Casting | PU191: Casting | PV191: Casting | PW191: Casting | PX191: Casting | PY191: Casting | PZ191: Casting | QA191: Casting | QB191: Casting | QC191: Casting | QD191: Casting | QE191: Casting | QF191: Casting | QG191: Casting | QH191: Casting | QI191: Casting | QJ191: Casting
B192: Stock or Non-Stock Item Designation | C192: Stock or Non-Stock Item | F192: Non-Stock Hatch | G192: Non-Stock Hatch | H192: Non-Stock | I192: Non-Stock | J192: Non-Stock | K192: Non-Stock | L192: Non-Stock | M192: Non-Stock | N192: Non-Stock | O192: Non-Stock | P192: Non-Stock | Q192: Non-Stock | R192: Non-Stock | S192: Non-Stock | T192: Non-Stock | U192: Non-Stock | V192: Non-Stock | W192: Non-Stock | X192: Non-Stock | Y192: Non-Stock | Z192: Non-Stock | AA192: Non-Stock | AB192: Non-Stock | AC192: Non-Stock | AD192: Non-Stock | AE192: Non-Stock | AF192: Non-Stock | AG192: Non-Stock | AH192: Non-Stock | AI192: Stock | AJ192: Stock | AK192: Stock | AL192: Stock | AM192: Stock | AN192: Stock | AO192: Non-Stock | AP192: Non-Stock | AQ192: Non-Stock | AR192: Non-Stock | AS192: Non-Stock | AT192: Stock | AU192: Stock | AV192: Stock | AW192: Non-Stock | AX192: Non-Stock | AY192: Non-Stock | AZ192: Non-Stock | BA192: Non-Stock | BB192: Non-Stock | BC192: Non-Stock | BD192: Non-Stock | BE192: Non-Stock | BF192: Non-Stock | BG192: Non-Stock | BH192: Non-Stock | BI192: Non-Stock | BJ192: Non-Stock | BK192: Stock | BL192: Stock | BM192: Stock | BN192: Non-Stock | BO192: Non-Stock | BP192: Non-Stock | BQ192: Stock | BR192: Stock | BS192: Non-Stock | BT192: Non-Stock | BU192: Non-Stock | BV192: Non-Stock | BW192: Non-Stock | BX192: Non-Stock | BY192: Non-Stock | BZ192: Non-Stock | CA192: Non-Stock | CB192: Non-Stock | CC192: Non-Stock | CD192: Non-Stock | CE192: Non-Stock | CF192: Non-Stock | CG192: Non-Stock | CH192: Non-Stock | CI192: Stock | CJ192: Stock | CK192: Stock | CL192: Non-Stock | CM192: Stock | CN192: Stock | CO192: Stock | CP192: Non-Stock | CQ192: Stock | CR192: Stock | CS192: Non-Stock | CT192: Non-Stock | CU192: Non-Stock | CV192: Non-Stock | CW192: Non-Stock | CX192: Non-Stock | CY192: Non-Stock | CZ192: Non-Stock | DA192: Non-Stock | DB192: Stock | DC192: Stock | DD192: Stock | DE192: Non-Stock | DF192: Non-Stock | DG192: Non-Stock | DH192: Non-Stock | DI192: Non-Stock | DJ192: Non-Stock | DK192: Stock | DL192: Stock | DM192: Non-Stock | DN192: Non-Stock | DO192: Non-Stock | DP192: Stock | DQ192: Stock | DR192: Non-Stock | DS192: Non-Stock | DT192: Non-Stock | DU192: Non-Stock | DV192: Non-Stock | DW192: Non-Stock | DX192: Non-Stock | DY192: Non-Stock | DZ192: Non-Stock | EA192: Non-Stock | EB192: Non-Stock | EC192: Non-Stock | ED192: Non-Stock | EE192: Stock | EF192: Non-Stock | EG192: Non-Stock | EH192: Non-Stock | EI192: Non-Stock | EJ192: Non-Stock | EK192: Non-Stock | EL192: Non-Stock | EM192: Stock | EN192: Non-Stock | EO192: Non-Stock | EP192: Non-Stock | EQ192: Non-Stock | ER192: Non-Stock | ES192: Stock | ET192: Stock | EU192: Stock | EV192: Non-Stock | EW192: Non-Stock | EX192: Non-Stock | EY192: Non-Stock | EZ192: Non-Stock | FA192: Non-Stock | FB192: Non-Stock | FC192: Stock | FD192: Non-Stock | FE192: Non-Stock | FF192: Non-Stock | FG192: Non-Stock | FH192: Non-Stock | FI192: Non-Stock | FJ192: Non-Stock | FK192: Non-Stock | FL192: Non-Stock | FM192: Non-Stock | FN192: Non-Stock | FO192: Non-Stock | FP192: Non-Stock | FQ192: Non-Stock | FR192: Non-Stock | FS192: Non-Stock | FT192: Non-Stock | FU192: Non-Stock | FV192: Non-Stock | FW192: Stock | FX192: Non-Stock | FY192: Non-Stock | FZ192: Non-Stock | GA192: Non-Stock | GB192: Non-Stock | GC192: Non-Stock | GD192: Non-Stock | GE192: Non-Stock | GF192: Non-Stock | GG192: Non-Stock | GH192: Non-Stock | GI192: Non-Stock | GJ192: Non-Stock | GK192: Non-Stock | GL192: Non-Stock | GM192: Non-Stock | GN192: Non-Stock | GO192: Non-Stock | GP192: Non-Stock | GQ192: Non-Stock | GR192: Non-Stock | GS192: Non-Stock | GT192: Non-Stock | GU192: Non-Stock | GV192: Non-Stock | GW192: Non-Stock | GX192: Non-Stock | GY192: Stock | GZ192: Non-Stock | HA192: Stock | HB192: Non-Stock | HC192: Non-Stock | HD192: Non-Stock | HE192: Non-Stock | HF192: Non-Stock | HG192: Non-Stock | HH192: Non-Stock | HI192: Non-Stock | HJ192: Non-Stock | HK192: Non-Stock | HL192: Non-Stock | HM192: Non-Stock | HN192: Non-Stock | HO192: Non-Stock | HP192: Non-Stock | HQ192: Non-Stock | HR192: Non-Stock | HS192: Non-Stock | HT192: Non-Stock | HU192: Stock | HV192: Non-Stock | HW192: Non-Stock | HX192: Non-Stock | HY192: Non-Stock | HZ192: Non-Stock | IA192: Non-Stock | IB192: Non-Stock | IC192: Non-Stock | ID192: Non-Stock | IE192: Non-Stock | IF192: Non-Stock | IG192: Non-Stock | IH192: Non-Stock | II192: Non-Stock | IJ192: Non-Stock | IK192: Non-Stock | IL192: Non-Stock | IM192: Non-Stock | IN192: Non-Stock | IO192: Non-Stock | IP192: Non-Stock | IQ192: Non-Stock | IR192: Non-Stock | IS192: Non-Stock | IT192: Non-Stock | IU192: Non-Stock | IV192: Non-Stock | IW192: Non-Stock | IX192: Non-Stock | IY192: Non-Stock | IZ192: Non-Stock | JA192: Non-Stock | JB192: Non-Stock | JC192: Non-Stock | JD192: Non-Stock | JE192: Non-Stock | JF192: Non-Stock | JG192: Non-Stock | JH192: Non-Stock | JI192: Non-Stock | JJ192: Non-Stock | JK192: Non-Stock | JL192: Non-Stock | JM192: Non-Stock | JN192: Non-Stock | JO192: Non-Stock | JP192: Non-Stock | JQ192: Non-Stock | JR192: Non-Stock | JS192: Non-Stock | JT192: Non-Stock | JU192: Non-Stock | JV192: Non-Stock | JW192: Non-Stock | JX192: Non-Stock | JY192: Non-Stock | JZ192: Non-Stock | KA192: Non-Stock | KB192: Non-Stock | KC192: Non-Stock | KD192: Non-Stock | KE192: Non-Stock | KF192: Non-Stock | KG192: Non-Stock | KH192: Non-Stock | KI192: Non-Stock | KJ192: Non-Stock | KK192: Non-Stock | KL192: Non-Stock | KM192: Non-Stock | KN192: Non-Stock | KO192: Non-Stock | KP192: Non-Stock | KQ192: Non-Stock | KR192: Non-Stock | KS192: Non-Stock | KT192: Non-Stock | KU192: Non-Stock | KV192: Non-Stock | KW192: Non-Stock | KX192: Non-Stock | KY192: Non-Stock | KZ192: Non-Stock | LA192: Non-Stock | LB192: Non-Stock | LC192: Non-Stock | LD192: Non-Stock | LE192: Non-Stock | LF192: Non-Stock | LG192: Non-Stock | LH192: Non-Stock | LI192: Non-Stock | LJ192: Non-Stock | LK192: Non-Stock | LL192: Non-Stock | LM192: Non-Stock | LN192: Non-Stock | LO192: Non-Stock | LP192: Non-Stock | LQ192: Non-Stock | LR192: Non-Stock | LS192: Non-Stock | LT192: Non-Stock | LU192: Non-Stock | LV192: Non-Stock | LW192: Non-Stock | LX192: Non-Stock | LY192: Non-Stock | LZ192: Non-Stock | MA192: Non-Stock | MB192: Non-Stock | MC192: Non-Stock | MD192: Non-Stock | ME192: Non-Stock | MF192: Non-Stock | MG192: Non-Stock | MH192: Non-Stock | MI192: Non-Stock | MJ192: Non-Stock | MK192: Non-Stock | ML192: Non-Stock | MM192: Non-Stock | MN192: Non-Stock | MO192: Non-Stock | MP192: Non-Stock | MQ192: Non-Stock | MR192: Non-Stock | MS192: Non-Stock | MT192: Non-Stock | MU192: Non-Stock | MV192: Non-Stock | MW192: Non-Stock | MX192: Non-Stock | MY192: Non-Stock | MZ192: Non-Stock | NA192: Non-Stock | NB192: Non-Stock | NC192: Non-Stock | ND192: Non-Stock | NE192: Non-Stock | NF192: Non-Stock | NG192: Non-Stock | NH192: Non-Stock | NI192: Non-Stock | NJ192: Non-Stock | NK192: Non-Stock | NL192: Non-Stock | NM192: Non-Stock | NN192: Non-Stock | NO192: Non-Stock | NP192: Non-Stock | NQ192: Non-Stock | NR192: Non-Stock | NS192: Non-Stock | NT192: Non-Stock | NU192: Non-Stock | NV192: Non-Stock | NW192: Non-Stock | NX192: Non-Stock | NY192: Non-Stock | NZ192: Non-Stock | OA192: Non-Stock | OB192: Non-Stock | OC192: Non-Stock | OD192: Non-Stock | OE192: Non-Stock | OF192: Non-Stock | OG192: Non-Stock | OH192: Non-Stock | OI192: Non-Stock | OJ192: Non-Stock | OK192: Non-Stock | OL192: Non-Stock | OM192: Non-Stock | ON192: Non-Stock | OO192: Non-Stock | OP192: Non-Stock | OQ192: Non-Stock | OR192: Non-Stock | OS192: Non-Stock | OT192: Non-Stock | OU192: Non-Stock | OV192: Non-Stock | OW192: Non-Stock | OX192: Non-Stock | OY192: Non-Stock | OZ192: Non-Stock | PA192: Non-Stock | PB192: Non-Stock | PC192: Non-Stock | PD192: Non-Stock | PE192: Non-Stock | PF192: Non-Stock | PG192: Non-Stock | PH192: Non-Stock | PI192: Non-Stock | PJ192: Non-Stock | PK192: Non-Stock | PL192: Non-Stock | PM192: Non-Stock | PN192: Non-Stock | PO192: Non-Stock | PP192: Non-Stock | PQ192: Non-Stock | PR192: Non-Stock | PS192: Non-Stock | PT192: Non-Stock | PU192: Non-Stock | PV192: Non-Stock | PW192: Non-Stock | PX192: Non-Stock | PY192: Non-Stock | PZ192: Non-Stock | QA192: Non-Stock | QB192: Non-Stock | QC192: Non-Stock | QD192: Non-Stock | QE192: Non-Stock | QF192: Non-Stock | QG192: Non-Stock | QH192: Non-Stock | QI192: Non-Stock | QJ192: Non-Stock
B193: NetSuite Product ID | C193: Product ID | D193: ID | F193: MTO | G193: MTO | H193: CSTEJ1578FCP | I193: CSTEJ1578FCCO | J193: CSTJRHMC82FCP | K193: CSTJRHMC162FCP | L193: CSTJRHMC260FCP | M193: CSTJRHMC260FCST | N193: CSTJRHMC260FCSAN | O193: CSTJRHMC260FCG | P193: CSTJRHMC260FCW | Q193: CSTJRHMC260FCV | R193: CSTJRHMC350FCP | S193: CSTJRHMC350FCST | T193: CSTJRHMC350FCSAN | U193: CSTJRHMC350FCG | V193: CSTJRHMC350FCW | W193: CSTJRHMC350FCV | X193: CSTJRHMC350FCLFUCGS | Y193: CSTJRHMC350FCFSD | Z193: CSTJRHMC350FCSSS | AA193: CSTJRHMC350FCBDWTS | AB193: CSTJRHMC350WTL | AC193: CSTJRHMC295FCP | AD193: CSTJRHMC295FCST | AE193: CSTJRHMC295FCSAN | AF193: CSTJRHMC295FCG | AG193: CSTJRHMC295FCW | AH193: CSTJRHMC295FCV | AI193: CSTJRHMC315FCP | AJ193: CSTJRHMC315FCST | AK193: CSTJRHMC315FCSAN | AL193: CSTJRHMC315G | AM193: CSTJRHMC315FCW | AN193: CSTJRHMC315FCOW | AO193: CSTJRHMC315FCV | AP193: CSTJRHMC315FCSTICAST | AQ193: CSTJRHMC315FCSANICAST | AR193: CSTJRHMC315GICAST | AS193: CSTJRHMC315FCOWICAST | AT193: CSTJRHMC315FCSTH | AU193: CSTJRHMC315FCSANH | AV193: CSTJRHMC315RWRA | AW193: CSTJRHMC315SSC | AX193: CSTJRHMC315FCBDWTS | AY193: CSTJRHMC420FCP | AZ193: CSTJRHMC420FC | BA193: CSTJRHMC420FC-STM-LOUMSD | BB193: CSTJRHMC420FCSAN | BC193: CSTJRHMC420FC-SWR-LOUMSD | BD193: CSTJRHMC420FCLG | BE193: CSTJRHMC420FCBDWTS | BF193: CSTJRHMC285FCP | BG193: CSTJRHMC285FCST | BH193: CSTJRHMC285FCSAN | BI193: CSTJRHMC285FCW | BJ193: CSTJRHMC285FCV | BK193: CSTJRHMC375FCP | BL193: CSTJRHMC375FCST | BM193: CSTJRHMC375S | BN193: CSTJRHMC375FCW | BO193: CSTJRHMC375FCV | BP193: CSTJRHMC375FCS-BGMU | BQ193: CSTJRHMC375FCG | BR193: CSTJRHMC375FCOW | BS193: CSTJRHMC375FCBIO | BT193: CSTJRHMC375FCSTICAST | BU193: CSTJRHMC375FCSANICAST | BV193: CSTJRHMC375FCGTICAST | BW193: CSTJRHMC375FCOWICAST | BX193: CSTJRHMC375FCSSS | BY193: CSTJRHMC375FCBDWTS | BZ193: CSTJRHMC680FCP | CA193: CSTJRHMC680FCELE | CB193: CSTJRHMC680FCCOM | CC193: CSTJRHMC780FCP | CD193: CSTJRHMC780FCELE | CE193: CSTJRHMC780FCCOM | CF193: CSTJRHMC455FCP | CG193: CSTJRHMC747FCP | CH193: CSTJRHMC900FCP | CI193: CSTJRHMCS295FC | CJ193: CSTJRHMCS295FCST | CK193: CSTJRHMCS295FCSAN | CL193: CSTJRHMCS295FCV | CM193: CSTJRHMCS288FC | CN193: CSTJRHMCS288FCST | CO193: CSTJRHMCS288FCSAN | CP193: CSTJRHMCS288FCV | CQ193: CSTJRHMCS288BHFG6 | CR193: CSTJRHMCS288BHFG9 | CS193: CSTJRHMCS290FC | CT193: CSTJRHMCS290FCST | CU193: CSTJRHMCS290FCSAN | CV193: CSTJRHMCS290FCV | CW193: CSTJRHMCB82FG | CX193: CSTJRHMCB162FG | CY193: CSTJRHMCB260FBG | CZ193: CSTJRHMCB260FRG | DA193: CSTJRHMCB260FBHG | DB193: CSTJRHMCB315BFG | DC193: CSTJRHMCB315FRG | DD193: CSTJRHMCB315FBHG | DE193: CSTJRHMCB350FBG | DF193: CSTJRHMCB350FRG | DG193: CSTJRHMCB350FBHG | DH193: CSTJRHMCB420FBG | DI193: CSTJRHMCB285FBG | DJ193: CSTJRHMCB285FBHG | DK193: CSTJRHMCB375FBG | DL193: CSTJRHMCB375FBHG | DM193: CSTJRHMCB375FBHG9 | DN193: CSTJRHMCB747FG | DO193: CSTJRHMCB900FG | DP193: CSTJRHHOE165AFG | DQ193: CSTJRHHOE280TFG | DR193: CSTJRHHOE280BH | DS193: CSTJRHHOE280SOLIDFC | DT193: CSTJRHHOE280TFGADA | DU193: CSTJRHHOE320 | DV193: CSTJRHHOE342FG | DW193: CSTJRHHOE275AFG | DX193: CSTJRHHOE275DBLFG | DY193: CSTJRHHOE460FG | DZ193: CSTJRHHOE326FBHG | EA193: CSTJRHHOE580FGA | EB193: CSTJRHHOE580FGLV | EC193: CSTJRHHOE518FG | ED193: CSTJRHHOE518DBLFG | EE193: CSTJRHHOE468FG | EF193: CSTJRHHOE468RFG | EG193: CSTJRHHOE918FG | EH193: CSTJRHHOE595 | EI193: CSTJRHHOE165FG | EJ193: CSTJRHHOE315FG | EK193: CSTJRHHOE555FG | EL193: CSTJRHHOE700FG | EM193: CSTJRHHOE465SET | EN193: CSTJRHHOE360SETF | EO193: CSTJRHHOE360SETLV | EP193: CSTJRHHOE399SET | EQ193: CSTJRHHOE470SETF | ER193: CSTJRHHOE470SETLV | ES193: CSTJRHHOE525SETF | ET193: CSTJRHHOE525LV | EU193: CSTJRHHOE525SETV | EV193: CSTJRHHOE525LV | EW193: CSTJRHHOE525DBLSETLV | EX193: CSTJRHHOE525DBLSETF | EY193: CSTJRHHOE525TPLSETLV | EZ193: CSTJRHHOE410FG | FA193: CSTJRHHOE698FG | FB193: CSTEJ4510 | FC193: CSTJRHKY206 | FD193: CSTJRHKY510FC | FE193: CSTJRHKY316FG2 | FF193: CSTJRHKY398FG2 | FG193: CSTJRHKY328FG2 | FH193: CSTJRHKY410FG2 | FI193: CSTJRHKY460-5AFG2 | FJ193: CSTJRHKY460-5BFG2 | FK193: CSTJRHKY460-5CFG2 | FL193: CSTJRHKY460-5DFG2 | FM193: CSTJRHKY460-5EFG2 | FN193: CSTJRHKY460-5FFG2 | FO193: CSTJRHKY426-6AFG2 | FP193: CSTJRHKY426-6BFG2 | FQ193: CSTJRHKY426-6CFG2 | FR193: CSTJRHKY426-6DFG2 | FS193: CSTJRHKY426-6EFG2 | FT193: CSTJRHKY426-6FFG2 | FU193: CSTJRHKY328FG (cast in) | FV193: CSTJRHKY550 | FW193: CSTJRHKY46011 | FX193: CSTJRHKY65 | FY193: CSTJRHKY65A | FZ193: CSTJRHKY230GFG | GA193: CSTJRHKY230SFG | GB193: CSTJRHKY210FG | GC193: CSTJRHKY215FG | GD193: CSTJRHKYSAFETY-SGL | GE193: CSTJRHKYSAFETY-DBL | GF193: CSTJRHHOE169PLAIN | GG193: CSTJRHHOE169GAL | GH193: CSTJRHHOE269PLAIN | GI193: CSTJRHHOE269GAL | GJ193: CSTJRHHOE729PLAIN | GK193: CSTJRHHOE729GAL | GL193: CSTJRHHOE1249PLAIN | GM193: CSTJRHHOE1249GAL | GN193: CSTJRHHOE1799PLAIN | GO193: CSTJRHHOE1799GAL | GP193: CSTJRHKY161 | GQ193: CSTJRHKY300 | GR193: CSTJRHKY272 | GS193: CSTJRHKY454 | GT193: CSTJRHKY796 | GU193: CSTJRHKY1218 | GV193: CSTJRHKY298 | GW193: CSTJRHKY206-S | GX193: CSTJRHKY345SET | GY193: CSTJRHKY206 | GZ193: CSTJRHKY345 | HA193: CSTJRHHOE465SET | HB193: CSTJRHTFG1.5x8-PLF | HC193: CSTJRHTFG1.5x10-PLF | HD193: CSTJRHTFG1.5x12-PLF | HE193: CSTJRHTFG1.5x14-PLF | HF193: CSTJRHTFG1.5x17-PLF | HG193: CSTJRHTFG1.5x20-PLF | HH193: CSTJRHTFG1.5x26-PLF | HI193: CSTJRHTCIFG1.5x8-PLF | HJ193: CSTJRHTCIFG1.5x10-PLF | HK193: CSTJRHTCIFG1.5x12-PLF | HL193: CSTJRHTCIFG1.5x14-PLF | HM193: CSTJRHTCIFG1.5x17-PLF | HN193: CSTJRHTCIFG1.5x20-PLF | HO193: CSTJRHTCIFG1.5x26-PLF | HP193: CSTEJ5340 | HQ193: CSTEJ7500 | HR193: CSTEJ1925 | HS193: CSTEJ5425 | HT193: CSTEJ5425 | HU193: CSTEJ6610GBH | HV193: CSTEJ7520 | HW193: CSTEJ7505 | HX193: CSTEJ5400 | HY193: CSTEJ5405 | HZ193: CSTEJ5335 | IA193: CSTEJDBL5191F5190G | IB193: CSTEJ542532B01 | IC193: CSTJRHEJ6500 | ID193: CSTJBS1020FCDR | IE193: CSTJBS1020FCSEW | IF193: CSTJBS1072FCP | IG193: CSTJBS1072FCST | IH193: CSTJBS1072FCSAN | II193: CSTJBS1072FCG | IJ193: CSTJBS1077FCST | IK193: CSTJBS1090FCBDWTLOU | IL193: CSTJBS1090FCBDWTSAN | IM193: CSTJBS1095FCLAGST | IN193: CSTJBS1095FCLAGSEW | IO193: CSTJBS1095FCLOUST | IP193: CSTJBS1095FCLOUSEW | IQ193: CSTJBS1110FCST | IR193: CSTJBS1110FCSAN | IS193: CSTJBS1123FCBDWTSAN | IT193: CSTJBS1123FCBDWTKYST | IU193: CSTJBS1123FCKYST | IV193: CSTJBS1123FCBDWTKYSAN | IW193: CSTJBS1123FCKYSAN | IX193: CSTJBS1132FCELE | IY193: CSTJBS1132FCCOM | IZ193: CSTJBS1140MFCST | JA193: CSTJBS1140MFCSAN | JB193: CSTJBS1140MFCLEXSAN | JC193: CSTJBS1140MFCRWRASAN | JD193: CSTJBS1140MFCBDWTSAN | JE193: CSTJBS1140MFCBDWTLEXSAN | JF193: CSTJBS1144FCST | JG193: CSTJBS1144FCSAN | JH193: CSTJBS1150 | JI193: CSTJBS1150ST | JJ193: CSTJBS1150FCSAN | JK193: CSTJBS1150FCBDWTSAN | JL193: CSTJBS1152MFCBGMUSAN | JM193: CSTJBS1154FCST | JN193: CSTJBS1154FCSAN | JO193: CSTJBS1155FCP | JP193: CSTJBS1155FCST | JQ193: CSTJBS1155SANSEW | JR193: CSTJBS1155SANBDWT | JS193: CSTJBS1220FCP | JT193: CSTJBS1247DMFCST | JU193: CSTJBS1247DMFCSAN | JV193: CSTJBS1247DMFCSSS | JW193: CSTJBS1247DMFCGSS | JX193: CSTJBS1247DMFCBDWTSAN | JY193: CSTJBS2072FG | JZ193: CSTJBS2110FG | KA193: CSTJBS2140FG | KB193: CSTJBS2150FG | KC193: CSTJBS2214FG | KD193: CSTJBS2215FG | KE193: CSTJBS2220FG | KF193: CSTJBS2230FG | KG193: CSTJBS2272FBHG | KH193: CSTJBS3070FG | KI193: CSTJBS3080 | KJ193: CSTJBS3080V | KK193: CSTJBS3080DBL | KL193: CSTJBS3080VDBL | KM193: CSTJBS3080TPL | KN193: CSTJBS3080VTPL | KO193: CSTJBS3085 | KP193: CSTJBS3101 | KQ193: CSTJBS3101V | KR193: CSTJBS3101D | KS193: CSTJBS3101VD | KT193: CSTJBS3101T | KU193: CSTJBS3101VT | KV193: CSTJBS3103 | KW193: CSTJBS3103V | KX193: CSTJBS3103D | KY193: CSTJBS3103VD | KZ193: CSTJBS3103T | LA193: CSTJBS3103VT | LB193: CSTJBS3104SGL | LC193: CSTJBS3104VSGL | LD193: CSTJBS3104D | LE193: CSTJBS3104VD | LF193: CSTJBS3104T | LG193: CSTJBS3104VT | LH193: CSTJBS3105V | LI193: CSTJBS3106 | LJ193: CSTJBS3106V | LK193: CSTJBS3123 | LL193: CSTJBS3123MOD | LM193: CSTJBS3123MODDBL | LN193: CSTJBS3123-13 | LO193: CSTJBS3123-32 | LP193: CSTJBS3123-32DBL | LQ193: CSTJBS3123-41 | LR193: CSTJBS3123-41DBL | LS193: CSTJBS3123-41Q | LT193: CSTJBS3157 | LU193: CSTJBS3158V | LV193: CSTJBS3223V | LW193: CSTJBS3300 | LX193: CSTJBS3300V | LY193: CSTJBS3300DBL | LZ193: CSTJBS3300VDBL | MA193: CSTJBS3300TPL | MB193: CSTJBS3300VTPL | MC193: CSTJBS3305M | MD193: CSTJBS3411FG | ME193: CSTJBS3413FG | MF193: CSTJBS3450FG | MG193: CSTJBS3700FG | MH193: CSTJBS4012FG | MI193: CSTJBS4073FG | MJ193: CSTJBS4075 | MK193: CSTJBS4076XFG | ML193: CSTJBS4200G | MM193: CSTJBS4200GDBL | MN193: CSTJBS4200GQ | MO193: CSTJBS4220FG | MP193: CSTJBS4254 | MQ193: CSTJBS4260 | MR193: CSTJBS4275 | MS193: CSTJBS4275V | MT193: CSTJBS4300 | MU193: CSTJBS4310SGL | MV193: CSTJBS4310DBL | MW193: CSTJBS4315 | MX193: CSTJBS4475G | MY193: CSTJBS4480FBHG | MZ193: CSTJBS5830FGSTD | NA193: CSTJBS5830FG | NB193: CSTJBSTY38G | NC193: CSTJBSTY39G | ND193: CSTJBSTY40G | NE193: CSTJRHTRLSQ-24 | NF193: CSTJRHTRLSQ-24-G | NG193: CSTJRHTRLSQ-24-AL | NH193: CSTJRHTRLSQ-36 | NI193: CSTJRHTRLSQ-36-G | NJ193: CSTJRHTRLSQ-36-AL | NK193: CSTJRHTRLSQ-3648-P | NL193: CSTJRHTRLSQ-3648-G | NM193: CSTJRHTRLSQ-3648-AL | NN193: CSTJRHTRLSQ-48-P | NO193: CSTJRHTRLSQ-48 | NP193: CSTJRHTRLSQ-48-AL | NQ193: CSTJRHTRLSQ-60-P | NR193: CSTJRHTRLSQ-60-G | NS193: CSTJRHTRLSQ-60-AL | NT193: CSTJRHTRLSQ-72-P | NU193: CSTJRHTRLSQ-72-G | NV193: CSTJRHTRLSQ-72-AL | NW193: CSTJRHTRLDR-36-P | NX193: CSTJRHTRLDR-36-G | NY193: CSTJRHTRLDR-36-AL | NZ193: CSTJRHTRLDR-48-P | OA193: CSTJRHTRLDR-48-G | OB193: CSTJRHTRLDR-48-AL | OC193: CSTJRHTRLDR-60-P | OD193: CSTJRHTRLDR-60-G | OE193: CSTJRHTRLDR-60-AL | OF193: CSTJRHTRLDR-72-P | OG193: CSTJRHTRLDR-72-G | OH193: CSTJRHTRLDR-72-AL | OI193: CSTJRHTRLFG-36-P | OJ193: CSTJRHTRLFG-36-G | OK193: CSTJRHTRLFG-36-AL | OL193: CSTJRHTRLFG-3648-P | OM193: CSTJRHTRLFG-3648-G | ON193: CSTJRHTRLFG-3648-AL | OO193: CSTJRHTRLFG-48-P | OP193: CSTJRHTRLFG-48-G | OQ193: CSTJRHTRLFG-48-AL | OR193: CSTJRHTRLFG-60-P | OS193: CSTJRHTRLFG-60-G | OT193: CSTJRHTRLFG-60-AL | OU193: CSTJRHTRLFG-72-P | OV193: CSTJRHTRLFG-72-G | OW193: CSTJRHTRLFG-72-AL | OX193: CSTJRHTRLFS-36 | OY193: CSTJRHTRLFS-36-G | OZ193: CSTJRHTRLFS-36-AL | PA193: CSTJRHTRLFS-48-P | PB193: CSTJRHTRLFS-48-G | PC193: CSTJRHTRLFS-48-AL | PD193: CSTJRHTRLFS-60-P | PE193: CSTJRHTRLFS-60-G | PF193: CSTJRHTRLFS-60-AL | PG193: CSTJRHTRLFS-72-P | PH193: CSTJRHTRLFS-72-G | PI193: CSTJRHTRLFS-72-AL | PJ193: CSTJRHTRLFR-36-P | PK193: CSTJRHTRLFR-36-G | PL193: CSTJRHTRLFR-36-AL | PM193: CSTJRHTRLFR-48-P | PN193: CSTJRHTRLFR-48-G | PO193: CSTJRHTRLFR-48-AL | PP193: CSTJRHTRLFR-60-P | PQ193: CSTJRHTRLFR-60-G | PR193: CSTJRHTRLFR-60-AL | PS193: CSTJRHTRLFR-72-P | PT193: CSTJRHTRLFR-72-G | PU193: CSTJRHTRLFR-72-AL | PV193: MTO | PW193: MTO | PX193: MTO | PY193: MTO | PZ193: MTO | QA193: MTO | QB193: MTO | QC193: MTO | QD193: MTO | QE193: MTO | QF193: MTO | QG193: MTO | QH193: MTO | QI193: MTO | QJ193: MTO
B194: NetSuite Product ID (Frame) | C194: Product ID | D194: ID | F194: MTO | G194: MTO | J194: CSTJRHMC82F | L194: CSTJRHMC260F | M194: CSTJRHMC260F | N194: CSTJRHMC260F | O194: CSTJRHMC260F | Q194: CSTJRHMC260F | R194: CSTJRHMC350F | S194: CSTJRHMC350F | T194: CSTJRHMC350F | U194: CSTJRHMC350F | W194: CSTJRHMC350F | Z194: CSTJRHMC350F | AA194: CSTJRHMC350F | AI194: CSTJRHMC315F | AJ194: CSTJRHMC315F | AK194: CSTJRHMC315F | AL194: CSTJRHMC315F | AM194: CSTJRHMC315F | AN194: CSTJRHMC315F | AO194: CSTJRHMC315F | AT194: CSTJRHMC315F | AU194: CSTJRHMC315F | AV194: CSTJRHMC315F | AW194: CSTJRHMC315F | AX194: CSTJRHMC315F | AY194: CSTJRHMC420F | AZ194: CSTJRHMC420F | BA194: CSTJRHMC420F | BB194: CSTJRHMC420F | BC194: CSTJRHMC420F | BD194: CSTJRHMC420F | BF194: CSTJRHMC285F | BG194: CSTJRHMC285F | BH194: CSTJRHMC285F | BJ194: CSTJRHMC285F | BK194: CSTJRHMC375F | BL194: CSTJRHMC375F | BM194: CSTJRHMC375F | BO194: CSTJRHMC375F | BP194: CSTJRHMC375F | BQ194: CSTJRHMC375F | BR194: CSTJRHMC375F | BS194: CSTJRHMC375F | BX194: CSTJRHMC375F | CF194: CSTJRHMC455F | CG194: CSTJRHMC747F | CI194: CSTJRHMCS295F | CJ194: CSTJRHMCS295F | CK194: CSTJRHMCS295F | CM194: CSTJRHMCS288F | CN194: CSTJRHMCS288F | CO194: CSTJRHMCS288F | CQ194: CSTJRHMCS288F | CR194: CSTJRHMCS288F | CS194: CSTJRHMCS290F | CT194: CSTJRHMCS290F | CU194: CSTJRHMCS290F | CY194: CSTJRHMCB260F | CZ194: CSTJRHMCB260F | DA194: CSTJRHMCB260F | DB194: CSTJRHMCB315BF | DE194: CSTJRHMCB350F | DF194: CSTJRHMCB350F | DG194: CSTJRHMCB350F | DH194: CSTJRHMCB420F | DI194: CSTJRHMCB285F | DJ194: CSTJRHMCB285F | DO194: CSTJRHMCB900F | DP194: CSTJRHHOE165F | DQ194: CSTJRHHOE280TF | DR194: CSTJRHHOE280TF | DS194: CSTJRHHOE280TF | DU194: CSTJRHHOE320F | DV194: CSTJRHHOE342F | DX194: CSTJRHHOE275DBLF | DZ194: CSTJRHHOE326F | EA194: CSTJRHHOE580F | EB194: CSTJRHHOE580F | EC194: CSTJRHHOE518F | ED194: CSTJRHHOE518DBLF | EE194: CSTJRHHOE468F | EG194: CSTJRHHOE918F | EH194: CSTJRHHOE595F | EI194: CSTJRHHOE165AF | EK194: CSTJRHHOE555F | EL194: CSTJRHHOE700F | EM194: CSTJRHHOE465F | EN194: CSTJRHHOE360F | EP194: CSTJRHHOE399F | EQ194: CSTJRHHOE470F | ES194: CSTJRHHOE525F | ET194: CSTJRHHOE525F | EU194: CSTJRHHOE525F | EV194: CSTJRHHOE525DBLF | EW194: CSTJRHHOE525DBLF | EZ194: CSTJRHHOE410F | FA194: CSTJRHHOE698F | FC194: CSTJRHKY206F | FD194: CSTJRHKY510F | FE194: CSTJRHKY316F | FF194: CSTJRHKY398F | FG194: CSTJRHKY328F | FH194: CSTJRHKY410F | FI194: CSTJRHKY460-5AF | FJ194: CSTJRHKY460-5BF | FK194: CSTJRHKY460-5CF | FL194: CSTJRHKY460-5DF | FM194: CSTJRHKY460-5EF | FN194: CSTJRHKY460-5FF | FO194: CSTJRHKY426-6AF | FP194: CSTJRHKY426-6BF | FQ194: CSTJRHKY426-6CF | FR194: CSTJRHKY426-6DF | FS194: CSTJRHKY426-6EF | FT194: CSTJRHKY426-6FF | FU194: CSTJRHKY328F (cast in) | FV194: CSTJRHKY550F | FW194: CSTJRHKY46011F | FX194: CSTJRHDBI12F | FY194: CSTJRHDBI12AF | FZ194: CSTJRHKY230F | GA194: CSTJRHKY230SF | GB194: CSTJRHKY210F | GC194: CSTJRHKY215F | GY194: CSTJRHKY206F | HA194: CSTJRHKY465F | HW194: CSTJRHR328710V-F | ID194: CSTJBS1020F | IE194: CSTJBS1020F | IF194: CSTJBS1072F | IG194: CSTJBS1072F | IH194: CSTJBS1072F | IS194: CSTJBS1123F | IZ194: CSTJBS1140MF | JA194: CSTJBS1140MF | JB194: CSTJBS1140MF | JC194: CSTJBS1140MF | JF194: CSTJBS1144F | JG194: CSTJBS1144F | JH194: CSTJBS1150F | JI194: CSTJBS1150F | JJ194: CSTJBS1150F | JM194: CSTJBS1154F | JN194: CSTJBS1154F | JS194: CSTJBS1220F | JY194: CSTJBS1072F | KB194: CSTJBS2150F | KH194: CSTJBS3070NF | KI194: CSTJBS3080F | KJ194: CSTJBS3080F | KK194: CSTJBS3080F | KL194: CSTJBS3080F | KM194: CSTJBS3080F | KN194: CSTJBS3080F | LW194: CSTJBS3300F | MI194: CSTJBS4073F | MJ194: CSTJBS4075F | MW194: CSTJBS4315F
B195: NetSuite Product ID (Cover/Grate) | C195: Product ID | D195: ID | F195: MTO | G195: MTO | J195: CSTJRHMC82C | L195: CSTJRHMC260C | M195: CSTJRHMC260C | N195: CSTJRHMC260CSAN | O195: CSTJRHMC260CG | Q195: CSTJRHMC260CG | R195: CSTJRHMC350C | S195: CSTJRHMC350CSTM | T195: CSTJRHMC350CS | U195: CSTJRHMC350CG | W195: MTO | Z195: CSTJRHMC350CSS | AA195: CSTJRHMC350CBDWTS | AI195: CSTJRHMC315P | AJ195: CSTJRHMC315ST | AK195: CSTJRHMC315CSAN | AL195: CSTJRHMC315CG | AM195: CSTJRHMC315W | AN195: CSTJRHMC315OW | AO195: MTO | AT195: CSTJRHMC315STH | AU195: MTO | AV195: CSTJRHMC315CRWRA | AW195: CSTJRHMC315CSSSAN | AX195: CSTJRHMC315WTSS | AY195: CSTJRHMC420C | AZ195: CSTJRHMC420C | BA195: CSTJRHMC420C-STM-LOUMSD | BB195: CSTJRHMC420C | BC195: CSTJRHMC420C-SWR-LOUMSD | BD195: CSTJRHMC420CLG | BF195: CSTJRHMC285C | BG195: CSTJRHMC285C | BH195: CSTJRHMC285C | BJ195: MTO | BK195: CSTJRHMC375C | BL195: CSTJRHMC375CST | BM195: CSTJRHMC375CS | BO195: MTO | BP195: CSTJRHMC375CS-BGMU | BQ195: CSTJRHMC375CG | BR195: CSTJRHMC375CO | BS195: MTO | BX195: CSTJRHMC375CSSS | BY195: CSTJRHMC375CWTS | CF195: CSTJRHMC455C | CG195: CSTJRHMC747C | CI195: CSTJRHMCS295C | CJ195: MTO | CK195: CSTJRHMCS295CS | CM195: CSTJRHMCS290C | CN195: CSTJRHMCS288STM | CO195: MTO | CQ195: CSTJRHMCS288BHG | CR195: MTO | CS195: CSTJRHMCS290C | CT195: MTO | CU195: MTO | CY195: CSTJRHMCB260G | CZ195: MTO | DA195: CSTJRHMCB260BHG | DB195: CSTJRHMCB315BG | DC195: CSTJRHMCB315RG | DD195: CSTJRHMCB315BH | DE195: CSTJRHMCB350G | DF195: CSTJRHMCB350RG | DG195: CSTJRHMCB350BHG | DH195: CSTJRHMCB420G | DI195: CSTJRHMCB285G | DJ195: CSTJRHMCB285BHG | DK195: CSTJRHMCB375BG | DL195: CSTJRHMCB375BHG | DO195: CSTJRHMCB900G | DP195: CSTJRHHOE165G | DQ195: CSTJRHHOE280TG | DR195: CSTJRHHOE280BHG | DS195: CSTJRHHOE280SOLIDF | DU195: CSTJRHHOE320G | DV195: CSTJRHHOE342G | DX195: CSTJRHHOE275DBLG | DZ195: CSTJRHHOE326BHG | EA195: CSTJRHHOE580GA | EB195: CSTJRHHOE580GLV | EC195: CSTJRHHOE518G | ED195: CSTJRHHOE518DBLG | EE195: CSTJRHHOE468G | EG195: CSTJRHHOE918G | EH195: CSTJRHHOE595G | EI195: CSTJRHHOE165AG | EK195: CSTJRHHOE555G | EL195: CSTJRHHOE700G | EM195: CSTJRHHOE465G | EN195: CSTJRHHOE360G | EP195: CSTJRHHOE399G | EQ195: CSTJRHHOE470G | ES195: CSTJRHHOE525G | ET195: CSTJRHHOE525GLV | EU195: CSTJRHHOE525GV | EV195: CSTJRHHOE525DBLG | EW195: CSTJRHHOE525DBLVG | EZ195: CSTJRHHOE410G | FA195: CSTJRHHOE698G | FC195: CSTJRHKY206C | FD195: CSTJRHKY510C | FE195: CSTJRHKY316G | FF195: CSTJRHKY398G | FG195: CSTJRHKY328G | FH195: CSTJRHKY410G | FI195: CSTJRHKY460-5AG | FJ195: CSTJRHKY460-5BG | FK195: CSTJRHKY460-5CG | FL195: CSTJRHKY460-5DG | FM195: CSTJRHKY460-5EG | FN195: CSTJRHKY460-5FG | FO195: CSTJRHKY426-6AG | FP195: CSTJRHKY426-6BG | FQ195: CSTJRHKY426-6CG | FR195: CSTJRHKY426-6DG | FS195: CSTJRHKY426-6EG | FT195: CSTJRHKY426-6FG | FU195: CSTJRHKY328G | FV195: CSTJRHKY550G | FW195: CSTJRHKY46011G | FX195: CSTJRHDBI12G | FY195: CSTJRHDBI12AG | FZ195: CSTJRHKY230G | GA195: CSTJRHKY230SG | GB195: CSTJRHKY210G | GC195: CSTJRHKY215G | GY195: CSTJRHKY206C | HA195: CSTJRHKY465G | HU195: CSTJRHR4215C | HW195: CSTJRHR328710V-G | ID195: MTO | IE195: MTO | IF195: MTO | IG195: MTO | IH195: CSTJBS1072SAN | IS195: CSTJBS1123WT | IZ195: MTO | JA195: CSTJBS1140SANC | JB195: MTO | JC195: MTO | JF195: MTO | JG195: MTO | JI195: CSTJBS1150STM | JJ195: CSTJBS1150SAN | JM195: MTO | JN195: MTO | JS195: CSTJBS1220C | JY195: CSTJBS2072G | KB195: CSTJBS2150G | KH195: CSTJBS3070NG | KJ195: CSTJBS3080VG | KK195: MTO | KL195: CSTJBS3080VG | KM195: MTO | KN195: CSTJBS3080VG | LW195: CSTJBS3300G | MI195: CSTJBS4073G | MJ195: CSTJBS4075G | ML195: CSTJBS4200G | MW195: CSTJBS4315G
B196: NetSuite Product ID (Curb Box) | C196: Product ID | D196: ID | EN196: CSTJRHHOE360CB | EP196: CSTJRHHOE399CB | EQ196: CSTJRHHOE470CB | ES196: CSTJRHHOE525CB | ET196: CSTJRHHOE525CB | EU196: CSTJRHHOE525CB | EV196: CSTJRHHOE525DBLCB | EW196: CSTJRHHOE525DBLCB | HA196: CSTJRHKY465CB | HW196: CSTJRHR328710V-CB | KI196: CSTJBS3080CP | KJ196: CSTJBS3080CP | KK196: CSTJBS3080CP | KL196: CSTJBS3080CP | KM196: CSTJBS3080CP | KN196: CSTJBS3080CP | LW196: CSTJBS3300CP
B197: Casting Quick Reference | C197: Equivalent 1 | L197: JBS 1144 | M197: JBS 1144 | N197: JBS 1144 | O197: JBS 1144 | P197: JBS 1144 | Q197: JBS 1144 | AI197: JBS 1140 | AJ197: JBS 1140 | AK197: JBS 1140 | AL197: JBS 1140 | AM197: JBS 1140 | AN197: JBS 1140 | AO197: JBS 1140 | AP197: JBS 1140 | AQ197: JBS 1140 | AR197: JBS 1140 | AS197: JBS 1140 | AT197: JBS 1140 | AU197: JBS 1140 | AV197: JBS 1140 | AW197: JBS 1140 | AX197: JBS 1140 | BK197: JBS 1150 | BL197: JBS 1150 | BM197: JBS 1150 | BO197: JBS 1150 | BP197: JBS 1150 | BQ197: JBS 1150 | BR197: JBS 1150 | BS197: JBS 1150 | BT197: JBS 1150 | BU197: JBS 1150 | BV197: JBS 1150 | BW197: JBS 1150 | BX197: JBS 1150 | BY197: JBS 1150 | CM197: JBS 1072 | CN197: JBS 1072 | CO197: JBS 1072 | DB197: JBS 2140 | DJ197: JBS 2272 | DK197: JBS 2150 | DL197: JBS 2280 | DQ197: JBS 4075 | EA197: JBS 4275 | EB197: JBS 4275 | EC197: JBS 4254 | EE197: JBS 4315 | EF197: JBS 4315 | EH197: JBS 4260 | EL197: JBS 3700 | EN197: JBS 3105 | EO197: JBS 3105 | EQ197: JBS 3106 | ER197: JBS 3106 | ES197: JBS 3080 | ET197: JBS 3080 | EU197: JBS 3080 | EV197: JBS 3080 DBL | EW197: JBS 3080 DBL | FB197: JBS 3070 | FC197: JBS 1077 | FD197: JBS 1123 Mod. | FE197: BOTTOMS DBI 1 | FF197: BOTTOMS DBI 2 | FG197: BOTTOMS DBI 3 | FH197: BOTTOMS DBI 4 | FI197: BOTTOMS DBI 5 | FJ197: BOTTOMS DBI 5 | FK197: BOTTOMS DBI 5 | FL197: BOTTOMS DBI 5 | FM197: BOTTOMS DBI 5 | FN197: BOTTOMS DBI 5 | FO197: BOTTOMS DBI 6 | FP197: BOTTOMS DBI 6 | FQ197: BOTTOMS DBI 6 | FR197: BOTTOMS DBI 6 | FS197: BOTTOMS DBI 6 | FT197: BOTTOMS DBI 6 | FU197: BOTTOMS DBI 7 | FV197: JBS 2501D | FW197: JBS 3411 | FX197: JBS 5830 | FY197: JBS 5830 BOLTED | FZ197: JBS 3413 | GA197: JBS 3413D | GB197: JBS 2214 | GC197: JBS 2215 | GP197: BOTTOMS | GQ197: BOTTOMS | GR197: BOTTOMS | GS197: BOTTOMS | GT197: BOTTOMS | GU197: BOTTOMS | GV197: BOTTOMS | GW197: BOTTOMS | GX197: JBS 3450 | GY197: JBS 1077 | GZ197: JBS 3450 | HA197: JBS 3085 | IF197: HOE MCS-288 | IG197: HOE MCS-288 | IH197: HOE MCS-288 | II197: HOE MCS-288 | IJ197: HOE KY-206 | IT197: HOE KY-510 | IV197: HOE KY-510 | IZ197: HOE MC-315 | JA197: HOE MC-315 | JB197: HOE MC-315 | JC197: HOE MC-315 | JD197: HOE WT-315-SAN | JE197: HOE WT-315-SAN | JF197: HOE MC-260 | JG197: HOE MC-260 | JH197: HOE MC-375 | JI197: HOE MC-375 | JJ197: HOE MC-375 | JK197: HOE WT-375-SAN | JT197: HOE MC-375 | JU197: HOE MC-375 | JV197: HOE MC-375 SS | JW197: HOE MC-375 SS | JX197: HOE WT-375-SAN | KA197: HOE MCB-315-B | KB197: HOE MCB-375-B | KC197: HOE KY-210 | KD197: HOE KY-215 | KG197: HOE MCB-285-BH | KH197: EJ 4510 | KI197: HOE 525 | KJ197: HOE 525 | KK197: HOE 525 | KL197: HOE 525 | KM197: HOE 525 | KN197: HOE 525 | KO197: HOE KY-465 | LH197: HOE 360 | LI197: HOE 470 | LJ197: HOE 470 | LT197: HOE 360 | LU197: HOE 470 | MD197: HOE KY-460-11 | ME197: HOE KY-240 | MF197: HOE KY-345 | MG197: HOE-700 | MJ197: HOE-280T | MP197: HOE-518 | MQ197: HOE-595 | MR197: HOE-580 | MS197: HOE-580 | MW197: HOE 468 | MZ197: HOE DBI 12 | NA197: HOE DBI 12A
B198: Casting Quick Reference | C198: Equivalent 2 | BK198: JBS 1247DM | BL198: JBS 1247DM | BM198: JBS 1247DM | BO198: JBS 1247DM | BP198: JBS 1247DM | BQ198: JBS 1247DM | BR198: JBS 1247DM | BS198: JBS 1247DM | BT198: JBS 1247DM | BU198: JBS 1247DM | BV198: JBS 1247DM | BW198: JBS 1247DM | BX198: JBS 1247DM | BY198: JBS 1247DM
B199: Casting Quick Reference | C199: Equivalent 3
B200: Municipal or State Spec. | C200: Specification | EL200: LEX SI TY B | EN200: LOU SINGLE CI | EO200: LOU SINGLE CI | EQ200: LOU DOUBLE CI | ER200: LOU DOUBLE CI | ES200: LEX TYPE D CI | FB200: BGMU CI | FC200: KY MH TY 1 | FD200: KY MH TY 2 | FE200: KY DBI TY 1 | FF200: KY DBI TY 2 | FG200: KY DBI TY 3 | FH200: KY DBI TY 4 | FI200: KY DBI TY 5 | FJ200: KY DBI TY 5 | FK200: KY DBI TY 5 | FL200: KY DBI TY 5 | FM200: KY DBI TY 5 | FN200: KY DBI TY 5 | FO200: KY DBI TY 6 | FP200: KY DBI TY 6 | FQ200: KY DBI TY 6 | FR200: KY DBI TY 6 | FS200: KY DBI TY 6 | FT200: KY DBI TY 6 | FU200: KY DBI TY 7 | FV200: KY DBI TY 10 | FW200: KY DBI TY 11 | FX200: KY DBI TY 12 | FY200: KY DBI TY 12A | FZ200: KY DBI TY 13/16G | GA200: KY DBI TY 13/16S | GB200: KY DBI TY 14 | GC200: KY DBI TY 15 | GF200: 12"-18" SL/FL Headwall | GG200: 12"-18" SL/FL Headwall | GH200: 24" SL/FL Headwall | GI200: 24" SL/FL Headwall | GJ200: 30"-36" SL/FL Headwall | GK200: 30"-36" SL/FL Headwall | GL200: 42"-48" SL/FL Headwall | GM200: 42"-48" SL/FL Headwall | GN200: 54"-60" SL/FL Headwall | GO200: 54"-60" SL/FL Headwall | GP200: 15"-18" SBO TY 1 | GQ200: 24" SBO TY 1 | GR200: 18" SFBIO | GS200: 24" SFBIO | GT200: 30" SFBIO | GU200: 36" SFBIO | GV200: SBIO TY 1 | GW200: SBIO TY 2 | GX200: KY CMBBI | GY200: KY CBI TY A | GZ200: KY CBI TY B | HA200: KY CBI TY F | ID200: TDOT Type 3 | IE200: TDOT Type 3 | IJ200: KDOT Type 1 | IO200: LOU KY MH | IP200: LOU KY MH | IS200: NASHVILLE, TN MH | IT200: KY MH TY 2 | IU200: KY MH TY 2 | IV200: KY MH TY 2 | IW200: KY MH TY 2 | KC200: KY DBI TY 14 | KD200: KY DBI TY 15 | KH200: BGMU SCI | KO200: KY CBI TY F | LH200: LOU SINGLE CI | LI200: LOU DOUBLE CI | LJ200: LOU DOUBLE CI | LL200: TDOT Std. #12 | LM200: TDOT Std. Type 12 | LN200: TDOT Std. Type 13 | LO200: TDOT Std. Type 41 | LP200: TDOT Std. Type 41 | LQ200: TDOT Std. Type 31 | LR200: TDOT Std. Type 31 | LS200: TDOT Std. Type 31 | LV200: TDOT #10LPC | MD200: KY DBI TY 11 | ME200: KY DBI TY 13/16G | MF200: KY CBI TY B | MG200: LFUCG TY B SI | ML200: TDOT STD. #42 | MM200: TDOT STD. #42 | MN200: TDOT STD. #42 | MR200: LOU DOUBLE SI | MS200: LOU DOUBLE SI | MZ200: KY DBI TY 12 | NA200: KY DBI TY 12A
B201: Municipal or State Spec. | C201: Specification | MF201: KY CMBBI
B202: Municipal or State Spec. | C202: Specification
B205: Table 4 - Pipe Connection & Pipe Seal Product Data
C206: Cell
C207: Reference | D207: Unit | E207: Box Culvert (Grout) | F207: Link Seal (Others) | G207: Doghouse (Grout) | H207: 4" HDPE/PVC (Grout) | I207: 6" HDPE/PVC (Grout) | J207: 8" HDPE (Grout) | K207: 10" HDPE (Grout) | L207: 12" RCP/HDPE (Grout) | M207: 15" RCP/HDPE (Grout) | N207: 18" RCP/HDPE (Grout) | O207: 21" RCP (Grout) | P207: 24" RCP/HDPE (Grout) | Q207: 30" RCP/HDPE (Grout) | R207: 36" RCP/HDPE (Grout) | S207: 42" RCP/HDPE (Grout) | T207: 48" RCP/HDPE (Grout) | U207: 54" RCP/HDPE (Grout) | V207: 60" RCP/HDPE (Grout) | W207: 66" RCP/HDPE (Grout) | X207: 72" RCP/HDPE (Grout) | Y207: 78" RCP (Grout) | Z207: 84" RCP (Grout) | AA207: 90" RCP (Grout) | AB207: 96" RCP (Grout) | AC207: 8" CMP/PVC (Grout) | AD207: 10" CMP/PVC (Grout) | AE207: 12" CMP/PVC (Grout) | AF207: 15" CMP/PVC (Grout) | AG207: 18" CMP/PVC (Grout) | AH207: 21" CMP/PVC (Grout) | AI207: 24" CMP/PVC (Grout) | AJ207: 30" CMP (Grout) | AK207: 36" CMP (Grout) | AL207: 42" CMP (Grout) | AM207: 48" CMP (Grout) | AN207: 54" CMP (Grout) | AO207: 60" CMP (Grout) | AP207: 72" CMP (Grout) | AQ207: 14"x23" HERCP (Grout) | AR207: 19"x30" HERCP (Grout) | AS207: 22"x34" HERCP (Grout) | AT207: 24"x38" HERCP (Grout) | AU207: 27"x42" HERCP (Grout) | AV207: 29"x45" HERCP (Grout) | AW207: 32"x49" HERCP (Grout) | AX207: 34"x53" HERCP (Grout) | AY207: 38"x60" HERCP (Grout) | AZ207: 43"x68" HERCP (Grout) | BA207: 48"x76" HERCP (Grout) | BB207: 4" PVC/DI Boot | BC207: 6" PVC/DI Boot | BD207: 8" PVC Boot | BE207: 8" DI Boot | BF207: 10" PVC/DI Boot | BG207: 12" PVC/DI Boot | BH207: 14" DI Boot | BI207: 15" PVC Boot | BJ207: 16" DI Boot | BK207: 18" PVC Boot | BL207: 18" DI Boot | BM207: 20" DI Boot | BN207: 21" PVC Boot | BO207: 24" PVC Boot | BP207: 24" DI Boot | BQ207: 27" PVC Boot | BR207: 30" PVC/DI Boot | BS207: 36" PVC/DI Boot | BT207: 42" PVC Boot | BU207: 48" PVC Boot | BV207: 4" PVC A-Lok | BW207: 4" DI A-Lok | BX207: 6" PVC A-Lok | BY207: 6" DI A-Lok | BZ207: 8" PVC A-Lok | CA207: 8" DI A-Lok | CB207: 10" PVC A-Lok | CC207: 10" DI A-Lok | CD207: 12" PVC A-Lok | CE207: 12" DI A-Lok | CF207: 15" PVC A-Lok | CG207: 18" PVC A-Lok | CH207: 21" PVC A-Lok | CI207: 24" PVC A-Lok | CJ207: 30" PVC/DI A-Lok | CK207: 36" PVC/DI A-Lok | CL207: 42" PVC A-Lok | CM207: 48" PVC A-Lok | CN207: 8" N-12 Boot W/Adapter | CO207: 10" N-12 Boot W/Adapter | CP207: 12" N-12 Boot W/Adapter | CQ207: 15" N-12 Boot W/Adapter | CR207: 18" N-12 Boot W/Adapter | CS207: 24" N-12 Boot W/Adapter (60" MH Min.) | CT207: 30" N-12 Boot W/Adapter (72" MH Min.) | CU207: 36" N-12 Boot W/Adapter (84" MH Min.) | CV207: 42" N-12 Boot W/Adapter (96" MH Min.) | CW207: Blank Slot 1 (A-Lok) | CX207: Blank Slot 2 (A-Lok) | CY207: Blank Slot 3 (A-Lok) | CZ207: Blank Slot 4 (A-Lok) | DA207: Blank Slot 5 (A-Lok) | DB207: Blank Slot 6 (A-Lok)
B208: Pipe Seal Cost | C208: Pipe Seal Cost | D208: Dollar | BB208: 41 | BC208: 28 | BD208: 28 | BE208: 35 | BF208: 49 | BG208: 49 | BH208: 92 | BI208: 92 | BJ208: 114 | BK208: 133 | BL208: 137 | BM208: 144 | BN208: 144 | BO208: 175 | BP208: 185 | BQ208: 200 | BR208: 241 | BS208: 269 | BT208: 393 | BU208: 825 | BV208: 29 | BW208: 29 | BX208: 29 | BY208: 29 | BZ208: 31 | CA208: 31 | CB208: 44 | CC208: 44 | CD208: 52 | CE208: 52 | CF208: 80 | CG208: 99 | CH208: 116 | CI208: 130 | CJ208: 269 | CK208: 327 | CL208: 380 | CM208: 434 | CN208: 59.57 | CO208: 73.9 | CP208: 79.09 | CQ208: 150.1 | CR208: 180.88 | CS208: 243.8 | CT208: 296.23 | CU208: 351.1 | CV208: 611.57
B209: Model Number | C209: Product ID | D209: Model | E209: Grout | F209: Link Seal (By Others) | G209: Grout | H209: Grout | I209: Grout | J209: Grout | K209: Grout | L209: Grout | M209: Grout | N209: Grout | O209: Grout | P209: Grout | Q209: Grout | R209: Grout | S209: Grout | T209: Grout | U209: Grout | V209: Grout | W209: Grout | X209: Grout | Y209: Grout | Z209: Grout | AA209: Grout | AB209: Grout | AC209: Grout | AD209: Grout | AE209: Grout | AF209: Grout | AG209: Grout | AH209: Grout | AI209: Grout | AJ209: Grout | AK209: Grout | AL209: Grout | AM209: Grout | AN209: Grout | AO209: Grout | AP209: Grout | AQ209: Grout | AR209: Grout | AS209: Grout | AT209: Grout | AU209: Grout | AV209: Grout | AW209: Grout | AX209: Grout | AY209: Grout | AZ209: Grout | BA209: Grout | BB209: 8 QRS PSX:DD | BC209: 12-06 NYLO DRIVE | BD209: 12-08 NYLO DRIVE | BE209: 12M NYLO DRIVE | BF209: 16Y NYLO DRIVE | BG209: 16M NYLO DRIVE | BH209: S206-18L | BI209: S206-18L | BK209: S206-22 | BN209: S206-26 | BO209: S206-28 | BP209: S206-30 | BQ209: S206-32 | BR209: S206-36 | BS209: S206-42 | BT209: S206-48 | BU209: S206-54L | BV209: Model #140/150 | BW209: Model #160/165 | BX209: Model #200/210 | BY209: Model #225 | BZ209: Model #285 | CA209: Model #300/310 | CB209: Model #350 | CC209: Model #370 | CD209: Model #410 | CE209: Model #425 | CF209: Model #490/500 | CG209: Model #600/610 | CH209: Model #710 | CI209: Model #800/805 | CJ209: Model #1040 | CK209: Model #1235/1240 | CL209: Model #1430 | CM209: Model #1630/1640 | CN209: S106-12 / CGA-8A | CO209: S106-16A / CGA-10A | CP209: S106-16T / CGA-12A | CQ209: S206-20L / CGA-15A | CR209: S206-24L / CGA-18A | CS209: S206-30L-32 / CGA-24A | CT209: S206-38L / CGA-30A | CU209: S206-44L-46 / CGA-36A | CV209: S206-52L / CGA-42A
B210: NetSuite Product ID | C210: Product ID | D210: ID
... 882 more rows

Sheet Stack-It Export
A1: Stack-IT Initial Export Directions: See SOP. Enter all MTO structures and structure data first in Stack-IT. From the "view" screen in stack-it, left click on the Structure ID header (All structures should show a blue fill color), right click on Structure ID header, select "Copy Extended to Clipboard", Select OK. In the excel "Stack-IT Export" tab, right click on cell A4, paste data into cell A4.
A2: Stack-IT Export of Updates or Changes: See SOP. Update all MTO structures and structure data first in Stack-IT. Create another version of the take-off in in excel
A3: QuoteID | B3: JobName1 | C3: JobName2 | D3: Bid Item ID | E3: ID | F3: Spec | G3: Type | H3: Size [in] | I3: Rim [ft] | J3: Reducer [ft] | K3: Inv 1 Elev [ft] | L3: Inv 1 Deg | M3: Inv 1 Offset [in] | N3: Inv 1 Pipe | O3: Inv 1 Dia [in] | P3: Inv 1 Conn | Q3: Inv 2 Elev [ft] | R3: Inv 2 Deg | S3: Inv 2 Offset [in] | T3: Inv 2 Pipe | U3: Inv 2 Dia [in] | V3: Inv 2 Conn | W3: Inv 3 Elev [ft] | X3: Inv 3 Deg | Y3: Inv 3 Offset [in] | Z3: Inv 3 Pipe | AA3: Inv 3 Dia [in] | AB3: Inv 3 Conn | AC3: Inv 4 Elev [ft] | AD3: Inv 4 Deg | AE3: Inv 4 Offset [in] | AF3: Inv 4 Pipe | AG3: Inv 4 Dia [in] | AH3: Inv 4 Conn | AI3: Inv 5 Elev [ft] | AJ3: Inv 5 Deg | AK3: Inv 5 Offset [in] | AL3: Inv 5 Pipe | AM3: Inv 5 Dia [in] | AN3: Inv 5 Conn | AO3: Inv 6 Elev [ft] | AP3: Inv 6 Deg | AQ3: Inv 6 Offset [in] | AR3: Inv 6 Pipe | AS3: Inv 6 Dia [in] | AT3: Inv 6 Conn | AU3: Inv 7 Elev [ft] | AV3: Inv 7 Deg | AW3: Inv 7 Offset [in] | AX3: Inv 7 Pipe | AY3: Inv 7 Dia [in] | AZ3: Inv 7 Conn | BA3: Inv 8 Elev [ft] | BB3: Inv 8 Deg | BC3: Inv 8 Offset [in] | BD3: Inv 8 Pipe | BE3: Inv 8 Dia [in] | BF3: Inv 8 Conn | BG3: Sump [ft] | BH3: Rim to Invert [ft] | BI3: Structure Price | BJ3: Rim1 Part | BK3: Rim1 Height [in] | BL3: Top1 Part | BM3: Top1 Height [in] | BN3: Wall [in] | BO3: Floor [in] | BP3: Extended Floor [in] | BQ3: Invert Channel | BR3: Drop 1 Height [ft] | BS3: Drop 2 Height [ft] | BT3: Steps | BU3: Joint Count | BV3: Joint Perimeter [ft] | BW3: Joint Sealant | BX3: Joint Wrap | BY3: Admixture | BZ3: Coating Int Type | CA3: Coating Int Qty | CB3: Coating Ext Type | CC3: Coating Ext Qty | CD3: Overall Structure Ht [ft] | CE3: Structure Weight (Net) [lb] | CF3: Structure Volume (Net) [cuyd] | CG3: Ancillary | CH3: Status

Sheet Pipe Input
C1: Data Collection | E1: Formula - Unlock Password: I-Cast | I1: Hidden Items. Unide rows on the quote to use these items.
C2: Select RCP/HERCP Market Location: | E2: Price Per LF (Kentucky & Evansville) | I2: Select Offloading (Up to 60" Round): | K2: No Offloading | AL2: =". Estimated "&ROUNDUP(SUM(I4:I33),0)&" Loads with 60"" and Under" -> . Estimated 0 Loads with 60" and Under
B3: Line Item # | C3: Bid Item # | D3: Pipe Specified | E3: Pipe Type Quoted | F3: Alternate Status | G3: Pipe Selection | H3: Pipe Size | I3: # loads Eligible for offloading | J3: Line Item Description | K3: LF Selling Price | L3: List Price | M3: RCP List Price | N3: HERCP List Price | O3: Markup | P3: LF Selling Price | Q3: Freight Per LF | R3: Freight Per LF | S3: Extended Total RCP Price | T3: RCP % of Project | U3: Total RCP Weight | V3: Extended Total HERCP Price | W3: HERCP % of Project | X3: Total HERCP Weight | Y3: Extended Total HDPE Price | Z3: HDPE % of Project | AA3: HDPE % of a Full Load | AB3: HDPE Full Load Fraction | AC3: Extended Total CMP Price | AD3: Freight Cost Per LF (Netsuite) | AE3: Line Item Freight Cost Total | AF3: Product ID | AG3: Eligible for Offloading | AH3: Pipe Weight | AI3: # of Sections | AJ3: Exact Quantity | AK3: Quantity | AM3: INPUT PIPE RUN LENGTHS IN TABLE BELOW
B4: 1 | F4: =IF(AND(OR(D4="HDPE",D4="CMP"),E4="RCP"),"Alternate","") ->  | I4: =IF(AND(AG4="Yes",G4<>""),(U4/45000),"") ->  | J4: =IFERROR(IF(E4="RCP",INDEX(Database!$E$363:$BE$363,MATCH('Pipe Input'!$J$3,Database!$C$363:$BE$363,0),MATCH('Pipe Input'!G4,Database!$E$361:$BE$361,0)),IF(E4="HERCP",INDEX(Database!$E$405:$S$405,MATCH('Pipe Input'!$J$3,Database!$C$405:$S$405,0),MATCH('Pipe Input'!G4,Database!$E$402:$S$402,0)),IF(E4="HDPE",INDEX(Database!$E$427:$S$427,MATCH('Pipe Input'!$J$3,Database!$C$427:$S$427,0),MATCH('Pipe Input'!G4,Database!$E$425:$S$425,0)),IF(E4="CMP",INDEX(Database!$E$444:$AS$444,MATCH('Pipe Input'!$J$3,Database!$C$444:$AS$444,0),MATCH('Pipe Input'!G4,Database!$E$442:$AS$442,0)),"")))),"") ->  | K4: =IFERROR(IF(AK4>0,(ROUNDUP((((L4+Q4))/(1-O4/100)),2)),""), "") ->  | L4: =IFERROR(IF(E4="RCP",M4,IF(E4="HERCP",N4,IF(E4="HDPE",INDEX(Database!$E$431:$S$431,MATCH('Pipe Input'!$L$3,Database!$C$431:$S$431,0),MATCH('Pipe Input'!G4,Database!$E$425:$S$425,0)),IF(E4="CMP",INDEX(Database!$E$449:$AS$449,MATCH('Pipe Input'!$L$3,Database!$C$449:$AS$449,0),MATCH('Pipe Input'!G4,Database!$E$442:$AS$442,0)),"")))),"") ->  | M4: =IF(E4="RCP",INDEX(Database!$E$368:$BE$372,MATCH('Pipe Input'!$E$2,Database!$C$368:$C$372,0),MATCH('Pipe Input'!G4,Database!$E$361:$BE$361,0)),"") ->  | N4: =IF(E4="HERCP",INDEX(Database!$E$409:$S$413,MATCH('Pipe Input'!$E$2,Database!$C$409:$C$413,0),MATCH('Pipe Input'!G4,Database!$E$402:$S$402,0)),"") ->  | O4: =IF(E4="RCP",Summary!$AT$5,IF(E4="HERCP",Summary!$AT$34,IF(E4="HDPE",Summary!$AT$51,IF(E4="CMP",Summary!$AT$73, "")))) ->  | P4: =IFERROR(K4,"") ->  | Q4: =IF(AK4>0,R4, 0) -> 0 | R4: =IFERROR(IF(E4="RCP",((T4*S37)/(AI4*8)),IF(E4="HERCP",((W4*V37)/(AI4*8)),IF(E4="HDPE",((Z4*Y37)/(AI4*20)),0))), "") -> 0 | S4: =IFERROR(IF(E4="RCP",(K4*AK4), ""), "") ->  | T4: =IFERROR(IF(E4="RCP",(U4/U37), ""), "") ->  | U4: =IFERROR(IF(E4="RCP",AI4*8*AH4, 0), 0) -> 0 | V4: =IFERROR(IF(E4="HERCP",(K4*AK4), ""), "") ->  | W4: =IFERROR(IF(E4="HERCP",(X4/X37), ""), "") ->  | X4: =IFERROR(IF(E4="HERCP",AI4*8*AH4, 0), 0) -> 0 | Y4: =IFERROR(IF(E4="HDPE",(K4*AK4), ""), "") ->  | Z4: =IFERROR(IF(E4="HDPE",(AA4/AA37), ""), "") ->  | AA4: =IFERROR(IF(E4="HDPE",(AB4*AI4), ""), "") ->  | AB4: =IFERROR(IF(E4="HDPE",INDEX(Database!$E$434:$S$434,MATCH('Pipe Input'!$AB$3,Database!$C$434:$S$434,0),MATCH('Pipe Input'!G4,Database!$E$425:$S$425,0)),""), "") ->  | AC4: =IFERROR(IF(E4="CMP",(K4*AK4), ""), "") ->  | AD4: =IF(AE4<>0,(AE4/AK4),"") ->  | AE4: =IF(E4="RCP",(T4*$AE$35),IF(E4="HERCP",(W4*$AE$36),0)) -> 0 | AF4: =IF(E4="RCP",INDEX(Database!$E$377:$BE$377,MATCH('Pipe Input'!$AF$3,Database!$C$377:$BE$377,0),MATCH('Pipe Input'!G4,Database!$E$361:$BE$361,0)),IF(E4="HERCP",INDEX(Database!$E$418:$S$418,MATCH('Pipe Input'!$AF$3,Database!$C$418:$S$418,0),MATCH('Pipe Input'!G4,Database!$E$402:$S$402,0)),"")) ->  | AG4: =IF(AND(E4="RCP",J4<>""),INDEX(Database!$E$379:$BE$379,MATCH('Pipe Input'!$AG$3,Database!$C$379:$BE$379,0),MATCH('Pipe Input'!G4,Database!$E$361:$BE$361,0)),"No") -> No | AH4: =IFERROR(IF(E4="RCP",INDEX(Database!$E$374:$BE$374,MATCH('Pipe Input'!$AH$3,Database!$C$374:$BE$374,0),MATCH('Pipe Input'!G4,Database!$E$361:$BE$361,0)),IF(E4="HERCP",INDEX(Database!$E$415:$S$415,MATCH('Pipe Input'!$AH$3,Database!$C$415:$S$415,0),MATCH('Pipe Input'!G4,Database!$E$402:$S$402,0)),IF(E4="HDPE",INDEX(Database!$E$432:$S$432,MATCH('Pipe Input'!$AH$3,Database!$C$432:$S$432,0),MATCH('Pipe Input'!G4,Database!$E$425:$S$425,0)),IF(E4="CMP",INDEX(Database!$E$450:$AS$450,MATCH('Pipe Input'!$AH$3,Database!$C$450:$AS$450,0),MATCH('Pipe Input'!G4,Database!$E$442:$AS$442,0)),"")))),"") ->  | AI4: =IF(OR(E4="RCP",E4="HERCP"),(ROUNDUP(AJ4/8,0)),IF(OR(E4="HDPE",E4="CMP"),(ROUNDUP(AJ4/20,0)),0)) -> 0 | AJ4: =SUM(AM4:AAL4) -> 0 | AK4: =IF(OR(E4="RCP",E4="HERCP"),(AI4*8),IF(OR(E4="HDPE",E4="CMP"),(AI4*20),0)) -> 0
B5: =B4+1 -> 2 | F5: =IF(AND(OR(D5="HDPE",D5="CMP"),E5="RCP"),"Alternate","") ->  | J5: =IFERROR(IF(E5="RCP",INDEX(Database!$E$363:$BE$363,MATCH('Pipe Input'!$J$3,Database!$C$363:$BE$363,0),MATCH('Pipe Input'!G5,Database!$E$361:$BE$361,0)),IF(E5="HERCP",INDEX(Database!$E$405:$S$405,MATCH('Pipe Input'!$J$3,Database!$C$405:$S$405,0),MATCH('Pipe Input'!G5,Database!$E$402:$S$402,0)),IF(E5="HDPE",INDEX(Database!$E$427:$S$427,MATCH('Pipe Input'!$J$3,Database!$C$427:$S$427,0),MATCH('Pipe Input'!G5,Database!$E$425:$S$425,0)),IF(E5="CMP",INDEX(Database!$E$444:$AS$444,MATCH('Pipe Input'!$J$3,Database!$C$444:$AS$444,0),MATCH('Pipe Input'!G5,Database!$E$442:$AS$442,0)),"")))),"") ->  | K5: =IFERROR(IF(AK5>0,(ROUNDUP((((L5+Q5))/(1-O5/100)),2)),""), "") ->  | L5: =IFERROR(IF(E5="RCP",M5,IF(E5="HERCP",N5,IF(E5="HDPE",INDEX(Database!$E$431:$S$431,MATCH('Pipe Input'!$L$3,Database!$C$431:$S$431,0),MATCH('Pipe Input'!G5,Database!$E$425:$S$425,0)),IF(E5="CMP",INDEX(Database!$E$449:$AS$449,MATCH('Pipe Input'!$L$3,Database!$C$449:$AS$449,0),MATCH('Pipe Input'!G5,Database!$E$442:$AS$442,0)),"")))),"") ->  | M5: =IF(E5="RCP",INDEX(Database!$E$368:$BE$372,MATCH('Pipe Input'!$E$2,Database!$C$368:$C$372,0),MATCH('Pipe Input'!G5,Database!$E$361:$BE$361,0)),"") ->  | N5: =IF(E5="HERCP",INDEX(Database!$E$409:$S$413,MATCH('Pipe Input'!$E$2,Database!$C$409:$C$413,0),MATCH('Pipe Input'!G5,Database!$E$402:$S$402,0)),"") ->  | O5: =IF(E5="RCP",Summary!$AT$5,IF(E5="HERCP",Summary!$AT$34,IF(E5="HDPE",Summary!$AT$51,IF(E5="CMP",Summary!$AT$73, "")))) ->  | P5: =IFERROR(K5,"") ->  | Q5: =IF(AK5>0,R5, 0) -> 0 | R5: =IFERROR(IF(E5="RCP",((T5*S38)/(AI5*8)),IF(E5="HERCP",((W5*V38)/(AI5*8)),IF(E5="HDPE",((Z5*Y38)/(AI5*20)),0))), "") -> 0 | U5: =IFERROR(IF(E5="RCP",AI5*8*AH5, 0), 0) -> 0 | X5: =IFERROR(IF(E5="HERCP",AI5*8*AH5, 0), 0) -> 0 | Y5: =IFERROR(IF(E5="HDPE",(K5*AK5), ""), "") ->  | Z5: =IFERROR(IF(E5="HDPE",(AA5/AA38), ""), "") ->  | AA5: =IFERROR(IF(E5="HDPE",(AB5*AI5), ""), "") ->  | AB5: =IFERROR(IF(E5="HDPE",INDEX(Database!$E$434:$S$434,MATCH('Pipe Input'!$AB$3,Database!$C$434:$S$434,0),MATCH('Pipe Input'!G5,Database!$E$425:$S$425,0)),""), "") ->  | AC5: =IFERROR(IF(E5="CMP",(K5*AK5), ""), "") ->  | AD5: =IF(AE5<>0,(AE5/AK5),"") ->  | AE5: =IF(E5="RCP",(T5*$AE$35),IF(E5="HERCP",(W5*$AE$36),0)) -> 0 | AF5: =IF(E5="RCP",INDEX(Database!$E$377:$BE$377,MATCH('Pipe Input'!$AF$3,Database!$C$377:$BE$377,0),MATCH('Pipe Input'!G5,Database!$E$361:$BE$361,0)),IF(E5="HERCP",INDEX(Database!$E$418:$S$418,MATCH('Pipe Input'!$AF$3,Database!$C$418:$S$418,0),MATCH('Pipe Input'!G5,Database!$E$402:$S$402,0)),"")) ->  | AG5: =IF(AND(E5="RCP",J5<>""),INDEX(Database!$E$379:$BE$379,MATCH('Pipe Input'!$AG$3,Database!$C$379:$BE$379,0),MATCH('Pipe Input'!G5,Database!$E$361:$BE$361,0)),"No") -> No | AH5: =IFERROR(IF(E5="RCP",INDEX(Database!$E$374:$BE$374,MATCH('Pipe Input'!$AH$3,Database!$C$374:$BE$374,0),MATCH('Pipe Input'!G5,Database!$E$361:$BE$361,0)),IF(E5="HERCP",INDEX(Database!$E$415:$S$415,MATCH('Pipe Input'!$AH$3,Database!$C$415:$S$415,0),MATCH('Pipe Input'!G5,Database!$E$402:$S$402,0)),IF(E5="HDPE",INDEX(Database!$E$432:$S$432,MATCH('Pipe Input'!$AH$3,Database!$C$432:$S$432,0),MATCH('Pipe Input'!G5,Database!$E$425:$S$425,0)),IF(E5="CMP",INDEX(Database!$E$450:$AS$450,MATCH('Pipe Input'!$AH$3,Database!$C$450:$AS$450,0),MATCH('Pipe Input'!G5,Database!$E$442:$AS$442,0)),"")))),"") ->  | AI5: =IF(OR(E5="RCP",E5="HERCP"),(ROUNDUP(AJ5/8,0)),IF(OR(E5="HDPE",E5="CMP"),(ROUNDUP(AJ5/20,0)),0)) -> 0 | AJ5: 0 | AK5: 0
B6: =B5+1 -> 3 | J6: =IFERROR(IF(E6="RCP",INDEX(Database!$E$363:$BE$363,MATCH('Pipe Input'!$J$3,Database!$C$363:$BE$363,0),MATCH('Pipe Input'!G6,Database!$E$361:$BE$361,0)),IF(E6="HERCP",INDEX(Database!$E$405:$S$405,MATCH('Pipe Input'!$J$3,Database!$C$405:$S$405,0),MATCH('Pipe Input'!G6,Database!$E$402:$S$402,0)),IF(E6="HDPE",INDEX(Database!$E$427:$S$427,MATCH('Pipe Input'!$J$3,Database!$C$427:$S$427,0),MATCH('Pipe Input'!G6,Database!$E$425:$S$425,0)),IF(E6="CMP",INDEX(Database!$E$444:$AS$444,MATCH('Pipe Input'!$J$3,Database!$C$444:$AS$444,0),MATCH('Pipe Input'!G6,Database!$E$442:$AS$442,0)),"")))),"") ->  | L6: =IFERROR(IF(E6="RCP",M6,IF(E6="HERCP",N6,IF(E6="HDPE",INDEX(Database!$E$431:$S$431,MATCH('Pipe Input'!$L$3,Database!$C$431:$S$431,0),MATCH('Pipe Input'!G6,Database!$E$425:$S$425,0)),IF(E6="CMP",INDEX(Database!$E$449:$AS$449,MATCH('Pipe Input'!$L$3,Database!$C$449:$AS$449,0),MATCH('Pipe Input'!G6,Database!$E$442:$AS$442,0)),"")))),"") ->  | M6: =IF(E6="RCP",INDEX(Database!$E$368:$BE$372,MATCH('Pipe Input'!$E$2,Database!$C$368:$C$372,0),MATCH('Pipe Input'!G6,Database!$E$361:$BE$361,0)),"") ->  | N6: =IF(E6="HERCP",INDEX(Database!$E$409:$S$413,MATCH('Pipe Input'!$E$2,Database!$C$409:$C$413,0),MATCH('Pipe Input'!G6,Database!$E$402:$S$402,0)),"") ->  | O6: =IF(E6="RCP",Summary!$AT$5,IF(E6="HERCP",Summary!$AT$34,IF(E6="HDPE",Summary!$AT$51,IF(E6="CMP",Summary!$AT$73, "")))) ->  | P6: =IFERROR(K6,"") ->  | Q6: 0 | R6: 0 | U6: 0 | X6: 0 | AB6: =IFERROR(IF(E6="HDPE",INDEX(Database!$E$434:$S$434,MATCH('Pipe Input'!$AB$3,Database!$C$434:$S$434,0),MATCH('Pipe Input'!G6,Database!$E$425:$S$425,0)),""), "") ->  | AE6: 0 | AF6: =IF(E6="RCP",INDEX(Database!$E$377:$BE$377,MATCH('Pipe Input'!$AF$3,Database!$C$377:$BE$377,0),MATCH('Pipe Input'!G6,Database!$E$361:$BE$361,0)),IF(E6="HERCP",INDEX(Database!$E$418:$S$418,MATCH('Pipe Input'!$AF$3,Database!$C$418:$S$418,0),MATCH('Pipe Input'!G6,Database!$E$402:$S$402,0)),"")) ->  | AG6: =IF(AND(E6="RCP",J6<>""),INDEX(Database!$E$379:$BE$379,MATCH('Pipe Input'!$AG$3,Database!$C$379:$BE$379,0),MATCH('Pipe Input'!G6,Database!$E$361:$BE$361,0)),"No") -> No | AH6: =IFERROR(IF(E6="RCP",INDEX(Database!$E$374:$BE$374,MATCH('Pipe Input'!$AH$3,Database!$C$374:$BE$374,0),MATCH('Pipe Input'!G6,Database!$E$361:$BE$361,0)),IF(E6="HERCP",INDEX(Database!$E$415:$S$415,MATCH('Pipe Input'!$AH$3,Database!$C$415:$S$415,0),MATCH('Pipe Input'!G6,Database!$E$402:$S$402,0)),IF(E6="HDPE",INDEX(Database!$E$432:$S$432,MATCH('Pipe Input'!$AH$3,Database!$C$432:$S$432,0),MATCH('Pipe Input'!G6,Database!$E$425:$S$425,0)),IF(E6="CMP",INDEX(Database!$E$450:$AS$450,MATCH('Pipe Input'!$AH$3,Database!$C$450:$AS$450,0),MATCH('Pipe Input'!G6,Database!$E$442:$AS$442,0)),"")))),"") ->  | AI6: 0 | AJ6: =SUM(AM6:AAL6) -> 0 | AK6: 0
B7: 4 | J7: =IFERROR(IF(E7="RCP",INDEX(Database!$E$363:$BE$363,MATCH('Pipe Input'!$J$3,Database!$C$363:$BE$363,0),MATCH('Pipe Input'!G7,Database!$E$361:$BE$361,0)),IF(E7="HERCP",INDEX(Database!$E$405:$S$405,MATCH('Pipe Input'!$J$3,Database!$C$405:$S$405,0),MATCH('Pipe Input'!G7,Database!$E$402:$S$402,0)),IF(E7="HDPE",INDEX(Database!$E$427:$S$427,MATCH('Pipe Input'!$J$3,Database!$C$427:$S$427,0),MATCH('Pipe Input'!G7,Database!$E$425:$S$425,0)),IF(E7="CMP",INDEX(Database!$E$444:$AS$444,MATCH('Pipe Input'!$J$3,Database!$C$444:$AS$444,0),MATCH('Pipe Input'!G7,Database!$E$442:$AS$442,0)),"")))),"") ->  | L7: =IFERROR(IF(E7="RCP",M7,IF(E7="HERCP",N7,IF(E7="HDPE",INDEX(Database!$E$431:$S$431,MATCH('Pipe Input'!$L$3,Database!$C$431:$S$431,0),MATCH('Pipe Input'!G7,Database!$E$425:$S$425,0)),IF(E7="CMP",INDEX(Database!$E$449:$AS$449,MATCH('Pipe Input'!$L$3,Database!$C$449:$AS$449,0),MATCH('Pipe Input'!G7,Database!$E$442:$AS$442,0)),"")))),"") ->  | M7: =IF(E7="RCP",INDEX(Database!$E$368:$BE$372,MATCH('Pipe Input'!$E$2,Database!$C$368:$C$372,0),MATCH('Pipe Input'!G7,Database!$E$361:$BE$361,0)),"") ->  | N7: =IF(E7="HERCP",INDEX(Database!$E$409:$S$413,MATCH('Pipe Input'!$E$2,Database!$C$409:$C$413,0),MATCH('Pipe Input'!G7,Database!$E$402:$S$402,0)),"") ->  | O7: =IF(E7="RCP",Summary!$AT$5,IF(E7="HERCP",Summary!$AT$34,IF(E7="HDPE",Summary!$AT$51,IF(E7="CMP",Summary!$AT$73, "")))) ->  | P7: =IFERROR(K7,"") ->  | Q7: 0 | R7: 0 | U7: 0 | X7: 0 | AB7: =IFERROR(IF(E7="HDPE",INDEX(Database!$E$434:$S$434,MATCH('Pipe Input'!$AB$3,Database!$C$434:$S$434,0),MATCH('Pipe Input'!G7,Database!$E$425:$S$425,0)),""), "") ->  | AE7: 0 | AF7: =IF(E7="RCP",INDEX(Database!$E$377:$BE$377,MATCH('Pipe Input'!$AF$3,Database!$C$377:$BE$377,0),MATCH('Pipe Input'!G7,Database!$E$361:$BE$361,0)),IF(E7="HERCP",INDEX(Database!$E$418:$S$418,MATCH('Pipe Input'!$AF$3,Database!$C$418:$S$418,0),MATCH('Pipe Input'!G7,Database!$E$402:$S$402,0)),"")) ->  | AG7: =IF(AND(E7="RCP",J7<>""),INDEX(Database!$E$379:$BE$379,MATCH('Pipe Input'!$AG$3,Database!$C$379:$BE$379,0),MATCH('Pipe Input'!G7,Database!$E$361:$BE$361,0)),"No") -> No | AH7: =IFERROR(IF(E7="RCP",INDEX(Database!$E$374:$BE$374,MATCH('Pipe Input'!$AH$3,Database!$C$374:$BE$374,0),MATCH('Pipe Input'!G7,Database!$E$361:$BE$361,0)),IF(E7="HERCP",INDEX(Database!$E$415:$S$415,MATCH('Pipe Input'!$AH$3,Database!$C$415:$S$415,0),MATCH('Pipe Input'!G7,Database!$E$402:$S$402,0)),IF(E7="HDPE",INDEX(Database!$E$432:$S$432,MATCH('Pipe Input'!$AH$3,Database!$C$432:$S$432,0),MATCH('Pipe Input'!G7,Database!$E$425:$S$425,0)),IF(E7="CMP",INDEX(Database!$E$450:$AS$450,MATCH('Pipe Input'!$AH$3,Database!$C$450:$AS$450,0),MATCH('Pipe Input'!G7,Database!$E$442:$AS$442,0)),"")))),"") ->  | AI7: 0 | AJ7: 0 | AK7: 0
B8: 5 | J8: =IFERROR(IF(E8="RCP",INDEX(Database!$E$363:$BE$363,MATCH('Pipe Input'!$J$3,Database!$C$363:$BE$363,0),MATCH('Pipe Input'!G8,Database!$E$361:$BE$361,0)),IF(E8="HERCP",INDEX(Database!$E$405:$S$405,MATCH('Pipe Input'!$J$3,Database!$C$405:$S$405,0),MATCH('Pipe Input'!G8,Database!$E$402:$S$402,0)),IF(E8="HDPE",INDEX(Database!$E$427:$S$427,MATCH('Pipe Input'!$J$3,Database!$C$427:$S$427,0),MATCH('Pipe Input'!G8,Database!$E$425:$S$425,0)),IF(E8="CMP",INDEX(Database!$E$444:$AS$444,MATCH('Pipe Input'!$J$3,Database!$C$444:$AS$444,0),MATCH('Pipe Input'!G8,Database!$E$442:$AS$442,0)),"")))),"") ->  | L8: =IFERROR(IF(E8="RCP",M8,IF(E8="HERCP",N8,IF(E8="HDPE",INDEX(Database!$E$431:$S$431,MATCH('Pipe Input'!$L$3,Database!$C$431:$S$431,0),MATCH('Pipe Input'!G8,Database!$E$425:$S$425,0)),IF(E8="CMP",INDEX(Database!$E$449:$AS$449,MATCH('Pipe Input'!$L$3,Database!$C$449:$AS$449,0),MATCH('Pipe Input'!G8,Database!$E$442:$AS$442,0)),"")))),"") ->  | M8: =IF(E8="RCP",INDEX(Database!$E$368:$BE$372,MATCH('Pipe Input'!$E$2,Database!$C$368:$C$372,0),MATCH('Pipe Input'!G8,Database!$E$361:$BE$361,0)),"") ->  | N8: =IF(E8="HERCP",INDEX(Database!$E$409:$S$413,MATCH('Pipe Input'!$E$2,Database!$C$409:$C$413,0),MATCH('Pipe Input'!G8,Database!$E$402:$S$402,0)),"") ->  | O8: =IF(E8="RCP",Summary!$AT$5,IF(E8="HERCP",Summary!$AT$34,IF(E8="HDPE",Summary!$AT$51,IF(E8="CMP",Summary!$AT$73, "")))) ->  | Q8: 0 | R8: 0 | U8: 0 | X8: 0 | AB8: =IFERROR(IF(E8="HDPE",INDEX(Database!$E$434:$S$434,MATCH('Pipe Input'!$AB$3,Database!$C$434:$S$434,0),MATCH('Pipe Input'!G8,Database!$E$425:$S$425,0)),""), "") ->  | AE8: 0 | AF8: =IF(E8="RCP",INDEX(Database!$E$377:$BE$377,MATCH('Pipe Input'!$AF$3,Database!$C$377:$BE$377,0),MATCH('Pipe Input'!G8,Database!$E$361:$BE$361,0)),IF(E8="HERCP",INDEX(Database!$E$418:$S$418,MATCH('Pipe Input'!$AF$3,Database!$C$418:$S$418,0),MATCH('Pipe Input'!G8,Database!$E$402:$S$402,0)),"")) ->  | AG8: =IF(AND(E8="RCP",J8<>""),INDEX(Database!$E$379:$BE$379,MATCH('Pipe Input'!$AG$3,Database!$C$379:$BE$379,0),MATCH('Pipe Input'!G8,Database!$E$361:$BE$361,0)),"No") -> No | AH8: =IFERROR(IF(E8="RCP",INDEX(Database!$E$374:$BE$374,MATCH('Pipe Input'!$AH$3,Database!$C$374:$BE$374,0),MATCH('Pipe Input'!G8,Database!$E$361:$BE$361,0)),IF(E8="HERCP",INDEX(Database!$E$415:$S$415,MATCH('Pipe Input'!$AH$3,Database!$C$415:$S$415,0),MATCH('Pipe Input'!G8,Database!$E$402:$S$402,0)),IF(E8="HDPE",INDEX(Database!$E$432:$S$432,MATCH('Pipe Input'!$AH$3,Database!$C$432:$S$432,0),MATCH('Pipe Input'!G8,Database!$E$425:$S$425,0)),IF(E8="CMP",INDEX(Database!$E$450:$AS$450,MATCH('Pipe Input'!$AH$3,Database!$C$450:$AS$450,0),MATCH('Pipe Input'!G8,Database!$E$442:$AS$442,0)),"")))),"") ->  | AI8: 0 | AJ8: 0 | AK8: 0
B9: 6 | J9: =IFERROR(IF(E9="RCP",INDEX(Database!$E$363:$BE$363,MATCH('Pipe Input'!$J$3,Database!$C$363:$BE$363,0),MATCH('Pipe Input'!G9,Database!$E$361:$BE$361,0)),IF(E9="HERCP",INDEX(Database!$E$405:$S$405,MATCH('Pipe Input'!$J$3,Database!$C$405:$S$405,0),MATCH('Pipe Input'!G9,Database!$E$402:$S$402,0)),IF(E9="HDPE",INDEX(Database!$E$427:$S$427,MATCH('Pipe Input'!$J$3,Database!$C$427:$S$427,0),MATCH('Pipe Input'!G9,Database!$E$425:$S$425,0)),IF(E9="CMP",INDEX(Database!$E$444:$AS$444,MATCH('Pipe Input'!$J$3,Database!$C$444:$AS$444,0),MATCH('Pipe Input'!G9,Database!$E$442:$AS$442,0)),"")))),"") ->  | L9: =IFERROR(IF(E9="RCP",M9,IF(E9="HERCP",N9,IF(E9="HDPE",INDEX(Database!$E$431:$S$431,MATCH('Pipe Input'!$L$3,Database!$C$431:$S$431,0),MATCH('Pipe Input'!G9,Database!$E$425:$S$425,0)),IF(E9="CMP",INDEX(Database!$E$449:$AS$449,MATCH('Pipe Input'!$L$3,Database!$C$449:$AS$449,0),MATCH('Pipe Input'!G9,Database!$E$442:$AS$442,0)),"")))),"") ->  | M9: =IF(E9="RCP",INDEX(Database!$E$368:$BE$372,MATCH('Pipe Input'!$E$2,Database!$C$368:$C$372,0),MATCH('Pipe Input'!G9,Database!$E$361:$BE$361,0)),"") ->  | N9: =IF(E9="HERCP",INDEX(Database!$E$409:$S$413,MATCH('Pipe Input'!$E$2,Database!$C$409:$C$413,0),MATCH('Pipe Input'!G9,Database!$E$402:$S$402,0)),"") ->  | O9: =IF(E9="RCP",Summary!$AT$5,IF(E9="HERCP",Summary!$AT$34,IF(E9="HDPE",Summary!$AT$51,IF(E9="CMP",Summary!$AT$73, "")))) ->  | Q9: 0 | R9: 0 | U9: 0 | X9: 0 | AB9: =IFERROR(IF(E9="HDPE",INDEX(Database!$E$434:$S$434,MATCH('Pipe Input'!$AB$3,Database!$C$434:$S$434,0),MATCH('Pipe Input'!G9,Database!$E$425:$S$425,0)),""), "") ->  | AE9: 0 | AF9: =IF(E9="RCP",INDEX(Database!$E$377:$BE$377,MATCH('Pipe Input'!$AF$3,Database!$C$377:$BE$377,0),MATCH('Pipe Input'!G9,Database!$E$361:$BE$361,0)),IF(E9="HERCP",INDEX(Database!$E$418:$S$418,MATCH('Pipe Input'!$AF$3,Database!$C$418:$S$418,0),MATCH('Pipe Input'!G9,Database!$E$402:$S$402,0)),"")) ->  | AG9: =IF(AND(E9="RCP",J9<>""),INDEX(Database!$E$379:$BE$379,MATCH('Pipe Input'!$AG$3,Database!$C$379:$BE$379,0),MATCH('Pipe Input'!G9,Database!$E$361:$BE$361,0)),"No") -> No | AH9: =IFERROR(IF(E9="RCP",INDEX(Database!$E$374:$BE$374,MATCH('Pipe Input'!$AH$3,Database!$C$374:$BE$374,0),MATCH('Pipe Input'!G9,Database!$E$361:$BE$361,0)),IF(E9="HERCP",INDEX(Database!$E$415:$S$415,MATCH('Pipe Input'!$AH$3,Database!$C$415:$S$415,0),MATCH('Pipe Input'!G9,Database!$E$402:$S$402,0)),IF(E9="HDPE",INDEX(Database!$E$432:$S$432,MATCH('Pipe Input'!$AH$3,Database!$C$432:$S$432,0),MATCH('Pipe Input'!G9,Database!$E$425:$S$425,0)),IF(E9="CMP",INDEX(Database!$E$450:$AS$450,MATCH('Pipe Input'!$AH$3,Database!$C$450:$AS$450,0),MATCH('Pipe Input'!G9,Database!$E$442:$AS$442,0)),"")))),"") ->  | AI9: 0 | AJ9: 0 | AK9: 0
B10: 7 | J10: =IFERROR(IF(E10="RCP",INDEX(Database!$E$363:$BE$363,MATCH('Pipe Input'!$J$3,Database!$C$363:$BE$363,0),MATCH('Pipe Input'!G10,Database!$E$361:$BE$361,0)),IF(E10="HERCP",INDEX(Database!$E$405:$S$405,MATCH('Pipe Input'!$J$3,Database!$C$405:$S$405,0),MATCH('Pipe Input'!G10,Database!$E$402:$S$402,0)),IF(E10="HDPE",INDEX(Database!$E$427:$S$427,MATCH('Pipe Input'!$J$3,Database!$C$427:$S$427,0),MATCH('Pipe Input'!G10,Database!$E$425:$S$425,0)),IF(E10="CMP",INDEX(Database!$E$444:$AS$444,MATCH('Pipe Input'!$J$3,Database!$C$444:$AS$444,0),MATCH('Pipe Input'!G10,Database!$E$442:$AS$442,0)),"")))),"") ->  | L10: =IFERROR(IF(E10="RCP",M10,IF(E10="HERCP",N10,IF(E10="HDPE",INDEX(Database!$E$431:$S$431,MATCH('Pipe Input'!$L$3,Database!$C$431:$S$431,0),MATCH('Pipe Input'!G10,Database!$E$425:$S$425,0)),IF(E10="CMP",INDEX(Database!$E$449:$AS$449,MATCH('Pipe Input'!$L$3,Database!$C$449:$AS$449,0),MATCH('Pipe Input'!G10,Database!$E$442:$AS$442,0)),"")))),"") ->  | M10: =IF(E10="RCP",INDEX(Database!$E$368:$BE$372,MATCH('Pipe Input'!$E$2,Database!$C$368:$C$372,0),MATCH('Pipe Input'!G10,Database!$E$361:$BE$361,0)),"") ->  | N10: =IF(E10="HERCP",INDEX(Database!$E$409:$S$413,MATCH('Pipe Input'!$E$2,Database!$C$409:$C$413,0),MATCH('Pipe Input'!G10,Database!$E$402:$S$402,0)),"") ->  | O10: =IF(E10="RCP",Summary!$AT$5,IF(E10="HERCP",Summary!$AT$34,IF(E10="HDPE",Summary!$AT$51,IF(E10="CMP",Summary!$AT$73, "")))) ->  | Q10: 0 | R10: 0 | U10: 0 | X10: 0 | AB10: =IFERROR(IF(E10="HDPE",INDEX(Database!$E$434:$S$434,MATCH('Pipe Input'!$AB$3,Database!$C$434:$S$434,0),MATCH('Pipe Input'!G10,Database!$E$425:$S$425,0)),""), "") ->  | AE10: 0 | AF10: =IF(E10="RCP",INDEX(Database!$E$377:$BE$377,MATCH('Pipe Input'!$AF$3,Database!$C$377:$BE$377,0),MATCH('Pipe Input'!G10,Database!$E$361:$BE$361,0)),IF(E10="HERCP",INDEX(Database!$E$418:$S$418,MATCH('Pipe Input'!$AF$3,Database!$C$418:$S$418,0),MATCH('Pipe Input'!G10,Database!$E$402:$S$402,0)),"")) ->  | AG10: =IF(AND(E10="RCP",J10<>""),INDEX(Database!$E$379:$BE$379,MATCH('Pipe Input'!$AG$3,Database!$C$379:$BE$379,0),MATCH('Pipe Input'!G10,Database!$E$361:$BE$361,0)),"No") -> No | AH10: =IFERROR(IF(E10="RCP",INDEX(Database!$E$374:$BE$374,MATCH('Pipe Input'!$AH$3,Database!$C$374:$BE$374,0),MATCH('Pipe Input'!G10,Database!$E$361:$BE$361,0)),IF(E10="HERCP",INDEX(Database!$E$415:$S$415,MATCH('Pipe Input'!$AH$3,Database!$C$415:$S$415,0),MATCH('Pipe Input'!G10,Database!$E$402:$S$402,0)),IF(E10="HDPE",INDEX(Database!$E$432:$S$432,MATCH('Pipe Input'!$AH$3,Database!$C$432:$S$432,0),MATCH('Pipe Input'!G10,Database!$E$425:$S$425,0)),IF(E10="CMP",INDEX(Database!$E$450:$AS$450,MATCH('Pipe Input'!$AH$3,Database!$C$450:$AS$450,0),MATCH('Pipe Input'!G10,Database!$E$442:$AS$442,0)),"")))),"") ->  | AI10: 0 | AJ10: 0 | AK10: 0
B11: 8 | I11: =IF(AND(AG11="Yes",G11<>""),(U11/45000),"") ->  | J11: =IFERROR(IF(E11="RCP",INDEX(Database!$E$363:$BE$363,MATCH('Pipe Input'!$J$3,Database!$C$363:$BE$363,0),MATCH('Pipe Input'!G11,Database!$E$361:$BE$361,0)),IF(E11="HERCP",INDEX(Database!$E$405:$S$405,MATCH('Pipe Input'!$J$3,Database!$C$405:$S$405,0),MATCH('Pipe Input'!G11,Database!$E$402:$S$402,0)),IF(E11="HDPE",INDEX(Database!$E$427:$S$427,MATCH('Pipe Input'!$J$3,Database!$C$427:$S$427,0),MATCH('Pipe Input'!G11,Database!$E$425:$S$425,0)),IF(E11="CMP",INDEX(Database!$E$444:$AS$444,MATCH('Pipe Input'!$J$3,Database!$C$444:$AS$444,0),MATCH('Pipe Input'!G11,Database!$E$442:$AS$442,0)),"")))),"") ->  | L11: =IFERROR(IF(E11="RCP",M11,IF(E11="HERCP",N11,IF(E11="HDPE",INDEX(Database!$E$431:$S$431,MATCH('Pipe Input'!$L$3,Database!$C$431:$S$431,0),MATCH('Pipe Input'!G11,Database!$E$425:$S$425,0)),IF(E11="CMP",INDEX(Database!$E$449:$AS$449,MATCH('Pipe Input'!$L$3,Database!$C$449:$AS$449,0),MATCH('Pipe Input'!G11,Database!$E$442:$AS$442,0)),"")))),"") ->  | M11: =IF(E11="RCP",INDEX(Database!$E$368:$BE$372,MATCH('Pipe Input'!$E$2,Database!$C$368:$C$372,0),MATCH('Pipe Input'!G11,Database!$E$361:$BE$361,0)),"") ->  | N11: =IF(E11="HERCP",INDEX(Database!$E$409:$S$413,MATCH('Pipe Input'!$E$2,Database!$C$409:$C$413,0),MATCH('Pipe Input'!G11,Database!$E$402:$S$402,0)),"") ->  | O11: =IF(E11="RCP",Summary!$AT$5,IF(E11="HERCP",Summary!$AT$34,IF(E11="HDPE",Summary!$AT$51,IF(E11="CMP",Summary!$AT$73, "")))) ->  | Q11: 0 | R11: 0 | U11: 0 | X11: 0 | AB11: =IFERROR(IF(E11="HDPE",INDEX(Database!$E$434:$S$434,MATCH('Pipe Input'!$AB$3,Database!$C$434:$S$434,0),MATCH('Pipe Input'!G11,Database!$E$425:$S$425,0)),""), "") ->  | AE11: 0 | AF11: =IF(E11="RCP",INDEX(Database!$E$377:$BE$377,MATCH('Pipe Input'!$AF$3,Database!$C$377:$BE$377,0),MATCH('Pipe Input'!G11,Database!$E$361:$BE$361,0)),IF(E11="HERCP",INDEX(Database!$E$418:$S$418,MATCH('Pipe Input'!$AF$3,Database!$C$418:$S$418,0),MATCH('Pipe Input'!G11,Database!$E$402:$S$402,0)),"")) ->  | AG11: =IF(AND(E11="RCP",J11<>""),INDEX(Database!$E$379:$BE$379,MATCH('Pipe Input'!$AG$3,Database!$C$379:$BE$379,0),MATCH('Pipe Input'!G11,Database!$E$361:$BE$361,0)),"No") -> No | AH11: =IFERROR(IF(E11="RCP",INDEX(Database!$E$374:$BE$374,MATCH('Pipe Input'!$AH$3,Database!$C$374:$BE$374,0),MATCH('Pipe Input'!G11,Database!$E$361:$BE$361,0)),IF(E11="HERCP",INDEX(Database!$E$415:$S$415,MATCH('Pipe Input'!$AH$3,Database!$C$415:$S$415,0),MATCH('Pipe Input'!G11,Database!$E$402:$S$402,0)),IF(E11="HDPE",INDEX(Database!$E$432:$S$432,MATCH('Pipe Input'!$AH$3,Database!$C$432:$S$432,0),MATCH('Pipe Input'!G11,Database!$E$425:$S$425,0)),IF(E11="CMP",INDEX(Database!$E$450:$AS$450,MATCH('Pipe Input'!$AH$3,Database!$C$450:$AS$450,0),MATCH('Pipe Input'!G11,Database!$E$442:$AS$442,0)),"")))),"") ->  | AI11: 0 | AJ11: 0 | AK11: 0
B12: 9 | I12: =IF(AND(AG12="Yes",G12<>""),(U12/45000),"") ->  | J12: =IFERROR(IF(E12="RCP",INDEX(Database!$E$363:$BE$363,MATCH('Pipe Input'!$J$3,Database!$C$363:$BE$363,0),MATCH('Pipe Input'!G12,Database!$E$361:$BE$361,0)),IF(E12="HERCP",INDEX(Database!$E$405:$S$405,MATCH('Pipe Input'!$J$3,Database!$C$405:$S$405,0),MATCH('Pipe Input'!G12,Database!$E$402:$S$402,0)),IF(E12="HDPE",INDEX(Database!$E$427:$S$427,MATCH('Pipe Input'!$J$3,Database!$C$427:$S$427,0),MATCH('Pipe Input'!G12,Database!$E$425:$S$425,0)),IF(E12="CMP",INDEX(Database!$E$444:$AS$444,MATCH('Pipe Input'!$J$3,Database!$C$444:$AS$444,0),MATCH('Pipe Input'!G12,Database!$E$442:$AS$442,0)),"")))),"") ->  | L12: =IFERROR(IF(E12="RCP",M12,IF(E12="HERCP",N12,IF(E12="HDPE",INDEX(Database!$E$431:$S$431,MATCH('Pipe Input'!$L$3,Database!$C$431:$S$431,0),MATCH('Pipe Input'!G12,Database!$E$425:$S$425,0)),IF(E12="CMP",INDEX(Database!$E$449:$AS$449,MATCH('Pipe Input'!$L$3,Database!$C$449:$AS$449,0),MATCH('Pipe Input'!G12,Database!$E$442:$AS$442,0)),"")))),"") ->  | M12: =IF(E12="RCP",INDEX(Database!$E$368:$BE$372,MATCH('Pipe Input'!$E$2,Database!$C$368:$C$372,0),MATCH('Pipe Input'!G12,Database!$E$361:$BE$361,0)),"") ->  | N12: =IF(E12="HERCP",INDEX(Database!$E$409:$S$413,MATCH('Pipe Input'!$E$2,Database!$C$409:$C$413,0),MATCH('Pipe Input'!G12,Database!$E$402:$S$402,0)),"") ->  | O12: =IF(E12="RCP",Summary!$AT$5,IF(E12="HERCP",Summary!$AT$34,IF(E12="HDPE",Summary!$AT$51,IF(E12="CMP",Summary!$AT$73, "")))) ->  | Q12: 0 | R12: 0 | U12: 0 | X12: 0 | AB12: =IFERROR(IF(E12="HDPE",INDEX(Database!$E$434:$S$434,MATCH('Pipe Input'!$AB$3,Database!$C$434:$S$434,0),MATCH('Pipe Input'!G12,Database!$E$425:$S$425,0)),""), "") ->  | AE12: 0 | AF12: =IF(E12="RCP",INDEX(Database!$E$377:$BE$377,MATCH('Pipe Input'!$AF$3,Database!$C$377:$BE$377,0),MATCH('Pipe Input'!G12,Database!$E$361:$BE$361,0)),IF(E12="HERCP",INDEX(Database!$E$418:$S$418,MATCH('Pipe Input'!$AF$3,Database!$C$418:$S$418,0),MATCH('Pipe Input'!G12,Database!$E$402:$S$402,0)),"")) ->  | AG12: =IF(AND(E12="RCP",J12<>""),INDEX(Database!$E$379:$BE$379,MATCH('Pipe Input'!$AG$3,Database!$C$379:$BE$379,0),MATCH('Pipe Input'!G12,Database!$E$361:$BE$361,0)),"No") -> No | AH12: =IFERROR(IF(E12="RCP",INDEX(Database!$E$374:$BE$374,MATCH('Pipe Input'!$AH$3,Database!$C$374:$BE$374,0),MATCH('Pipe Input'!G12,Database!$E$361:$BE$361,0)),IF(E12="HERCP",INDEX(Database!$E$415:$S$415,MATCH('Pipe Input'!$AH$3,Database!$C$415:$S$415,0),MATCH('Pipe Input'!G12,Database!$E$402:$S$402,0)),IF(E12="HDPE",INDEX(Database!$E$432:$S$432,MATCH('Pipe Input'!$AH$3,Database!$C$432:$S$432,0),MATCH('Pipe Input'!G12,Database!$E$425:$S$425,0)),IF(E12="CMP",INDEX(Database!$E$450:$AS$450,MATCH('Pipe Input'!$AH$3,Database!$C$450:$AS$450,0),MATCH('Pipe Input'!G12,Database!$E$442:$AS$442,0)),"")))),"") ->  | AI12: 0 | AJ12: 0 | AK12: 0
B13: 10 | J13: =IFERROR(IF(E13="RCP",INDEX(Database!$E$363:$BE$363,MATCH('Pipe Input'!$J$3,Database!$C$363:$BE$363,0),MATCH('Pipe Input'!G13,Database!$E$361:$BE$361,0)),IF(E13="HERCP",INDEX(Database!$E$405:$S$405,MATCH('Pipe Input'!$J$3,Database!$C$405:$S$405,0),MATCH('Pipe Input'!G13,Database!$E$402:$S$402,0)),IF(E13="HDPE",INDEX(Database!$E$427:$S$427,MATCH('Pipe Input'!$J$3,Database!$C$427:$S$427,0),MATCH('Pipe Input'!G13,Database!$E$425:$S$425,0)),IF(E13="CMP",INDEX(Database!$E$444:$AS$444,MATCH('Pipe Input'!$J$3,Database!$C$444:$AS$444,0),MATCH('Pipe Input'!G13,Database!$E$442:$AS$442,0)),"")))),"") ->  | L13: =IFERROR(IF(E13="RCP",M13,IF(E13="HERCP",N13,IF(E13="HDPE",INDEX(Database!$E$431:$S$431,MATCH('Pipe Input'!$L$3,Database!$C$431:$S$431,0),MATCH('Pipe Input'!G13,Database!$E$425:$S$425,0)),IF(E13="CMP",INDEX(Database!$E$449:$AS$449,MATCH('Pipe Input'!$L$3,Database!$C$449:$AS$449,0),MATCH('Pipe Input'!G13,Database!$E$442:$AS$442,0)),"")))),"") ->  | M13: =IF(E13="RCP",INDEX(Database!$E$368:$BE$372,MATCH('Pipe Input'!$E$2,Database!$C$368:$C$372,0),MATCH('Pipe Input'!G13,Database!$E$361:$BE$361,0)),"") ->  | N13: =IF(E13="HERCP",INDEX(Database!$E$409:$S$413,MATCH('Pipe Input'!$E$2,Database!$C$409:$C$413,0),MATCH('Pipe Input'!G13,Database!$E$402:$S$402,0)),"") ->  | O13: =IF(E13="RCP",Summary!$AT$5,IF(E13="HERCP",Summary!$AT$34,IF(E13="HDPE",Summary!$AT$51,IF(E13="CMP",Summary!$AT$73, "")))) ->  | Q13: 0 | R13: 0 | U13: 0 | X13: 0 | AB13: =IFERROR(IF(E13="HDPE",INDEX(Database!$E$434:$S$434,MATCH('Pipe Input'!$AB$3,Database!$C$434:$S$434,0),MATCH('Pipe Input'!G13,Database!$E$425:$S$425,0)),""), "") ->  | AE13: 0 | AF13: =IF(E13="RCP",INDEX(Database!$E$377:$BE$377,MATCH('Pipe Input'!$AF$3,Database!$C$377:$BE$377,0),MATCH('Pipe Input'!G13,Database!$E$361:$BE$361,0)),IF(E13="HERCP",INDEX(Database!$E$418:$S$418,MATCH('Pipe Input'!$AF$3,Database!$C$418:$S$418,0),MATCH('Pipe Input'!G13,Database!$E$402:$S$402,0)),"")) ->  | AG13: =IF(AND(E13="RCP",J13<>""),INDEX(Database!$E$379:$BE$379,MATCH('Pipe Input'!$AG$3,Database!$C$379:$BE$379,0),MATCH('Pipe Input'!G13,Database!$E$361:$BE$361,0)),"No") -> No | AH13: =IFERROR(IF(E13="RCP",INDEX(Database!$E$374:$BE$374,MATCH('Pipe Input'!$AH$3,Database!$C$374:$BE$374,0),MATCH('Pipe Input'!G13,Database!$E$361:$BE$361,0)),IF(E13="HERCP",INDEX(Database!$E$415:$S$415,MATCH('Pipe Input'!$AH$3,Database!$C$415:$S$415,0),MATCH('Pipe Input'!G13,Database!$E$402:$S$402,0)),IF(E13="HDPE",INDEX(Database!$E$432:$S$432,MATCH('Pipe Input'!$AH$3,Database!$C$432:$S$432,0),MATCH('Pipe Input'!G13,Database!$E$425:$S$425,0)),IF(E13="CMP",INDEX(Database!$E$450:$AS$450,MATCH('Pipe Input'!$AH$3,Database!$C$450:$AS$450,0),MATCH('Pipe Input'!G13,Database!$E$442:$AS$442,0)),"")))),"") ->  | AI13: 0 | AJ13: 0 | AK13: 0
B14: 11 | J14: =IFERROR(IF(E14="RCP",INDEX(Database!$E$363:$BE$363,MATCH('Pipe Input'!$J$3,Database!$C$363:$BE$363,0),MATCH('Pipe Input'!G14,Database!$E$361:$BE$361,0)),IF(E14="HERCP",INDEX(Database!$E$405:$S$405,MATCH('Pipe Input'!$J$3,Database!$C$405:$S$405,0),MATCH('Pipe Input'!G14,Database!$E$402:$S$402,0)),IF(E14="HDPE",INDEX(Database!$E$427:$S$427,MATCH('Pipe Input'!$J$3,Database!$C$427:$S$427,0),MATCH('Pipe Input'!G14,Database!$E$425:$S$425,0)),IF(E14="CMP",INDEX(Database!$E$444:$AS$444,MATCH('Pipe Input'!$J$3,Database!$C$444:$AS$444,0),MATCH('Pipe Input'!G14,Database!$E$442:$AS$442,0)),"")))),"") ->  | L14: =IFERROR(IF(E14="RCP",M14,IF(E14="HERCP",N14,IF(E14="HDPE",INDEX(Database!$E$431:$S$431,MATCH('Pipe Input'!$L$3,Database!$C$431:$S$431,0),MATCH('Pipe Input'!G14,Database!$E$425:$S$425,0)),IF(E14="CMP",INDEX(Database!$E$449:$AS$449,MATCH('Pipe Input'!$L$3,Database!$C$449:$AS$449,0),MATCH('Pipe Input'!G14,Database!$E$442:$AS$442,0)),"")))),"") ->  | M14: =IF(E14="RCP",INDEX(Database!$E$368:$BE$372,MATCH('Pipe Input'!$E$2,Database!$C$368:$C$372,0),MATCH('Pipe Input'!G14,Database!$E$361:$BE$361,0)),"") ->  | N14: =IF(E14="HERCP",INDEX(Database!$E$409:$S$413,MATCH('Pipe Input'!$E$2,Database!$C$409:$C$413,0),MATCH('Pipe Input'!G14,Database!$E$402:$S$402,0)),"") ->  | O14: =IF(E14="RCP",Summary!$AT$5,IF(E14="HERCP",Summary!$AT$34,IF(E14="HDPE",Summary!$AT$51,IF(E14="CMP",Summary!$AT$73, "")))) ->  | Q14: 0 | R14: 0 | U14: 0 | X14: 0 | AB14: =IFERROR(IF(E14="HDPE",INDEX(Database!$E$434:$S$434,MATCH('Pipe Input'!$AB$3,Database!$C$434:$S$434,0),MATCH('Pipe Input'!G14,Database!$E$425:$S$425,0)),""), "") ->  | AE14: 0 | AF14: =IF(E14="RCP",INDEX(Database!$E$377:$BE$377,MATCH('Pipe Input'!$AF$3,Database!$C$377:$BE$377,0),MATCH('Pipe Input'!G14,Database!$E$361:$BE$361,0)),IF(E14="HERCP",INDEX(Database!$E$418:$S$418,MATCH('Pipe Input'!$AF$3,Database!$C$418:$S$418,0),MATCH('Pipe Input'!G14,Database!$E$402:$S$402,0)),"")) ->  | AG14: =IF(AND(E14="RCP",J14<>""),INDEX(Database!$E$379:$BE$379,MATCH('Pipe Input'!$AG$3,Database!$C$379:$BE$379,0),MATCH('Pipe Input'!G14,Database!$E$361:$BE$361,0)),"No") -> No | AH14: =IFERROR(IF(E14="RCP",INDEX(Database!$E$374:$BE$374,MATCH('Pipe Input'!$AH$3,Database!$C$374:$BE$374,0),MATCH('Pipe Input'!G14,Database!$E$361:$BE$361,0)),IF(E14="HERCP",INDEX(Database!$E$415:$S$415,MATCH('Pipe Input'!$AH$3,Database!$C$415:$S$415,0),MATCH('Pipe Input'!G14,Database!$E$402:$S$402,0)),IF(E14="HDPE",INDEX(Database!$E$432:$S$432,MATCH('Pipe Input'!$AH$3,Database!$C$432:$S$432,0),MATCH('Pipe Input'!G14,Database!$E$425:$S$425,0)),IF(E14="CMP",INDEX(Database!$E$450:$AS$450,MATCH('Pipe Input'!$AH$3,Database!$C$450:$AS$450,0),MATCH('Pipe Input'!G14,Database!$E$442:$AS$442,0)),"")))),"") ->  | AI14: 0 | AJ14: 0 | AK14: 0
B15: =B14+1 -> 12 | J15: =IFERROR(IF(E15="RCP",INDEX(Database!$E$363:$BE$363,MATCH('Pipe Input'!$J$3,Database!$C$363:$BE$363,0),MATCH('Pipe Input'!G15,Database!$E$361:$BE$361,0)),IF(E15="HERCP",INDEX(Database!$E$405:$S$405,MATCH('Pipe Input'!$J$3,Database!$C$405:$S$405,0),MATCH('Pipe Input'!G15,Database!$E$402:$S$402,0)),IF(E15="HDPE",INDEX(Database!$E$427:$S$427,MATCH('Pipe Input'!$J$3,Database!$C$427:$S$427,0),MATCH('Pipe Input'!G15,Database!$E$425:$S$425,0)),IF(E15="CMP",INDEX(Database!$E$444:$AS$444,MATCH('Pipe Input'!$J$3,Database!$C$444:$AS$444,0),MATCH('Pipe Input'!G15,Database!$E$442:$AS$442,0)),"")))),"") ->  | L15: =IFERROR(IF(E15="RCP",M15,IF(E15="HERCP",N15,IF(E15="HDPE",INDEX(Database!$E$431:$S$431,MATCH('Pipe Input'!$L$3,Database!$C$431:$S$431,0),MATCH('Pipe Input'!G15,Database!$E$425:$S$425,0)),IF(E15="CMP",INDEX(Database!$E$449:$AS$449,MATCH('Pipe Input'!$L$3,Database!$C$449:$AS$449,0),MATCH('Pipe Input'!G15,Database!$E$442:$AS$442,0)),"")))),"") ->  | M15: =IF(E15="RCP",INDEX(Database!$E$368:$BE$372,MATCH('Pipe Input'!$E$2,Database!$C$368:$C$372,0),MATCH('Pipe Input'!G15,Database!$E$361:$BE$361,0)),"") ->  | N15: =IF(E15="HERCP",INDEX(Database!$E$409:$S$413,MATCH('Pipe Input'!$E$2,Database!$C$409:$C$413,0),MATCH('Pipe Input'!G15,Database!$E$402:$S$402,0)),"") ->  | O15: =IF(E15="RCP",Summary!$AT$5,IF(E15="HERCP",Summary!$AT$34,IF(E15="HDPE",Summary!$AT$51,IF(E15="CMP",Summary!$AT$73, "")))) ->  | Q15: 0 | R15: 0 | U15: 0 | X15: 0 | AB15: =IFERROR(IF(E15="HDPE",INDEX(Database!$E$434:$S$434,MATCH('Pipe Input'!$AB$3,Database!$C$434:$S$434,0),MATCH('Pipe Input'!G15,Database!$E$425:$S$425,0)),""), "") ->  | AE15: 0 | AF15: =IF(E15="RCP",INDEX(Database!$E$377:$BE$377,MATCH('Pipe Input'!$AF$3,Database!$C$377:$BE$377,0),MATCH('Pipe Input'!G15,Database!$E$361:$BE$361,0)),IF(E15="HERCP",INDEX(Database!$E$418:$S$418,MATCH('Pipe Input'!$AF$3,Database!$C$418:$S$418,0),MATCH('Pipe Input'!G15,Database!$E$402:$S$402,0)),"")) ->  | AG15: =IF(AND(E15="RCP",J15<>""),INDEX(Database!$E$379:$BE$379,MATCH('Pipe Input'!$AG$3,Database!$C$379:$BE$379,0),MATCH('Pipe Input'!G15,Database!$E$361:$BE$361,0)),"No") -> No | AH15: =IFERROR(IF(E15="RCP",INDEX(Database!$E$374:$BE$374,MATCH('Pipe Input'!$AH$3,Database!$C$374:$BE$374,0),MATCH('Pipe Input'!G15,Database!$E$361:$BE$361,0)),IF(E15="HERCP",INDEX(Database!$E$415:$S$415,MATCH('Pipe Input'!$AH$3,Database!$C$415:$S$415,0),MATCH('Pipe Input'!G15,Database!$E$402:$S$402,0)),IF(E15="HDPE",INDEX(Database!$E$432:$S$432,MATCH('Pipe Input'!$AH$3,Database!$C$432:$S$432,0),MATCH('Pipe Input'!G15,Database!$E$425:$S$425,0)),IF(E15="CMP",INDEX(Database!$E$450:$AS$450,MATCH('Pipe Input'!$AH$3,Database!$C$450:$AS$450,0),MATCH('Pipe Input'!G15,Database!$E$442:$AS$442,0)),"")))),"") ->  | AI15: 0 | AJ15: 0 | AK15: 0
B16: 13 | J16: =IFERROR(IF(E16="RCP",INDEX(Database!$E$363:$BE$363,MATCH('Pipe Input'!$J$3,Database!$C$363:$BE$363,0),MATCH('Pipe Input'!G16,Database!$E$361:$BE$361,0)),IF(E16="HERCP",INDEX(Database!$E$405:$S$405,MATCH('Pipe Input'!$J$3,Database!$C$405:$S$405,0),MATCH('Pipe Input'!G16,Database!$E$402:$S$402,0)),IF(E16="HDPE",INDEX(Database!$E$427:$S$427,MATCH('Pipe Input'!$J$3,Database!$C$427:$S$427,0),MATCH('Pipe Input'!G16,Database!$E$425:$S$425,0)),IF(E16="CMP",INDEX(Database!$E$444:$AS$444,MATCH('Pipe Input'!$J$3,Database!$C$444:$AS$444,0),MATCH('Pipe Input'!G16,Database!$E$442:$AS$442,0)),"")))),"") ->  | L16: =IFERROR(IF(E16="RCP",M16,IF(E16="HERCP",N16,IF(E16="HDPE",INDEX(Database!$E$431:$S$431,MATCH('Pipe Input'!$L$3,Database!$C$431:$S$431,0),MATCH('Pipe Input'!G16,Database!$E$425:$S$425,0)),IF(E16="CMP",INDEX(Database!$E$449:$AS$449,MATCH('Pipe Input'!$L$3,Database!$C$449:$AS$449,0),MATCH('Pipe Input'!G16,Database!$E$442:$AS$442,0)),"")))),"") ->  | M16: =IF(E16="RCP",INDEX(Database!$E$368:$BE$372,MATCH('Pipe Input'!$E$2,Database!$C$368:$C$372,0),MATCH('Pipe Input'!G16,Database!$E$361:$BE$361,0)),"") ->  | N16: =IF(E16="HERCP",INDEX(Database!$E$409:$S$413,MATCH('Pipe Input'!$E$2,Database!$C$409:$C$413,0),MATCH('Pipe Input'!G16,Database!$E$402:$S$402,0)),"") ->  | O16: =IF(E16="RCP",Summary!$AT$5,IF(E16="HERCP",Summary!$AT$34,IF(E16="HDPE",Summary!$AT$51,IF(E16="CMP",Summary!$AT$73, "")))) ->  | Q16: 0 | R16: 0 | U16: 0 | X16: 0 | AB16: =IFERROR(IF(E16="HDPE",INDEX(Database!$E$434:$S$434,MATCH('Pipe Input'!$AB$3,Database!$C$434:$S$434,0),MATCH('Pipe Input'!G16,Database!$E$425:$S$425,0)),""), "") ->  | AE16: 0 | AF16: =IF(E16="RCP",INDEX(Database!$E$377:$BE$377,MATCH('Pipe Input'!$AF$3,Database!$C$377:$BE$377,0),MATCH('Pipe Input'!G16,Database!$E$361:$BE$361,0)),IF(E16="HERCP",INDEX(Database!$E$418:$S$418,MATCH('Pipe Input'!$AF$3,Database!$C$418:$S$418,0),MATCH('Pipe Input'!G16,Database!$E$402:$S$402,0)),"")) ->  | AG16: =IF(AND(E16="RCP",J16<>""),INDEX(Database!$E$379:$BE$379,MATCH('Pipe Input'!$AG$3,Database!$C$379:$BE$379,0),MATCH('Pipe Input'!G16,Database!$E$361:$BE$361,0)),"No") -> No | AH16: =IFERROR(IF(E16="RCP",INDEX(Database!$E$374:$BE$374,MATCH('Pipe Input'!$AH$3,Database!$C$374:$BE$374,0),MATCH('Pipe Input'!G16,Database!$E$361:$BE$361,0)),IF(E16="HERCP",INDEX(Database!$E$415:$S$415,MATCH('Pipe Input'!$AH$3,Database!$C$415:$S$415,0),MATCH('Pipe Input'!G16,Database!$E$402:$S$402,0)),IF(E16="HDPE",INDEX(Database!$E$432:$S$432,MATCH('Pipe Input'!$AH$3,Database!$C$432:$S$432,0),MATCH('Pipe Input'!G16,Database!$E$425:$S$425,0)),IF(E16="CMP",INDEX(Database!$E$450:$AS$450,MATCH('Pipe Input'!$AH$3,Database!$C$450:$AS$450,0),MATCH('Pipe Input'!G16,Database!$E$442:$AS$442,0)),"")))),"") ->  | AI16: 0 | AJ16: 0 | AK16: 0
B17: 14 | J17: =IFERROR(IF(E17="RCP",INDEX(Database!$E$363:$BE$363,MATCH('Pipe Input'!$J$3,Database!$C$363:$BE$363,0),MATCH('Pipe Input'!G17,Database!$E$361:$BE$361,0)),IF(E17="HERCP",INDEX(Database!$E$405:$S$405,MATCH('Pipe Input'!$J$3,Database!$C$405:$S$405,0),MATCH('Pipe Input'!G17,Database!$E$402:$S$402,0)),IF(E17="HDPE",INDEX(Database!$E$427:$S$427,MATCH('Pipe Input'!$J$3,Database!$C$427:$S$427,0),MATCH('Pipe Input'!G17,Database!$E$425:$S$425,0)),IF(E17="CMP",INDEX(Database!$E$444:$AS$444,MATCH('Pipe Input'!$J$3,Database!$C$444:$AS$444,0),MATCH('Pipe Input'!G17,Database!$E$442:$AS$442,0)),"")))),"") ->  | L17: =IFERROR(IF(E17="RCP",M17,IF(E17="HERCP",N17,IF(E17="HDPE",INDEX(Database!$E$431:$S$431,MATCH('Pipe Input'!$L$3,Database!$C$431:$S$431,0),MATCH('Pipe Input'!G17,Database!$E$425:$S$425,0)),IF(E17="CMP",INDEX(Database!$E$449:$AS$449,MATCH('Pipe Input'!$L$3,Database!$C$449:$AS$449,0),MATCH('Pipe Input'!G17,Database!$E$442:$AS$442,0)),"")))),"") ->  | M17: =IF(E17="RCP",INDEX(Database!$E$368:$BE$372,MATCH('Pipe Input'!$E$2,Database!$C$368:$C$372,0),MATCH('Pipe Input'!G17,Database!$E$361:$BE$361,0)),"") ->  | N17: =IF(E17="HERCP",INDEX(Database!$E$409:$S$413,MATCH('Pipe Input'!$E$2,Database!$C$409:$C$413,0),MATCH('Pipe Input'!G17,Database!$E$402:$S$402,0)),"") ->  | O17: =IF(E17="RCP",Summary!$AT$5,IF(E17="HERCP",Summary!$AT$34,IF(E17="HDPE",Summary!$AT$51,IF(E17="CMP",Summary!$AT$73, "")))) ->  | Q17: 0 | R17: 0 | S17: =IFERROR(IF(E17="RCP",(K17*AK17), ""), "") ->  | U17: 0 | X17: 0 | AB17: =IFERROR(IF(E17="HDPE",INDEX(Database!$E$434:$S$434,MATCH('Pipe Input'!$AB$3,Database!$C$434:$S$434,0),MATCH('Pipe Input'!G17,Database!$E$425:$S$425,0)),""), "") ->  | AE17: 0 | AF17: =IF(E17="RCP",INDEX(Database!$E$377:$BE$377,MATCH('Pipe Input'!$AF$3,Database!$C$377:$BE$377,0),MATCH('Pipe Input'!G17,Database!$E$361:$BE$361,0)),IF(E17="HERCP",INDEX(Database!$E$418:$S$418,MATCH('Pipe Input'!$AF$3,Database!$C$418:$S$418,0),MATCH('Pipe Input'!G17,Database!$E$402:$S$402,0)),"")) ->  | AG17: =IF(AND(E17="RCP",J17<>""),INDEX(Database!$E$379:$BE$379,MATCH('Pipe Input'!$AG$3,Database!$C$379:$BE$379,0),MATCH('Pipe Input'!G17,Database!$E$361:$BE$361,0)),"No") -> No | AH17: =IFERROR(IF(E17="RCP",INDEX(Database!$E$374:$BE$374,MATCH('Pipe Input'!$AH$3,Database!$C$374:$BE$374,0),MATCH('Pipe Input'!G17,Database!$E$361:$BE$361,0)),IF(E17="HERCP",INDEX(Database!$E$415:$S$415,MATCH('Pipe Input'!$AH$3,Database!$C$415:$S$415,0),MATCH('Pipe Input'!G17,Database!$E$402:$S$402,0)),IF(E17="HDPE",INDEX(Database!$E$432:$S$432,MATCH('Pipe Input'!$AH$3,Database!$C$432:$S$432,0),MATCH('Pipe Input'!G17,Database!$E$425:$S$425,0)),IF(E17="CMP",INDEX(Database!$E$450:$AS$450,MATCH('Pipe Input'!$AH$3,Database!$C$450:$AS$450,0),MATCH('Pipe Input'!G17,Database!$E$442:$AS$442,0)),"")))),"") ->  | AI17: 0 | AJ17: 0 | AK17: 0
B18: 15 | J18: =IFERROR(IF(E18="RCP",INDEX(Database!$E$363:$BE$363,MATCH('Pipe Input'!$J$3,Database!$C$363:$BE$363,0),MATCH('Pipe Input'!G18,Database!$E$361:$BE$361,0)),IF(E18="HERCP",INDEX(Database!$E$405:$S$405,MATCH('Pipe Input'!$J$3,Database!$C$405:$S$405,0),MATCH('Pipe Input'!G18,Database!$E$402:$S$402,0)),IF(E18="HDPE",INDEX(Database!$E$427:$S$427,MATCH('Pipe Input'!$J$3,Database!$C$427:$S$427,0),MATCH('Pipe Input'!G18,Database!$E$425:$S$425,0)),IF(E18="CMP",INDEX(Database!$E$444:$AS$444,MATCH('Pipe Input'!$J$3,Database!$C$444:$AS$444,0),MATCH('Pipe Input'!G18,Database!$E$442:$AS$442,0)),"")))),"") ->  | L18: =IFERROR(IF(E18="RCP",M18,IF(E18="HERCP",N18,IF(E18="HDPE",INDEX(Database!$E$431:$S$431,MATCH('Pipe Input'!$L$3,Database!$C$431:$S$431,0),MATCH('Pipe Input'!G18,Database!$E$425:$S$425,0)),IF(E18="CMP",INDEX(Database!$E$449:$AS$449,MATCH('Pipe Input'!$L$3,Database!$C$449:$AS$449,0),MATCH('Pipe Input'!G18,Database!$E$442:$AS$442,0)),"")))),"") ->  | M18: =IF(E18="RCP",INDEX(Database!$E$368:$BE$372,MATCH('Pipe Input'!$E$2,Database!$C$368:$C$372,0),MATCH('Pipe Input'!G18,Database!$E$361:$BE$361,0)),"") ->  | N18: =IF(E18="HERCP",INDEX(Database!$E$409:$S$413,MATCH('Pipe Input'!$E$2,Database!$C$409:$C$413,0),MATCH('Pipe Input'!G18,Database!$E$402:$S$402,0)),"") ->  | O18: =IF(E18="RCP",Summary!$AT$5,IF(E18="HERCP",Summary!$AT$34,IF(E18="HDPE",Summary!$AT$51,IF(E18="CMP",Summary!$AT$73, "")))) ->  | P18: =IFERROR(K18,"") ->  | Q18: 0 | R18: 0 | T18: =IFERROR(IF(E18="RCP",(U18/U51), ""), "") ->  | U18: 0 | V18: =IFERROR(IF(E18="HERCP",(K18*AK18), ""), "") ->  | W18: =IFERROR(IF(E18="HERCP",(X18/X51), ""), "") ->  | X18: 0 | Y18: =IFERROR(IF(E18="HDPE",(K18*AK18), ""), "") ->  | Z18: =IFERROR(IF(E18="HDPE",(AA18/AA51), ""), "") ->  | AB18: =IFERROR(IF(E18="HDPE",INDEX(Database!$E$434:$S$434,MATCH('Pipe Input'!$AB$3,Database!$C$434:$S$434,0),MATCH('Pipe Input'!G18,Database!$E$425:$S$425,0)),""), "") ->  | AE18: 0 | AF18: =IF(E18="RCP",INDEX(Database!$E$377:$BE$377,MATCH('Pipe Input'!$AF$3,Database!$C$377:$BE$377,0),MATCH('Pipe Input'!G18,Database!$E$361:$BE$361,0)),IF(E18="HERCP",INDEX(Database!$E$418:$S$418,MATCH('Pipe Input'!$AF$3,Database!$C$418:$S$418,0),MATCH('Pipe Input'!G18,Database!$E$402:$S$402,0)),"")) ->  | AG18: =IF(AND(E18="RCP",J18<>""),INDEX(Database!$E$379:$BE$379,MATCH('Pipe Input'!$AG$3,Database!$C$379:$BE$379,0),MATCH('Pipe Input'!G18,Database!$E$361:$BE$361,0)),"No") -> No | AH18: =IFERROR(IF(E18="RCP",INDEX(Database!$E$374:$BE$374,MATCH('Pipe Input'!$AH$3,Database!$C$374:$BE$374,0),MATCH('Pipe Input'!G18,Database!$E$361:$BE$361,0)),IF(E18="HERCP",INDEX(Database!$E$415:$S$415,MATCH('Pipe Input'!$AH$3,Database!$C$415:$S$415,0),MATCH('Pipe Input'!G18,Database!$E$402:$S$402,0)),IF(E18="HDPE",INDEX(Database!$E$432:$S$432,MATCH('Pipe Input'!$AH$3,Database!$C$432:$S$432,0),MATCH('Pipe Input'!G18,Database!$E$425:$S$425,0)),IF(E18="CMP",INDEX(Database!$E$450:$AS$450,MATCH('Pipe Input'!$AH$3,Database!$C$450:$AS$450,0),MATCH('Pipe Input'!G18,Database!$E$442:$AS$442,0)),"")))),"") ->  | AI18: 0 | AJ18: =SUM(AM18:AAL18) -> 0 | AK18: 0
B19: 16 | F19: =IF(AND(OR(D19="HDPE",D19="CMP"),E19="RCP"),"Alternate","") ->  | J19: =IFERROR(IF(E19="RCP",INDEX(Database!$E$363:$BE$363,MATCH('Pipe Input'!$J$3,Database!$C$363:$BE$363,0),MATCH('Pipe Input'!G19,Database!$E$361:$BE$361,0)),IF(E19="HERCP",INDEX(Database!$E$405:$S$405,MATCH('Pipe Input'!$J$3,Database!$C$405:$S$405,0),MATCH('Pipe Input'!G19,Database!$E$402:$S$402,0)),IF(E19="HDPE",INDEX(Database!$E$427:$S$427,MATCH('Pipe Input'!$J$3,Database!$C$427:$S$427,0),MATCH('Pipe Input'!G19,Database!$E$425:$S$425,0)),IF(E19="CMP",INDEX(Database!$E$444:$AS$444,MATCH('Pipe Input'!$J$3,Database!$C$444:$AS$444,0),MATCH('Pipe Input'!G19,Database!$E$442:$AS$442,0)),"")))),"") ->  | L19: =IFERROR(IF(E19="RCP",M19,IF(E19="HERCP",N19,IF(E19="HDPE",INDEX(Database!$E$431:$S$431,MATCH('Pipe Input'!$L$3,Database!$C$431:$S$431,0),MATCH('Pipe Input'!G19,Database!$E$425:$S$425,0)),IF(E19="CMP",INDEX(Database!$E$449:$AS$449,MATCH('Pipe Input'!$L$3,Database!$C$449:$AS$449,0),MATCH('Pipe Input'!G19,Database!$E$442:$AS$442,0)),"")))),"") ->  | M19: =IF(E19="RCP",INDEX(Database!$E$368:$BE$372,MATCH('Pipe Input'!$E$2,Database!$C$368:$C$372,0),MATCH('Pipe Input'!G19,Database!$E$361:$BE$361,0)),"") ->  | N19: =IF(E19="HERCP",INDEX(Database!$E$409:$S$413,MATCH('Pipe Input'!$E$2,Database!$C$409:$C$413,0),MATCH('Pipe Input'!G19,Database!$E$402:$S$402,0)),"") ->  | O19: =IF(E19="RCP",Summary!$AT$5,IF(E19="HERCP",Summary!$AT$34,IF(E19="HDPE",Summary!$AT$51,IF(E19="CMP",Summary!$AT$73, "")))) ->  | Q19: =IF(AK19>0,R19, 0) -> 0 | R19: 0 | U19: =IFERROR(IF(E19="RCP",AI19*8*AH19, 0), 0) -> 0 | X19: 0 | AB19: =IFERROR(IF(E19="HDPE",INDEX(Database!$E$434:$S$434,MATCH('Pipe Input'!$AB$3,Database!$C$434:$S$434,0),MATCH('Pipe Input'!G19,Database!$E$425:$S$425,0)),""), "") ->  | AE19: 0 | AF19: =IF(E19="RCP",INDEX(Database!$E$377:$BE$377,MATCH('Pipe Input'!$AF$3,Database!$C$377:$BE$377,0),MATCH('Pipe Input'!G19,Database!$E$361:$BE$361,0)),IF(E19="HERCP",INDEX(Database!$E$418:$S$418,MATCH('Pipe Input'!$AF$3,Database!$C$418:$S$418,0),MATCH('Pipe Input'!G19,Database!$E$402:$S$402,0)),"")) ->  | AG19: =IF(AND(E19="RCP",J19<>""),INDEX(Database!$E$379:$BE$379,MATCH('Pipe Input'!$AG$3,Database!$C$379:$BE$379,0),MATCH('Pipe Input'!G19,Database!$E$361:$BE$361,0)),"No") -> No | AH19: =IFERROR(IF(E19="RCP",INDEX(Database!$E$374:$BE$374,MATCH('Pipe Input'!$AH$3,Database!$C$374:$BE$374,0),MATCH('Pipe Input'!G19,Database!$E$361:$BE$361,0)),IF(E19="HERCP",INDEX(Database!$E$415:$S$415,MATCH('Pipe Input'!$AH$3,Database!$C$415:$S$415,0),MATCH('Pipe Input'!G19,Database!$E$402:$S$402,0)),IF(E19="HDPE",INDEX(Database!$E$432:$S$432,MATCH('Pipe Input'!$AH$3,Database!$C$432:$S$432,0),MATCH('Pipe Input'!G19,Database!$E$425:$S$425,0)),IF(E19="CMP",INDEX(Database!$E$450:$AS$450,MATCH('Pipe Input'!$AH$3,Database!$C$450:$AS$450,0),MATCH('Pipe Input'!G19,Database!$E$442:$AS$442,0)),"")))),"") ->  | AI19: 0 | AJ19: 0 | AK19: 0
B20: 17 | J20: =IFERROR(IF(E20="RCP",INDEX(Database!$E$363:$BE$363,MATCH('Pipe Input'!$J$3,Database!$C$363:$BE$363,0),MATCH('Pipe Input'!G20,Database!$E$361:$BE$361,0)),IF(E20="HERCP",INDEX(Database!$E$405:$S$405,MATCH('Pipe Input'!$J$3,Database!$C$405:$S$405,0),MATCH('Pipe Input'!G20,Database!$E$402:$S$402,0)),IF(E20="HDPE",INDEX(Database!$E$427:$S$427,MATCH('Pipe Input'!$J$3,Database!$C$427:$S$427,0),MATCH('Pipe Input'!G20,Database!$E$425:$S$425,0)),IF(E20="CMP",INDEX(Database!$E$444:$AS$444,MATCH('Pipe Input'!$J$3,Database!$C$444:$AS$444,0),MATCH('Pipe Input'!G20,Database!$E$442:$AS$442,0)),"")))),"") ->  | L20: =IFERROR(IF(E20="RCP",M20,IF(E20="HERCP",N20,IF(E20="HDPE",INDEX(Database!$E$431:$S$431,MATCH('Pipe Input'!$L$3,Database!$C$431:$S$431,0),MATCH('Pipe Input'!G20,Database!$E$425:$S$425,0)),IF(E20="CMP",INDEX(Database!$E$449:$AS$449,MATCH('Pipe Input'!$L$3,Database!$C$449:$AS$449,0),MATCH('Pipe Input'!G20,Database!$E$442:$AS$442,0)),"")))),"") ->  | M20: =IF(E20="RCP",INDEX(Database!$E$368:$BE$372,MATCH('Pipe Input'!$E$2,Database!$C$368:$C$372,0),MATCH('Pipe Input'!G20,Database!$E$361:$BE$361,0)),"") ->  | N20: =IF(E20="HERCP",INDEX(Database!$E$409:$S$413,MATCH('Pipe Input'!$E$2,Database!$C$409:$C$413,0),MATCH('Pipe Input'!G20,Database!$E$402:$S$402,0)),"") ->  | O20: =IF(E20="RCP",Summary!$AT$5,IF(E20="HERCP",Summary!$AT$34,IF(E20="HDPE",Summary!$AT$51,IF(E20="CMP",Summary!$AT$73, "")))) ->  | Q20: =IF(AK20>0,R20, 0) -> 0 | R20: 0 | U20: 0 | X20: 0 | AB20: =IFERROR(IF(E20="HDPE",INDEX(Database!$E$434:$S$434,MATCH('Pipe Input'!$AB$3,Database!$C$434:$S$434,0),MATCH('Pipe Input'!G20,Database!$E$425:$S$425,0)),""), "") ->  | AE20: 0 | AF20: =IF(E20="RCP",INDEX(Database!$E$377:$BE$377,MATCH('Pipe Input'!$AF$3,Database!$C$377:$BE$377,0),MATCH('Pipe Input'!G20,Database!$E$361:$BE$361,0)),IF(E20="HERCP",INDEX(Database!$E$418:$S$418,MATCH('Pipe Input'!$AF$3,Database!$C$418:$S$418,0),MATCH('Pipe Input'!G20,Database!$E$402:$S$402,0)),"")) ->  | AG20: =IF(AND(E20="RCP",J20<>""),INDEX(Database!$E$379:$BE$379,MATCH('Pipe Input'!$AG$3,Database!$C$379:$BE$379,0),MATCH('Pipe Input'!G20,Database!$E$361:$BE$361,0)),"No") -> No | AH20: =IFERROR(IF(E20="RCP",INDEX(Database!$E$374:$BE$374,MATCH('Pipe Input'!$AH$3,Database!$C$374:$BE$374,0),MATCH('Pipe Input'!G20,Database!$E$361:$BE$361,0)),IF(E20="HERCP",INDEX(Database!$E$415:$S$415,MATCH('Pipe Input'!$AH$3,Database!$C$415:$S$415,0),MATCH('Pipe Input'!G20,Database!$E$402:$S$402,0)),IF(E20="HDPE",INDEX(Database!$E$432:$S$432,MATCH('Pipe Input'!$AH$3,Database!$C$432:$S$432,0),MATCH('Pipe Input'!G20,Database!$E$425:$S$425,0)),IF(E20="CMP",INDEX(Database!$E$450:$AS$450,MATCH('Pipe Input'!$AH$3,Database!$C$450:$AS$450,0),MATCH('Pipe Input'!G20,Database!$E$442:$AS$442,0)),"")))),"") ->  | AI20: 0 | AJ20: 0 | AK20: 0
B21: 18 | J21: =IFERROR(IF(E21="RCP",INDEX(Database!$E$363:$BE$363,MATCH('Pipe Input'!$J$3,Database!$C$363:$BE$363,0),MATCH('Pipe Input'!G21,Database!$E$361:$BE$361,0)),IF(E21="HERCP",INDEX(Database!$E$405:$S$405,MATCH('Pipe Input'!$J$3,Database!$C$405:$S$405,0),MATCH('Pipe Input'!G21,Database!$E$402:$S$402,0)),IF(E21="HDPE",INDEX(Database!$E$427:$S$427,MATCH('Pipe Input'!$J$3,Database!$C$427:$S$427,0),MATCH('Pipe Input'!G21,Database!$E$425:$S$425,0)),IF(E21="CMP",INDEX(Database!$E$444:$AS$444,MATCH('Pipe Input'!$J$3,Database!$C$444:$AS$444,0),MATCH('Pipe Input'!G21,Database!$E$442:$AS$442,0)),"")))),"") ->  | L21: =IFERROR(IF(E21="RCP",M21,IF(E21="HERCP",N21,IF(E21="HDPE",INDEX(Database!$E$431:$S$431,MATCH('Pipe Input'!$L$3,Database!$C$431:$S$431,0),MATCH('Pipe Input'!G21,Database!$E$425:$S$425,0)),IF(E21="CMP",INDEX(Database!$E$449:$AS$449,MATCH('Pipe Input'!$L$3,Database!$C$449:$AS$449,0),MATCH('Pipe Input'!G21,Database!$E$442:$AS$442,0)),"")))),"") ->  | M21: =IF(E21="RCP",INDEX(Database!$E$368:$BE$372,MATCH('Pipe Input'!$E$2,Database!$C$368:$C$372,0),MATCH('Pipe Input'!G21,Database!$E$361:$BE$361,0)),"") ->  | N21: =IF(E21="HERCP",INDEX(Database!$E$409:$S$413,MATCH('Pipe Input'!$E$2,Database!$C$409:$C$413,0),MATCH('Pipe Input'!G21,Database!$E$402:$S$402,0)),"") ->  | O21: =IF(E21="RCP",Summary!$AT$5,IF(E21="HERCP",Summary!$AT$34,IF(E21="HDPE",Summary!$AT$51,IF(E21="CMP",Summary!$AT$73, "")))) ->  | Q21: 0 | R21: 0 | U21: 0 | X21: 0 | AB21: =IFERROR(IF(E21="HDPE",INDEX(Database!$E$434:$S$434,MATCH('Pipe Input'!$AB$3,Database!$C$434:$S$434,0),MATCH('Pipe Input'!G21,Database!$E$425:$S$425,0)),""), "") ->  | AE21: 0 | AF21: =IF(E21="RCP",INDEX(Database!$E$377:$BE$377,MATCH('Pipe Input'!$AF$3,Database!$C$377:$BE$377,0),MATCH('Pipe Input'!G21,Database!$E$361:$BE$361,0)),IF(E21="HERCP",INDEX(Database!$E$418:$S$418,MATCH('Pipe Input'!$AF$3,Database!$C$418:$S$418,0),MATCH('Pipe Input'!G21,Database!$E$402:$S$402,0)),"")) ->  | AG21: =IF(AND(E21="RCP",J21<>""),INDEX(Database!$E$379:$BE$379,MATCH('Pipe Input'!$AG$3,Database!$C$379:$BE$379,0),MATCH('Pipe Input'!G21,Database!$E$361:$BE$361,0)),"No") -> No | AH21: =IFERROR(IF(E21="RCP",INDEX(Database!$E$374:$BE$374,MATCH('Pipe Input'!$AH$3,Database!$C$374:$BE$374,0),MATCH('Pipe Input'!G21,Database!$E$361:$BE$361,0)),IF(E21="HERCP",INDEX(Database!$E$415:$S$415,MATCH('Pipe Input'!$AH$3,Database!$C$415:$S$415,0),MATCH('Pipe Input'!G21,Database!$E$402:$S$402,0)),IF(E21="HDPE",INDEX(Database!$E$432:$S$432,MATCH('Pipe Input'!$AH$3,Database!$C$432:$S$432,0),MATCH('Pipe Input'!G21,Database!$E$425:$S$425,0)),IF(E21="CMP",INDEX(Database!$E$450:$AS$450,MATCH('Pipe Input'!$AH$3,Database!$C$450:$AS$450,0),MATCH('Pipe Input'!G21,Database!$E$442:$AS$442,0)),"")))),"") ->  | AI21: 0 | AJ21: 0 | AK21: 0
B22: 19 | J22: =IFERROR(IF(E22="RCP",INDEX(Database!$E$363:$BE$363,MATCH('Pipe Input'!$J$3,Database!$C$363:$BE$363,0),MATCH('Pipe Input'!G22,Database!$E$361:$BE$361,0)),IF(E22="HERCP",INDEX(Database!$E$405:$S$405,MATCH('Pipe Input'!$J$3,Database!$C$405:$S$405,0),MATCH('Pipe Input'!G22,Database!$E$402:$S$402,0)),IF(E22="HDPE",INDEX(Database!$E$427:$S$427,MATCH('Pipe Input'!$J$3,Database!$C$427:$S$427,0),MATCH('Pipe Input'!G22,Database!$E$425:$S$425,0)),IF(E22="CMP",INDEX(Database!$E$444:$AS$444,MATCH('Pipe Input'!$J$3,Database!$C$444:$AS$444,0),MATCH('Pipe Input'!G22,Database!$E$442:$AS$442,0)),"")))),"") ->  | L22: =IFERROR(IF(E22="RCP",M22,IF(E22="HERCP",N22,IF(E22="HDPE",INDEX(Database!$E$431:$S$431,MATCH('Pipe Input'!$L$3,Database!$C$431:$S$431,0),MATCH('Pipe Input'!G22,Database!$E$425:$S$425,0)),IF(E22="CMP",INDEX(Database!$E$449:$AS$449,MATCH('Pipe Input'!$L$3,Database!$C$449:$AS$449,0),MATCH('Pipe Input'!G22,Database!$E$442:$AS$442,0)),"")))),"") ->  | M22: =IF(E22="RCP",INDEX(Database!$E$368:$BE$372,MATCH('Pipe Input'!$E$2,Database!$C$368:$C$372,0),MATCH('Pipe Input'!G22,Database!$E$361:$BE$361,0)),"") ->  | N22: =IF(E22="HERCP",INDEX(Database!$E$409:$S$413,MATCH('Pipe Input'!$E$2,Database!$C$409:$C$413,0),MATCH('Pipe Input'!G22,Database!$E$402:$S$402,0)),"") ->  | O22: =IF(E22="RCP",Summary!$AT$5,IF(E22="HERCP",Summary!$AT$34,IF(E22="HDPE",Summary!$AT$51,IF(E22="CMP",Summary!$AT$73, "")))) ->  | Q22: 0 | R22: 0 | U22: 0 | X22: 0 | AB22: =IFERROR(IF(E22="HDPE",INDEX(Database!$E$434:$S$434,MATCH('Pipe Input'!$AB$3,Database!$C$434:$S$434,0),MATCH('Pipe Input'!G22,Database!$E$425:$S$425,0)),""), "") ->  | AE22: 0 | AF22: =IF(E22="RCP",INDEX(Database!$E$377:$BE$377,MATCH('Pipe Input'!$AF$3,Database!$C$377:$BE$377,0),MATCH('Pipe Input'!G22,Database!$E$361:$BE$361,0)),IF(E22="HERCP",INDEX(Database!$E$418:$S$418,MATCH('Pipe Input'!$AF$3,Database!$C$418:$S$418,0),MATCH('Pipe Input'!G22,Database!$E$402:$S$402,0)),"")) ->  | AG22: =IF(AND(E22="RCP",J22<>""),INDEX(Database!$E$379:$BE$379,MATCH('Pipe Input'!$AG$3,Database!$C$379:$BE$379,0),MATCH('Pipe Input'!G22,Database!$E$361:$BE$361,0)),"No") -> No | AH22: =IFERROR(IF(E22="RCP",INDEX(Database!$E$374:$BE$374,MATCH('Pipe Input'!$AH$3,Database!$C$374:$BE$374,0),MATCH('Pipe Input'!G22,Database!$E$361:$BE$361,0)),IF(E22="HERCP",INDEX(Database!$E$415:$S$415,MATCH('Pipe Input'!$AH$3,Database!$C$415:$S$415,0),MATCH('Pipe Input'!G22,Database!$E$402:$S$402,0)),IF(E22="HDPE",INDEX(Database!$E$432:$S$432,MATCH('Pipe Input'!$AH$3,Database!$C$432:$S$432,0),MATCH('Pipe Input'!G22,Database!$E$425:$S$425,0)),IF(E22="CMP",INDEX(Database!$E$450:$AS$450,MATCH('Pipe Input'!$AH$3,Database!$C$450:$AS$450,0),MATCH('Pipe Input'!G22,Database!$E$442:$AS$442,0)),"")))),"") ->  | AI22: 0 | AJ22: 0 | AK22: 0
B23: 20 | J23: =IFERROR(IF(E23="RCP",INDEX(Database!$E$363:$BE$363,MATCH('Pipe Input'!$J$3,Database!$C$363:$BE$363,0),MATCH('Pipe Input'!G23,Database!$E$361:$BE$361,0)),IF(E23="HERCP",INDEX(Database!$E$405:$S$405,MATCH('Pipe Input'!$J$3,Database!$C$405:$S$405,0),MATCH('Pipe Input'!G23,Database!$E$402:$S$402,0)),IF(E23="HDPE",INDEX(Database!$E$427:$S$427,MATCH('Pipe Input'!$J$3,Database!$C$427:$S$427,0),MATCH('Pipe Input'!G23,Database!$E$425:$S$425,0)),IF(E23="CMP",INDEX(Database!$E$444:$AS$444,MATCH('Pipe Input'!$J$3,Database!$C$444:$AS$444,0),MATCH('Pipe Input'!G23,Database!$E$442:$AS$442,0)),"")))),"") ->  | L23: =IFERROR(IF(E23="RCP",M23,IF(E23="HERCP",N23,IF(E23="HDPE",INDEX(Database!$E$431:$S$431,MATCH('Pipe Input'!$L$3,Database!$C$431:$S$431,0),MATCH('Pipe Input'!G23,Database!$E$425:$S$425,0)),IF(E23="CMP",INDEX(Database!$E$449:$AS$449,MATCH('Pipe Input'!$L$3,Database!$C$449:$AS$449,0),MATCH('Pipe Input'!G23,Database!$E$442:$AS$442,0)),"")))),"") ->  | M23: =IF(E23="RCP",INDEX(Database!$E$368:$BE$372,MATCH('Pipe Input'!$E$2,Database!$C$368:$C$372,0),MATCH('Pipe Input'!G23,Database!$E$361:$BE$361,0)),"") ->  | N23: =IF(E23="HERCP",INDEX(Database!$E$409:$S$413,MATCH('Pipe Input'!$E$2,Database!$C$409:$C$413,0),MATCH('Pipe Input'!G23,Database!$E$402:$S$402,0)),"") ->  | O23: =IF(E23="RCP",Summary!$AT$5,IF(E23="HERCP",Summary!$AT$34,IF(E23="HDPE",Summary!$AT$51,IF(E23="CMP",Summary!$AT$73, "")))) ->  | Q23: 0 | R23: 0 | U23: 0 | X23: 0 | AB23: =IFERROR(IF(E23="HDPE",INDEX(Database!$E$434:$S$434,MATCH('Pipe Input'!$AB$3,Database!$C$434:$S$434,0),MATCH('Pipe Input'!G23,Database!$E$425:$S$425,0)),""), "") ->  | AE23: 0 | AF23: =IF(E23="RCP",INDEX(Database!$E$377:$BE$377,MATCH('Pipe Input'!$AF$3,Database!$C$377:$BE$377,0),MATCH('Pipe Input'!G23,Database!$E$361:$BE$361,0)),IF(E23="HERCP",INDEX(Database!$E$418:$S$418,MATCH('Pipe Input'!$AF$3,Database!$C$418:$S$418,0),MATCH('Pipe Input'!G23,Database!$E$402:$S$402,0)),"")) ->  | AG23: =IF(AND(E23="RCP",J23<>""),INDEX(Database!$E$379:$BE$379,MATCH('Pipe Input'!$AG$3,Database!$C$379:$BE$379,0),MATCH('Pipe Input'!G23,Database!$E$361:$BE$361,0)),"No") -> No | AH23: =IFERROR(IF(E23="RCP",INDEX(Database!$E$374:$BE$374,MATCH('Pipe Input'!$AH$3,Database!$C$374:$BE$374,0),MATCH('Pipe Input'!G23,Database!$E$361:$BE$361,0)),IF(E23="HERCP",INDEX(Database!$E$415:$S$415,MATCH('Pipe Input'!$AH$3,Database!$C$415:$S$415,0),MATCH('Pipe Input'!G23,Database!$E$402:$S$402,0)),IF(E23="HDPE",INDEX(Database!$E$432:$S$432,MATCH('Pipe Input'!$AH$3,Database!$C$432:$S$432,0),MATCH('Pipe Input'!G23,Database!$E$425:$S$425,0)),IF(E23="CMP",INDEX(Database!$E$450:$AS$450,MATCH('Pipe Input'!$AH$3,Database!$C$450:$AS$450,0),MATCH('Pipe Input'!G23,Database!$E$442:$AS$442,0)),"")))),"") ->  | AI23: 0 | AJ23: 0 | AK23: 0
B24: 21 | J24: =IFERROR(IF(E24="RCP",INDEX(Database!$E$363:$BE$363,MATCH('Pipe Input'!$J$3,Database!$C$363:$BE$363,0),MATCH('Pipe Input'!G24,Database!$E$361:$BE$361,0)),IF(E24="HERCP",INDEX(Database!$E$405:$S$405,MATCH('Pipe Input'!$J$3,Database!$C$405:$S$405,0),MATCH('Pipe Input'!G24,Database!$E$402:$S$402,0)),IF(E24="HDPE",INDEX(Database!$E$427:$S$427,MATCH('Pipe Input'!$J$3,Database!$C$427:$S$427,0),MATCH('Pipe Input'!G24,Database!$E$425:$S$425,0)),IF(E24="CMP",INDEX(Database!$E$444:$AS$444,MATCH('Pipe Input'!$J$3,Database!$C$444:$AS$444,0),MATCH('Pipe Input'!G24,Database!$E$442:$AS$442,0)),"")))),"") ->  | L24: =IFERROR(IF(E24="RCP",M24,IF(E24="HERCP",N24,IF(E24="HDPE",INDEX(Database!$E$431:$S$431,MATCH('Pipe Input'!$L$3,Database!$C$431:$S$431,0),MATCH('Pipe Input'!G24,Database!$E$425:$S$425,0)),IF(E24="CMP",INDEX(Database!$E$449:$AS$449,MATCH('Pipe Input'!$L$3,Database!$C$449:$AS$449,0),MATCH('Pipe Input'!G24,Database!$E$442:$AS$442,0)),"")))),"") ->  | M24: =IF(E24="RCP",INDEX(Database!$E$368:$BE$372,MATCH('Pipe Input'!$E$2,Database!$C$368:$C$372,0),MATCH('Pipe Input'!G24,Database!$E$361:$BE$361,0)),"") ->  | N24: =IF(E24="HERCP",INDEX(Database!$E$409:$S$413,MATCH('Pipe Input'!$E$2,Database!$C$409:$C$413,0),MATCH('Pipe Input'!G24,Database!$E$402:$S$402,0)),"") ->  | O24: =IF(E24="RCP",Summary!$AT$5,IF(E24="HERCP",Summary!$AT$34,IF(E24="HDPE",Summary!$AT$51,IF(E24="CMP",Summary!$AT$73, "")))) ->  | Q24: 0 | R24: 0 | U24: 0 | X24: 0 | AB24: =IFERROR(IF(E24="HDPE",INDEX(Database!$E$434:$S$434,MATCH('Pipe Input'!$AB$3,Database!$C$434:$S$434,0),MATCH('Pipe Input'!G24,Database!$E$425:$S$425,0)),""), "") ->  | AE24: 0 | AF24: =IF(E24="RCP",INDEX(Database!$E$377:$BE$377,MATCH('Pipe Input'!$AF$3,Database!$C$377:$BE$377,0),MATCH('Pipe Input'!G24,Database!$E$361:$BE$361,0)),IF(E24="HERCP",INDEX(Database!$E$418:$S$418,MATCH('Pipe Input'!$AF$3,Database!$C$418:$S$418,0),MATCH('Pipe Input'!G24,Database!$E$402:$S$402,0)),"")) ->  | AG24: =IF(AND(E24="RCP",J24<>""),INDEX(Database!$E$379:$BE$379,MATCH('Pipe Input'!$AG$3,Database!$C$379:$BE$379,0),MATCH('Pipe Input'!G24,Database!$E$361:$BE$361,0)),"No") -> No | AH24: =IFERROR(IF(E24="RCP",INDEX(Database!$E$374:$BE$374,MATCH('Pipe Input'!$AH$3,Database!$C$374:$BE$374,0),MATCH('Pipe Input'!G24,Database!$E$361:$BE$361,0)),IF(E24="HERCP",INDEX(Database!$E$415:$S$415,MATCH('Pipe Input'!$AH$3,Database!$C$415:$S$415,0),MATCH('Pipe Input'!G24,Database!$E$402:$S$402,0)),IF(E24="HDPE",INDEX(Database!$E$432:$S$432,MATCH('Pipe Input'!$AH$3,Database!$C$432:$S$432,0),MATCH('Pipe Input'!G24,Database!$E$425:$S$425,0)),IF(E24="CMP",INDEX(Database!$E$450:$AS$450,MATCH('Pipe Input'!$AH$3,Database!$C$450:$AS$450,0),MATCH('Pipe Input'!G24,Database!$E$442:$AS$442,0)),"")))),"") ->  | AI24: 0 | AJ24: 0 | AK24: 0
B25: 22 | J25: =IFERROR(IF(E25="RCP",INDEX(Database!$E$363:$BE$363,MATCH('Pipe Input'!$J$3,Database!$C$363:$BE$363,0),MATCH('Pipe Input'!G25,Database!$E$361:$BE$361,0)),IF(E25="HERCP",INDEX(Database!$E$405:$S$405,MATCH('Pipe Input'!$J$3,Database!$C$405:$S$405,0),MATCH('Pipe Input'!G25,Database!$E$402:$S$402,0)),IF(E25="HDPE",INDEX(Database!$E$427:$S$427,MATCH('Pipe Input'!$J$3,Database!$C$427:$S$427,0),MATCH('Pipe Input'!G25,Database!$E$425:$S$425,0)),IF(E25="CMP",INDEX(Database!$E$444:$AS$444,MATCH('Pipe Input'!$J$3,Database!$C$444:$AS$444,0),MATCH('Pipe Input'!G25,Database!$E$442:$AS$442,0)),"")))),"") ->  | L25: =IFERROR(IF(E25="RCP",M25,IF(E25="HERCP",N25,IF(E25="HDPE",INDEX(Database!$E$431:$S$431,MATCH('Pipe Input'!$L$3,Database!$C$431:$S$431,0),MATCH('Pipe Input'!G25,Database!$E$425:$S$425,0)),IF(E25="CMP",INDEX(Database!$E$449:$AS$449,MATCH('Pipe Input'!$L$3,Database!$C$449:$AS$449,0),MATCH('Pipe Input'!G25,Database!$E$442:$AS$442,0)),"")))),"") ->  | M25: =IF(E25="RCP",INDEX(Database!$E$368:$BE$372,MATCH('Pipe Input'!$E$2,Database!$C$368:$C$372,0),MATCH('Pipe Input'!G25,Database!$E$361:$BE$361,0)),"") ->  | N25: =IF(E25="HERCP",INDEX(Database!$E$409:$S$413,MATCH('Pipe Input'!$E$2,Database!$C$409:$C$413,0),MATCH('Pipe Input'!G25,Database!$E$402:$S$402,0)),"") ->  | O25: =IF(E25="RCP",Summary!$AT$5,IF(E25="HERCP",Summary!$AT$34,IF(E25="HDPE",Summary!$AT$51,IF(E25="CMP",Summary!$AT$73, "")))) ->  | Q25: 0 | R25: 0 | U25: 0 | X25: 0 | AB25: =IFERROR(IF(E25="HDPE",INDEX(Database!$E$434:$S$434,MATCH('Pipe Input'!$AB$3,Database!$C$434:$S$434,0),MATCH('Pipe Input'!G25,Database!$E$425:$S$425,0)),""), "") ->  | AE25: 0 | AF25: =IF(E25="RCP",INDEX(Database!$E$377:$BE$377,MATCH('Pipe Input'!$AF$3,Database!$C$377:$BE$377,0),MATCH('Pipe Input'!G25,Database!$E$361:$BE$361,0)),IF(E25="HERCP",INDEX(Database!$E$418:$S$418,MATCH('Pipe Input'!$AF$3,Database!$C$418:$S$418,0),MATCH('Pipe Input'!G25,Database!$E$402:$S$402,0)),"")) ->  | AG25: =IF(AND(E25="RCP",J25<>""),INDEX(Database!$E$379:$BE$379,MATCH('Pipe Input'!$AG$3,Database!$C$379:$BE$379,0),MATCH('Pipe Input'!G25,Database!$E$361:$BE$361,0)),"No") -> No | AH25: =IFERROR(IF(E25="RCP",INDEX(Database!$E$374:$BE$374,MATCH('Pipe Input'!$AH$3,Database!$C$374:$BE$374,0),MATCH('Pipe Input'!G25,Database!$E$361:$BE$361,0)),IF(E25="HERCP",INDEX(Database!$E$415:$S$415,MATCH('Pipe Input'!$AH$3,Database!$C$415:$S$415,0),MATCH('Pipe Input'!G25,Database!$E$402:$S$402,0)),IF(E25="HDPE",INDEX(Database!$E$432:$S$432,MATCH('Pipe Input'!$AH$3,Database!$C$432:$S$432,0),MATCH('Pipe Input'!G25,Database!$E$425:$S$425,0)),IF(E25="CMP",INDEX(Database!$E$450:$AS$450,MATCH('Pipe Input'!$AH$3,Database!$C$450:$AS$450,0),MATCH('Pipe Input'!G25,Database!$E$442:$AS$442,0)),"")))),"") ->  | AI25: 0 | AJ25: 0 | AK25: 0
B26: 23 | J26: =IFERROR(IF(E26="RCP",INDEX(Database!$E$363:$BE$363,MATCH('Pipe Input'!$J$3,Database!$C$363:$BE$363,0),MATCH('Pipe Input'!G26,Database!$E$361:$BE$361,0)),IF(E26="HERCP",INDEX(Database!$E$405:$S$405,MATCH('Pipe Input'!$J$3,Database!$C$405:$S$405,0),MATCH('Pipe Input'!G26,Database!$E$402:$S$402,0)),IF(E26="HDPE",INDEX(Database!$E$427:$S$427,MATCH('Pipe Input'!$J$3,Database!$C$427:$S$427,0),MATCH('Pipe Input'!G26,Database!$E$425:$S$425,0)),IF(E26="CMP",INDEX(Database!$E$444:$AS$444,MATCH('Pipe Input'!$J$3,Database!$C$444:$AS$444,0),MATCH('Pipe Input'!G26,Database!$E$442:$AS$442,0)),"")))),"") ->  | L26: =IFERROR(IF(E26="RCP",M26,IF(E26="HERCP",N26,IF(E26="HDPE",INDEX(Database!$E$431:$S$431,MATCH('Pipe Input'!$L$3,Database!$C$431:$S$431,0),MATCH('Pipe Input'!G26,Database!$E$425:$S$425,0)),IF(E26="CMP",INDEX(Database!$E$449:$AS$449,MATCH('Pipe Input'!$L$3,Database!$C$449:$AS$449,0),MATCH('Pipe Input'!G26,Database!$E$442:$AS$442,0)),"")))),"") ->  | M26: =IF(E26="RCP",INDEX(Database!$E$368:$BE$372,MATCH('Pipe Input'!$E$2,Database!$C$368:$C$372,0),MATCH('Pipe Input'!G26,Database!$E$361:$BE$361,0)),"") ->  | N26: =IF(E26="HERCP",INDEX(Database!$E$409:$S$413,MATCH('Pipe Input'!$E$2,Database!$C$409:$C$413,0),MATCH('Pipe Input'!G26,Database!$E$402:$S$402,0)),"") ->  | O26: =IF(E26="RCP",Summary!$AT$5,IF(E26="HERCP",Summary!$AT$34,IF(E26="HDPE",Summary!$AT$51,IF(E26="CMP",Summary!$AT$73, "")))) ->  | Q26: 0 | R26: 0 | U26: 0 | X26: 0 | AB26: =IFERROR(IF(E26="HDPE",INDEX(Database!$E$434:$S$434,MATCH('Pipe Input'!$AB$3,Database!$C$434:$S$434,0),MATCH('Pipe Input'!G26,Database!$E$425:$S$425,0)),""), "") ->  | AE26: 0 | AF26: =IF(E26="RCP",INDEX(Database!$E$377:$BE$377,MATCH('Pipe Input'!$AF$3,Database!$C$377:$BE$377,0),MATCH('Pipe Input'!G26,Database!$E$361:$BE$361,0)),IF(E26="HERCP",INDEX(Database!$E$418:$S$418,MATCH('Pipe Input'!$AF$3,Database!$C$418:$S$418,0),MATCH('Pipe Input'!G26,Database!$E$402:$S$402,0)),"")) ->  | AG26: =IF(AND(E26="RCP",J26<>""),INDEX(Database!$E$379:$BE$379,MATCH('Pipe Input'!$AG$3,Database!$C$379:$BE$379,0),MATCH('Pipe Input'!G26,Database!$E$361:$BE$361,0)),"No") -> No | AH26: =IFERROR(IF(E26="RCP",INDEX(Database!$E$374:$BE$374,MATCH('Pipe Input'!$AH$3,Database!$C$374:$BE$374,0),MATCH('Pipe Input'!G26,Database!$E$361:$BE$361,0)),IF(E26="HERCP",INDEX(Database!$E$415:$S$415,MATCH('Pipe Input'!$AH$3,Database!$C$415:$S$415,0),MATCH('Pipe Input'!G26,Database!$E$402:$S$402,0)),IF(E26="HDPE",INDEX(Database!$E$432:$S$432,MATCH('Pipe Input'!$AH$3,Database!$C$432:$S$432,0),MATCH('Pipe Input'!G26,Database!$E$425:$S$425,0)),IF(E26="CMP",INDEX(Database!$E$450:$AS$450,MATCH('Pipe Input'!$AH$3,Database!$C$450:$AS$450,0),MATCH('Pipe Input'!G26,Database!$E$442:$AS$442,0)),"")))),"") ->  | AI26: 0 | AJ26: 0 | AK26: 0
B27: 24 | J27: =IFERROR(IF(E27="RCP",INDEX(Database!$E$363:$BE$363,MATCH('Pipe Input'!$J$3,Database!$C$363:$BE$363,0),MATCH('Pipe Input'!G27,Database!$E$361:$BE$361,0)),IF(E27="HERCP",INDEX(Database!$E$405:$S$405,MATCH('Pipe Input'!$J$3,Database!$C$405:$S$405,0),MATCH('Pipe Input'!G27,Database!$E$402:$S$402,0)),IF(E27="HDPE",INDEX(Database!$E$427:$S$427,MATCH('Pipe Input'!$J$3,Database!$C$427:$S$427,0),MATCH('Pipe Input'!G27,Database!$E$425:$S$425,0)),IF(E27="CMP",INDEX(Database!$E$444:$AS$444,MATCH('Pipe Input'!$J$3,Database!$C$444:$AS$444,0),MATCH('Pipe Input'!G27,Database!$E$442:$AS$442,0)),"")))),"") ->  | L27: =IFERROR(IF(E27="RCP",M27,IF(E27="HERCP",N27,IF(E27="HDPE",INDEX(Database!$E$431:$S$431,MATCH('Pipe Input'!$L$3,Database!$C$431:$S$431,0),MATCH('Pipe Input'!G27,Database!$E$425:$S$425,0)),IF(E27="CMP",INDEX(Database!$E$449:$AS$449,MATCH('Pipe Input'!$L$3,Database!$C$449:$AS$449,0),MATCH('Pipe Input'!G27,Database!$E$442:$AS$442,0)),"")))),"") ->  | M27: =IF(E27="RCP",INDEX(Database!$E$368:$BE$372,MATCH('Pipe Input'!$E$2,Database!$C$368:$C$372,0),MATCH('Pipe Input'!G27,Database!$E$361:$BE$361,0)),"") ->  | N27: =IF(E27="HERCP",INDEX(Database!$E$409:$S$413,MATCH('Pipe Input'!$E$2,Database!$C$409:$C$413,0),MATCH('Pipe Input'!G27,Database!$E$402:$S$402,0)),"") ->  | O27: =IF(E27="RCP",Summary!$AT$5,IF(E27="HERCP",Summary!$AT$34,IF(E27="HDPE",Summary!$AT$51,IF(E27="CMP",Summary!$AT$73, "")))) ->  | Q27: 0 | R27: 0 | U27: 0 | X27: 0 | AB27: =IFERROR(IF(E27="HDPE",INDEX(Database!$E$434:$S$434,MATCH('Pipe Input'!$AB$3,Database!$C$434:$S$434,0),MATCH('Pipe Input'!G27,Database!$E$425:$S$425,0)),""), "") ->  | AE27: 0 | AF27: =IF(E27="RCP",INDEX(Database!$E$377:$BE$377,MATCH('Pipe Input'!$AF$3,Database!$C$377:$BE$377,0),MATCH('Pipe Input'!G27,Database!$E$361:$BE$361,0)),IF(E27="HERCP",INDEX(Database!$E$418:$S$418,MATCH('Pipe Input'!$AF$3,Database!$C$418:$S$418,0),MATCH('Pipe Input'!G27,Database!$E$402:$S$402,0)),"")) ->  | AG27: =IF(AND(E27="RCP",J27<>""),INDEX(Database!$E$379:$BE$379,MATCH('Pipe Input'!$AG$3,Database!$C$379:$BE$379,0),MATCH('Pipe Input'!G27,Database!$E$361:$BE$361,0)),"No") -> No | AH27: =IFERROR(IF(E27="RCP",INDEX(Database!$E$374:$BE$374,MATCH('Pipe Input'!$AH$3,Database!$C$374:$BE$374,0),MATCH('Pipe Input'!G27,Database!$E$361:$BE$361,0)),IF(E27="HERCP",INDEX(Database!$E$415:$S$415,MATCH('Pipe Input'!$AH$3,Database!$C$415:$S$415,0),MATCH('Pipe Input'!G27,Database!$E$402:$S$402,0)),IF(E27="HDPE",INDEX(Database!$E$432:$S$432,MATCH('Pipe Input'!$AH$3,Database!$C$432:$S$432,0),MATCH('Pipe Input'!G27,Database!$E$425:$S$425,0)),IF(E27="CMP",INDEX(Database!$E$450:$AS$450,MATCH('Pipe Input'!$AH$3,Database!$C$450:$AS$450,0),MATCH('Pipe Input'!G27,Database!$E$442:$AS$442,0)),"")))),"") ->  | AI27: 0 | AJ27: 0 | AK27: 0
B28: 25 | J28: =IFERROR(IF(E28="RCP",INDEX(Database!$E$363:$BE$363,MATCH('Pipe Input'!$J$3,Database!$C$363:$BE$363,0),MATCH('Pipe Input'!G28,Database!$E$361:$BE$361,0)),IF(E28="HERCP",INDEX(Database!$E$405:$S$405,MATCH('Pipe Input'!$J$3,Database!$C$405:$S$405,0),MATCH('Pipe Input'!G28,Database!$E$402:$S$402,0)),IF(E28="HDPE",INDEX(Database!$E$427:$S$427,MATCH('Pipe Input'!$J$3,Database!$C$427:$S$427,0),MATCH('Pipe Input'!G28,Database!$E$425:$S$425,0)),IF(E28="CMP",INDEX(Database!$E$444:$AS$444,MATCH('Pipe Input'!$J$3,Database!$C$444:$AS$444,0),MATCH('Pipe Input'!G28,Database!$E$442:$AS$442,0)),"")))),"") ->  | L28: =IFERROR(IF(E28="RCP",M28,IF(E28="HERCP",N28,IF(E28="HDPE",INDEX(Database!$E$431:$S$431,MATCH('Pipe Input'!$L$3,Database!$C$431:$S$431,0),MATCH('Pipe Input'!G28,Database!$E$425:$S$425,0)),IF(E28="CMP",INDEX(Database!$E$449:$AS$449,MATCH('Pipe Input'!$L$3,Database!$C$449:$AS$449,0),MATCH('Pipe Input'!G28,Database!$E$442:$AS$442,0)),"")))),"") ->  | M28: =IF(E28="RCP",INDEX(Database!$E$368:$BE$372,MATCH('Pipe Input'!$E$2,Database!$C$368:$C$372,0),MATCH('Pipe Input'!G28,Database!$E$361:$BE$361,0)),"") ->  | N28: =IF(E28="HERCP",INDEX(Database!$E$409:$S$413,MATCH('Pipe Input'!$E$2,Database!$C$409:$C$413,0),MATCH('Pipe Input'!G28,Database!$E$402:$S$402,0)),"") ->  | O28: =IF(E28="RCP",Summary!$AT$5,IF(E28="HERCP",Summary!$AT$34,IF(E28="HDPE",Summary!$AT$51,IF(E28="CMP",Summary!$AT$73, "")))) ->  | Q28: 0 | R28: 0 | U28: 0 | X28: 0 | AB28: =IFERROR(IF(E28="HDPE",INDEX(Database!$E$434:$S$434,MATCH('Pipe Input'!$AB$3,Database!$C$434:$S$434,0),MATCH('Pipe Input'!G28,Database!$E$425:$S$425,0)),""), "") ->  | AE28: 0 | AF28: =IF(E28="RCP",INDEX(Database!$E$377:$BE$377,MATCH('Pipe Input'!$AF$3,Database!$C$377:$BE$377,0),MATCH('Pipe Input'!G28,Database!$E$361:$BE$361,0)),IF(E28="HERCP",INDEX(Database!$E$418:$S$418,MATCH('Pipe Input'!$AF$3,Database!$C$418:$S$418,0),MATCH('Pipe Input'!G28,Database!$E$402:$S$402,0)),"")) ->  | AG28: =IF(AND(E28="RCP",J28<>""),INDEX(Database!$E$379:$BE$379,MATCH('Pipe Input'!$AG$3,Database!$C$379:$BE$379,0),MATCH('Pipe Input'!G28,Database!$E$361:$BE$361,0)),"No") -> No | AH28: =IFERROR(IF(E28="RCP",INDEX(Database!$E$374:$BE$374,MATCH('Pipe Input'!$AH$3,Database!$C$374:$BE$374,0),MATCH('Pipe Input'!G28,Database!$E$361:$BE$361,0)),IF(E28="HERCP",INDEX(Database!$E$415:$S$415,MATCH('Pipe Input'!$AH$3,Database!$C$415:$S$415,0),MATCH('Pipe Input'!G28,Database!$E$402:$S$402,0)),IF(E28="HDPE",INDEX(Database!$E$432:$S$432,MATCH('Pipe Input'!$AH$3,Database!$C$432:$S$432,0),MATCH('Pipe Input'!G28,Database!$E$425:$S$425,0)),IF(E28="CMP",INDEX(Database!$E$450:$AS$450,MATCH('Pipe Input'!$AH$3,Database!$C$450:$AS$450,0),MATCH('Pipe Input'!G28,Database!$E$442:$AS$442,0)),"")))),"") ->  | AI28: 0 | AJ28: 0 | AK28: 0
B29: 26 | J29: =IFERROR(IF(E29="RCP",INDEX(Database!$E$363:$BE$363,MATCH('Pipe Input'!$J$3,Database!$C$363:$BE$363,0),MATCH('Pipe Input'!G29,Database!$E$361:$BE$361,0)),IF(E29="HERCP",INDEX(Database!$E$405:$S$405,MATCH('Pipe Input'!$J$3,Database!$C$405:$S$405,0),MATCH('Pipe Input'!G29,Database!$E$402:$S$402,0)),IF(E29="HDPE",INDEX(Database!$E$427:$S$427,MATCH('Pipe Input'!$J$3,Database!$C$427:$S$427,0),MATCH('Pipe Input'!G29,Database!$E$425:$S$425,0)),IF(E29="CMP",INDEX(Database!$E$444:$AS$444,MATCH('Pipe Input'!$J$3,Database!$C$444:$AS$444,0),MATCH('Pipe Input'!G29,Database!$E$442:$AS$442,0)),"")))),"") ->  | L29: =IFERROR(IF(E29="RCP",M29,IF(E29="HERCP",N29,IF(E29="HDPE",INDEX(Database!$E$431:$S$431,MATCH('Pipe Input'!$L$3,Database!$C$431:$S$431,0),MATCH('Pipe Input'!G29,Database!$E$425:$S$425,0)),IF(E29="CMP",INDEX(Database!$E$449:$AS$449,MATCH('Pipe Input'!$L$3,Database!$C$449:$AS$449,0),MATCH('Pipe Input'!G29,Database!$E$442:$AS$442,0)),"")))),"") ->  | M29: =IF(E29="RCP",INDEX(Database!$E$368:$BE$372,MATCH('Pipe Input'!$E$2,Database!$C$368:$C$372,0),MATCH('Pipe Input'!G29,Database!$E$361:$BE$361,0)),"") ->  | N29: =IF(E29="HERCP",INDEX(Database!$E$409:$S$413,MATCH('Pipe Input'!$E$2,Database!$C$409:$C$413,0),MATCH('Pipe Input'!G29,Database!$E$402:$S$402,0)),"") ->  | O29: =IF(E29="RCP",Summary!$AT$5,IF(E29="HERCP",Summary!$AT$34,IF(E29="HDPE",Summary!$AT$51,IF(E29="CMP",Summary!$AT$73, "")))) ->  | Q29: 0 | R29: 0 | U29: 0 | X29: 0 | AB29: =IFERROR(IF(E29="HDPE",INDEX(Database!$E$434:$S$434,MATCH('Pipe Input'!$AB$3,Database!$C$434:$S$434,0),MATCH('Pipe Input'!G29,Database!$E$425:$S$425,0)),""), "") ->  | AE29: 0 | AF29: =IF(E29="RCP",INDEX(Database!$E$377:$BE$377,MATCH('Pipe Input'!$AF$3,Database!$C$377:$BE$377,0),MATCH('Pipe Input'!G29,Database!$E$361:$BE$361,0)),IF(E29="HERCP",INDEX(Database!$E$418:$S$418,MATCH('Pipe Input'!$AF$3,Database!$C$418:$S$418,0),MATCH('Pipe Input'!G29,Database!$E$402:$S$402,0)),"")) ->  | AG29: =IF(AND(E29="RCP",J29<>""),INDEX(Database!$E$379:$BE$379,MATCH('Pipe Input'!$AG$3,Database!$C$379:$BE$379,0),MATCH('Pipe Input'!G29,Database!$E$361:$BE$361,0)),"No") -> No | AH29: =IFERROR(IF(E29="RCP",INDEX(Database!$E$374:$BE$374,MATCH('Pipe Input'!$AH$3,Database!$C$374:$BE$374,0),MATCH('Pipe Input'!G29,Database!$E$361:$BE$361,0)),IF(E29="HERCP",INDEX(Database!$E$415:$S$415,MATCH('Pipe Input'!$AH$3,Database!$C$415:$S$415,0),MATCH('Pipe Input'!G29,Database!$E$402:$S$402,0)),IF(E29="HDPE",INDEX(Database!$E$432:$S$432,MATCH('Pipe Input'!$AH$3,Database!$C$432:$S$432,0),MATCH('Pipe Input'!G29,Database!$E$425:$S$425,0)),IF(E29="CMP",INDEX(Database!$E$450:$AS$450,MATCH('Pipe Input'!$AH$3,Database!$C$450:$AS$450,0),MATCH('Pipe Input'!G29,Database!$E$442:$AS$442,0)),"")))),"") ->  | AI29: 0 | AJ29: 0 | AK29: 0
B30: 27 | J30: =IFERROR(IF(E30="RCP",INDEX(Database!$E$363:$BE$363,MATCH('Pipe Input'!$J$3,Database!$C$363:$BE$363,0),MATCH('Pipe Input'!G30,Database!$E$361:$BE$361,0)),IF(E30="HERCP",INDEX(Database!$E$405:$S$405,MATCH('Pipe Input'!$J$3,Database!$C$405:$S$405,0),MATCH('Pipe Input'!G30,Database!$E$402:$S$402,0)),IF(E30="HDPE",INDEX(Database!$E$427:$S$427,MATCH('Pipe Input'!$J$3,Database!$C$427:$S$427,0),MATCH('Pipe Input'!G30,Database!$E$425:$S$425,0)),IF(E30="CMP",INDEX(Database!$E$444:$AS$444,MATCH('Pipe Input'!$J$3,Database!$C$444:$AS$444,0),MATCH('Pipe Input'!G30,Database!$E$442:$AS$442,0)),"")))),"") ->  | L30: =IFERROR(IF(E30="RCP",M30,IF(E30="HERCP",N30,IF(E30="HDPE",INDEX(Database!$E$431:$S$431,MATCH('Pipe Input'!$L$3,Database!$C$431:$S$431,0),MATCH('Pipe Input'!G30,Database!$E$425:$S$425,0)),IF(E30="CMP",INDEX(Database!$E$449:$AS$449,MATCH('Pipe Input'!$L$3,Database!$C$449:$AS$449,0),MATCH('Pipe Input'!G30,Database!$E$442:$AS$442,0)),"")))),"") ->  | M30: =IF(E30="RCP",INDEX(Database!$E$368:$BE$372,MATCH('Pipe Input'!$E$2,Database!$C$368:$C$372,0),MATCH('Pipe Input'!G30,Database!$E$361:$BE$361,0)),"") ->  | N30: =IF(E30="HERCP",INDEX(Database!$E$409:$S$413,MATCH('Pipe Input'!$E$2,Database!$C$409:$C$413,0),MATCH('Pipe Input'!G30,Database!$E$402:$S$402,0)),"") ->  | O30: =IF(E30="RCP",Summary!$AT$5,IF(E30="HERCP",Summary!$AT$34,IF(E30="HDPE",Summary!$AT$51,IF(E30="CMP",Summary!$AT$73, "")))) ->  | Q30: 0 | R30: 0 | U30: 0 | X30: 0 | AB30: =IFERROR(IF(E30="HDPE",INDEX(Database!$E$434:$S$434,MATCH('Pipe Input'!$AB$3,Database!$C$434:$S$434,0),MATCH('Pipe Input'!G30,Database!$E$425:$S$425,0)),""), "") ->  | AE30: 0 | AF30: =IF(E30="RCP",INDEX(Database!$E$377:$BE$377,MATCH('Pipe Input'!$AF$3,Database!$C$377:$BE$377,0),MATCH('Pipe Input'!G30,Database!$E$361:$BE$361,0)),IF(E30="HERCP",INDEX(Database!$E$418:$S$418,MATCH('Pipe Input'!$AF$3,Database!$C$418:$S$418,0),MATCH('Pipe Input'!G30,Database!$E$402:$S$402,0)),"")) ->  | AG30: =IF(AND(E30="RCP",J30<>""),INDEX(Database!$E$379:$BE$379,MATCH('Pipe Input'!$AG$3,Database!$C$379:$BE$379,0),MATCH('Pipe Input'!G30,Database!$E$361:$BE$361,0)),"No") -> No | AH30: =IFERROR(IF(E30="RCP",INDEX(Database!$E$374:$BE$374,MATCH('Pipe Input'!$AH$3,Database!$C$374:$BE$374,0),MATCH('Pipe Input'!G30,Database!$E$361:$BE$361,0)),IF(E30="HERCP",INDEX(Database!$E$415:$S$415,MATCH('Pipe Input'!$AH$3,Database!$C$415:$S$415,0),MATCH('Pipe Input'!G30,Database!$E$402:$S$402,0)),IF(E30="HDPE",INDEX(Database!$E$432:$S$432,MATCH('Pipe Input'!$AH$3,Database!$C$432:$S$432,0),MATCH('Pipe Input'!G30,Database!$E$425:$S$425,0)),IF(E30="CMP",INDEX(Database!$E$450:$AS$450,MATCH('Pipe Input'!$AH$3,Database!$C$450:$AS$450,0),MATCH('Pipe Input'!G30,Database!$E$442:$AS$442,0)),"")))),"") ->  | AI30: 0 | AJ30: 0 | AK30: 0
B31: 28 | J31: =IFERROR(IF(E31="RCP",INDEX(Database!$E$363:$BE$363,MATCH('Pipe Input'!$J$3,Database!$C$363:$BE$363,0),MATCH('Pipe Input'!G31,Database!$E$361:$BE$361,0)),IF(E31="HERCP",INDEX(Database!$E$405:$S$405,MATCH('Pipe Input'!$J$3,Database!$C$405:$S$405,0),MATCH('Pipe Input'!G31,Database!$E$402:$S$402,0)),IF(E31="HDPE",INDEX(Database!$E$427:$S$427,MATCH('Pipe Input'!$J$3,Database!$C$427:$S$427,0),MATCH('Pipe Input'!G31,Database!$E$425:$S$425,0)),IF(E31="CMP",INDEX(Database!$E$444:$AS$444,MATCH('Pipe Input'!$J$3,Database!$C$444:$AS$444,0),MATCH('Pipe Input'!G31,Database!$E$442:$AS$442,0)),"")))),"") ->  | L31: =IFERROR(IF(E31="RCP",M31,IF(E31="HERCP",N31,IF(E31="HDPE",INDEX(Database!$E$431:$S$431,MATCH('Pipe Input'!$L$3,Database!$C$431:$S$431,0),MATCH('Pipe Input'!G31,Database!$E$425:$S$425,0)),IF(E31="CMP",INDEX(Database!$E$449:$AS$449,MATCH('Pipe Input'!$L$3,Database!$C$449:$AS$449,0),MATCH('Pipe Input'!G31,Database!$E$442:$AS$442,0)),"")))),"") ->  | M31: =IF(E31="RCP",INDEX(Database!$E$368:$BE$372,MATCH('Pipe Input'!$E$2,Database!$C$368:$C$372,0),MATCH('Pipe Input'!G31,Database!$E$361:$BE$361,0)),"") ->  | N31: =IF(E31="HERCP",INDEX(Database!$E$409:$S$413,MATCH('Pipe Input'!$E$2,Database!$C$409:$C$413,0),MATCH('Pipe Input'!G31,Database!$E$402:$S$402,0)),"") ->  | O31: =IF(E31="RCP",Summary!$AT$5,IF(E31="HERCP",Summary!$AT$34,IF(E31="HDPE",Summary!$AT$51,IF(E31="CMP",Summary!$AT$73, "")))) ->  | Q31: 0 | R31: 0 | U31: 0 | X31: 0 | AB31: =IFERROR(IF(E31="HDPE",INDEX(Database!$E$434:$S$434,MATCH('Pipe Input'!$AB$3,Database!$C$434:$S$434,0),MATCH('Pipe Input'!G31,Database!$E$425:$S$425,0)),""), "") ->  | AE31: 0 | AF31: =IF(E31="RCP",INDEX(Database!$E$377:$BE$377,MATCH('Pipe Input'!$AF$3,Database!$C$377:$BE$377,0),MATCH('Pipe Input'!G31,Database!$E$361:$BE$361,0)),IF(E31="HERCP",INDEX(Database!$E$418:$S$418,MATCH('Pipe Input'!$AF$3,Database!$C$418:$S$418,0),MATCH('Pipe Input'!G31,Database!$E$402:$S$402,0)),"")) ->  | AG31: =IF(AND(E31="RCP",J31<>""),INDEX(Database!$E$379:$BE$379,MATCH('Pipe Input'!$AG$3,Database!$C$379:$BE$379,0),MATCH('Pipe Input'!G31,Database!$E$361:$BE$361,0)),"No") -> No | AH31: =IFERROR(IF(E31="RCP",INDEX(Database!$E$374:$BE$374,MATCH('Pipe Input'!$AH$3,Database!$C$374:$BE$374,0),MATCH('Pipe Input'!G31,Database!$E$361:$BE$361,0)),IF(E31="HERCP",INDEX(Database!$E$415:$S$415,MATCH('Pipe Input'!$AH$3,Database!$C$415:$S$415,0),MATCH('Pipe Input'!G31,Database!$E$402:$S$402,0)),IF(E31="HDPE",INDEX(Database!$E$432:$S$432,MATCH('Pipe Input'!$AH$3,Database!$C$432:$S$432,0),MATCH('Pipe Input'!G31,Database!$E$425:$S$425,0)),IF(E31="CMP",INDEX(Database!$E$450:$AS$450,MATCH('Pipe Input'!$AH$3,Database!$C$450:$AS$450,0),MATCH('Pipe Input'!G31,Database!$E$442:$AS$442,0)),"")))),"") ->  | AI31: 0 | AJ31: 0 | AK31: 0
B32: 29 | J32: =IFERROR(IF(E32="RCP",INDEX(Database!$E$363:$BE$363,MATCH('Pipe Input'!$J$3,Database!$C$363:$BE$363,0),MATCH('Pipe Input'!G32,Database!$E$361:$BE$361,0)),IF(E32="HERCP",INDEX(Database!$E$405:$S$405,MATCH('Pipe Input'!$J$3,Database!$C$405:$S$405,0),MATCH('Pipe Input'!G32,Database!$E$402:$S$402,0)),IF(E32="HDPE",INDEX(Database!$E$427:$S$427,MATCH('Pipe Input'!$J$3,Database!$C$427:$S$427,0),MATCH('Pipe Input'!G32,Database!$E$425:$S$425,0)),IF(E32="CMP",INDEX(Database!$E$444:$AS$444,MATCH('Pipe Input'!$J$3,Database!$C$444:$AS$444,0),MATCH('Pipe Input'!G32,Database!$E$442:$AS$442,0)),"")))),"") ->  | L32: =IFERROR(IF(E32="RCP",M32,IF(E32="HERCP",N32,IF(E32="HDPE",INDEX(Database!$E$431:$S$431,MATCH('Pipe Input'!$L$3,Database!$C$431:$S$431,0),MATCH('Pipe Input'!G32,Database!$E$425:$S$425,0)),IF(E32="CMP",INDEX(Database!$E$449:$AS$449,MATCH('Pipe Input'!$L$3,Database!$C$449:$AS$449,0),MATCH('Pipe Input'!G32,Database!$E$442:$AS$442,0)),"")))),"") ->  | M32: =IF(E32="RCP",INDEX(Database!$E$368:$BE$372,MATCH('Pipe Input'!$E$2,Database!$C$368:$C$372,0),MATCH('Pipe Input'!G32,Database!$E$361:$BE$361,0)),"") ->  | N32: =IF(E32="HERCP",INDEX(Database!$E$409:$S$413,MATCH('Pipe Input'!$E$2,Database!$C$409:$C$413,0),MATCH('Pipe Input'!G32,Database!$E$402:$S$402,0)),"") ->  | O32: =IF(E32="RCP",Summary!$AT$5,IF(E32="HERCP",Summary!$AT$34,IF(E32="HDPE",Summary!$AT$51,IF(E32="CMP",Summary!$AT$73, "")))) ->  | Q32: 0 | R32: 0 | U32: 0 | X32: 0 | AB32: =IFERROR(IF(E32="HDPE",INDEX(Database!$E$434:$S$434,MATCH('Pipe Input'!$AB$3,Database!$C$434:$S$434,0),MATCH('Pipe Input'!G32,Database!$E$425:$S$425,0)),""), "") ->  | AE32: 0 | AF32: =IF(E32="RCP",INDEX(Database!$E$377:$BE$377,MATCH('Pipe Input'!$AF$3,Database!$C$377:$BE$377,0),MATCH('Pipe Input'!G32,Database!$E$361:$BE$361,0)),IF(E32="HERCP",INDEX(Database!$E$418:$S$418,MATCH('Pipe Input'!$AF$3,Database!$C$418:$S$418,0),MATCH('Pipe Input'!G32,Database!$E$402:$S$402,0)),"")) ->  | AG32: =IF(AND(E32="RCP",J32<>""),INDEX(Database!$E$379:$BE$379,MATCH('Pipe Input'!$AG$3,Database!$C$379:$BE$379,0),MATCH('Pipe Input'!G32,Database!$E$361:$BE$361,0)),"No") -> No | AH32: =IFERROR(IF(E32="RCP",INDEX(Database!$E$374:$BE$374,MATCH('Pipe Input'!$AH$3,Database!$C$374:$BE$374,0),MATCH('Pipe Input'!G32,Database!$E$361:$BE$361,0)),IF(E32="HERCP",INDEX(Database!$E$415:$S$415,MATCH('Pipe Input'!$AH$3,Database!$C$415:$S$415,0),MATCH('Pipe Input'!G32,Database!$E$402:$S$402,0)),IF(E32="HDPE",INDEX(Database!$E$432:$S$432,MATCH('Pipe Input'!$AH$3,Database!$C$432:$S$432,0),MATCH('Pipe Input'!G32,Database!$E$425:$S$425,0)),IF(E32="CMP",INDEX(Database!$E$450:$AS$450,MATCH('Pipe Input'!$AH$3,Database!$C$450:$AS$450,0),MATCH('Pipe Input'!G32,Database!$E$442:$AS$442,0)),"")))),"") ->  | AI32: 0 | AJ32: 0 | AK32: 0
B33: 30 | J33: =IFERROR(IF(E33="RCP",INDEX(Database!$E$363:$BE$363,MATCH('Pipe Input'!$J$3,Database!$C$363:$BE$363,0),MATCH('Pipe Input'!G33,Database!$E$361:$BE$361,0)),IF(E33="HERCP",INDEX(Database!$E$405:$S$405,MATCH('Pipe Input'!$J$3,Database!$C$405:$S$405,0),MATCH('Pipe Input'!G33,Database!$E$402:$S$402,0)),IF(E33="HDPE",INDEX(Database!$E$427:$S$427,MATCH('Pipe Input'!$J$3,Database!$C$427:$S$427,0),MATCH('Pipe Input'!G33,Database!$E$425:$S$425,0)),IF(E33="CMP",INDEX(Database!$E$444:$AS$444,MATCH('Pipe Input'!$J$3,Database!$C$444:$AS$444,0),MATCH('Pipe Input'!G33,Database!$E$442:$AS$442,0)),"")))),"") ->  | L33: =IFERROR(IF(E33="RCP",M33,IF(E33="HERCP",N33,IF(E33="HDPE",INDEX(Database!$E$431:$S$431,MATCH('Pipe Input'!$L$3,Database!$C$431:$S$431,0),MATCH('Pipe Input'!G33,Database!$E$425:$S$425,0)),IF(E33="CMP",INDEX(Database!$E$449:$AS$449,MATCH('Pipe Input'!$L$3,Database!$C$449:$AS$449,0),MATCH('Pipe Input'!G33,Database!$E$442:$AS$442,0)),"")))),"") ->  | M33: =IF(E33="RCP",INDEX(Database!$E$368:$BE$372,MATCH('Pipe Input'!$E$2,Database!$C$368:$C$372,0),MATCH('Pipe Input'!G33,Database!$E$361:$BE$361,0)),"") ->  | N33: =IF(E33="HERCP",INDEX(Database!$E$409:$S$413,MATCH('Pipe Input'!$E$2,Database!$C$409:$C$413,0),MATCH('Pipe Input'!G33,Database!$E$402:$S$402,0)),"") ->  | O33: =IF(E33="RCP",Summary!$AT$5,IF(E33="HERCP",Summary!$AT$34,IF(E33="HDPE",Summary!$AT$51,IF(E33="CMP",Summary!$AT$73, "")))) ->  | Q33: 0 | R33: 0 | U33: 0 | X33: 0 | AB33: =IFERROR(IF(E33="HDPE",INDEX(Database!$E$434:$S$434,MATCH('Pipe Input'!$AB$3,Database!$C$434:$S$434,0),MATCH('Pipe Input'!G33,Database!$E$425:$S$425,0)),""), "") ->  | AE33: 0 | AF33: =IF(E33="RCP",INDEX(Database!$E$377:$BE$377,MATCH('Pipe Input'!$AF$3,Database!$C$377:$BE$377,0),MATCH('Pipe Input'!G33,Database!$E$361:$BE$361,0)),IF(E33="HERCP",INDEX(Database!$E$418:$S$418,MATCH('Pipe Input'!$AF$3,Database!$C$418:$S$418,0),MATCH('Pipe Input'!G33,Database!$E$402:$S$402,0)),"")) ->  | AG33: =IF(AND(E33="RCP",J33<>""),INDEX(Database!$E$379:$BE$379,MATCH('Pipe Input'!$AG$3,Database!$C$379:$BE$379,0),MATCH('Pipe Input'!G33,Database!$E$361:$BE$361,0)),"No") -> No | AH33: =IFERROR(IF(E33="RCP",INDEX(Database!$E$374:$BE$374,MATCH('Pipe Input'!$AH$3,Database!$C$374:$BE$374,0),MATCH('Pipe Input'!G33,Database!$E$361:$BE$361,0)),IF(E33="HERCP",INDEX(Database!$E$415:$S$415,MATCH('Pipe Input'!$AH$3,Database!$C$415:$S$415,0),MATCH('Pipe Input'!G33,Database!$E$402:$S$402,0)),IF(E33="HDPE",INDEX(Database!$E$432:$S$432,MATCH('Pipe Input'!$AH$3,Database!$C$432:$S$432,0),MATCH('Pipe Input'!G33,Database!$E$425:$S$425,0)),IF(E33="CMP",INDEX(Database!$E$450:$AS$450,MATCH('Pipe Input'!$AH$3,Database!$C$450:$AS$450,0),MATCH('Pipe Input'!G33,Database!$E$442:$AS$442,0)),"")))),"") ->  | AI33: 0 | AJ33: 0 | AK33: 0
S35: Truck Rate | T35: =(Summary!AT4) -> 0 | U35: RCP | V35: Truck Rate | W35: =Summary!AT33 -> 0 | X35: HERCP | Y35: Truck Rate | Z35: =Summary!AT50 -> 0 | AB35: HDPE | AD35: RCP Frt Cost: | AE35: =Summary!AH11*'Pipe Input'!T37 -> 0
S36: Truck $ Total | T36: # of Trucks | U36: Total Wt. | V36: Truck $ Total | W36: # of Trucks | X36: Total Wt. | Y36: Truck $ Total | Z36: # of Trucks | AA36: % Load Sum | AB36: Load Count | AD36: HERCP Frt Cost: | AE36: =Summary!AH11*'Pipe Input'!W37 -> 0
S37: =(T37*T35) -> 0 | T37: =(Summary!AT2) -> 0 | U37: =SUM(U4:U33) -> 0 | V37: =(W37*W35) -> 0 | W37: =Summary!AT31 -> 0 | X37: =SUM(X4:X33) -> 0 | Y37: =(Z37*Z35) -> 0 | Z37: =(Summary!AT49) -> 0 | AA37: =SUM(AA4:AA33) -> 0 | AB37: =(AA37/100) -> 0
S38: =(S37) -> 0 | T38: 0 | U38: =(U37) -> 0 | V38: 0 | W38: 0 | X38: 0 | Y38: 0 | Z38: 0 | AA38: 0 | AB38: =(AA38/100) -> 0
S39: =(S38) -> 0 | T39: =(T38) -> 0 | U39: =(U38) -> 0 | V39: =(V38) -> 0 | W39: =(W38) -> 0 | X39: =(X38) -> 0 | Y39: 0 | Z39: =(Z38) -> 0 | AA39: =(AA38) -> 0 | AB39: 0
S40: 0 | T40: =(T39) -> 0 | U40: 0 | V40: 0 | W40: 0 | X40: 0 | Y40: 0 | Z40: 0 | AA40: 0 | AB40: 0
S41: 0 | T41: 0 | U41: 0 | V41: 0 | W41: 0 | X41: 0 | Y41: 0 | Z41: 0 | AA41: 0 | AB41: 0
S42: 0 | T42: 0 | U42: 0 | V42: 0 | W42: 0 | X42: 0 | Y42: 0 | Z42: 0 | AA42: 0 | AB42: 0
S43: 0 | T43: =(T42) -> 0 | U43: 0 | V43: 0 | W43: 0 | X43: 0 | Y43: 0 | Z43: 0 | AA43: 0 | AB43: 0
S44: 0 | T44: 0 | U44: 0 | V44: 0 | W44: 0 | X44: 0 | Y44: 0 | Z44: 0 | AA44: 0 | AB44: 0
S45: 0 | T45: 0 | U45: 0 | V45: 0 | W45: 0 | X45: 0 | Y45: 0 | Z45: 0 | AA45: 0 | AB45: 0
S46: 0 | T46: 0 | U46: 0 | V46: 0 | W46: 0 | X46: 0 | Y46: 0 | Z46: 0 | AA46: 0 | AB46: 0
S47: 0 | T47: 0 | U47: 0 | V47: 0 | W47: 0 | X47: 0 | Y47: 0 | Z47: 0 | AA47: 0 | AB47: 0
S48: 0 | T48: 0 | U48: 0 | V48: 0 | W48: 0 | X48: 0 | Y48: 0 | Z48: 0 | AA48: 0 | AB48: 0
S49: 0 | T49: 0 | U49: 0 | V49: 0 | W49: 0 | X49: 0 | Y49: 0 | Z49: 0 | AA49: 0 | AB49: 0
S50: 0 | T50: 0 | U50: 0 | V50: 0 | W50: 0 | X50: 0 | Y50: 0 | Z50: 0 | AA50: 0 | AB50: 0
S51: 0 | T51: 0 | U51: 0 | V51: 0 | W51: 0 | X51: 0 | Y51: 0 | Z51: 0 | AA51: 0 | AB51: 0
S52: 0 | T52: 0 | U52: 0 | V52: 0 | W52: 0 | X52: 0 | Y52: 0 | Z52: 0 | AA52: 0 | AB52: 0
S53: 0 | T53: 0 | U53: 0 | V53: 0 | W53: 0 | X53: 0 | Y53: 0 | Z53: 0 | AA53: 0 | AB53: 0
S54: 0 | T54: 0 | U54: 0 | V54: 0 | W54: 0 | X54: 0 | Y54: 0 | Z54: 0 | AA54: 0 | AB54: 0
S55: 0 | T55: 0 | U55: 0 | V55: 0 | W55: 0 | X55: 0 | Y55: 0 | Z55: 0 | AA55: 0 | AB55: 0
S56: 0 | T56: 0 | U56: 0 | V56: 0 | W56: 0 | X56: 0 | Y56: 0 | Z56: 0 | AA56: 0 | AB56: 0
S57: 0 | T57: 0 | U57: 0 | V57: 0 | W57: 0 | X57: 0 | Y57: 0 | Z57: 0 | AA57: 0 | AB57: 0
S58: 0 | T58: 0 | U58: 0 | V58: 0 | W58: 0 | X58: 0 | Y58: 0 | Z58: 0 | AA58: 0 | AB58: 0
S59: 0 | T59: 0 | U59: 0 | V59: 0 | W59: 0 | X59: 0 | Y59: 0 | Z59: 0 | AA59: 0 | AB59: 0
S60: 0 | T60: 0 | U60: 0 | V60: 0 | W60: 0 | X60: 0 | Y60: 0 | Z60: 0 | AA60: 0 | AB60: 0
S61: 0 | T61: 0 | U61: 0 | V61: 0 | W61: 0 | X61: 0 | Y61: 0 | Z61: 0 | AA61: 0 | AB61: 0
S62: 0 | T62: 0 | U62: 0 | V62: 0 | W62: 0 | X62: 0 | Y62: 0 | Z62: 0 | AA62: 0 | AB62: 0
S63: 0 | T63: 0 | U63: 0 | V63: 0 | W63: 0 | X63: 0 | Y63: 0 | Z63: 0 | AA63: 0 | AB63: 0
S64: 0 | T64: 0 | U64: 0 | V64: 0 | W64: 0 | X64: 0 | Y64: 0 | Z64: 0 | AA64: 0 | AB64: 0
S65: 0 | T65: 0 | U65: 0 | V65: 0 | W65: 0 | X65: 0 | Y65: 0 | Z65: 0 | AA65: 0 | AB65: 0
S66: 0 | T66: 0 | U66: 0 | V66: 0 | W66: 0 | X66: 0 | Y66: 0 | Z66: 0 | AA66: 0 | AB66: 0
S67: 0 | T67: 0 | U67: 0 | V67: 0 | W67: 0 | X67: =(X66) -> 0 | Y67: =(Y66) -> 0 | Z67: 0 | AA67: 0 | AB67: 0

Sheet Structure Input
A7: Data Collection: Unlocked Cells. Fill out all yellow boxes. Yellow cells override blue formulas. | DD7: Number of Truck Loads Required | DK7: =(Summary!AI11) -> 0.4006299726 | DL7: =(Summary!AJ11) -> 1 | DX7: Rounded Up Largest Pipe Wall Thickness (Inches) | EH7: Dimension inputs are not required for standard GT's, Tanks if using the component price function in column G. | EO7: Minimum I-Cast Configurations: (Storm - 1" CS-102) (Sanitary - 1" CS-102 Dbl, 6" CS-212) (Wet Well - 1" CS-231 Dbl, 12" MacWrap) | FC7: Rectangle | FD7: Rectangle | FE7: Rectangle or Round Thicknesses (Inches) | GH7: Freight Category: 1 = (Standard Load), 2 = (8'7" to 12'5"), 3 = (12'6" to 13'11"), 4 = (14'0" to 16'0") | GV7: Component Tons Each | GW7: Estimators Internal Comments in Grey Cell | HA7: Over Weight Load (Single Piece over 45,000 LBS) | HB7: Dedicate freight to only this Item # (No loads to be combined with other Item #'s) | KH7: INPUT ACTUAL COST ON RESALE ITEMS, WITHOUT MARKUP | LZ7: Add Load Total Freight Fee for Wide Load
A8: Formula Cells: Type value in cell to overide formula. Unlock Password: I-Cast | CS8: Elevation | DA8: Pipe Info (Enter Largest Pipe as Pipe 1) | DK8: Casting Quick Ref. (Y-AE) | DY8: Add for Min. Depth or Sump (feet) | EA8: Transition | EF8: Reference | EH8: Structure Configuration | FI8: Transition | FN8: External Perimeter | FQ8: Internal Perimeter | FT8: Pipe Chamber Round Volume | FX8: Pipe Chamber Rectangle Volume | GB8: Transition Volume | GE8: Load Width | GJ8: Total Load Count | GN8: Load Tonnage | GW8: Estimators External Comments in Yellow Cell | HL8: List Prices | HV8: KO Structrue Height in Inches + Pipe WT - Casting Ht. | HW8: KO Str. | JP8: VF Cost Rate | JU8: List Prices | KH8: Cost, Multiplier & Selling Price | KR8: Product ID | KS8: Product ID | KT8: Product ID | KU8: Product ID | KV8: Product ID | KW8: Product ID | LW8: Freight Fee for Piece Weight over 45K Lbs | LY8: Load 1 Freight Total Fee for Wide Load | MA8: Total freight Amount (Base Rate + Fees)
A9: Line Item # | B9: ID | C9: JobName1 | D9: JobName2 | E9: Bid Item ID | F9: Spec | G9: Type | H9: Size | I9: Rim | J9: Reducer | K9: Inv 1 Elev | L9: Inv 1 Deg | M9: Inv 1 Offset [in] | N9: Inv 1 Pipe | O9: Inv 1 Dia | P9: Inv 1 Conn | Q9: Inv 2 Elev | R9: Inv 2 Deg | S9: Inv 2 Offset [in] | T9: Inv 2 Pipe | U9: Inv 2 Dia | V9: Inv 2 Conn | W9: Inv 3 Elev | X9: Inv 3 Deg | Y9: Inv 3 Offset [in] | Z9: Inv 3 Pipe | AA9: Inv 3 Dia | AB9: Inv 3 Conn | AC9: Inv 4 Elev | AD9: Inv 4 Deg | AE9: Inv 4 Offset [in] | AF9: Inv 4 Pipe | AG9: Inv 4 Dia | AH9: Inv 4 Conn | AI9: Inv 5 Elev | AJ9: Inv 5 Deg | AK9: Inv 5 Offset [in] | AL9: Inv 5 Pipe | AM9: Inv 5 Dia | AN9: Inv 5 Conn | AO9: Inv 6 Elev | AP9: Inv 6 Deg | AQ9: Inv 6 Offset [in] | AR9: Inv 6 Pipe | AS9: Inv 6 Dia | AT9: Inv 6 Conn | AU9: Inv 7 Elev | AV9: Inv 7 Deg | AW9: Inv 7 Offset [in] | AX9: Inv 7 Pipe | AY9: Inv 7 Dia | AZ9: Inv 7 Conn | BA9: Inv 8 Elev | BB9: Inv 8 Deg | BC9: Inv 8 Offset [in] | BD9: Inv 8 Pipe | BE9: Inv 8 Dia | BF9: Inv 8 Conn | BG9: Sump | BH9: Rim to Invert | BI9: Rim1 Part | BJ9: Rim1 Height | BK9: Top1 Part | BL9: Top1 Height | BM9: Wall | BN9: Floor | BO9: Extended Floor | BP9: Invert Channel | BQ9: Drop 1 Height | BR9: Drop 2 Height | BS9: Steps | BT9: Joint Count | BU9: Joint Perimeter | BV9: Joint Sealant | BW9: Joint Wrap | BX9: Admixture | BY9: Coating Int Type | BZ9: Coating Int Qty | CA9: Coating Ext Type | CB9: Coating Ext Qty | CC9: Overall Structure Ht | CD9: Structure Weight (Net) | CE9: Structure Volume (Net) | CF9: Ancillary | CG9: Status | CH9: Phase/ Alt./ Section | CI9: Bid Item # | CJ9: Quantity | CK9: Stack-It Spec Translation | CL9: Stack-It Type Translation | CM9: Type | CN9: Stack-It Specification Translation | CO9: Sub Type | CP9: Structure Description | CQ9: Component Type: (Headwall, Top Phase, Riser Section, Tops, KO) | CR9: STR # | CS9: Rim / Top | CT9: Pipe 1 / Floor Override (Lowest) | CU9: # | CV9: Pipes | CW9: Manual Entry Pipe Override | CX9: Pipe Difference | CY9: Eligible for a Drop | CZ9: Drop Depth | DA9: # | DB9: ID | DC9: Stack-It Pipe Type | DD9: Angle | DE9: Pipe ID, Type & Connection Type (Default to RCP/HDPE for open storm pipe spec's) | DF9: Pipe Seal Legend # | DG9: See Notes" X" Mark for Quote | DH9: Product ID | DI9: Pipe Seal Cost | DJ9: Casting Index Formula | DK9: Casting or Hatch Model# (Yellow) Type: "Casting" or "Hatch" (Orange) Accessory Selection (Green) | DL9: Casting Height | DM9: Casting Qty Per Structure | DN9: Clear Opening | DO9: Precast Opening Size | DP9: Stock or Non-Stock Item | DQ9: Number of Non-Stock Items | DR9: Equivalent 1 | DS9: Equivalent 2 | DT9: Equivalent 3 | DU9: Specification | DV9: Specification | DW9: Grade Ring Height | DZ9: Total Str. Rim- Inv. Depth (ft) | EA9: Pipe Chamber Depth (ft) | EB9: Transition Depth (Ft) | EC9: Transition Status | ED9: Structure Type | EE9: Min. Base Ht. For Trans. Str. | EF9: Stack-It Structure Size Translation | EG9: Stack-It Structure Shape (Round or Flat Wall) | EH9: Structure Size | EI9: Top/Trans Slab Required | EJ9: Base Slab Required | EK9: Stack-It Admixture Translation | EL9: Plain Concrete or Special Admixture | EM9: Open Bottom or Open Top | EN9: Stack-It Joint Sealant Translation | EO9: Joint Sealant | EP9: Joint Sealant Legend # | EQ9: Stack-It Joint Wrap Translation | ER9: Exterior Joint Wrap | ES9: Exterior Joint Wrap Legend # | ET9: MH Step | EU9: Stack-It Ext Coating Translation | EV9: Exterior Coating (Yellow) or Interior Coating (Green) | EW9: Coating Legend # | EX9: Coating Legend # | EY9: Round Shaped Invert | EZ9: Round Shaped Invert | FA9: Standard Base Extension | FB9: Dia (inches) | FC9: Width (inches) | FD9: Length (inches) | FE9: Base | FF9: Lid | FG9: Walls | FH9: Base Ext | FI9: Dia (inches) | FJ9: Width (inches) | FK9: Length (inches) | FL9: Lid | FM9: Walls | FN9: Round Perimeter (Feet) | FO9: Flat Wall Perimeter (Feet) | FP9: Perimeter (Feet) | FQ9: Round Perimeter (Feet) | FR9: Flat Wall Perimeter (Feet) | FS9: Perimeter (Feet) | FT9: Base | FU9: Wall | FV9: Lid | FW9: Total | FX9: Base | FY9: Wall | FZ9: Lid | GA9: Total | GB9: Wall | GC9: Lid | GD9: Total | GE9: Initial Load Width (Base Slab Dimension) | GF9: Additonal Load Width (Riser Dimension) | GG9: Component Load Width | GH9: Initial Load Category | GI9: Additonal Load Category | GJ9: Initial Load Count | GK9: Additonal Load Count | GL9: Total Load Count for Item | GM9: Load Count Added to Item | GN9: Initial Load Tons Each (Base Slab) | GO9: Additonal Load Tons Each (Riser,Top) | GP9: Total Load 1 Tons (Base Slab) | GQ9: Total Additonal Load Tons (Riser,Top) | GR9: Category 1 Tonnage | GS9: Category 2 Tonnage | GT9: Category 3 Tonnage | GU9: Category 4 Tonnage | GY9: Jon Comments | GZ9: # Loads over 45,000 LBS | HC9: Standard Cubic Feet | HD9: Total Tons | HE9: Tons Each | HF9: Custom Cubic Feet | HG9: Custom Rate per CF | HH9: Plain / Xypex / MIC / Xypex+MIC | HI9: Admixture Legend # | HJ9: Pipe Chamber Depth (ft) | HK9: Structure Type | HL9: Base Price Depth | HM9: Round Base & Top | HN9: Flat Wall Base | HO9: Flat Wall Lid Adder | HP9: VF Adder Rate | HQ9: Round Component Price | HR9: Trans. Riser | HS9: Trans. Top | HT9: Round Base Slab Deduct | HU9: Round Lid Slab Deduct | HW9: KO Base Height Inches | HX9: KO Base Price | HY9: KO Base Weight | HZ9: KO Base Product ID | IA9: KO Lid Height Inches | IB9: KO Lid Price | IC9: KO Lid Weight | ID9: Lid for KO Structure Product ID | IE9: Remaining Height After Base, Lid and Casting | IF9: KO Riser #1 Height Inches | IG9: KO Riser Price | IH9: KO Riser Weight | II9: Riser Product ID | IJ9: Remaining Height After Base, Lid, Riser 1 and Casting | IK9: KO Riser #2 Height Inches | IL9: KO Riser Price | IM9: KO Riser Weight | IN9: Riser Product ID | IO9: Remaining Height After Base, Lid, Riser 1,2 and Casting | IP9: KO Riser #3 Height Inches | IQ9: KO Riser Price | IR9: KO Riser Weight | IS9: Riser Product ID | IT9: Remaining Height After Base, Lid, Riser 1,2,3 and Casting | IU9: KO Riser #4 Height Inches | IV9: KO Riser Price | IW9: KO Riser Weight | IX9: Riser Product ID | IY9: Remaining Height After Base, Lid, Riser 1,2,3 and Casting | IZ9: KO Riser #5 Height Inches | JA9: KO Riser Price | JB9: KO Riser Weight | JC9: Riser Product ID | JD9: Remaining Height After Base, Lid, Riser 1,2,3,4 and Casting | JE9: KO Grade Ring 1 Height | JF9: KO Grade Ring 1 Price | JG9: Grade Ring Product ID | JH9: Remaining Height After Base, Lid, Riser 1,2,3,4,GR1 and Casting | JI9: KO Grade Ring 2 Height | JJ9: KO Grade Ring 2 Price | JK9: Grade Ring Product ID | JL9: Grout Field Adjustment or Negative Sump In Inches | JM9: KO Structure Total Price | JN9: KO Structure Total Weight (Tons) | JO9: Joint Sealant Cost Per LF | JP9: Joint Sealant Cost Rate | JQ9: Exterior Wrap Cost Per LF | JR9: Exterior Joint Wrap Cost Rate | JS9: MH Step Cost Rate | JT9: Coating Cost Per Sq. Ft. | JU9: Exterior Coating Rate | JV9: Interior Coating Rate | JW9: Largest Actual Pipe Size | JX9: Largest Invert Size | JY9: Shaped Invert | JZ9: Base Ext Adder | KA9: Grade Ring Adder | KB9: Casting In Frame or Hatch Adder | KC9: Weir Wall Adder | KD9: V-Notch or other Shape Adder | KE9: WQU or Detention System | KF9: Grease Oil Sep Septic Tank | KG9: Headwall or Top Phase List Price | KH9: Casting Price | KI9: Used for Casting Price Total | KJ9: Used for Hatch Price Total | KK9: Used for Casting Cost Total | KL9: Used for Hatch Cost Total | KM9: Item Casting Total Quantity | KN9: Item Hatch Total Quantity | KO9: Casting Fraction of the Total | KP9: Hatch Fraction of the Total | KQ9: Accessory 1 Selling Price | KR9: Structure ID / Casting Set ID /Accessory ID | KS9: Casting Set ID | KT9: Accessory ID | KU9: Casting Frame ID | KV9: Casting Cover-Grate ID | KW9: Casting Curb Box ID | KX9: Exterior Coating Quantity | KY9: Interior Coating Quantity | KZ9: Exterior Drop Multiplier | LA9: Exterior Drop Rate | LB9: Exterior Drop Depth (4' Min) | LC9: STR ID | LD9: VF over Base | LE9: VF of Trans. Riser | LF9: Joint Sealant Cost | LG9: Joint Wrap Cost | LH9: Pipe Connector Cost | LI9: MH Step Cost | LJ9: Sealant Connector Step Selling Price | LK9: Sealant Connector Step Selling Price | LL9: Exterior Drop | LM9: Exterior Coating | LN9: Interior Coating | LO9: Custom Products | LP9: Unit Freight | LQ9: Total Selling Price | LR9: Rate/CF | LS9: Base Rate Total Freight | LT9: Total Not Used | LU9: Rate/CF Not used | LV9: Freight % | LX9: Dedicated load Fee | MB9: Unit Freight W/Fees Not Used | MC9: Freight Group | MD9: Precast Multiplier | ME9: Total PC $ w/frt & Accessories | MF9: Total PC $ w/frt w/o Accessories (Precast Only) | MG9: Total PC $ No Frt w/o Accessories (Precast Only)
A10: Master Configuration Chart / Kits | EH10: Master Configuration Chart / Kits (Note: individual structure overrides may differ)
A11: A | CM11: Storm | EH11: Storm | EL11: Stack-It Data | EM11: =IFERROR(IF(AND(OR(EI11="Yes Top",EI11="Trans 48""R W/Top",EI11="Trans 60""R W/Top",EI11="Trans 24""x24"" Riser",EI11="Trans 24""x24"" W/Top",EI11="Trans 24""x30"" Riser",EI11="Trans 24""x30"" W/Top",EI11="Trans 24""x36"" Riser",EI11="Trans 24""x36"" W/Top",EI11="Trans 36""x36"" Riser",EI11="Trans 36""x36"" W/Top"),CS11>0,EJ11="W/Base"),"No",IF(AND(OR(EI11="Yes Top",EI11="Trans 48""R W/Top",EI11="Trans 60""R W/Top",EI11="Trans 24""x24"" Riser",EI11="Trans 24""x24"" W/Top",EI11="Trans 24""x30"" Riser",EI11="Trans 24""x30"" W/Top",EI11="Trans 24""x36"" Riser",EI11="Trans 24""x36"" W/Top",EI11="Trans 36""x36"" Riser",EI11="Trans 36""x36"" W/Top"),CS11>0,EJ11="No Base"),"OB",IF(AND(EI11="No Top",CS11>0,DK11=0,EJ11="W/Base"),"OT",IF(AND(EI11="No Top",CS11>0,DK11>0,EJ11="W/Base"),"No",IF(AND(EI11="No Top",CS11>0,DK11=0,EJ11="No Base"),"OB & OT",IF(AND(EI11="No Top",CS11>0,DK11>0,EJ11="No Base"),"OB","")))))),"") ->  | EO11: 1" CS-102 | EP11: =IF(EO11="1"" CS-102",1,IF(EO11="1"" CS-102 Dbl",2,IF(EO11="1.25"" CS-102",3,IF(EO11="1.25"" CS-102 Dbl",4,IF(EO11="1"" CS-231",5,IF(EO11="1"" CS-231 Dbl",6,IF(EO11="1.25"" CS-231",7,IF(EO11="1.25"" CS-231 Dbl",8,IF(EO11="3/4"" CS-440",9,IF(EO11="HK TSS Gasket",10,IF(AND(CJ11>0,EO11=""),"No",""))))))))))) -> 1 | ER11: Stack-It Data | ES11: =IF(ER11="6"" CS-212",1,IF(ER11="12"" CS-212",2,IF(ER11="12"" MacWrap",3,IF(AND(CJ11>0,ER11=""),"No","")))) ->  | ET11: Stack-It Data | EV11: Stack-It Data | EW11: =IF(ISNUMBER(SEARCH("CS-55",EV11)),"1",IF(ISNUMBER(SEARCH("Carboline 300M",EV11)),"2",IF(ISNUMBER(SEARCH("Masterseal 610",EV11)),"3",IF(ISNUMBER(SEARCH("HLM 5000",EV11)),"4",IF(AND(CJ11>0,EV11=""),"No",""))))) ->  | EX11: =IF(AND(EW11="No",EW13="No"),"No",IF(AND(EW11>0,EW13="No"),EW11,IF(AND(EW13>0,EW11="No"),EW13,IF(AND(EW13>0,EW11>0,CJ11>0),EW11&","&EW13,"")))) ->  | EY11: Stack-It Data | EZ11: =IF(EY11="Yes","Yes",IF(EY11="Exclude","Exclude",IF(EY11="No","No",IF(AND(CS11>0,EY11=""),"No", "")))) ->  | FA11: Stack-It Data
A12: B | CM12: Sanitary | EH12: Sanitary | EL12: Stack-It Data | EO12: 1" CS-102 Dbl | EP12: 2 | ER12: 6" CS-212 | ES12: 1 | ET12: Stack-It Data | EV12: Stack-It Data | EX12: =IF(AND(EW12="No",EW14="No"),"No",IF(AND(EW12>0,EW14="No"),EW12,IF(AND(EW14>0,EW12="No"),EW14,IF(AND(EW14>0,EW12>0,CJ12>0),EW12&","&EW14,"")))) ->  | EY12: Yes | EZ12: Yes | FA12: Stack-It Data
A13: C | CM13: Wet Well | EH13: Wet Well | EL13: Stack-It Data | EO13: 1" CS-231 Dbl | EP13: 6 | ER13: 12" MacWrap | ES13: 3 | ET13: Stack-It Data | EV13: Stack-It Data | EX13: =IF(AND(EW13="No",EW15="No"),"No",IF(AND(EW13>0,EW15="No"),EW13,IF(AND(EW15>0,EW13="No"),EW15,IF(AND(EW15>0,EW13>0,CJ13>0),EW13&","&EW15,"")))) ->  | FA13: Stack-It Data
A14: D | CM14: Vault | EH14: Vault | EL14: Stack-It Data | EO14: 1" CS-102 Dbl | EP14: 2 | ER14: Stack-It Data | ET14: Stack-It Data | EV14: Stack-It Data | EX14: =IF(AND(EW14="No",#REF!="No"),"No",IF(AND(EW14>0,#REF!="No"),EW14,IF(AND(#REF!>0,EW14="No"),#REF!,IF(AND(#REF!>0,EW14>0,CJ14>0),EW14&","&#REF!,"")))) ->  | FA14: Stack-It Data
A15: E | CM15: GT/ Oil Sep. | EH15: Grease Trap / Oil Seperator | EL15: Stack-It Data | EO15: 1" CS-102 Dbl | EP15: 2 | ER15: Stack-It Data | ET15: Stack-It Data | EV15: Stack-It Data | EX15: =IF(AND(EW15="No",EW16="No"),"No",IF(AND(EW15>0,EW16="No"),EW15,IF(AND(EW16>0,EW15="No"),EW16,IF(AND(EW16>0,EW15>0,CJ15>0),EW15&","&EW16,"")))) ->  | FA15: Stack-It Data
A16: F | CM16: Septic | EH16: Septic | EL16: Stack-It Data | EO16: 1" CS-102 Dbl | EP16: 2 | ER16: 6" CS-212 | ES16: 1 | ET16: Stack-It Data | EV16: Stack-It Data | EX16: =IF(AND(EW16="No",EW18="No"),"No",IF(AND(EW16>0,EW18="No"),EW16,IF(AND(EW18>0,EW16="No"),EW18,IF(AND(EW18>0,EW16>0,CJ16>0),EW16&","&EW18,"")))) ->  | FA16: Stack-It Data
A17: G | CM17: Water/SS ARV | EH17: Water/SS ARV | EL17: Stack-It Data | EO17: 1" CS-102 Dbl | EP17: 2 | ER17: Stack-It Data | ET17: Stack-It Data | EV17: Stack-It Data | EX17: =IF(AND(EW17="No",EW19="No"),"No",IF(AND(EW17>0,EW19="No"),EW17,IF(AND(EW19>0,EW17="No"),EW19,IF(AND(EW19>0,EW17>0,CJ17>0),EW17&","&EW19,"")))) ->  | FA17: Stack-It Data
A19: Master Casting Chart | CQ19: Master Casting Override | CS19: (Note: individual structure overrides may differ) | DE19: Preset Standard Spec. Selection | DK19: Master Casting List
A20: A | CM20: Sanitary | CP20: Manhole | DK20: =IF(CQ20>0,CQ20,IF(AND(CQ20="",(Database!E608)>0),Database!E608,"")) -> 
A21: B | CM21: Sanitary | CP21: Manhole W/Exterior Drop | DK21: =IF(CQ21>0,CQ21,IF(AND(CQ21="",(Database!F608)>0),Database!F608,"")) -> 
A22: C | CM22: Sanitary | CP22: Manhole (Drop Excluded) | DE22: Note: DOT structures are already preset. | DK22: =IF(CQ22>0,CQ22,IF(AND(CQ22="",(Database!G608)>0),Database!G608,"")) -> 
A23: D | CM23: Sanitary | CP23: Manhole (Doghouse) | DK23: =IF(CQ23>0,CQ23,IF(AND(CQ23="",(Database!H608)>0),Database!H608,"")) -> 
A24: E | CM24: Storm | CP24: Manhole | DK24: =IF(CQ24>0,CQ24,IF(AND(CQ24="",(Database!I608)>0),Database!I608,"")) -> 
A25: F | CM25: Storm | CP25: Area Drain | DK25: =IF(CQ25>0,CQ25,IF(AND(CQ25="",(Database!J608)>0),Database!J608,"")) -> 
A26: G | CM26: Storm | CP26: Catch Basin (Single) | DK26: =IF(CQ26>0,CQ26,IF(AND(CQ26="",(Database!K608)>0),Database!K608,"")) -> 
A27: H | CM27: Storm | CP27: Catch Basin (Double) | DK27: =IF(CQ27>0,CQ27,IF(AND(CQ27="",(Database!L608)>0),Database!L608,"")) -> 
A28: I | CM28: Storm | CP28: Catch Basin (Triple) | DK28: =IF(CQ28>0,CQ28,IF(AND(CQ28="",(Database!M608)>0),Database!M608,"")) -> 
A29: J | CM29: Storm | CP29: Curb Inlet (Single) | DK29: =IF(CQ29>0,CQ29,IF(AND(CQ29="",(Database!N608)>0),Database!N608,"")) -> 
A30: K | CM30: Storm | CP30: Curb Inlet (Double) | DK30: =IF(CQ30>0,CQ30,IF(AND(CQ30="",(Database!O608)>0),Database!O608,"")) -> 
A31: L | CM31: Storm | CP31: Curb Inlet (Triple) | DK31: =IF(CQ31>0,CQ31,IF(AND(CQ31="",(Database!P608)>0),Database!P608,"")) -> 
A32: M | CM32: Storm | CP32: Diversion Structure | DK32: =IF(CQ32>0,CQ32,IF(AND(CQ32="",(Database!Q608)>0),Database!Q608,"")) -> 
A33: N | CM33: Storm | CP33: Drop Box Inlet | DK33: =IF(CQ33>0,CQ33,IF(AND(CQ33="",(Database!R608)>0),Database!R608,"")) -> 
A34: O | CM34: Storm | CP34: Inlet | DK34: =IF(CQ34>0,CQ34,IF(AND(CQ34="",(Database!S608)>0),Database!S608,"")) -> 
A35: P | CM35: Storm | CP35: Junction Box | DK35: =IF(CQ35>0,CQ35,IF(AND(CQ35="",(Database!T608)>0),Database!T608,"")) -> 
A36: Q | CM36: Storm | CP36: Outlet Control Structure | DK36: =IF(CQ36>0,CQ36,IF(AND(CQ36="",(Database!U608)>0),Database!U608,"")) -> 
A37: R | CM37: Water/SS ARV | CP37: Sanitary ARV | DK37: =IF(CQ37>0,CQ37,IF(AND(CQ37="",(Database!V608)>0),Database!V608,"")) -> 
A38: S | CM38: Water/SS ARV | CP38: Water ARV | DK38: =IF(CQ38>0,CQ38,IF(AND(CQ38="",(Database!W608)>0),Database!W608,"")) -> 
A39: T | CM39: Storm | CP39: Yard Drain | DK39: =IF(CQ39>0,CQ39,IF(AND(CQ39="",(Database!X608)>0),Database!X608,"")) -> 
A40: U | CM40: Enter ==> | CP40: Custom Description 1 | DK40: =IF(CQ40>0,CQ40,"") -> 
A41: V | CM41: Enter ==> | CP41: Custom Description 2 | DK41: =IF(CQ41>0,CQ41,"") -> 
A42: W | CM42: Enter ==> | CP42: Custom Description 3 | DK42: =IF(CQ42>0,CQ42,"") -> 
A45: 1 | B45: =IF('Stack-It Export'!E5<>"",'Stack-It Export'!E5,"") ->  | F45: =IF('Stack-It Export'!F5<>"",'Stack-It Export'!F5,"") ->  | G45: =IF('Stack-It Export'!G5<>"",'Stack-It Export'!G5,"") ->  | H45: =IF('Stack-It Export'!H5<>"",'Stack-It Export'!H5,"") ->  | I45: =IF('Stack-It Export'!I5<>"",'Stack-It Export'!I5,"") ->  | J45: =IF('Stack-It Export'!J5<>"",'Stack-It Export'!J5,"") ->  | K45: =IF('Stack-It Export'!K5<>"",'Stack-It Export'!K5,"") ->  | L45: =IF('Stack-It Export'!L5<>"",'Stack-It Export'!L5,"") ->  | N45: =IF('Stack-It Export'!N5<>"",'Stack-It Export'!N5,"") ->  | O45: =IF('Stack-It Export'!O5<>"",'Stack-It Export'!O5,"") ->  | P45: =IF('Stack-It Export'!P5<>"",'Stack-It Export'!P5,"") ->  | Q45: =IF('Stack-It Export'!Q5<>"",'Stack-It Export'!Q5,"") ->  | R45: =IF('Stack-It Export'!R5<>"",'Stack-It Export'!R5,"") ->  | T45: =IF('Stack-It Export'!T5<>"",'Stack-It Export'!T5,"") ->  | U45: =IF('Stack-It Export'!U5<>"",'Stack-It Export'!U5,"") ->  | V45: =IF('Stack-It Export'!V5<>"",'Stack-It Export'!V5,"") ->  | W45: =IF('Stack-It Export'!W5<>"",'Stack-It Export'!W5,"") ->  | X45: =IF('Stack-It Export'!X5<>"",'Stack-It Export'!X5,"") ->  | Z45: =IF('Stack-It Export'!Z5<>"",'Stack-It Export'!Z5,"") ->  | AA45: =IF('Stack-It Export'!AA5<>"",'Stack-It Export'!AA5,"") ->  | AB45: =IF('Stack-It Export'!AB5<>"",'Stack-It Export'!AB5,"") ->  | AC45: =IF('Stack-It Export'!AC5<>"",'Stack-It Export'!AC5,"") ->  | AD45: =IF('Stack-It Export'!AD5<>"",'Stack-It Export'!AD5,"") ->  | AF45: =IF('Stack-It Export'!AF5<>"",'Stack-It Export'!AF5,"") ->  | AG45: =IF('Stack-It Export'!AG5<>"",'Stack-It Export'!AG5,"") ->  | AH45: =IF('Stack-It Export'!AH5<>"",'Stack-It Export'!AH5,"") ->  | AI45: =IF('Stack-It Export'!AI5<>"",'Stack-It Export'!AI5,"") ->  | AJ45: =IF('Stack-It Export'!AJ5<>"",'Stack-It Export'!AJ5,"") ->  | AL45: =IF('Stack-It Export'!AL5<>"",'Stack-It Export'!AL5,"") ->  | AM45: =IF('Stack-It Export'!AM5<>"",'Stack-It Export'!AM5,"") ->  | AN45: =IF('Stack-It Export'!AN5<>"",'Stack-It Export'!AN5,"") ->  | AO45: =IF('Stack-It Export'!AO5<>"",'Stack-It Export'!AO5,"") ->  | AP45: =IF('Stack-It Export'!AP5<>"",'Stack-It Export'!AP5,"") ->  | AR45: =IF('Stack-It Export'!AR5<>"",'Stack-It Export'!AR5,"") ->  | AS45: =IF('Stack-It Export'!AS5<>"",'Stack-It Export'!AS5,"") ->  | AT45: =IF('Stack-It Export'!AT5<>"",'Stack-It Export'!AT5,"") ->  | AU45: =IF('Stack-It Export'!AU5<>"",'Stack-It Export'!AU5,"") ->  | AV45: =IF('Stack-It Export'!AV5<>"",'Stack-It Export'!AV5,"") ->  | AX45: =IF('Stack-It Export'!AX5<>"",'Stack-It Export'!AX5,"") ->  | AY45: =IF('Stack-It Export'!AY5<>"",'Stack-It Export'!AY5,"") ->  | AZ45: =IF('Stack-It Export'!AZ5<>"",'Stack-It Export'!AZ5,"") ->  | BA45: =IF('Stack-It Export'!BA5<>"",'Stack-It Export'!BA5,"") ->  | BB45: =IF('Stack-It Export'!BB5<>"",'Stack-It Export'!BB5,"") ->  | BD45: =IF('Stack-It Export'!BD5<>"",'Stack-It Export'!BD5,"") ->  | BE45: =IF('Stack-It Export'!BE5<>"",'Stack-It Export'!BE5,"") ->  | BF45: =IF('Stack-It Export'!BF5<>"",'Stack-It Export'!BF5,"") ->  | BG45: =IF('Stack-It Export'!BG5<>"",'Stack-It Export'!BG5,"") ->  | BH45: =IF('Stack-It Export'!BH5<>"",'Stack-It Export'!BH5,"") ->  | BI45: =IF('Stack-It Export'!BJ5<>"",'Stack-It Export'!BJ5,"") ->  | BJ45: =IF('Stack-It Export'!BK5<>"",'Stack-It Export'!BK5,"") ->  | BK45: =IF('Stack-It Export'!BL5<>"",'Stack-It Export'!BL5,"") ->  | BL45: =IF('Stack-It Export'!BM5<>"",'Stack-It Export'!BM5,"") ->  | BM45: =IF('Stack-It Export'!BN5<>"",'Stack-It Export'!BN5,"") ->  | BN45: =IF('Stack-It Export'!BO5<>"",'Stack-It Export'!BO5,"") ->  | BQ45: =IF('Stack-It Export'!BR5<>"",'Stack-It Export'!BR5,"") ->  | BR45: =IF('Stack-It Export'!BS5<>"",'Stack-It Export'!BS5,"") ->  | BS45: =IF('Stack-It Export'!BT5<>"",'Stack-It Export'!BT5,"") ->  | BT45: =IF('Stack-It Export'!BU5<>"",'Stack-It Export'!BU5,"") ->  | BU45: =IF('Stack-It Export'!BV5<>"",'Stack-It Export'!BV5,"") ->  | BV45: =IF('Stack-It Export'!BW5<>"",'Stack-It Export'!BW5,"") ->  | BW45: =IF('Stack-It Export'!BX5<>"",'Stack-It Export'!BX5,"") ->  | BX45: =IF('Stack-It Export'!BY5<>"",'Stack-It Export'!BY5,"") ->  | BY45: =IF('Stack-It Export'!BZ5<>"",'Stack-It Export'!BZ5,"") ->  | BZ45: =IF('Stack-It Export'!CA5<>"",'Stack-It Export'!CA5,"") ->  | CA45: =IF('Stack-It Export'!CB5<>"",'Stack-It Export'!CB5,"") ->  | CB45: =IF('Stack-It Export'!CC5<>"",'Stack-It Export'!CC5,"") ->  | CC45: =IF('Stack-It Export'!CD5<>"",'Stack-It Export'!CD5,"") ->  | CD45: =IF('Stack-It Export'!CE5<>"",'Stack-It Export'!CE5,"") ->  | CE45: =IF('Stack-It Export'!CF5<>"",'Stack-It Export'!CF5,"") ->  | CF45: =IF('Stack-It Export'!CG5<>"",'Stack-It Export'!CG5,"") ->  | CG45: =IF('Stack-It Export'!CH5<>"",'Stack-It Export'!CH5,"") ->  | CH45: =IF(OR(CH46<>"",CH47<>""),(CH46&""&CH47),"") ->  | CI45: =IF(AND(CI46="",E45<>""),E45,IF(CI46<>"",CI46,"")) ->  | CJ45: =IF(AND(CM45<>"",CJ46=""),1,CJ46) -> 0 | CK45: =IF(ISNUMBER(SEARCH("HEADWALL",F45)),"End Treatment",IF(ISNUMBER(SEARCH("End Treatment",F45)),"End Treatment",IF(ISNUMBER(SEARCH("INDOT",F45)),"Storm",IF(ISNUMBER(SEARCH("KYTC",F45)),"Storm",IF(ISNUMBER(SEARCH("LEXINGTON",F45)),"Storm",IF(ISNUMBER(SEARCH("MSD",F45)),"Storm",IF(ISNUMBER(SEARCH("Sanitary",F45)),"Sanitary",IF(ISNUMBER(SEARCH("Storm",F45)),"Storm",IF(ISNUMBER(SEARCH("TDOT",F45)),"Storm",F45))))))))) ->  | CL45: =IF(ISNUMBER(SEARCH("Wet Well",G45)),"Wet Well",IF(ISNUMBER(SEARCH("Vault",G45)),"Vault",IF(ISNUMBER(SEARCH("GT",G45)),"Grease Trap",IF(ISNUMBER(SEARCH("Air Release",G45)),"Water/SS ARV","")))) ->  | CM45: =IF(AND(CM46="",CK45<>"",CL45=""),CK45,IF(AND(CM46="",CL45<>""),CL45,IF(CM46<>"",CM46,""))) ->  | CN45: =IF(OR(CM45="Sanitary",CM45="Wet Well",CM45="Vault",CM45="Grease Trap",CM45="Oil Separator",CM45="Septic",CM45="Water/SS ARV"),"Sanitary",IF(OR(CM45="Storm",CM45="Storm WQU",CM45="Box Culvert"),"Storm",IF(CM45="End Treatment","Headwalls",""))) ->  | CP45: =IF(AND(CP46="",G45<>"",CQ45="",CM45<>"End Treatment"),G45,IF(AND(CP46="",G45<>"",CQ45="",CM45="End Treatment"),H45&" "&G45,IF(CP46<>"",CP46,""))) ->  | CQ45: =IF(CQ46<>"",CQ46,"") ->  | CR45: =IF(AND(CR46="",B45<>""),B45,IF(CR46<>"",CR46,IF(AND(CR46="",B45="",CJ45>0),A45&"-"&IF(Summary!E4="24-",4,IF(Summary!$E$4="25-",5,IF(Summary!$E$4="26-",6,IF(Summary!$E$4="27-",7,""))))&Summary!$F$4,""))) ->  | CS45: =IF(AND(CS46="",CM45<>"",I45<>""),I45,IF(CS46<>"",CS46,0)) -> 0 | CU45: 1 | CV45: =IF(AND(K45<>"",CT46=""),K45,IF(CT46<>"",CT46,0)) -> 0 | CW45: =CT46 -> 0 | CZ45: =IF(AND(OR(CX46>2.1,CX47>2.1,CX48>2.1,CX49>2.1,CX50>2.1), CS45>0,CM45="Sanitary"), "Yes", IF(AND(OR(CX46<2.1,CX47<2.1,CX48<2.1,CX49<2.1,CX50<2.1), CS45>0,CM45="Sanitary"), "No",IF(CS45=0, "", ""))) ->  | DA45: 1 | DB45: =IFERROR(IF(AND(DE45="",O45<>""),VALUE(LEFT(O45,LEN(O45)-1)),IF(DE45<>"",INDEX(Database!$E$212:$DB$212,MATCH('Structure Input'!$DB$9,Database!$C$212:$DB$212,0), MATCH('Structure Input'!DE45,Database!$E$207:$DB$207,0)),"")),O45) ->  | DC45: =N45 ->  | DD45: =L45 ->  | DF45: =IF(ISNUMBER(SEARCH("Grout",DE45)),"1",IF(ISNUMBER(SEARCH("Link Seal",DE45)),"4",IF(ISNUMBER(SEARCH("Boot",DE45)),"2",IF(ISNUMBER(SEARCH("A-Lok",DE45)),"3",IF(AND(CJ45>0,DE45=""),"1",""))))) ->  | DG45: =IF(GW48<>"","X","") ->  | DH45: =IF(DE45<>"",INDEX(Database!$E$209:$DB$209,MATCH('Structure Input'!$DH$9,Database!$C$209:$DB$209,0), MATCH('Structure Input'!DE45,Database!$E$207:$DB$207,0)),P45) ->  | DI45: =IFERROR(INDEX(Database!$E$208:$DB$208,MATCH('Structure Input'!$DI$9,Database!$C$208:$DB$208,0), MATCH('Structure Input'!DE45,Database!$E$207:$DB$207,0)), 0) -> 0 | DJ45: =IFERROR(IF(DK47>0,DK47,IF(AND(DK47=0,CP45>0,CQ45=""),(INDEX(Database!$E$608:$FU$608,MATCH('Structure Input'!$DK$19,Database!$C$608:$FU$608,0), MATCH('Structure Input'!CP45,Database!$E$607:$FU$607,0))),IF(AND(DK47=0,CP45=0,CQ45>""),(INDEX(Database!$E$236:$AMG$236,MATCH('Structure Input'!$DK$19,Database!$C$236:$C$236,0), MATCH('Structure Input'!CQ45,Database!$E$227:$AMG$227,0))),""))),"") ->  | DK45: =IF(DJ45<>"",DJ45,BI45) ->  | DL45: =IFERROR(IF(DJ45<>"",INDEX(Database!$F$182:$QJ$182,MATCH('Structure Input'!$DL$9,Database!$C$182:$QJ$182,0),MATCH('Structure Input'!DK45,Database!$F$181:$QJ$181,0)),IF(AND(BJ45<>"",DJ45=""),BJ45,0)),0) -> 0 | DM45: =IF(DM46<>"",DM46,IF(OR(DK45>"",DK47>0), 1, "")) ->  | DN45: =IFERROR(INDEX(Database!$L$187:$QJ$187,MATCH('Structure Input'!$DN$9,Database!$C$187:$QJ$187,0), MATCH('Structure Input'!DK45,Database!$L$181:$QJ$181,0)), 0) -> 0 | DO45: =IFERROR(INDEX(Database!$L$188:$QJ$188,MATCH('Structure Input'!$DO$9,Database!$C$188:$QJ$188,0), MATCH('Structure Input'!DK45,Database!$L$181:$QJ$181,0)), 0) -> 0 | DP45: =IFERROR(INDEX(Database!$F$192:$QJ$192,MATCH('Structure Input'!$DP$9,Database!$C$192:$QJ$192,0), MATCH('Structure Input'!DK45,Database!$F$181:$QJ$181,0)), 0) -> 0 | DQ45: =IF(DP45="Non-Stock",1*CJ45*DM45,0) -> 0 | DR45: =IFERROR(INDEX(Database!$L$197:$QJ$197,MATCH('Structure Input'!$DR$9,Database!$C$197:$QJ$197,0), MATCH('Structure Input'!DK45,Database!$L$181:$QJ$181,0)), 0) -> 0 | DS45: =IFERROR(INDEX(Database!$L$198:$QJ$198,MATCH('Structure Input'!$DS$9,Database!$C$198:$QJ$198,0), MATCH('Structure Input'!DK45,Database!$L$181:$QJ$181,0)), 0) -> 0 | DT45: =IFERROR(INDEX(Database!$L$199:$QJ$199,MATCH('Structure Input'!$DT$9,Database!$C$199:$QJ$199,0), MATCH('Structure Input'!DK45,Database!$L$181:$QJ$181,0)), 0) -> 0 | DU45: =IFERROR(INDEX(Database!$L$200:$QJ$200,MATCH('Structure Input'!$DU$9,Database!$C$200:$QJ$200,0), MATCH('Structure Input'!DK45,Database!$L$181:$QJ$181,0)), 0) -> 0 | DV45: =IFERROR(INDEX(Database!$L$201:$QJ$201,MATCH('Structure Input'!$DV$9,Database!$C$201:$QJ$201,0), MATCH('Structure Input'!DK45,Database!$L$181:$QJ$181,0)), 0) -> 0 | DW45: =DW46 -> 0 | DX45: =IFERROR(INDEX(Database!$E$213:$DB$213,MATCH('Structure Input'!$DX$7,Database!$C$213:$DB$213,0), MATCH('Structure Input'!DE45,Database!$E$207:$DB$207,0)),0) -> 0 | DY45: =IF(AND(DY46="",CM45<>"",BG45<>""),BG45,IF(DY46<>"",DY46,0)) -> 0 | DZ45: =(CS45-CV45)+DY45 -> 0 | EA45: =DZ45-EB45 -> 0 | EB45: =IF(AND(EE45>0, EC45="Transition"), DZ45-EE45, 0) -> 0 | EC45: =IFERROR(INDEX(Database!$E$166:$P$166,MATCH('Structure Input'!$EC$9,Database!$C$166:$P$166, 0), MATCH('Structure Input'!EI45,Database!$E$157:$P$157,0)), "") -> Top Slab | ED45: =IFERROR(INDEX(Database!$E$165:$P$165,MATCH('Structure Input'!$ED$9,Database!$C$165:$P$165, 0), MATCH('Structure Input'!EI45,Database!$E$157:$P$157,0)), "") -> 0 | EF45: =IF(CK45<>"End Treatment",H45&" "&BM45&"W"&" "&BN45&"F","") -> W F | EG45: =IF(ISNUMBER(SEARCH("x",EF45)),"Flat Wall",IF(EF45="","","Round")) -> Round | EH45: =IFERROR(IF(AND(EH46="",CJ45>0,CQ45="",EG45="Flat Wall"),INDEX(Database!$E$4:$DD$4,MATCH('Structure Input'!$EF$8,Database!$C$4:$DD$4,0),MATCH('Structure Input'!EF45,Database!$E$12:$DD$12,0)),(IF(AND(EH46="",CJ45>0,CQ45="",EG45="Round"),H45&" "&"Dia.",IF(AND(EH46<>"",CJ45>0),EH46,IF(CJ45=0,"",IF(AND(EH46="",CQ45<>""),"","Panel Form Structure")))))),"Panel Form Structure") ->  | EI45: =IFERROR(IF(EI46<>"",EI46,IF(AND(EI46="",EH45<>"",CP49<>"Stack-It Data Transfer"),INDEX(Database!$E$14:$DD$14,MATCH('Structure Input'!$EI$9,Database!$C$14:$C$14,0),MATCH('Structure Input'!EH45,Database!$E$4:$DD$4,0)),IF(AND(CP49="Stack-It Data Transfer",BK45<>""),"Yes Top",IF(AND(CP49="Stack-It Data Transfer",BK45=""),"No Top","Yes Top")))),"Yes Top") -> Yes Top | EJ45: =IF(EJ46>0,EJ46,IF(AND(EJ46="",BN45<>"Data not found",BN45>0),"W/Base",IF(AND(EJ46="",BN45<>"Data not found",OR(BN45=0,BN45="")),"No Base","W/Base"))) -> W/Base | EK45: =IF(OR(BX45="ADMIXTURE XYPEX C-1000 RED",BX45="ADMIXTURE C-500 NF RED"),"Xypex",IF(BX45="ADMIXTURE CONBLOCKMIC","MIC",IF(BX45="ADMIXTURE XYPEX+CONBLOCKMIC","Xypex+MIC",IF(BX45="","Plain","Plain")))) -> Plain | EL45: =IF(AND(EL46>0,EL46<>"Stack-it Data"),EL46,IF(AND($CM45="Storm",EL46=0,$EL$11>0,$EL$11<>"Stack-It Data"),$EL$11,IF(AND($CM45="Sanitary",EL46=0,$EL$12>0,$EL$12<>"Stack-It Data"),$EL$12,IF(AND($CM45="Wet Well",EL46=0,$EL$13>0,$EL$13<>"Stack-It Data"),$EL$13,IF(AND($CM45="Vault",EL46=0,$EL$14>0,$EL$14<>"Stack-It Data"),$EL$14,IF(AND($CM45="Grease Trap",EL46=0,$EL$15>0,$EL$15<>"Stack-It Data"),$EL$15,IF(AND($CM45="Oil Seperator",EL46=0,$EL$15>0,$EL$15<>"Stack-It Data"),$EL$15,IF(AND($CM45="Septic",EL46=0,$EL$16>0,$EL$16<>"Stack-It Data"),$EL$16,IF(AND($CM45="Water/SS ARV",EL46=0,$EL$17>0,$EL$17<>"Stack-It Data"),$EL$17,IF(OR($EL$11="Stack-It Data",$EL$12="Stack-It Data",$EL$13="Stack-It Data",$EL$14="Stack-It Data",$EL$15="Stack-It Data",$EL$16="Stack-It Data",$EL$17="Stack-It Data",EL46="Stack-It Data"),EK45,"Plain")))))))))) -> Plain | EM45: =IFERROR(IF(AND(OR(EI45="Yes Top",EI45="Trans 48""R W/Top",EI45="Trans 60""R W/Top",EI45="Trans 24""x24"" Riser",EI45="Trans 24""x24"" W/Top",EI45="Trans 24""x30"" Riser",EI45="Trans 24""x30"" W/Top",EI45="Trans 24""x36"" Riser",EI45="Trans 24""x36"" W/Top",EI45="Trans 36""x36"" Riser",EI45="Trans 36""x36"" W/Top"),CS45>0,EJ45="W/Base"),"No",IF(AND(OR(EI45="Yes Top",EI45="Trans 48""R W/Top",EI45="Trans 60""R W/Top",EI45="Trans 24""x24"" Riser",EI45="Trans 24""x24"" W/Top",EI45="Trans 24""x30"" Riser",EI45="Trans 24""x30"" W/Top",EI45="Trans 24""x36"" Riser",EI45="Trans 24""x36"" W/Top",EI45="Trans 36""x36"" Riser",EI45="Trans 36""x36"" W/Top"),CS45>0,EJ45="No Base"),"OB",IF(AND(EI45="No Top",CS45>0,OR(DK45="",DK45="No Casting"),EJ45="W/Base"),"OT",IF(AND(EI45="No Top",CS45>0,DK45>0,EJ45="W/Base"),"No",IF(AND(EI45="No Top",CS45>0,OR(DK45="",DK45="No Casting"),EJ45="No Base"),"OB & OT",IF(AND(EI45="No Top",CS45>0,DK45>0,EJ45="No Base"),"OB","")))))),"") ->  | EN45: =IF(ISNUMBER(SEARCH("SGL 1""x14.5' Butyl",BV45)),"1"" CS-102",IF(ISNUMBER(SEARCH("DBL 1""x14.5' Butyl",BV45)),"1"" CS-102 Dbl",IF(ISNUMBER(SEARCH("SGL 1.25""x14.5' Butyl",BV45)),"1.25"" CS-102",IF(ISNUMBER(SEARCH("DBL 1.25""x14.5' Butyl",BV45)),"1.25"" CS-102 Dbl",IF(ISNUMBER(SEARCH("1.00"" CS-231 (SGL)",BV45)),"1"" CS-231",IF(ISNUMBER(SEARCH("1.00"" CS-231 (DBL)",BV45)),"1"" CS-231 Dbl",IF(ISNUMBER(SEARCH("1.25"" CS-231 (SGL)",BV45)),"1.25"" CS-231",IF(ISNUMBER(SEARCH("1.25"" CS-231 (DBL)",BV45)),"1"" CS-231 Dbl",IF(ISNUMBER(SEARCH("Gasket",BV45)),"HK TSS Gasket",""))))))))) ->  | EO45: =IF(AND(EO46>0,EO46<>"Stack-it Data"),EO46,IF(AND($CM45="Storm",EO46=0,$EO$11>0,$EO$11<>"Stack-It Data"),$EO$11,IF(AND($CM45="Sanitary",EO46=0,$EO$12>0,$EO$12<>"Stack-It Data"),$EO$12,IF(AND($CM45="Wet Well",EO46=0,$EO$13>0,$EO$13<>"Stack-It Data"),$EO$13,IF(AND($CM45="Vault",EO46=0,$EO$14>0,$EO$14<>"Stack-It Data"),$EO$14,IF(AND($CM45="Grease Trap",EO46=0,$EO$15>0,$EO$15<>"Stack-It Data"),$EO$15,IF(AND($CM45="Oil Seperator",EO46=0,$EO$15>0,$EO$15<>"Stack-It Data"),$EO$15,IF(AND($CM45="Septic",EO46=0,$EO$16>0,$EO$16<>"Stack-It Data"),$EO$16,IF(AND($CM45="Water/SS ARV",EO46=0,$EO$17>0,$EO$17<>"Stack-It Data"),$EO$17,IF(OR($EO$11="Stack-It Data",$EO$12="Stack-It Data",$EO$13="Stack-It Data",$EO$14="Stack-It Data",$EO$15="Stack-It Data",$EO$16="Stack-It Data",$EO$17="Stack-It Data",EO46="Stack-It Data"),EN45,"")))))))))) ->  | EP45: =IF(EO45="1"" CS-102",1,IF(EO45="1"" CS-102 Dbl",2,IF(EO45="1.25"" CS-102",3,IF(EO45="1.25"" CS-102 Dbl",4,IF(EO45="1"" CS-231",5,IF(EO45="1"" CS-231 Dbl",6,IF(EO45="1.25"" CS-231",7,IF(EO45="1.25"" CS-231 Dbl",8,IF(EO45="3/4"" CS-440",9,IF(EO45="HK TSS Gasket",10,IF(AND(CJ45>0,EO45=""),"No",""))))))))))) ->  | EQ45: =IF(ISNUMBER(SEARCH("6""x50' CONSEAL CS212",BW45)),"6"" CS-212",IF(ISNUMBER(SEARCH("12""x50' CONSEAL CS212",BW45)),"12"" CS-212",IF(ISNUMBER(SEARCH("MAC WRAP",BW45)),"12"" MacWrap",""))) ->  | ER45: =IF(AND(ER46>0,ER46<>"Stack-it Data"),ER46,IF(AND($CM45="Storm",ER46=0,$ER$11>0,$ER$11<>"Stack-It Data"),$ER$11,IF(AND($CM45="Sanitary",ER46=0,$ER$12>0,$ER$12<>"Stack-It Data"),$ER$12,IF(AND($CM45="Wet Well",ER46=0,$ER$13>0,$ER$13<>"Stack-It Data"),$ER$13,IF(AND($CM45="Vault",ER46=0,$ER$14>0,$ER$14<>"Stack-It Data"),$ER$14,IF(AND($CM45="Grease Trap",ER46=0,$ER$15>0,$ER$15<>"Stack-It Data"),$ER$15,IF(AND($CM45="Oil Seperator",ER46=0,$ER$15>0,$ER$15<>"Stack-It Data"),$ER$15,IF(AND($CM45="Septic",ER46=0,$ER$16>0,$ER$16<>"Stack-It Data"),$ER$16,IF(AND($CM45="Water/SS ARV",ER46=0,$ER$17>0,$ER$17<>"Stack-It Data"),$ER$17,IF(OR($ER$11="Stack-It Data",$ER$12="Stack-It Data",$ER$13="Stack-It Data",$ER$14="Stack-It Data",$ER$15="Stack-It Data",$ER$16="Stack-It Data",$ER$17="Stack-It Data",ER46="Stack-It Data"),EQ45,"")))))))))) ->  | ES45: =IF(ER45="6"" CS-212",1,IF(ER45="12"" CS-212",2,IF(ER45="12"" MacWrap",3,IF(AND(CJ45>0,ER45=""),"No","")))) ->  | ET45: =IF(AND(ET46>0,ET46<>"Stack-it Data"),ET46,IF(AND($CM45="Storm",ET46=0,$ET$11>0,$ET$11<>"Stack-It Data"),$ET$11,IF(AND($CM45="Sanitary",ET46=0,$ET$12>0,$ET$12<>"Stack-It Data"),$ET$12,IF(AND($CM45="Wet Well",ET46=0,$ET$13>0,$ET$13<>"Stack-It Data"),$ET$13,IF(AND($CM45="Vault",ET46=0,$ET$14>0,$ET$14<>"Stack-It Data"),$ET$14,IF(AND($CM45="Grease Trap",ET46=0,$ET$15>0,$ET$15<>"Stack-It Data"),$ET$15,IF(AND($CM45="Oil Seperator",ET46=0,$ET$15>0,$ET$15<>"Stack-It Data"),$ET$15,IF(AND($CM45="Septic",ET46=0,$ET$16>0,$ET$16<>"Stack-It Data"),$ET$16,IF(AND($CM45="Water/SS ARV",ET46=0,$ET$17>0,$ET$17<>"Stack-It Data"),$ET$17,IF(AND(OR($ET$11="Stack-It Data",$ET$12="Stack-It Data",$ET$13="Stack-It Data",$ET$14="Stack-It Data",$ET$15="Stack-It Data",$ET$16="Stack-It Data",$ET$17="Stack-It Data",ET46="Stack-It Data"),BS45>0,BS45<>"",BS45<>"Data not found"),"Yes","")))))))))) ->  | EU45: =IF(ISNUMBER(SEARCH("CS-55",CA45)),"CS-55",IF(ISNUMBER(SEARCH("COAL TAR EPOXY",CA45)),"Carboline 300M",IF(ISNUMBER(SEARCH("Masterseal 610",CA45)),"Masterseal 610",""))) ->  | EV45: =IF(AND(EV46>0,EV46<>"Stack-it Data"),EV46,IF(AND($CM45="Storm",EV46=0,$EV$11>0,$EV$11<>"Stack-It Data"),$EV$11,IF(AND($CM45="Sanitary",EV46=0,$EV$12>0,$EV$12<>"Stack-It Data"),$EV$12,IF(AND($CM45="Wet Well",EV46=0,$EV$13>0,$EV$13<>"Stack-It Data"),$EV$13,IF(AND($CM45="Vault",EV46=0,$EV$14>0,$EV$14<>"Stack-It Data"),$EV$14,IF(AND($CM45="Grease Trap",EV46=0,$EV$15>0,$EV$15<>"Stack-It Data"),$EV$15,IF(AND($CM45="Oil Seperator",EV46=0,$EV$15>0,$EV$15<>"Stack-It Data"),$EV$15,IF(AND($CM45="Septic",EV46=0,$EV$16>0,$EV$16<>"Stack-It Data"),$EV$16,IF(AND($CM45="Water/SS ARV",EV46=0,$EV$17>0,$EV$17<>"Stack-It Data"),$EV$17,IF(OR($EV$11="Stack-It Data",$EV$12="Stack-It Data",$EV$13="Stack-It Data",$EV$14="Stack-It Data",$EV$15="Stack-It Data",$EV$16="Stack-It Data",$EV$17="Stack-It Data",EV46="Stack-It Data"),EU45,"")))))))))) ->  | EW45: =IF(ISNUMBER(SEARCH("CS-55",EV45)),"1",IF(ISNUMBER(SEARCH("Carboline 300M",EV45)),"2",IF(ISNUMBER(SEARCH("Masterseal 610",EV45)),"3",IF(ISNUMBER(SEARCH("HLM 5000",EV45)),"4",IF(AND(CJ45>0,EV45=""),"No",""))))) ->  | EX45: =IF(AND(EW45="No",EW47="No"),"No",IF(AND(EW45>0,EW47="No"),EW45,IF(AND(EW47>0,EW45="No"),EW47,IF(AND(EW47>0,EW45>0,CJ45>0),EW45&","&EW47,"")))) ->  | EY45: =IF(AND(EY46>0,EY46<>"Stack-it Data"),EY46,IF(AND($CM45="Storm",EY46=0,$EY$11>0,$EY$11<>"Stack-It Data"),$EY$11,IF(AND($CM45="Sanitary",FB45<73,EY46=0,$EY$12>0,$EY$12<>"Stack-It Data"),$EY$12,IF(AND(OR($EY$11="Stack-It Data",$EY$12="Stack-It Data"),BP45<>"",BP45<>"Data not found"),"Yes","")))) ->  | EZ45: =IF(EY45="Yes","Yes",IF(EY45="Exclude","Exclude",IF(EY45="No","No",IF(AND(CS45>0,EY45=""),"No", "")))) ->  | FA45: =IF(AND(FA46>0,FA46<>"Stack-it Data"),FA46,IF(AND($CM45="Storm",FA46=0,$FA$11>0,$FA$11<>"Stack-It Data"),$FA$11,IF(AND($CM45="Sanitary",FA46=0,$FA$12>0,$FA$12<>"Stack-It Data"),$FA$12,IF(AND($CM45="Wet Well",FA46=0,$FA$13>0,$FA$13<>"Stack-It Data"),$FA$13,IF(AND($CM45="Vault",FA46=0,$FA$14>0,$FA$14<>"Stack-It Data"),$FA$14,IF(AND($CM45="Grease Trap",FA46=0,$FA$15>0,$FA$15<>"Stack-It Data"),$FA$15,IF(AND($CM45="Oil Seperator",FA46=0,$FA$15>0,$FA$15<>"Stack-It Data"),$FA$15,IF(AND($CM45="Septic",FA46=0,$FA$16>0,$FA$16<>"Stack-It Data"),$FA$16,IF(AND($CM45="Water/SS ARV",FA46=0,$FA$17>0,$FA$17<>"Stack-It Data"),$FA$17,IF(AND(OR($FA$11="Stack-It Data",$FA$12="Stack-It Data",$FA$13="Stack-It Data",$FA$14="Stack-It Data",$FA$15="Stack-It Data",$FA$16="Stack-It Data",$FA$17="Stack-It Data",FA46="Stack-It Data"),BO45>0,BO45<>"",BO45<>"Data not found"),"Yes","")))))))))) ->  | FB45: =IFERROR(INDEX(Database!$G$5:$DA$5,MATCH('Structure Input'!$FB$9,Database!$C$5:$DA$5,0), MATCH('Structure Input'!EH45,Database!$G$4:$DA$4,0)), 0) -> 0 | FC45: =IFERROR(IF(FC46<>"",FC46,IF(AND(FC46="",EH45<>"Panel Form Structure"),INDEX(Database!$Z$6:$DA$6,MATCH('Structure Input'!$FC$9,Database!$C$6:$DA$6,0), MATCH('Structure Input'!EH45,Database!$Z$4:$DA$4,0)),IF(AND(FC46="",EH45="Panel Form Structure"),INDEX(Database!$C$627:$WB$627,MATCH('Structure Input'!$FC$9,Database!$C$627:$WB$627,0), MATCH('Structure Input'!H45,Database!$C$626:$WB$626,0)), 0))),0) -> 0 | FD45: =IFERROR(IF(FD46<>"",FD46,IF(AND(FD46="",EH45<>"Panel Form Structure"),INDEX(Database!$Z$7:$DA$7,MATCH('Structure Input'!$FD$9,Database!$C$7:$DA$7,0), MATCH('Structure Input'!EH45,Database!$Z$4:$DA$4,0)),IF(AND(FD46="",EH45="Panel Form Structure"),INDEX(Database!$C$628:$WB$628,MATCH('Structure Input'!$FD$9,Database!$C$628:$WB$628,0), MATCH('Structure Input'!H45,Database!$C$626:$WB$626,0)), 0))),0) -> 0 | FE45: =IFERROR(IF(OR(AND(FE46="",EJ45="W/Base",CP49<>"Stack-It Data Transfer"),AND(FE46="",EJ45="W/Base",CP49="Stack-It Data Transfer",BN45="Data not found")),INDEX(Database!$E$8:$CK$8,MATCH('Structure Input'!$FE$9,Database!$C$8:$CK$8,0),MATCH('Structure Input'!EH45,Database!$E$4:$CK$4,0)),IF(AND(FE46="",EJ45="No Base",CP49<>"Stack-It Data Transfer"),0,IF(AND(FE46="",CP49="Stack-It Data Transfer",BN45<>"Data not found"),BN45,IF(FE46<>"",FE46,0)))),0) -> 0 | FF45: =IF(AND(OR(EC45="Top Slab",EC45="Transition"),FF46=""),IFERROR(INDEX(Database!$E$9:$CK$9,MATCH('Structure Input'!$FF$9,Database!$C$9:$CK$9,0),MATCH('Structure Input'!EH45,Database!$E$4:$CK$4,0)),0),IF(AND(EC45="No Top",FF46=""),0,IF(FF46<>"",FF46,0))) -> 0 | FG45: =IFERROR(IF(OR(AND(FG46="",CP49<>"Stack-It Data Transfer"),AND(FG46="",CP49="Stack-It Data Transfer",BN45="Data not found")),INDEX(Database!$E$10:$CK$10,MATCH('Structure Input'!$FG$9,Database!$C$10:$CK$10,0),MATCH('Structure Input'!EH45,Database!$E$4:$CK$4,0)),IF(AND(FG46="",CP49<>"Stack-It Data Transfer"),0,IF(AND(FG46="",CP49="Stack-It Data Transfer",BM45<>"Data not found"),BM45,IF(FG46<>"",FG46,0)))),0) -> 0 | FH45: =IFERROR(IF(AND(FH46="",FA45="Yes",EH45<>"Needs Custom Price",EH45<>"Panel Form Structure"),INDEX(Database!$E$58:$CK$58,MATCH('Structure Input'!$FH$9,Database!$C$58:$CK$58,0), MATCH('Structure Input'!EH45,Database!$E$4:$CK$4,0)),IF(AND(OR(EH45="Needs Custom Price",EH45="Panel Form Structure"),FH46="",BO45<>"Data not found",BO45<>""),BO45,IF(FH46<>"",FH46,0))), 0) -> 0 | FI45: =IFERROR(INDEX(Database!$E$158:$P$158,MATCH('Structure Input'!$FI$9,Database!$C$158:$P$158,0), MATCH('Structure Input'!EI45,Database!$E$157:$P$157,0)), 0) -> 0 | FJ45: =IFERROR(INDEX(Database!$E$159:$P$159,MATCH('Structure Input'!$FJ$9,Database!$C$159:$P$159,0), MATCH('Structure Input'!EI45,Database!$E$157:$P$157,0)), 0) -> 0 | FK45: =IFERROR(INDEX(Database!$E$160:$P$160,MATCH('Structure Input'!$FK$9,Database!$C$160:$P$160,0), MATCH('Structure Input'!EI45,Database!$E$157:$P$157,0)), 0) -> 0 | FL45: =IFERROR(INDEX(Database!$E$161:$P$161,MATCH('Structure Input'!$FL$9,Database!$C$161:$P$161,0), MATCH('Structure Input'!EI45,Database!$E$157:$P$157,0)), 0) -> 0 | FM45: =IFERROR(INDEX(Database!$E$162:$P$162,MATCH('Structure Input'!$FM$9,Database!$C$162:$P$162,0), MATCH('Structure Input'!EI45,Database!$E$157:$P$157,0)), 0) -> 0 | FN45: =IF(FB45>0,((FB45+(FG45*2))*(22/7))/12,0) -> 0 | FO45: =IF(FC45>0,(((FC45+(FG45*2))*2)+((FD45+(FG45*2))*2))/12,0) -> 0 | FP45: =FN45+FO45 -> 0 | FQ45: =IF(FB45>0,(FB45*3.14159)/12,0) -> 0 | FR45: =IF(FC45>0,((FC45*2)+(FD45*2))/12,0) -> 0 | FS45: =FQ45+FR45 -> 0 | FT45: =IF(FB45<>0,((FB45/2+FG45+FH45)*(FB45/2+FG45+FH45)/144*3.14*FE45/12),0) -> 0 | FU45: =IF(FB45<>0,((FB45/2+FG45)*(FB45/2+FG45)-(FB45/2)*(FB45/2))/144*3.14*(EA45-(DL45+FF45+DW45-3)/12),0) -> 0 | FV45: =IF(FB45<>0,((FB45/2+FG45)*(FB45/2+FG45)/144*3.14*FF45/12),0) -> 0 | FW45: =SUM(FT45:FV45) -> 0 | FX45: =IF(FC45<>0,((FC45+2*FG45+2*FH45)*(FD45+2*FG45+2*FH45)/144*FE45/12),0) -> 0 | FY45: =IF(FC45<>0,(((FC45+2*FG45)*(FD45+2*FG45)-(FC45*FD45))/144*(EA45-(FF45+DL45+DW45-DX45)/12)),0) -> 0 | FZ45: =IF(FC45<>0,((FC45+2*FG45)*(FD45+2*FG45)/144*FF45/12),0) -> 0 | GA45: =(FZ45+FY45+FX45) -> 0 | GB45: =IF(ED45="Round", ((FI45/2+FM45)*(FI45/2+FM45)-(FI45/2)*(FI45/2))/144*3.14*(EB45-(FL45-3)/12),IF(ED45="Flat Wall", ((FJ45+2*FM45)*(FK45+2*FM45)-(FJ45*FK45))/144*(EB45-(FL45)/12), 0)) -> 0 | GC45: =IF(ED45="Round", ((FI45/2+FM45)*(FI45/2+FM45)/144*3.14*FL45/12),IF(ED45="Flat Wall", ((FJ45+2*FM45)*(FK45+2*FM45)/144*FL45/12), 0)) -> 0 | GD45: =(GB45+GC45) -> 0 | GE45: =FB45+FC45+(FG45*2)+(FH45*2) -> 0 | GF45: =FB45+FC45+(FG45*2) -> 0 | GG45: =IFERROR(INDEX(Database!$E$233:$AMG$233,MATCH('Structure Input'!$GG$9,Database!$C$233:$AMG$233,0), MATCH('Structure Input'!CQ45,Database!$E$227:$AMG$227,0)), 0) -> 0 | GH45: =IF(AND(GE45>=103,GE45<150,GG45=0),2,IF(AND(GE45>=150,GE45<167,GG45=0),3,IF(AND(GE45>=168,GG45=0),4,IF(AND(GG45>=103,GG45<150),2,IF(AND(GG45>=150,GG45<167),3,IF(GG45>=168,4,1)))))) -> 1 | GI45: =IF(AND(GF45>=103,GF45<150),2,IF(AND(GF45>=150,GF45<167),3,IF(GF45>=168,4,1))) -> 1 | GJ45: =IF(OR(HB45="Yes",HB45="Yes +1 Ld",HB45="Yes +2 Lds",HB45="Yes +3 Lds",HB45="Yes +4 Lds",HB45="Yes +5 Lds"),ROUNDUP((GP45/20),0),GP45/20) -> 0 | GK45: =IF(AND(OR(HB45="Yes",HB45="Yes +1 Ld",HB45="Yes +2 Lds",HB45="Yes +3 Lds",HB45="Yes +4 Lds",HB45="Yes +5 Lds"),GN45=20,GO45>0),ROUNDUP((GQ45/20),0),GQ45/20)+IF(HB45="Yes +1 Ld",1,IF(HB45="Yes +2 Lds",2,IF(HB45="Yes +3 Lds",3,IF(HB45="Yes +4 Lds",4,IF(HB45="Yes +5 Lds",5,0))))) -> 0 | GL45: =GJ45+GK45 -> 0 | GM45: =GL45-((GP45/20)+(GQ45/20)) -> 0 | GN45: =IF(HE45<=20,HE45,20) -> 0 | GO45: =(HE45-GN45) -> 0 | GP45: =IF(HE45<=20,HE45,20)*CJ45 -> 0 | GQ45: =(HD45-GP45) -> 0 | GR45: =IF(GH45=1,GP45,0)+IF(GI45=1,GQ45,0) -> 0 | GS45: =IF(GH45=2,GP45,0)+IF(GI45=2,GQ45,0) -> 0 | GT45: =IF(GH45=3,GP45,0)+IF(GI45=3,GQ45,0) -> 0 | GU45: =IF(GH45=4,GP45,0)+IF(GI45=4,GQ45,0) -> 0 | GV45: =IFERROR(INDEX(Database!$E$229:$AMG$229,MATCH('Structure Input'!$GV$7,Database!$C$229:$AMG$229,0), MATCH('Structure Input'!CQ45,Database!$E$227:$AMG$227,0)), 0) -> 0 | GX45: =IF(AND(CJ45>0,GW48>0),"(Item "&A45&" - "&"Structure "&CR45&") "&GW48,"") ->  | GZ45: =IF(HA45="1 Piece",1,IF(HA45="2 Pieces",2,IF(HA45="3 Pieces",3,IF(HA45="4 Pieces",4,"")))) ->  | HC45: =IF(FB45>0,(FW45+GD45),(GA45+GD45)) -> 0 | HD45: =IF(CJ45>0,HE45*CJ45,HE45) -> 0 | HE45: =IF(AND(CD45<>"",CD45>0),(CD45/2000),((HC45/13.5)+JY45/21*148/2000+(LB45*25*22/144*148/2000)+GV45+JN45+(HF45*148/2000))) -> 0 | HG45: =IF(HG46="",IF(ISNUMBER(SEARCH("Panel Form Structure",EH45)),"35",""),HG46) ->  | HH45: =EL45 -> Plain | HI45: =IF(AND(HH45="Plain",CJ45>0),"No",IF(AND(HH45="Xypex",CJ45>0),2,IF(AND(HH45="MIC",CJ45>0),3,IF(AND(HH45="Xypex+MIC",CJ45>0),4,IF(AND(HH45="Bio-SanC500",CJ45>0),5,""))))) ->  | HJ45: =(EA45) -> 0 | HK45: =IFERROR(INDEX(Database!$E$13:$DD$13,MATCH('Structure Input'!$HK$9,Database!$C$13:$DD$13,0), MATCH('Structure Input'!EH45,Database!$E$4:$DD$4,0)), 0) -> 0 | HL45: =IFERROR(IF(AND(HK45="Flat Wall",EJ45="W/Base"),(INDEX(Database!$Z$15:$CK$15,MATCH('Structure Input'!$HL$9,Database!$C$15:$CK$15,0),MATCH('Structure Input'!EH45,Database!$Z$4:$CK$4,0))),IF(AND(HK45="Round",HJ45>=10),10,IF(AND(HK45="Round",HJ45<10,HJ45>2),ROUNDDOWN(HJ45,0),IF(AND(HK45="Round",HJ45<=2),2,0)))),0) -> 0 | HM45: =IFERROR(IF(AND(HH45="Plain",HK45="Round"),INDEX(Database!$G$59:$P$67,MATCH('Structure Input'!HL45,Database!$C$59:$C$67,0),MATCH('Structure Input'!EH45,Database!$G$4:$P$4,0)),IF(AND(HH45="Xypex",HK45="Round"),INDEX(Database!$G$82:$P$90,MATCH('Structure Input'!HL45,Database!$C$82:$C$90,0),MATCH('Structure Input'!EH45,Database!$G$4:$P$4,0)),IF(AND(HH45="MIC",HK45="Round"),INDEX(Database!$G$105:$P$113,MATCH('Structure Input'!HL45,Database!$C$105:$C$113,0),MATCH('Structure Input'!EH45,Database!$G$4:$P$4,0)), IF(AND(OR(HH45="Xypex+MIC",HH45="Bio-SanC500"), HK45="Round"), INDEX(Database!$G$128:$P$136,MATCH('Structure Input'!HL45,Database!$C$128:$C$136,0),MATCH('Structure Input'!EH45,Database!$G$4:$P$4,0)), 0)))), 0) -> 0 | HN45: =IFERROR(IF(AND(EJ45="W/Base",HH45="Plain"),(INDEX(Database!$Z$16:$DD$16,MATCH('Structure Input'!$HN$9,Database!$C$16:$DD$16,0),MATCH('Structure Input'!EH45,Database!$Z$4:$DD$4,0))),IF(AND(EJ45="No Base",HH45="Xypex",HH45="MIC",HH45="Xypex+MIC",HH45="Bio-SanC500"),0,0)), 0) -> 0 | HO45: =IFERROR(IF(AND(OR(EI45="Yes Top",EI45="Trans 48""R W/Top",EI45="Trans 60""R W/Top",EI45="Trans 24""x24"" Riser",EI45="Trans 24""x24"" W/Top",EI45="Trans 24""x30"" Riser",EI45="Trans 24""x30"" W/Top",EI45="Trans 24""x36"" Riser",EI45="Trans 24""x36"" W/Top",EI45="Trans 36""x36"" Riser",EI45="Trans 36""x36"" W/Top"),HH45="Plain"),(INDEX(Database!$Z$17:$DD$17,MATCH('Structure Input'!$HO$9,Database!$C$17:$DD$17,0),MATCH('Structure Input'!EH45,Database!$Z$4:$DD$4,0))),IF(AND(EI45="No Top",HH45="Xypex",HH45="MIC",HH45="Xypex+MIC",HH45="Bio-SanC500"),0,0)), 0) -> 0 | HP45: =IFERROR(IF(HH45="Plain", INDEX(Database!$G$18:$DD$18,MATCH('Structure Input'!$HP$9,Database!$C$18:$DD$18,0), MATCH('Structure Input'!EH45,Database!$G$4:$DD$4,0)), IF(HH45="Xypex", INDEX(Database!$G$91:$P$91,MATCH('Structure Input'!$HP$9,Database!$C$91:$P$91,0), MATCH('Structure Input'!EH45,Database!$G$4:$P$4,0)), IF(HH45="MIC", INDEX(Database!$G$114:$P$114,MATCH('Structure Input'!$HP$9,Database!$C$114:$P$114,0), MATCH('Structure Input'!EH45,Database!$G$4:$P$4,0)), IF(OR(HH45="Xypex+MIC",HH45="Bio-SanC500"), INDEX(Database!$G$137:$P$137,MATCH('Structure Input'!$HP$9,Database!$C$137:$P$137,0), MATCH('Structure Input'!EH45,Database!$G$4:$P$4,0)), 0)))), 0) -> 0 | HQ45: =IFERROR(IF(HH45="Plain", INDEX(Database!$ACK$238:$AMG$238,MATCH('Structure Input'!$HQ$9,Database!$C$238:$AMG$238,0), MATCH('Structure Input'!CQ45,Database!$ACK$227:$AMG$227,0)), IF(HH45="Xypex", INDEX(Database!$ACK$240:$AMG$240,MATCH('Structure Input'!$HQ$9,Database!$C$240:$AMG$240,0), MATCH('Structure Input'!CQ45,Database!$ACK$227:$AMG$227,0)), IF(HH45="MIC", INDEX(Database!$ACK$242:$AMG$242,MATCH('Structure Input'!$HQ$9,Database!$C$242:$AMG$242,0), MATCH('Structure Input'!CQ45,Database!$ACK$227:$AMG$227,0)), IF(OR(HH45="Xypex+MIC",HH45="Bio-SanC500"), INDEX(Database!$ACK$244:$AMG$244,MATCH('Structure Input'!$HQ$9,Database!$C$244:$AMG$244,0), MATCH('Structure Input'!CQ45,Database!$ACK$227:$AMG$227,0)), 0)))), 0) -> 0 | HR45: =IFERROR(IF(EL45="Plain",INDEX(Database!$E$169:$P$169,MATCH('Structure Input'!$HR$9,Database!$C$169:$P$169,0), MATCH('Structure Input'!EI45,Database!$E$157:$P$157,0)),IF(EL45="Xypex",INDEX(Database!$E$171:$P$171,MATCH('Structure Input'!$HR$9,Database!$C$171:$P$171,0), MATCH('Structure Input'!EI45,Database!$E$157:$P$157,0)),IF(EL45="MIC",INDEX(Database!$E$173:$P$173,MATCH('Structure Input'!$HR$9,Database!$C$173:$P$173,0), MATCH('Structure Input'!EI45,Database!$E$157:$P$157,0)),IF(OR(EL45="Xypex+MIC",HH45="Bio-SanC500"),INDEX(Database!$E$175:$P$175,MATCH('Structure Input'!$HR$9,Database!$C$175:$P$175,0), MATCH('Structure Input'!EI45,Database!$E$157:$P$157,0)),0)))),0) -> 0 | HS45: =IFERROR(IF(EL45="Plain",INDEX(Database!$E$168:$P$168,MATCH('Structure Input'!$HS$9,Database!$C$168:$P$168,0), MATCH('Structure Input'!EI45,Database!$E$157:$P$157,0)),IF(EL45="Xypex",INDEX(Database!$E$170:$P$170,MATCH('Structure Input'!$HS$9,Database!$C$170:$P$170,0), MATCH('Structure Input'!EI45,Database!$E$157:$P$157,0)),IF(EL45="MIC",INDEX(Database!$E$172:$P$172,MATCH('Structure Input'!$HS$9,Database!$C$172:$P$172,0), MATCH('Structure Input'!EI45,Database!$E$157:$P$157,0)),IF(OR(EL45="Xypex+MIC",HH45="Bio-SanC500"),INDEX(Database!$E$174:$P$174,MATCH('Structure Input'!$HS$9,Database!$C$174:$P$174,0), MATCH('Structure Input'!EI45,Database!$E$157:$P$157,0)),0)))),0) -> 0 | HT45: =IFERROR(IF(AND(HH45="Plain",HK45="Round",EJ45="No Base"),INDEX(Database!$G$69:$P$69,MATCH($HT$9,Database!$C$69:$C$69,0),MATCH('Structure Input'!EH45,Database!$G$4:$P$4,0)),IF(AND(HH45="Xypex",HK45="Round",EJ45="No Base"),INDEX(Database!$G$92:$P$92,MATCH($HT$9,Database!$C$92:$C$92,0),MATCH('Structure Input'!EH45,Database!$G$4:$P$4,0)),IF(AND(HH45="MIC",HK45="Round",EJ45="No Base"),INDEX(Database!$G$115:$P$115,MATCH($HT$9,Database!$C$115:$C$115,0),MATCH('Structure Input'!EH45,Database!$G$4:$P$4,0)), IF(AND(OR(HH45="Xypex+MIC",HH45="Bio-SanC500"), HK45="Round",EJ45="No Base"), INDEX(Database!$G$138:$P$138,MATCH($HT$9,Database!$C$138:$C$138,0),MATCH('Structure Input'!EH45,Database!$G$4:$P$4,0)), 0)))), 0) -> 0 | HU45: =IFERROR(IF(AND(HH45="Plain",HK45="Round",EI45="No Top"),INDEX(Database!$G$70:$P$70,MATCH($HU$9,Database!$C$70:$C$70,0),MATCH('Structure Input'!EH45,Database!$G$4:$P$4,0)),IF(AND(HH45="Xypex",HK45="Round",EI45="No Top"),INDEX(Database!$G$93:$P$93,MATCH($HU$9,Database!$C$93:$C$93,0),MATCH('Structure Input'!EH45,Database!$G$4:$P$4,0)),IF(AND(HH45="MIC",HK45="Round",EI45="No Top"),INDEX(Database!$G$116:$P$116,MATCH($HU$9,Database!$C$116:$C$116,0),MATCH('Structure Input'!EH45,Database!$G$4:$P$4,0)), IF(AND(OR(HH45="Xypex+MIC",HH45="Bio-SanC500"), HK45="Round",EI45="No Top"), INDEX(Database!$G$139:$P$139,MATCH($HU$9,Database!$C$139:$C$139,0),MATCH('Structure Input'!EH45,Database!$G$4:$P$4,0)), 0)))), 0) -> 0 | HV45: =IF(AND(OR(HK45="Round Knockout",HK45="FW Knockout"),DZ45<14.01),(DZ45*12)+DX45-DL45,0) -> 0 | HW45: =IFERROR(IF(AND(OR(HK45="Round Knockout",HK45="FW Knockout"),EJ45="W/Base",HH45="Plain",DZ45<14.01),(INDEX(Database!$CL$22:$DA$22,MATCH('Structure Input'!$HW$9,Database!$C$22:$DA$22,0),MATCH('Structure Input'!EH45,Database!$CL$4:$DA$4,0))),IF(AND(EJ45="No Base",HH45="Xypex",HH45="MIC", HH45="Xypex+MIC"),0,0)), 0) -> 0 | HX45: =IFERROR(IF(AND(EJ45="W/Base",HH45="Plain",DZ45<14.01),(INDEX(Database!$CL$20:$DA$20,MATCH('Structure Input'!$HX$9,Database!$C$20:$DA$20,0),MATCH('Structure Input'!EH45,Database!$CL$4:$DA$4,0))),IF(AND(EJ45="No Base",HH45="Xypex",HH45="MIC", HH45="Xypex+MIC"),0,0)), 0) -> 0 | HY45: =IFERROR(IF(AND(EJ45="W/Base",HH45="Plain",DZ45<14.01),(INDEX(Database!$CL$21:$DA$21,MATCH('Structure Input'!$HY$9,Database!$C$21:$DA$21,0),MATCH('Structure Input'!EH45,Database!$CL$4:$DA$4,0))),IF(AND(EJ45="No Base",HH45="Xypex",HH45="MIC", HH45="Xypex+MIC"),0,0)), 0) -> 0 | HZ45: =IFERROR(IF(AND(EJ45="W/Base",HH45="Plain",DZ45<14.01),(INDEX(Database!$CL$23:$DA$23,MATCH('Structure Input'!$HZ$9,Database!$C$23:$DA$23,0),MATCH('Structure Input'!EH45,Database!$CL$4:$DA$4,0))),IF(AND(EJ45="No Base",HH45="Xypex",HH45="MIC", HH45="Xypex+MIC"),0,0)), 0) -> 0 | IA45: =IFERROR(IF(AND(OR(EI45="Yes Top",EC45="Transition"),OR(HK45="Round Knockout",HK45="FW Knockout"),HH45="Plain",DZ45<14.01),(INDEX(Database!$CL$26:$DA$26,MATCH('Structure Input'!$IA$9,Database!$C$26:$DA$26,0),MATCH('Structure Input'!EH45,Database!$CL$4:$DA$4,0))),IF(AND(EI45="No Top",HH45="Xypex",HH45="MIC", HH45="Xypex+MIC"),0,0)), 0) -> 0 | IB45: =IFERROR(IF(AND(OR(EI45="Yes Top",EC45="Transition"),OR(HK45="Round Knockout",HK45="FW Knockout"),HH45="Plain",DZ45<14.01),(INDEX(Database!$CL$24:$DA$24,MATCH('Structure Input'!$IB$9,Database!$C$24:$DA$24,0),MATCH('Structure Input'!EH45,Database!$CL$4:$DA$4,0))),IF(AND(EI45="No Top",HH45="Xypex",HH45="MIC", HH45="Xypex+MIC"),0,0)), 0) -> 0 | IC45: =IFERROR(IF(AND(OR(EI45="Yes Top",EC45="Transition"),OR(HK45="Round Knockout",HK45="FW Knockout"),HH45="Plain",DZ45<14.01),(INDEX(Database!$CL$25:$DA$25,MATCH('Structure Input'!$IC$9,Database!$C$25:$DA$25,0),MATCH('Structure Input'!EH45,Database!$CL$4:$DA$4,0))),IF(AND(EI45="No Top",HH45="Xypex",HH45="MIC", HH45="Xypex+MIC"),0,0)), 0) -> 0 | ID45: =IFERROR(IF(AND(OR(EI45="Yes Top",EC45="Transition"),OR(HK45="Round Knockout",HK45="FW Knockout"),HH45="Plain",DZ45<14.01),(INDEX(Database!$CL$27:$DA$39,MATCH('Structure Input'!DO45,Database!$C$27:$C$39,0),MATCH('Structure Input'!EH45,Database!$CL$4:$DA$4,0))),IF(AND(EI45="No Top",HH45="Xypex",HH45="MIC", HH45="Xypex+MIC"),0,0)), 0) -> 0 | IE45: =IF(OR(HK45="Round Knockout",HK45="FW Knockout"),(HV45-HW45-IA45-DL45),0) -> 0 | IF45: =IF(AND(HK45="Round Knockout",IE45>59.9),60,IF(AND(HK45="Round Knockout",IE45>47.9,IE45<59.9),48,IF(AND(HK45="Round Knockout",IE45>35.9,IE45<47.9),36,IF(AND(HK45="Round Knockout",IE45>23.9,IE45<35.9),24,IF(AND(HK45="FW Knockout",IE45>23.9),24,IF(AND(OR(HK45="FW Knockout",HK45="Round Knockout"),IE45<23.9,IE45>9.9),12,0)))))) -> 0 | IG45: =IFERROR(IF(AND(EJ45="W/Base",HH45="Plain",DZ45<14.01,IF45=12),(INDEX(Database!$CL$40:$DA$40,MATCH('Structure Input'!$IG$9,Database!$C$40:$DA$40,0),MATCH('Structure Input'!EH45,Database!$CL$4:$DA$4,0))),IF(AND(EJ45="W/Base",HH45="Plain",DZ45<14.01,IF45=24),(INDEX(Database!$CL$43:$DA$43,MATCH('Structure Input'!$IG$9,Database!$C$43:$DA$43,0),MATCH('Structure Input'!EH45,Database!$CL$4:$DA$4,0))),IF(AND(EJ45="No Base",HH45="Xypex",HH45="MIC", HH45="Xypex+MIC"),0,0))), 0) -> 0 | IH45: =IFERROR(IF(AND(EJ45="W/Base",HH45="Plain",DZ45<14.01,IF45=12),(INDEX(Database!$CL$41:$DA$41,MATCH('Structure Input'!$IH$9,Database!$C$41:$DA$41,0),MATCH('Structure Input'!EH45,Database!$CL$4:$DA$4,0))),IF(AND(EJ45="W/Base",HH45="Plain",DZ45<14.01,IF45=24),(INDEX(Database!$CL$44:$DA$44,MATCH('Structure Input'!$IH$9,Database!$C$44:$DA$44,0),MATCH('Structure Input'!EH45,Database!$CL$4:$DA$4,0))),IF(AND(EJ45="No Base",HH45="Xypex",HH45="MIC", HH45="Xypex+MIC"),0,0))), 0) -> 0 | IJ45: =IF(OR(HK45="Round Knockout",HK45="FW Knockout"),(HV45-HW45-IA45-DL45-IF45),0) -> 0 | IK45: =IF(AND(HK45="Knockout",IJ45>23.9),24,IF(AND(HK45="Knockout",IJ45<23.9,IJ45>9.9),12,0)) -> 0 | IL45: =IFERROR(IF(AND(EJ45="W/Base",HH45="Plain",DZ45<14.01,IK45=12),(INDEX(Database!$CL$40:$DA$40,MATCH('Structure Input'!$IL$9,Database!$C$40:$DA$40,0),MATCH('Structure Input'!EH45,Database!$CL$4:$DA$4,0))),IF(AND(EJ45="W/Base",HH45="Plain",DZ45<14.01,IK45=24),(INDEX(Database!$CL$43:$DA$43,MATCH('Structure Input'!$IL$9,Database!$C$43:$DA$43,0),MATCH('Structure Input'!EH45,Database!$CL$4:$DA$4,0))),IF(AND(EJ45="No Base",HH45="Xypex",HH45="MIC", HH45="Xypex+MIC"),0,0))), 0) -> 0 | IM45: =IFERROR(IF(AND(EJ45="W/Base",HH45="Plain",DZ45<14.01,IK45=12),(INDEX(Database!$CL$41:$DA$41,MATCH('Structure Input'!$IM$9,Database!$C$41:$DA$41,0),MATCH('Structure Input'!EH45,Database!$CL$4:$DA$4,0))),IF(AND(EJ45="W/Base",HH45="Plain",DZ45<14.01,IK45=24),(INDEX(Database!$CL$44:$DA$44,MATCH('Structure Input'!$IM$9,Database!$C$44:$DA$44,0),MATCH('Structure Input'!EH45,Database!$CL$4:$DA$4,0))),IF(AND(EJ45="No Base",HH45="Xypex",HH45="MIC", HH45="Xypex+MIC"),0,0))), 0) -> 0 | IO45: =IF(OR(HK45="Round Knockout",HK45="FW Knockout"),(HV45-HW45-IA45-DL45-IF45-IK45),0) -> 0 | IP45: =IF(AND(HK45="Knockout",IO45>23.9),24,IF(AND(HK45="Knockout",IO45<23.9,IO45>9.9),12,0)) -> 0 | IQ45: =IFERROR(IF(AND(EJ45="W/Base",HH45="Plain",DZ45<14.01,IP45=12),(INDEX(Database!$CL$40:$DA$40,MATCH('Structure Input'!$IQ$9,Database!$C$40:$DA$40,0),MATCH('Structure Input'!EH45,Database!$CL$4:$DA$4,0))),IF(AND(EJ45="W/Base",HH45="Plain",DZ45<14.01,IP45=24),(INDEX(Database!$CL$43:$DA$43,MATCH('Structure Input'!$IQ$9,Database!$C$43:$DA$43,0),MATCH('Structure Input'!EH45,Database!$CL$4:$DA$4,0))),IF(AND(EJ45="No Base",HH45="Xypex",HH45="MIC", HH45="Xypex+MIC"),0,0))), 0) -> 0 | IR45: =IFERROR(IF(AND(EJ45="W/Base",HH45="Plain",DZ45<14.01,IP45=12),(INDEX(Database!$CL$41:$DA$41,MATCH('Structure Input'!$IR$9,Database!$C$41:$DA$41,0),MATCH('Structure Input'!EH45,Database!$CL$4:$DA$4,0))),IF(AND(EJ45="W/Base",HH45="Plain",DZ45<14.01,IP45=24),(INDEX(Database!$CL$44:$DA$44,MATCH('Structure Input'!$IR$9,Database!$C$44:$DA$44,0),MATCH('Structure Input'!EH45,Database!$CL$4:$DA$4,0))),IF(AND(EJ45="No Base",HH45="Xypex",HH45="MIC", HH45="Xypex+MIC"),0,0))), 0) -> 0 | IT45: =IF(OR(HK45="Round Knockout",HK45="FW Knockout"),(HV45-HW45-IA45-DL45-IF45-IK45-IP45),0) -> 0 | IU45: =IF(AND(HK45="Knockout",IT45>23.9),24,IF(AND(HK45="Knockout",IT45<23.9,IT45>9.9),12,0)) -> 0 | IV45: =IFERROR(IF(AND(EJ45="W/Base",HH45="Plain",DZ45<14.01,IU45=12),(INDEX(Database!$CL$40:$DA$40,MATCH('Structure Input'!$IV$9,Database!$C$40:$DA$40,0),MATCH('Structure Input'!EH45,Database!$CL$4:$DA$4,0))),IF(AND(EJ45="W/Base",HH45="Plain",DZ45<14.01,IU45=24),(INDEX(Database!$CL$43:$DA$43,MATCH('Structure Input'!$IV$9,Database!$C$43:$DA$43,0),MATCH('Structure Input'!EH45,Database!$CL$4:$DA$4,0))),IF(AND(EJ45="No Base",HH45="Xypex",HH45="MIC", HH45="Xypex+MIC"),0,0))), 0) -> 0 | IW45: =IFERROR(IF(AND(EJ45="W/Base",HH45="Plain",DZ45<14.01,IU45=12),(INDEX(Database!$CL$41:$DA$41,MATCH('Structure Input'!$IW$9,Database!$C$41:$DA$41,0),MATCH('Structure Input'!EH45,Database!$CL$4:$DA$4,0))),IF(AND(EJ45="W/Base",HH45="Plain",DZ45<14.01,IU45=24),(INDEX(Database!$CL$44:$DA$44,MATCH('Structure Input'!$IW$9,Database!$C$44:$DA$44,0),MATCH('Structure Input'!EH45,Database!$CL$4:$DA$4,0))),IF(AND(EJ45="No Base",HH45="Xypex",HH45="MIC", HH45="Xypex+MIC"),0,0))), 0) -> 0 | IY45: =IF(OR(HK45="Round Knockout",HK45="FW Knockout"),(HV45-HW45-IA45-DL45-IF45-IK45-IP45-IU45),0) -> 0 | IZ45: =IF(AND(HK45="Knockout",IY45>23.9),24,IF(AND(HK45="Knockout",IY45<23.9,IY45>9.9),12,0)) -> 0 | JA45: =IFERROR(IF(AND(EJ45="W/Base",HH45="Plain",DZ45<14.01,IZ45=12),(INDEX(Database!$CL$40:$DA$40,MATCH('Structure Input'!$JA$9,Database!$C$40:$DA$40,0),MATCH('Structure Input'!EH45,Database!$CL$4:$DA$4,0))),IF(AND(EJ45="W/Base",HH45="Plain",DZ45<14.01,IZ45=24),(INDEX(Database!$CL$43:$DA$43,MATCH('Structure Input'!$JA$9,Database!$C$43:$DA$43,0),MATCH('Structure Input'!EH45,Database!$CL$4:$DA$4,0))),IF(AND(EJ45="No Base",HH45="Xypex",HH45="MIC", HH45="Xypex+MIC"),0,0))), 0) -> 0 | JB45: =IFERROR(IF(AND(EJ45="W/Base",HH45="Plain",DZ45<14.01,IZ45=12),(INDEX(Database!$CL$41:$DA$41,MATCH('Structure Input'!$JB$9,Database!$C$41:$DA$41,0),MATCH('Structure Input'!EH45,Database!$CL$4:$DA$4,0))),IF(AND(EJ45="W/Base",HH45="Plain",DZ45<14.01,IZ45=24),(INDEX(Database!$CL$44:$DA$44,MATCH('Structure Input'!$JB$9,Database!$C$44:$DA$44,0),MATCH('Structure Input'!EH45,Database!$CL$4:$DA$4,0))),IF(AND(EJ45="No Base",HH45="Xypex",HH45="MIC", HH45="Xypex+MIC"),0,0))), 0) -> 0 | JD45: =IF(OR(HK45="Round Knockout",HK45="FW Knockout"),(HV45-HW45-IA45-DL45-IF45-IK45-IP45-IU45-IZ45),0) -> 0 | JE45: =IF(AND(HK45="Knockout",JD45>5.01, JD45<=9.9),6,IF(AND(HK45="Knockout",JD45>3.5,JD45<5.01),4,IF(AND(HK45="Knockout",JD45>1.99,JD45<3.49),3,0))) -> 0 | JF45: =IF(JE45=3,50,IF(JE45=4,60,IF(JE45=6,78,0))) -> 0 | JH45: =IF(OR(HK45="Round Knockout",HK45="FW Knockout"),(HV45-HW45-IA45-DL45-IF45-IK45-IP45-IU45-IZ45-JE45),0) -> 0 | JI45: =IF(AND(HK45="Knockout",JH45>5.01, JH45<=9.9),6,IF(AND(HK45="Knockout",JH45>3.5,JH45<5.01),4,IF(AND(HK45="Knockout",JH45>1.99,JH45<3.49),3,0))) -> 0 | JJ45: =IF(JI45=3,50,IF(JI45=4,60,IF(JI45=6,78,0))) -> 0 | JL45: =JH45-JI45 -> 0 | JM45: =HX45+IB45+IG45+IL45+IQ45+IV45+JA45+JF45+JJ45 -> 0 | JN45: =(HY45+IC45+IH45+IM45+IR45+IW45+JB45)/2000 -> 0 | JO45: =IFERROR(INDEX(Database!$E$319:$M$319,MATCH('Structure Input'!$JO$9,Database!$C$319:$C$319,0),MATCH('Structure Input'!EO45,Database!$E$297:$M$297,0)),0) -> 0 | JP45: =IFERROR(IF(HK45="Round",INDEX(Database!$E$298:$N$318,MATCH('Structure Input'!EH45,Database!$C$298:$C$320,0),MATCH('Structure Input'!EO45,Database!$E$297:$N$297,0)),IF(HK45="Flat Wall",(JO45*FP45),0)),0) -> 0 | JQ45: =IFERROR(INDEX(Database!$Z$330:$Z$332,MATCH('Structure Input'!ER45,Database!$C$330:$C$332,0),MATCH('Structure Input'!$JQ$9,Database!$Z$329:$Z$329,0)),0) -> 0 | JR45: =IFERROR(IF(HK45="Round",INDEX(Database!$E$330:$Y$332,MATCH('Structure Input'!ER45,Database!$C$330:$C$332,0),MATCH('Structure Input'!EH45,Database!$E$329:$Y$329,0)),IF(HK45="Flat Wall",(JQ45*FP45),0)),0) -> 0 | JS45: =IF(AND(ET45="Yes", HK45="Round"),6,IF(AND(ET45="Yes",HK45="Flat Wall"),18,IF(AND(ET45="Yes",HK45="Knockout"),6,IF(AND(ET45="Yes",HK45="Riser"),6,0)))) -> 0 | JT45: =IFERROR(INDEX(Database!$AB$282:$AB$289,MATCH('Structure Input'!EV45,Database!$C$282:$C$289,0), MATCH('Structure Input'!$JT$9,Database!$AB$281:$AB$281,0)), 0) -> 0 | JU45: =FP45*JT45 -> 0 | JV45: =FS45*JT47 -> 0 | JW45: =IFERROR(MAX(DB45:DB50), "") -> 0 | JX45: =IF(AND(JW45>=1,JW45<=8),8,IF(AND(JW45>=8.001,JW45<=10),10,IF(AND(JW45>=10.001,JW45<=12),12,IF(AND(JW45>=12.001,JW45<=15),15,IF(AND(JW45>=15.001,JW45<=18),18,IF(AND(JW45>=18.001,JW45<=24),24,IF(AND(JW45>=24.001,JW45<=30),30,IF(AND(JW45>=30.001,JW45<=36),36,IF(AND(JW45>=36.001,JW45<=42),42,IF(AND(JW45>=42.001,JW45<=48),48,0)))))))))) -> 0 | JY45: =IFERROR(IF(AND(HH45="Plain",EY45="Yes"),INDEX(Database!$G$72:$K$81,MATCH('Structure Input'!JX45,Database!$C$72:$C$81,0),MATCH('Structure Input'!EH45,Database!$G$4:$K$4,0)),IF(AND(HH45="Xypex",EY45="Yes"),INDEX(Database!$G$95:$K$104,MATCH('Structure Input'!JX45,Database!$C$95:$C$104,0),MATCH('Structure Input'!EH45,Database!$G$4:$K$4,0)),IF(AND(HH45="MIC",EY45="Yes"),INDEX(Database!$G$118:$K$127,MATCH('Structure Input'!JX45,Database!$C$118:$C$127,0),MATCH('Structure Input'!EH45,Database!$G$4:$K$4,0)),IF(AND(OR(HH45="Xypex+MIC",HH45="Bio-SanC500"),EY45="Yes"),INDEX(Database!$G$141:$K$150,MATCH('Structure Input'!JX45,Database!$C$141:$C$150,0),MATCH('Structure Input'!EH45,Database!$G$4:$K$4,0)),IF(EY45="",0,0))))),0) -> 0 | JZ45: =IFERROR(IF(AND(HH45="Plain",FA45="Yes"),INDEX(Database!$G$71:$CK$71,MATCH('Structure Input'!$JZ$9,Database!$C$71:$CK$71,0),MATCH('Structure Input'!EH45,Database!$G$4:$CK$4,0)),IF(AND(HH45="Xypex",FA45="Yes"),INDEX(Database!$G$94:$P$94,MATCH('Structure Input'!$JZ$9,Database!$C$94:$P$94,0),MATCH('Structure Input'!EH45,Database!$G$4:$P$4,0)),IF(AND(HH45="MIC",FA45="Yes"),INDEX(Database!$G$117:$P$117,MATCH('Structure Input'!$JZ$9,Database!$C$117:$P$117,0),MATCH('Structure Input'!EH45,Database!$G$4:$P$4,0)),IF(AND(OR(HH45="Xypex+MIC",HH45="Bio-SanC500"),FA45="Yes"),INDEX(Database!$G$140:$P$140,MATCH('Structure Input'!$JZ$9,Database!$C$140:$P$140,0),MATCH('Structure Input'!EH45,Database!$G$4:$P$4,0)),0)))),0) -> 0 | KG45: =IFERROR(INDEX(Database!$E$228:$AMG$228,MATCH('Structure Input'!$KG$9,Database!$C$228:$AMG$228,0), MATCH('Structure Input'!CQ45,Database!$E$227:$AMG$227,0)), 0) -> 0 | KH45: =ROUNDUP((KH47*KH48)+KH49,0) -> 0 | KI45: =IF(DL47="Casting",KH45*KM45,0) -> 0 | KJ45: =IF(DL47="Hatch",KH45*KN45,0) -> 0 | KK45: =IF(DL47="Casting",KH48*KM45,0) -> 0 | KL45: =IF(DL47="Hatch",KH48*KN45,0) -> 0 | KM45: =IF(DL47="Casting",CJ45*DM45,0) -> 0 | KN45: =IF(DL47="Hatch",CJ45*DM45,0) -> 0 | KO45: =IF(DL47="Casting",KH48/Summary!$AM$10,0) -> 0 | KP45: =IFERROR(IF(DL47="Hatch",KH48/Summary!$AM$13,0),0) -> 0 | KQ45: =KQ47*KQ48 -> 0 | KR45: =IFERROR(IF(AND(CQ46<>"",HH45="Plain"),INDEX(Database!$E$237:$AMG$237,MATCH('Structure Input'!$KR$8,Database!$C$237:$AMG$237,0), MATCH('Structure Input'!CQ45,Database!$E$227:$AMG$227,0)), IF(AND(CQ46<>"",HH45="Xypex"), INDEX(Database!$E$239:$AMG$239,MATCH('Structure Input'!$KR$8,Database!$C$239:$AMG$239,0), MATCH('Structure Input'!CQ45,Database!$E$227:$AMG$227,0)), IF(AND(CQ46<>"",HH45="MIC"), INDEX(Database!$E$241:$AMG$241,MATCH('Structure Input'!$KR$8,Database!$C$241:$AMG$241,0), MATCH('Structure Input'!CQ45,Database!$E$227:$AMG$227,0)), IF(AND(CQ46<>"",HH45="Xypex+MIC"), INDEX(Database!$E$243:$AMG$243,MATCH('Structure Input'!$KR$8,Database!$C$243:$AMG$243,0), MATCH('Structure Input'!CQ45,Database!$E$227:$AMG$227,0)),IF(AND(CQ46="",CP45<>""),"MTO", "MTO"))))), "MTO") -> MTO | KS45: =IFERROR(INDEX(Database!$F$193:$QJ$193,MATCH('Structure Input'!$KR$8,Database!$C$193:$QJ$193,0), MATCH('Structure Input'!DK45,Database!$F$181:$QJ$181,0)), 0) -> 0 | KT45: =IFERROR(INDEX(Database!$E$354:$BR$354,MATCH('Structure Input'!$KR$8,Database!$C$354:$BR$354,0), MATCH('Structure Input'!KQ46,Database!$E$351:$BR$351,0)), 0) -> 0 | KU45: =IFERROR(INDEX(Database!$F$194:$QJ$194,MATCH('Structure Input'!$KR$8,Database!$C$194:$QJ$194,0), MATCH('Structure Input'!DK45,Database!$F$181:$QJ$181,0)), 0) -> 0 | KV45: =IFERROR(INDEX(Database!$F$195:$QJ$195,MATCH('Structure Input'!$KR$8,Database!$C$195:$QJ$195,0), MATCH('Structure Input'!DK45,Database!$F$181:$QJ$181,0)), 0) -> 0 | KW45: =IFERROR(INDEX(Database!$F$196:$QJ$196,MATCH('Structure Input'!$KR$8,Database!$C$196:$QJ$196,0), MATCH('Structure Input'!DK45,Database!$F$181:$QJ$181,0)), 0) -> 0 | KX45: =IF(OR(EV45<>"",EV45="Stack-it Data"),FP45,"") ->  | KY45: =IF(OR(EV48<>"",EV48="Stack-it Data"),FS45,"") ->  | LB45: =SUM(LB46:LB50) -> 0 | LC45: =IF(AND(FB45>0,FC45=0),FB45&" Dia.",IF(AND(FC45>0,FB45=0),FC45&"x"&FD45, "")) ->  | LD45: =IF(HJ45-HL45>0,(HJ45-HL45)*HP45,0) -> 0 | LE45: =MAX(0,((EB45-(FL45/12))*HR45)) -> 0 | LF45: =(JP45*DZ45) -> 0 | LG45: =(JR45*DZ45) -> 0 | LH45: =(DI45+DI46+DI47+DI48+DI49+DI50) -> 0 | LI45: =(JS45*DZ45) -> 0 | LJ45: =Summary!$W$11 -> 1.2 | LK45: =(LF45+LG45+LH45+LI45)*(LJ45) -> 0 | LL45: =SUM(LL46:LL50) -> 0 | LM45: =(JU45*DZ45) -> 0 | LN45: =(JV45*DZ45) -> 0 | LO45: =IF(HG45<>"",(HG45*HF45)+(HC45*HG45),0) -> 0 | LP45: =IFERROR(MB45,"") ->  | LQ45: =IFERROR(LT45,"") ->  | LR45: =IFERROR(LU45,"") ->  | LS45: =((HM45+HN45+HO45+HQ45+HS45-HT45-HU45+JM45+LD45+LE45+JY45+KC45+KF45+KG45+LO45)/((100-LV45)/100)-HM45-HN45-HO45-HQ45-HS45+HT45+HU45-JM45-LD45-LE45-JY45-KC45-KF45-KG45-LO45)*CJ45 -> 0 | LT45: =(HM45+HN45+HO45+HQ45+HS45-HT45-HU45+JM45+JY45+JZ45+KA45+KB45+KC45+KD45+KE45+KF45+KG45+LD45+LE45+LK45+LL45+LM45+LN45+LO45+MB45)*MD45 ->  | LU45: =((HM45+HN45+HO45+HQ45+HS45-HT45-HU45+LD45+LE45+KF45+JM45+JY45+JZ45+LL45+KG45+LO45)/HE45*2/27)*MD45 ->  | LV45: =(Summary!$AG$11) -> 31.07380871 | LW45: =(IF(HA45="1 Piece",(Summary!$AH$11*0.5),IF(HA45="2 Pieces",(Summary!$AH$11*1),IF(HA45="3 Pieces",(Summary!$AH$11*1.5),IF(HA45="4 Pieces",(Summary!$AH$11*2),0))))) -> 0 | LX45: =GM45*Summary!$AH$11 -> 0 | LY45: =IF(GH45=2,(GJ45*Summary!$AH$11*0.25),IF(GH45=3,(GJ45*Summary!$AH$11*0.5),IF(GH45=4,(GJ45*Summary!$AH$11*0.75),0))) -> 0 | LZ45: =IF(GI45=2,(GK45*Summary!$AH$11*0.25),IF(GI45=3,(GK45*Summary!$AH$11*0.5),IF(GI45=4,(GK45*Summary!$AH$11*0.75),0))) -> 0 | MA45: =LS45+LX45+LY45+LZ45+(LW45*CJ45) -> 0 | MB45: =((LS45+LX45+LY45+LZ45)/CJ45)+LW45 ->  | MC45: =IF(OR(CM45="Storm",CM45="End Treatment",CM45="Sanitary",CM45="Wet Well",CM45="Vault",CM45="Grease Trap",CM45="Oil Separator",CM45="Septic",CM45="Water/SSARV"),1,IF(CM45="Box Culvert",2,IF(CM45="Other",3,""))) ->  | MD45: =IF(CM45="Storm",Summary!$W$2,IF(CM45="End Treatment",Summary!$W$3,IF(CM45="Storm WQU",Summary!$W$4,IF(CM45="Sanitary",Summary!$W$5,IF(CM45="Wet Well",Summary!$W$6,IF(CM45="Vault",Summary!$W$7,IF(OR(CM45="Grease Trap",CM45="Oil Separator",CM45="Septic"),Summary!$W$8,IF(CM45="Water/SS ARV",Summary!$W$9,IF(CM45="Other",Summary!$W$10,IF(CM45="Box Culvert",Summary!$W$15,IF(CM45="UG Detention",Summary!$W$16,1))))))))))) -> 1 | ME45: =IFERROR(LQ45*CJ45, "") ->  | MF45: =IFERROR((((HM45+HN45+HO45+HQ45+HS45-HT45-HU45+JY45+JZ45+KA45+KB45+KC45+KD45+KF45+KG45+LD45+LE45+LL45+LO45+MB45)*MD45)*CJ45), "") ->  | MG45: =IFERROR((((HM45+HN45+HO45+HQ45+HS45-HT45-HU45+JY45+JZ45+LE45+KA45+KB45+KC45+KD45+KF45+KG45+LD45+LL45+LO45)*MD45)*CJ45), "") -> 0
